Workbook

Sheet Instructions
A1: Fertilizer Cost Comparison Tool (Field Crops)
A4: Template by: Jon LaPorte, Farm Management Educator
A5: Michigan State University Extension
A6: 120 N. Broadway, Suite 116, Cassopolis, MI 49031
A7: Phone: (269) 445-4356 Email: laportej@msu.edu
A10: 1) | B10: Each TAB represents an important aspect of fertilizer planning (i.e., nutrient management, sources of fertilizer, and overall fertilizer plan for each commodity). Click on a TAB to enter specific information.
B11: These include:
C13: Nutrient Management | D13: - | E13: Input yield goals, soil test based nutrient recommendations, manure nutrient analysis, and nutrient credits. This section will determine the total amount of nutrients that will need to be supplied through commercial fertilizer products.
E15: This section provides detailed information for use with the Fertilizer Plan sections to determine how much commercial fertilizer will need to be applied.
C16: Fertilizer Products & Pricing | D16: - | E16: Input the products and prices for fertilizer, lime, and nitrogen stabilizers to use in the Fertilizer Plan. Common fertilizer products are already provided.
E17: Each crop has its own tab (i.e. Fertilizer - Corn)
C18: Fertilizer Plan Tabs | D18: - | E18: Choose the fertilizer from the drop-down menu and enter product/acre to be used. (i.e. 100lbs/acre of 9-23-30 = 50lbs 18-46-0 & 50lbs 0-0-62lbs)
C19: (Corn, Soybeans, Wheat) | E19: Note: Includes an in-depth assessment of nutrients provided at each application of the farm's fertilizer program.
C20: Tri-State Recommendations | D20: - | E20: This section allows for calculating of P and K values needed to meet yield goals based on Tri-State Recommendations. The information can be transferred to the Nutrient Management page for use in commercial fertilizer cost comparison.
E22: Note: This section is not a replacement for recommendations from a soil test analysis obtained from soil test laboratories.
E23: For soil test based recommendations, visit the MSU Soil and Plant Nutrient Laboratory: | P23: https://www.canr.msu.edu/spnl/
C24: Simple Fertilizer Calculator | D24: - | E24: This section contains a calculation for finding cost per acre on select fertilizer products. There are also calculators to extract nitrogen and sulfur costs from combination fertilizer products.
C27: Manure Applications ---START HERE | E27: Do you plan to include manure cost in your fertilizer plan? Go to the Fertilizer Products & Pricing worksheet
E28: Note: There is a Manure Calculator to input nutrient analysis values. The calculator will adjust values based on selected number of days before manure is expected to be incorporated. Retention factors used to adjust values are based on 2022 proposed MI GAAMPS charts.
E30: Do you plan to include only commercial fertilizer products in your fertilizer plan? Go to the Nutrient Management worksheet
E31: Note: Step 4 provides an area to include values of manure, preferably based on a nutrient analysis. Values can also be adjusted based on selected number of days before manure is expected to be incorporated. Retention factors used to adjust values are based on 2022 proposed MI GAAMPS charts.
A33: 2) | B33: Only items that are colored in BLUE should be altered in each TAB. Changing the value of an item not marked BLUE can cause the formulas in the spreadsheet to stop working.
A35: 3) | B35: The Nutrient Management and Fertilizer Plan Tabs can be printed for your farm records. The Fertilizer Plan Tab also allows for printing of three different plans for your chosen commodity. This allows for comparison of different fertilizer sources to identify the best way to meet nutrient needs at the lowest possible cost.

Sheet Nutrient Management
B1: Nutrient Management | P1: Additional Resources:
B2: Corn | F2: Soybeans | J2: Wheat | P2: For more information on Fertilizer Recommendations, see:
P3: MSU Bulletin E-2904, Nutrient Recommendations for Field Crops in Michigan
A4: Step 1: | B4: Yield Goal: | P4: Tri-State Fertilizer Recommendations
C5: (Enter Below) | G5: (Enter Below) | K5: (Enter Below)
C6: 200 | G6: 45 | K6: 100 | P6: MSU Fertilizer Recommendation Program
P7: https://www.canr.msu.edu/fertrec/
A8: Step 2: | B8: Soil Test Based Recommendations: | P8: Maximum Return to Nitrogen Calculator
B9: Obtained from MSU Fertilizer Recommendation Program, MRTN (Nitrogen) Calculator, Tri-State Recommendations or your local soil lab. | P9: http://cnrc.agron.iastate.edu/
B10: (Enter Below) | C10: (Enter Below) | D10: (Enter Below) | F10: (Enter Below) | G10: (Enter Below) | H10: (Enter Below) | J10: (Enter Below) | K10: (Enter Below) | L10: (Enter Below)
B11: N | C11: P | D11: K | F11: N | G11: P | H11: K | J11: N | K11: P | L11: K | P11: PPM to Pounds (Lbs) Conversion Calculator
B12: 150 | C12: 125 | D12: 75 | F12: 0 | G12: 35 | H12: 205 | J12: 120 | K12: 65 | L12: 40 | P12: (Enter Below)
B13: S | C13: Ca | D13: Mag | F13: S | G13: Ca | H13: Mag | J13: S | K13: Ca | L13: Mag | N13: More | P13: PPM | R13: Pounds (Lbs)
B14: 8 | C14: 0 | D14: 0 | F14: 12 | G14: 0 | H14: 0 | J14: 8 | K14: 0 | L14: 0 | N14: Below | P14: 0 | Q14: x 2 | R14: =P14*2 -> 0
B15: Z | C15: B | D15: Mn | F15: Z | G15: B | H15: Mn | J15: Z | K15: B | L15: Mn | N15: ¯
B16: 0 | C16: 0 | D16: 0 | F16: 0 | G16: 0 | H16: 0 | J16: 0 | K16: 0 | L16: 0
B17: Lbs/Acre | C17: Lbs/Acre | D17: Lbs/Acre | F17: Lbs/Acre | G17: Lbs/Acre | H17: Lbs/Acre | J17: Lbs/Acre | K17: Lbs/Acre | L17: Lbs/Acre | N17: ¯
A19: Step 3: | B19: Nutrient Removal | P19: Nutrient Recommendation
B20: Amount of nutrients being removed based on yield goal. | P20: Nutrient removal rates are based on soil nutrients at "maintenance levels." Soil testing is recommended to confirm maintenance levels exist prior to consideration of removal rates.
B22: N | C22: P | D22: K | F22: N | G22: P | H22: K | J22: N | K22: P | L22: K
B23: =0.9*C6 -> 180 | C23: =0.37*C6 -> 74 | D23: =0.27*C6 -> 54 | F23: =3.8*G6 -> 171 | G23: =0.8*G6 -> 36 | H23: =1.4*G6 -> 63 | J23: =1.2*K6 -> 120 | K23: =0.63*K6 -> 63 | L23: =0.37*K6 -> 37
B24: S | C24: Ca | D24: Mag | F24: S | G24: Ca | H24: Mag | J24: S | K24: Ca | L24: Mag
B25: =0.05*C6 -> 10 | C25: 0 | D25: 0 | F25: =0.18*G6 -> 8.1 | G25: 0 | H25: 0 | J25: =0.07*K6 -> 7 | K25: 0 | L25: 0 | P25: MSU recommends using soil test-based information to address nutrient needs of your intended yield goals.
B26: Lbs/Acre | C26: Lbs/Acre | D26: Lbs/Acre | F26: Lbs/Acre | G26: Lbs/Acre | H26: Lbs/Acre | J26: Lbs/Acre | K26: Lbs/Acre | L26: Lbs/Acre
A28: Step 4: | B28: Manure Application - This Year | P28: Manure Resources
B29: Input nutrients being provided in manure applications "this year" (based on nutrient analysis results). | P29: Manure application methods and nitrogen losses (University of Minnesota)
B30: (Enter Below) | C30: (Enter Below) | D30: (Enter Below) | F30: (Enter Below) | G30: (Enter Below) | H30: (Enter Below) | J30: (Enter Below) | K30: (Enter Below) | L30: (Enter Below) | P30: Michigan GAAMPS | R30: ← See table A4 in Manure Mgmt & Utilization section for approximate manure values in place of nutrient analysis
B31: N | C31: P | D31: K | F31: N | G31: P | H31: K | J31: N | K31: P | L31: K
B32: 42 | C32: 75 | D32: 57 | F32: 42 | G32: 75 | H32: 57 | J32: 0 | K32: 0 | L32: 0 | P32: Note:
B33: S | F33: S | J33: S | P33: If you are using manure or compost, for best results a nutrient analysis is highly recommended.
B34: 8 | D34: (Select Below) | F34: 8 | H34: (Select Below) | J34: 0 | L34: (Select Below)
B35: Days Before Incorporation | D35: 4-7 days | F35: Days Before Incorporation | H35: 0-1 days | J35: Days Before Incorporation | L35: ----
B36: *for all liquid and solid manure types | F36: *for all liquid and solid manure types | J36: *for all liquid and solid manure types
A38: Step 5: | B38: Nutrient Credit: Manure - Previous Year(s)
B39: Input nutrients being provided in manure applications from previous year(s).
B40: (Enter Below) | C40: (Enter Below) | D40: (Enter Below) | F40: (Enter Below) | G40: (Enter Below) | H40: (Enter Below) | J40: (Enter Below) | K40: (Enter Below) | L40: (Enter Below) | N40: More
B41: N | C41: P | D41: K | F41: N | G41: P | H41: K | J41: N | K41: P | L41: K | N41: Below
B42: 0 | C42: 0 | D42: 0 | F42: 0 | G42: 0 | H42: 0 | J42: 20 | K42: 32 | L42: 25 | N42: ¯
A44: Step 6: | B44: Nutrient Credit: Previous Crop | P44: For use with Step 6 (per MSU Bulletin: E-2904)
B45: Input nutrients being credited from legume crops planted in previous year.
B46: (Select Below) | D46: N | F46: (Select Below) | H46: N | J46: (Select Below) | L46: N
B47: Soybeans | D47: =VLOOKUP(B47,'Manure and Nutrient Credits'!$A$3:$B$16,2,FALSE) -> 30 | F47: Select Previous Crop | H47: =VLOOKUP(F47,'Manure and Nutrient Credits'!$A$3:$B$16,2,FALSE) -> 0 | J47: Soybeans | L47: =VLOOKUP(J47,'Manure and Nutrient Credits'!$A$3:$B$16,2,FALSE) -> 30
A49: Step 7: | B49: Total Nutrients Needed From Commercial Fertilizer
B50: Nutrients still needed based on starting point of soil test recommendations or nutrient removal rates, minus any manure or nutrient credits.
B52: Soil Test Based Recs | F52: Soil Test Based Recs | J52: Soil Test Based Recs
B53: N | C53: P | D53: K | F53: N | G53: P | H53: K | J53: N | K53: P | L53: K
B54: =B12-(B32*'Manure and Nutrient Credits'!$D$27)-B42-D47 -> 111.6 | C54: =C12-(C32*'Manure and Nutrient Credits'!$D$27)-C42 -> 110 | D54: =D12-(D32*'Manure and Nutrient Credits'!$D$27)-D42 -> 63.6 | F54: =F12-(F32*'Manure and Nutrient Credits'!$D$30)-F42-H47 -> -29.4 | G54: =G12-(G32*'Manure and Nutrient Credits'!$D$30)-G42 -> -17.5 | H54: =H12-(H32*'Manure and Nutrient Credits'!$D$30)-H42 -> 165.1 | J54: =J12-(J32*'Manure and Nutrient Credits'!$D$33)-J42-L47 -> 70 | K54: =K12-(K32*'Manure and Nutrient Credits'!$D$33)-K42 -> 33 | L54: =L12-(L32*'Manure and Nutrient Credits'!$D$33)-L42 -> 15
B55: =MAX(0,B54) -> 111.6 | C55: =MAX(0,C54) -> 110 | D55: 63.6 | F55: =MAX(0,F54) -> 0 | G55: =MAX(0,G54) -> 0 | H55: =MAX(0,H54) -> 165.1 | J55: =MAX(0,J54) -> 70 | K55: =MAX(0,K54) -> 33 | L55: =MAX(0,L54) -> 15
B56: S | C56: Ca | D56: Mag | F56: S | G56: Ca | H56: Mag | J56: S | K56: Ca | L56: Mag
B57: =B14-(B34*'Manure and Nutrient Credits'!$D$27) -> 6.4 | C57: =C14 -> 0 | D57: =D14 -> 0 | F57: =F14-(F34*'Manure and Nutrient Credits'!$D$30) -> 6.4 | G57: =G14 -> 0 | H57: =H14 -> 0 | J57: =J14-(J34*'Manure and Nutrient Credits'!$D$33) -> 8 | K57: =K14 -> 0 | L57: =L14 -> 0
B58: =MAX(0,B57) -> 6.4 | C58: =MAX(0,C57) -> 0 | D58: 0 | F58: =MAX(0,F57) -> 6.4 | G58: =MAX(0,G57) -> 0 | H58: =MAX(0,H57) -> 0 | J58: =MAX(0,J57) -> 8 | K58: =MAX(0,K57) -> 0 | L58: =MAX(0,L57) -> 0
B59: Z | C59: B | D59: Mn | F59: Z | G59: B | H59: Mn | J59: Z | K59: B | L59: Mn
B60: 0 | C60: 0 | D60: 0 | F60: 0 | G60: 0 | H60: 0 | J60: 0 | K60: 0 | L60: 0
B62: Nutrient Removal Recs | F62: Nutrient Removal Recs | J62: Nutrient Removal Recs
B63: N | C63: P | D63: K | F63: N | G63: P | H63: K | J63: N | K63: P | L63: K
B64: =B23-(B32*'Manure and Nutrient Credits'!$D$27)-B42-D47 -> 141.6 | C64: =C23-(C32*'Manure and Nutrient Credits'!$D$27)-C42 -> 59 | D64: =D23-(D32*'Manure and Nutrient Credits'!$D$27)-D42 -> 42.6 | F64: =F23-(F32*'Manure and Nutrient Credits'!$D$30)-F42-H47 -> 141.6 | G64: =G23-(G32*'Manure and Nutrient Credits'!$D$30)-G42 -> -16.5 | H64: =H23-(H32*'Manure and Nutrient Credits'!$D$30)-H42 -> 23.1 | J64: =J23-(J32*'Manure and Nutrient Credits'!$D$33)-J42-L47 -> 70 | K64: =K23-(K32*'Manure and Nutrient Credits'!$D$33)-K42 -> 31 | L64: =L23-(L32*'Manure and Nutrient Credits'!$D$33)-L42 -> 12
B65: =MAX(0,B83) -> 141.6 | C65: =MAX(0,C83) -> 59 | D65: =MAX(0,D83) -> 42.6 | F65: =MAX(0,F83) -> 141.6 | G65: =MAX(0,G83) -> 0 | H65: =MAX(0,H83) -> 23.1 | J65: =MAX(0,J83) -> 70 | K65: =MAX(0,K83) -> 31 | L65: =MAX(0,L83) -> 12
B66: S | C66: Ca | D66: Mag | F66: S | G66: Ca | H66: Mag | J66: S | K66: Ca | L66: Mag
B67: =B25-(B34*'Manure and Nutrient Credits'!$D$27) -> 8.4 | C67: =C25 -> 0 | D67: =D25 -> 0 | F67: =F25-(F34*'Manure and Nutrient Credits'!$D$30) -> 2.5 | G67: =G25 -> 0 | H67: =H25 -> 0 | J67: =J25-(J34*'Manure and Nutrient Credits'!$D$33) -> 7 | K67: =K25 -> 0 | L67: =L25 -> 0
B68: =MAX(0,B67) -> 8.4 | C68: =MAX(0,C67) -> 0 | D68: 0 | F68: =MAX(0,F67) -> 2.5 | G68: =MAX(0,G67) -> 0 | H68: 0 | J68: =MAX(0,J67) -> 7 | K68: =MAX(0,K67) -> 0 | L68: 0
B69: Z | C69: B | D69: Mn | F69: Z | G69: B | H69: Mn | J69: Z | K69: B | L69: Mn
B70: 0 | C70: 0 | D70: 0 | F70: 0 | G70: 0 | H70: 0 | J70: 0 | K70: 0 | L70: 0
J72: Enter Farm Name
B74: Use this information to help determine the amount of commercial fertilizer needed in the Fertilizer Plan tab.
B76: Soil Test Based Recommendations | F76: Soil Test Based Recommendations | J76: Soil Test Based Recommendations
B77: =B12-(B32*'Manure and Nutrient Credits'!$D$27)-B42-D47 -> 111.6 | C77: =C12-(C32*'Manure and Nutrient Credits'!$D$27)-C42 -> 110 | D77: =D12-(D32*'Manure and Nutrient Credits'!$D$27)-D42 -> 63.6 | F77: =F12-(F32*'Manure and Nutrient Credits'!$D$30)-F42-H47 -> -29.4 | G77: =G12-(G32*'Manure and Nutrient Credits'!$D$30)-G42 -> -17.5 | H77: =H12-(H32*'Manure and Nutrient Credits'!$D$30)-H42 -> 165.1 | J77: =J12-(J32*'Manure and Nutrient Credits'!$D$33)-J42-L47 -> 70 | K77: =K12-(K32*'Manure and Nutrient Credits'!$D$33)-K42 -> 33 | L77: =L12-(L32*'Manure and Nutrient Credits'!$D$33)-L42 -> 15
B78: =MAX(0,B77) -> 111.6 | C78: =MAX(0,C77) -> 110 | D78: 63.6 | F78: =MAX(0,F77) -> 0 | G78: =MAX(0,G77) -> 0 | H78: =MAX(0,H77) -> 165.1 | J78: =MAX(0,J77) -> 70 | K78: =MAX(0,K77) -> 33 | L78: =MAX(0,L77) -> 15
B79: =B14-(B34*'Manure and Nutrient Credits'!$D$27) -> 6.4 | F79: =F14-(F34*'Manure and Nutrient Credits'!$D$30) -> 6.4 | J79: =J14-(J34*'Manure and Nutrient Credits'!$D$33) -> 8
B80: =MAX(0,B79) -> 6.4 | F80: =MAX(0,F79) -> 6.4 | J80: =MAX(0,J79) -> 8
B82: Nutrient Removal | F82: Nutrient Removal | J82: Nutrient Removal
B83: =B23-(B32*'Manure and Nutrient Credits'!$D$27)-B42-D47 -> 141.6 | C83: =C23-(C32*'Manure and Nutrient Credits'!$D$27)-C42 -> 59 | D83: =D23-(D32*'Manure and Nutrient Credits'!$D$27)-D42 -> 42.6 | F83: =F23-(F32*'Manure and Nutrient Credits'!$D$30)-F42-H47 -> 141.6 | G83: =G23-(G32*'Manure and Nutrient Credits'!$D$30)-G42 -> -16.5 | H83: =H23-(H32*'Manure and Nutrient Credits'!$D$30)-H42 -> 23.1 | J83: =J23-(J32*'Manure and Nutrient Credits'!$D$33)-J42-L47 -> 70 | K83: =K23-(K32*'Manure and Nutrient Credits'!$D$33)-K42 -> 31 | L83: =L23-(L32*'Manure and Nutrient Credits'!$D$33)-L42 -> 12
B84: =MAX(0,B83) -> 141.6 | C84: =MAX(0,C83) -> 59 | D84: =MAX(0,D83) -> 42.6 | F84: =MAX(0,F83) -> 141.6 | G84: =MAX(0,G83) -> 0 | H84: =MAX(0,H83) -> 23.1 | J84: =MAX(0,J83) -> 70 | K84: =MAX(0,K83) -> 31 | L84: =MAX(0,L83) -> 12
B85: =B25-(B34*'Manure and Nutrient Credits'!$D$27) -> 8.4 | F85: =F25-(F34*'Manure and Nutrient Credits'!$D$30) -> 2.5 | J85: =J25-(J34*'Manure and Nutrient Credits'!$D$33) -> 7
B86: =MAX(0,B85) -> 8.4 | F86: =MAX(0,F85) -> 2.5 | J86: =MAX(0,J85) -> 7

Sheet Corn K Calculations (hidden)
A1: 9 | B1: 50 | C1: IF(AND(E8<=50,'Crop Budget (Main)'!C14<=100,D14<=9),125,IF(AND(E8<=50,'Crop Budget (Main)'!C14<=120,D14<=9),130,IF(AND(E8<=50,'Crop Budget (Main)'!C14<=140,D14<=9),135,IF(AND(E8<=50,'Crop Budget (Main)'!C14<=160,D14<=9),140,IF(AND(E8<=50,'Crop Budget (Main)'!C14<=180,D14<=9),145,IF(AND(E8<=50,'Crop Budget (Main)'!C14>180,D14<=9),145
A2: 9 | B2: 100 | C2: IF(AND(E8<=100,'Crop Budget (Main)'!C14<=100,D14<=9),95,IF(AND(E8<=100,'Crop Budget (Main)'!C14<=120,D14<=9),100,IF(AND(E8<=100,'Crop Budget (Main)'!C14<=140,D14<=9),105,IF(AND(E8<=100,'Crop Budget (Main)'!C14<=160,D14<=9),110,IF(AND(E8<=100,'Crop Budget (Main)'!C14<=180,D14<=9),115,IF(AND(E8<=100,'Crop Budget (Main)'!C14>180,D14<=9),115
A3: 9 | B3: 150 | C3: IF(AND(E8<=150,'Crop Budget (Main)'!C14<=100,D14<=9),65,IF(AND(E8<=150,'Crop Budget (Main)'!C14<=120,D14<=9),70,IF(AND(E8<=150,'Crop Budget (Main)'!C14<=140,D14<=9),75,IF(AND(E8<=150,'Crop Budget (Main)'!C14<=160,D14<=9),80,IF(AND(E8<=150,'Crop Budget (Main)'!C14<=180,D14<=9),85,IF(AND(E8<=150,'Crop Budget (Main)'!C14>180,D14<=9),80
A4: 9 | B4: 235
A5: 9 | B5: 260
A6: 9 | B6: 280
A7: 19 | B7: 50 | C7: IF(AND(E8<=50,'Crop Budget (Main)'!C14<=100,D14<=19),160,IF(AND(E8<=50,'Crop Budget (Main)'!C14<=120,D14<=19),165,IF(AND(E8<=50,'Crop Budget (Main)'!C14<=140,D14<=19),170,IF(AND(E8<=50,'Crop Budget (Main)'!C14<=160,D14<=19),175,IF(AND(E8<=50,'Crop Budget (Main)'!C14<=180,D14<=19),180,IF(AND(E8<=50,'Crop Budget (Main)'!C14>180,D14<=19),180
A8: 19 | B8: 100 | C8: IF(AND(E8<=100,'Crop Budget (Main)'!C14<=100,D14<=19),120,IF(AND(E8<=100,'Crop Budget (Main)'!C14<=120,D14<=19),125,IF(AND(E8<=100,'Crop Budget (Main)'!C14<=140,D14<=19),135,IF(AND(E8<=100,'Crop Budget (Main)'!C14<=160,D14<=19),140,IF(AND(E8<=100,'Crop Budget (Main)'!C14<=180,D14<=19),145,IF(AND(E8<=100,'Crop Budget (Main)'!C14>180,D14<=19),145
A9: 19 | B9: 150 | C9: IF(AND(E8<=150,'Crop Budget (Main)'!C14<=100,D14<=19),85,IF(AND(E8<=150,'Crop Budget (Main)'!C14<=120,D14<=19),90,IF(AND(E8<=150,'Crop Budget (Main)'!C14<=140,D14<=19),95,IF(AND(E8<=150,'Crop Budget (Main)'!C14<=160,D14<=19),100,IF(AND(E8<=150,'Crop Budget (Main)'!C14<=180,D14<=19),105,IF(AND(E8<=150,'Crop Budget (Main)'!C14>180,D14<=19),100
A10: 19 | B10: 250 | C10: IF(AND(E8<=250,'Crop Budget (Main)'!C14<=100,D14<=19),45,IF(AND(E8<=250,'Crop Budget (Main)'!C14<=120,D14<=19),50,IF(AND(E8<=250,'Crop Budget (Main)'!C14<=140,D14<=19),60,IF(AND(E8<=250,'Crop Budget (Main)'!C14<=160,D14<=19),65,IF(AND(E8<=250,'Crop Budget (Main)'!C14<=180,D14<=19),70,IF(AND(E8<=250,'Crop Budget (Main)'!C14>180,D14<=19),70
A11: 19 | B11: 280
A12: 19 | B12: 300
A13: 29 | B13: 100 | C13: IF(AND(E8<=100,'Crop Budget (Main)'!C14<=100,D14<=29),195,IF(AND(E8<=100,'Crop Budget (Main)'!C14<=120,D14<=29),200,IF(AND(E8<=100,'Crop Budget (Main)'!C14<=140,D14<=29),210,IF(AND(E8<=100,'Crop Budget (Main)'!C14<=160,D14<=29),215,IF(AND(E8<=100,'Crop Budget (Main)'!C14<=180,D14<=29),220,IF(AND(E8<=100,'Crop Budget (Main)'!C14>180,D14<=29),220
A14: 29 | B14: 150 | C14: IF(AND(E8<=150,'Crop Budget (Main)'!C14<=100,D14<=29),145,IF(AND(E8<=150,'Crop Budget (Main)'!C14<=120,D14<=29),150,IF(AND(E8<=150,'Crop Budget (Main)'!C14<=140,D14<=29),160,IF(AND(E8<=150,'Crop Budget (Main)'!C14<=160,D14<=29),165,IF(AND(E8<=150,'Crop Budget (Main)'!C14<=180,D14<=29),170,IF(AND(E8<=150,'Crop Budget (Main)'!C14>180,D14<=29),170
A15: 29 | B15: 250 | C15: IF(AND(E8<=250,'Crop Budget (Main)'!C14<=100,D14<=29),95,IF(AND(E8<=250,'Crop Budget (Main)'!C14<=120,D14<=29),100,IF(AND(E8<=250,'Crop Budget (Main)'!C14<=140,D14<=29),110,IF(AND(E8<=250,'Crop Budget (Main)'!C14<=160,D14<=29),115,IF(AND(E8<=250,'Crop Budget (Main)'!C14<=180,D14<=29),120,IF(AND(E8<=250,'Crop Budget (Main)'!C14>180,D14<=29),120
A16: 29 | B16: 310
A17: 29 | B17: 330
A18: 29 | B18: 350 | D18: IF(AND(E8<=50,'Crop Budget (Main)'!C14<=100,D14<=9),125,IF(AND(E8<=50,'Crop Budget (Main)'!C14<=120,D14<=9),130,IF(AND(E8<=50,'Crop Budget (Main)'!C14<=140,D14<=9),135,IF(AND(E8<=50,'Crop Budget (Main)'!C14<=160,D14<=9),140,IF(AND(E8<=50,'Crop Budget (Main)'!C14<=180,D14<=9),145,IF(AND(E8<=50,'Crop Budget (Main)'!C14>180,D14<=9),145,IF(AND(E8<=100,'Crop Budget (Main)'!C14<=100,D14<=9),95,IF(AND(E8<=100,'Crop Budget (Main)'!C14<=120,D14<=9),100,IF(AND(E8<=100,'Crop Budget (Main)'!C14<=140,D14<=9),105,IF(AND(E8<=100,'Crop Budget (Main)'!C14<=160,D14<=9),110,IF(AND(E8<=100,'Crop Budget (Main)'!C14<=180,D14<=9),115,IF(AND(E8<=100,'Crop Budget (Main)'!C14>180,D14<=9),115,IF(AND(E8<=150,'Crop Budget (Main)'!C14<=100,D14<=9),65,IF(AND(E8<=150,'Crop Budget (Main)'!C14<=120,D14<=9),70,IF(AND(E8<=150,'Crop Budget (Main)'!C14<=140,D14<=9),75,IF(AND(E8<=150,'Crop Budget (Main)'!C14<=160,D14<=9),80,IF(AND(E8<=150,'Crop Budget (Main)'!C14<=180,D14<=9),85,IF(AND(E8<=150,'Crop Budget (Main)'!C14>180,D14<=9),80,IF(AND(E8<=50,'Crop Budget (Main)'!C14<=100,D14<=19),160,IF(AND(E8<=50,'Crop Budget (Main)'!C14<=120,D14<=19),165,IF(AND(E8<=50,'Crop Budget (Main)'!C14<=140,D14<=19),170,IF(AND(E8<=50,'Crop Budget (Main)'!C14<=160,D14<=19),175,IF(AND(E8<=50,'Crop Budget (Main)'!C14<=180,D14<=19),180,IF(AND(E8<=50,'Crop Budget (Main)'!C14>180,D14<=19),180,IF(AND(E8<=100,'Crop Budget (Main)'!C14<=100,D14<=19),120,IF(AND(E8<=100,'Crop Budget (Main)'!C14<=120,D14<=19),125,IF(AND(E8<=100,'Crop Budget (Main)'!C14<=140,D14<=19),135,IF(AND(E8<=100,'Crop Budget (Main)'!C14<=160,D14<=19),140,IF(AND(E8<=100,'Crop Budget (Main)'!C14<=180,D14<=19),145,IF(AND(E8<=100,'Crop Budget (Main)'!C14>180,D14<=19),145,IF(AND(E8<=150,'Crop Budget (Main)'!C14<=100,D14<=19),85,IF(AND(E8<=150,'Crop Budget (Main)'!C14<=120,D14<=19),90,IF(AND(E8<=150,'Crop Budget (Main)'!C14<=140,D14<=19),95,IF(AND(E8<=150,'Crop Budget (Main)'!C14<=160,D14<=19),100,IF(AND(E8<=150,'Crop Budget (Main)'!C14<=180,D14<=19),105,IF(AND(E8<=150,'Crop Budget (Main)'!C14>180,D14<=19),100,IF(AND(E8<=200,'Crop Budget (Main)'!C14<=100,D14<=19),45,IF(AND(E8<=200,'Crop Budget (Main)'!C14<=120,D14<=19),50,IF(AND(E8<=200,'Crop Budget (Main)'!C14<=140,D14<=19),60,IF(AND(E8<=200,'Crop Budget (Main)'!C14<=160,D14<=19),65,IF(AND(E8<=200,'Crop Budget (Main)'!C14<=180,D14<=19),70,IF(AND(E8<=200,'Crop Budget (Main)'!C14>180,D14<=19),70,IF(AND(E8<=100,'Crop Budget (Main)'!C14<=100,D14<=29),195,IF(AND(E8<=100,'Crop Budget (Main)'!C14<=120,D14<=29),200,IF(AND(E8<=100,'Crop Budget (Main)'!C14<=140,D14<=29),210,IF(AND(E8<=100,'Crop Budget (Main)'!C14<=160,D14<=29),215,IF(AND(E8<=100,'Crop Budget (Main)'!C14<=180,D14<=29),220,IF(AND(E8<=100,'Crop Budget (Main)'!C14>180,D14<=29),220,IF(AND(E8<=150,'Crop Budget (Main)'!C14<=100,D14<=29),145,IF(AND(E8<=150,'Crop Budget (Main)'!C14<=120,D14<=29),150,IF(AND(E8<=150,'Crop Budget (Main)'!C14<=140,D14<=29),160,IF(AND(E8<=150,'Crop Budget (Main)'!C14<=160,D14<=29),165,IF(AND(E8<=150,'Crop Budget (Main)'!C14<=180,D14<=29),170,IF(AND(E8<=150,'Crop Budget (Main)'!C14>180,D14<=29),170,IF(AND(E8<=200,'Crop Budget (Main)'!C14<=100,D14<=29),95,IF(AND(E8<=200,'Crop Budget (Main)'!C14<=120,D14<=29),100,IF(AND(E8<=200,'Crop Budget (Main)'!C14<=140,D14<=29),110,IF(AND(E8<=200,'Crop Budget (Main)'!C14<=160,D14<=29),115,IF(AND(E8<=200,'Crop Budget (Main)'!C14<=180,D14<=29),120,IF(AND(E8<=200,'Crop Budget (Main)'!C14>180,D14<=29),120
A19: 30 | B19: 150
A20: 30 | B20: 200
A21: 30 | B21: 250
A22: 30 | B22: 360
A23: 30 | B23: 380
A24: 30 | B24: 400

Sheet Soybean K Calculations (hidden)
A1: 9 | B1: 50 | C1: IF(AND(I8<=50,'Crop Budget (Main)'!G14<=30,H14<=9),140,IF(AND(I8<=50,'Crop Budget (Main)'!G14<=40,H14<=9),155,IF(AND(I8<=50,'Crop Budget (Main)'!G14<=50,H14<=9),170,IF(AND(I8<=50,'Crop Budget (Main)'!G14<=60,H14<=9),180,IF(AND(I8<=50,'Crop Budget (Main)'!G14<=70,H14<=9),195,IF(AND(I8<=50,'Crop Budget (Main)'!G14>70,H14<=9),195
A2: 9 | B2: 100 | C2: IF(AND(I8<=100,'Crop Budget (Main)'!G14<=30,H14<=9),110,IF(AND(I8<=100,'Crop Budget (Main)'!G14<=40,H14<=9),125,IF(AND(I8<=100,'Crop Budget (Main)'!G14<=50,H14<=9),135,IF(AND(I8<=100,'Crop Budget (Main)'!G14<=60,H14<=9),150,IF(AND(I8<=100,'Crop Budget (Main)'!G14<=70,H14<=9),165,IF(AND(I8<=100,'Crop Budget (Main)'!G14>70,H14<=9),165
A3: 9 | B3: 150 | C3: IF(AND(I8<=150,'Crop Budget (Main)'!G14<=30,H14<=9),80,IF(AND(I8<=150,'Crop Budget (Main)'!G14<=40,H14<=9),90,IF(AND(I8<=150,'Crop Budget (Main)'!G14<=50,H14<=9),105,IF(AND(I8<=150,'Crop Budget (Main)'!G14<=60,H14<=9),105,IF(AND(I8<=150,'Crop Budget (Main)'!G14<=70,H14<=9),120,IF(AND(I8<=150,'Crop Budget (Main)'!G14>70,H14<=9),120
A4: 9 | B4: 235
A5: 9 | B5: 260
A6: 9 | B6: 280
A7: 19 | B7: 50 | C7: IF(AND(I8<=50,'Crop Budget (Main)'!G14<=30,H14<=19),175,IF(AND(I8<=50,'Crop Budget (Main)'!G14<=40,H14<=19),190,IF(AND(I8<=50,'Crop Budget (Main)'!G14<=50,H14<=19),205,IF(AND(I8<=50,'Crop Budget (Main)'!G14<=60,H14<=19),215,IF(AND(I8<=50,'Crop Budget (Main)'!G14<=70,H14<=19),230,IF(AND(I8<=50,'Crop Budget (Main)'!G14>70,H14<=19),230
A8: 19 | B8: 100 | C8: IF(AND(I8<=100,'Crop Budget (Main)'!G14<=30,H14<=19),135,IF(AND(I8<=100,'Crop Budget (Main)'!G14<=40,H14<=19),150,IF(AND(I8<=100,'Crop Budget (Main)'!G14<=50,H14<=19),165,IF(AND(I8<=100,'Crop Budget (Main)'!G14<=60,H14<=19),180,IF(AND(I8<=100,'Crop Budget (Main)'!G14<=70,H14<=19),195,IF(AND(I8<=100,'Crop Budget (Main)'!G14>70,H14<=19),195
A9: 19 | B9: 150 | C9: IF(AND(I8<=150,'Crop Budget (Main)'!G14<=30,H14<=19),100,IF(AND(I8<=150,'Crop Budget (Main)'!G14<=40,H14<=19),115,IF(AND(I8<=150,'Crop Budget (Main)'!G14<=50,H14<=19),130,IF(AND(I8<=150,'Crop Budget (Main)'!G14<=60,H14<=19),140,IF(AND(I8<=150,'Crop Budget (Main)'!G14<=70,H14<=19),155,IF(AND(I8<=150,'Crop Budget (Main)'!G14>70,H14<=19),155
A10: 19 | B10: 250 | C10: IF(AND(I8<=250,'Crop Budget (Main)'!G14<=30,H14<=19),60,IF(AND(I8<=250,'Crop Budget (Main)'!G14<=40,H14<=19),75,IF(AND(I8<=250,'Crop Budget (Main)'!G14<=50,H14<=19),90,IF(AND(I8<=250,'Crop Budget (Main)'!G14<=60,H14<=19),105,IF(AND(I8<=250,'Crop Budget (Main)'!G14<=70,H14<=19),120,IF(AND(I8<=250,'Crop Budget (Main)'!G14>70,H14<=19),120
A11: 19 | B11: 280
A12: 19 | B12: 300
A13: 29 | B13: 100 | C13: IF(AND(I8<=100,'Crop Budget (Main)'!G14<=100,H14<=29),210,IF(AND(I8<=100,'Crop Budget (Main)'!G14<=120,H14<=29),225,IF(AND(I8<=100,'Crop Budget (Main)'!G14<=140,H14<=29),240,IF(AND(I8<=100,'Crop Budget (Main)'!G14<=160,H14<=29),255,IF(AND(I8<=100,'Crop Budget (Main)'!G14<=180,H14<=29),270,IF(AND(I8<=100,'Crop Budget (Main)'!G14>180,H14<=29),270
A14: 29 | B14: 150 | C14: IF(AND(I8<=150,'Crop Budget (Main)'!G14<=100,H14<=29),160,IF(AND(I8<=150,'Crop Budget (Main)'!G14<=120,H14<=29),175,IF(AND(I8<=150,'Crop Budget (Main)'!G14<=140,H14<=29),190,IF(AND(I8<=150,'Crop Budget (Main)'!G14<=160,H14<=29),205,IF(AND(I8<=150,'Crop Budget (Main)'!G14<=180,H14<=29),220,IF(AND(I8<=150,'Crop Budget (Main)'!G14>180,H14<=29),220
A15: 29 | B15: 250 | C15: IF(AND(I8<=250,'Crop Budget (Main)'!G14<=100,H14<=29),110,IF(AND(I8<=250,'Crop Budget (Main)'!G14<=120,H14<=29),125,IF(AND(I8<=250,'Crop Budget (Main)'!G14<=140,H14<=29),140,IF(AND(I8<=250,'Crop Budget (Main)'!G14<=160,H14<=29),155,IF(AND(I8<=250,'Crop Budget (Main)'!G14<=180,H14<=29),170,IF(AND(I8<=250,'Crop Budget (Main)'!G14>180,H14<=29),170
A16: 29 | B16: 310
A17: 29 | B17: 330
A18: 29 | B18: 350 | D18: IF(AND(I8<=50,'Crop Budget (Main)'!G14<=30,H14<=9),140,IF(AND(I8<=50,'Crop Budget (Main)'!G14<=40,H14<=9),155,IF(AND(I8<=50,'Crop Budget (Main)'!G14<=50,H14<=9),170,IF(AND(I8<=50,'Crop Budget (Main)'!G14<=60,H14<=9),180,IF(AND(I8<=50,'Crop Budget (Main)'!G14<=70,H14<=9),195,IF(AND(I8<=50,'Crop Budget (Main)'!G14>70,H14<=9),195,IF(AND(I8<=100,'Crop Budget (Main)'!G14<=30,H14<=9),110,IF(AND(I8<=100,'Crop Budget (Main)'!G14<=40,H14<=9),125,IF(AND(I8<=100,'Crop Budget (Main)'!G14<=50,H14<=9),135,IF(AND(I8<=100,'Crop Budget (Main)'!G14<=60,H14<=9),150,IF(AND(I8<=100,'Crop Budget (Main)'!G14<=70,H14<=9),165,IF(AND(I8<=100,'Crop Budget (Main)'!G14>70,H14<=9),165,IF(AND(I8<=150,'Crop Budget (Main)'!G14<=30,H14<=9),80,IF(AND(I8<=150,'Crop Budget (Main)'!G14<=40,H14<=9),90,IF(AND(I8<=150,'Crop Budget (Main)'!G14<=50,H14<=9),105,IF(AND(I8<=150,'Crop Budget (Main)'!G14<=60,H14<=9),105,IF(AND(I8<=150,'Crop Budget (Main)'!G14<=70,H14<=9),120,IF(AND(I8<=150,'Crop Budget (Main)'!G14>70,H14<=9),120,IF(AND(I8<=50,'Crop Budget (Main)'!G14<=30,H14<=19),175,IF(AND(I8<=50,'Crop Budget (Main)'!G14<=40,H14<=19),190,IF(AND(I8<=50,'Crop Budget (Main)'!G14<=50,H14<=19),205,IF(AND(I8<=50,'Crop Budget (Main)'!G14<=60,H14<=19),215,IF(AND(I8<=50,'Crop Budget (Main)'!G14<=70,H14<=19),230,IF(AND(I8<=50,'Crop Budget (Main)'!G14>70,H14<=19),230,IF(AND(I8<=100,'Crop Budget (Main)'!G14<=30,H14<=19),135,IF(AND(I8<=100,'Crop Budget (Main)'!G14<=40,H14<=19),150,IF(AND(I8<=100,'Crop Budget (Main)'!G14<=50,H14<=19),165,IF(AND(I8<=100,'Crop Budget (Main)'!G14<=60,H14<=19),180,IF(AND(I8<=100,'Crop Budget (Main)'!G14<=70,H14<=19),195,IF(AND(I8<=100,'Crop Budget (Main)'!G14>70,H14<=19),195,IF(AND(I8<=150,'Crop Budget (Main)'!G14<=30,H14<=19),100,IF(AND(I8<=150,'Crop Budget (Main)'!G14<=40,H14<=19),115,IF(AND(I8<=150,'Crop Budget (Main)'!G14<=50,H14<=19),130,IF(AND(I8<=150,'Crop Budget (Main)'!G14<=60,H14<=19),140,IF(AND(I8<=150,'Crop Budget (Main)'!G14<=70,H14<=19),155,IF(AND(I8<=150,'Crop Budget (Main)'!G14>70,H14<=19),155,IF(AND(I8<=250,'Crop Budget (Main)'!G14<=30,H14<=19),60,IF(AND(I8<=250,'Crop Budget (Main)'!G14<=40,H14<=19),75,IF(AND(I8<=250,'Crop Budget (Main)'!G14<=50,H14<=19),90,IF(AND(I8<=250,'Crop Budget (Main)'!G14<=60,H14<=19),105,IF(AND(I8<=250,'Crop Budget (Main)'!G14<=70,H14<=19),120,IF(AND(I8<=250,'Crop Budget (Main)'!G14>70,H14<=19),120,IF(AND(I8<=100,'Crop Budget (Main)'!G14<=100,H14<=29),210,IF(AND(I8<=100,'Crop Budget (Main)'!G14<=120,H14<=29),225,IF(AND(I8<=100,'Crop Budget (Main)'!G14<=140,H14<=29),240,IF(AND(I8<=100,'Crop Budget (Main)'!G14<=160,H14<=29),255,IF(AND(I8<=100,'Crop Budget (Main)'!G14<=180,H14<=29),270,IF(AND(I8<=100,'Crop Budget (Main)'!G14>180,H14<=29),270,IF(AND(I8<=150,'Crop Budget (Main)'!G14<=100,H14<=29),160,IF(AND(I8<=150,'Crop Budget (Main)'!G14<=120,H14<=29),175,IF(AND(I8<=150,'Crop Budget (Main)'!G14<=140,H14<=29),190,IF(AND(I8<=150,'Crop Budget (Main)'!G14<=160,H14<=29),205,IF(AND(I8<=150,'Crop Budget (Main)'!G14<=180,H14<=29),220,IF(AND(I8<=150,'Crop Budget (Main)'!G14>180,H14<=29),220,IF(AND(I8<=250,'Crop Budget (Main)'!G14<=100,H14<=29),110,IF(AND(I8<=250,'Crop Budget (Main)'!G14<=120,H14<=29),125,IF(AND(I8<=250,'Crop Budget (Main)'!G14<=140,H14<=29),140,IF(AND(I8<=250,'Crop Budget (Main)'!G14<=160,H14<=29),155,IF(AND(I8<=250,'Crop Budget (Main)'!G14<=180,H14<=29),170,IF(AND(I8<=250,'Crop Budget (Main)'!G14>180,H14<=29),170
A19: 30 | B19: 150
A20: 30 | B20: 200
A21: 30 | B21: 250
A22: 30 | B22: 360
A23: 30 | B23: 380
A24: 30 | B24: 400

Sheet Wheat K Calculations (hidden)
A1: 9 | B1: 50 | C1: IF(AND(M8<=50,'Crop Budget (Main)'!K14<=50,L14<=9),115,IF(AND(M8<=50,'Crop Budget (Main)'!K14<=60,L14<=9),130,IF(AND(M8<=50,'Crop Budget (Main)'!K14<=70,L14<=9),125,IF(AND(M8<=50,'Crop Budget (Main)'!K14<=80,L14<=9),130,IF(AND(M8<=50,'Crop Budget (Main)'!K14<=90,L14<=9),130,IF(AND(M8<=50,'Crop Budget (Main)'!K14>90,L14<=9),130
A2: 9 | B2: 100 | C2: IF(AND(M8<=100,'Crop Budget (Main)'!K14<=50,L14<=9),85,IF(AND(M8<=100,'Crop Budget (Main)'!K14<=60,L14<=9),90,IF(AND(M8<=100,'Crop Budget (Main)'!K14<=70,L14<=9),95,IF(AND(M8<=100,'Crop Budget (Main)'!K14<=80,L14<=9),95,IF(AND(M8<=100,'Crop Budget (Main)'!K14<=90,L14<=9),100,IF(AND(M8<=100,'Crop Budget (Main)'!K14>90,L14<=9),100
A3: 9 | B3: 150 | C3: IF(AND(M8<=150,'Crop Budget (Main)'!K14<=50,L14<=9),55,IF(AND(M8<=150,'Crop Budget (Main)'!K14<=60,L14<=9),60,IF(AND(M8<=150,'Crop Budget (Main)'!K14<=70,L14<=9),60,IF(AND(M8<=150,'Crop Budget (Main)'!K14<=80,L14<=9),65,IF(AND(M8<=150,'Crop Budget (Main)'!K14<=90,L14<=9),70,IF(AND(M8<=150,'Crop Budget (Main)'!K14>90,L14<=9),70
A4: 9 | B4: 235
A5: 9 | B5: 260
A6: 9 | B6: 280
A7: 19 | B7: 50 | C7: IF(AND(M8<=50,'Crop Budget (Main)'!K14<=50,L14<=19),150,IF(AND(M8<=50,'Crop Budget (Main)'!K14<=60,L14<=19),155,IF(AND(M8<=50,'Crop Budget (Main)'!K14<=70,L14<=19),160,IF(AND(M8<=50,'Crop Budget (Main)'!K14<=80,L14<=19),160,IF(AND(M8<=50,'Crop Budget (Main)'!K14<=90,L14<=19),165,IF(AND(M8<=50,'Crop Budget (Main)'!K14>90,L14<=19),165
A8: 19 | B8: 100 | C8: IF(AND(M8<=100,'Crop Budget (Main)'!K14<=50,L14<=19),115,IF(AND(M8<=100,'Crop Budget (Main)'!K14<=60,L14<=19),115,IF(AND(M8<=100,'Crop Budget (Main)'!K14<=70,L14<=19),120,IF(AND(M8<=100,'Crop Budget (Main)'!K14<=80,L14<=19),125,IF(AND(M8<=100,'Crop Budget (Main)'!K14<=90,L14<=19),130,IF(AND(M8<=100,'Crop Budget (Main)'!K14>90,L14<=19),130
A9: 19 | B9: 150 | C9: IF(AND(M8<=150,'Crop Budget (Main)'!K14<=50,L14<=19),75,IF(AND(M8<=150,'Crop Budget (Main)'!K14<=60,L14<=19),80,IF(AND(M8<=150,'Crop Budget (Main)'!K14<=70,L14<=19),85,IF(AND(M8<=150,'Crop Budget (Main)'!K14<=80,L14<=19),85,IF(AND(M8<=150,'Crop Budget (Main)'!K14<=90,L14<=19),90,IF(AND(M8<=150,'Crop Budget (Main)'!K14>90,L14<=19),90
A10: 19 | B10: 200 | C10: IF(AND(M8<=200,'Crop Budget (Main)'!K14<=50,L14<=19),40,IF(AND(M8<=200,'Crop Budget (Main)'!K14<=60,L14<=19),40,IF(AND(M8<=200,'Crop Budget (Main)'!K14<=70,L14<=19),45,IF(AND(M8<=200,'Crop Budget (Main)'!K14<=80,L14<=19),50,IF(AND(M8<=200,'Crop Budget (Main)'!K14<=90,L14<=19),50,IF(AND(M8<=200,'Crop Budget (Main)'!K14>90,L14<=19),50
A11: 19 | B11: 280
A12: 19 | B12: 300
A13: 29 | B13: 100 | C13: IF(AND(M8<=100,'Crop Budget (Main)'!K14<=50,L14<=29),190,IF(AND(M8<=100,'Crop Budget (Main)'!K14<=60,L14<=29),190,IF(AND(M8<=100,'Crop Budget (Main)'!K14<=70,L14<=29),195,IF(AND(M8<=100,'Crop Budget (Main)'!K14<=80,L14<=29),200,IF(AND(M8<=100,'Crop Budget (Main)'!K14<=90,L14<=29),205,IF(AND(M8<=100,'Crop Budget (Main)'!K14>90,L14<=29),205
A14: 29 | B14: 150 | C14: IF(AND(M8<=150,'Crop Budget (Main)'!K14<=50,L14<=29),140,IF(AND(M8<=150,'Crop Budget (Main)'!K14<=60,L14<=29),140,IF(AND(M8<=150,'Crop Budget (Main)'!K14<=70,L14<=29),145,IF(AND(M8<=150,'Crop Budget (Main)'!K14<=80,L14<=29),150,IF(AND(M8<=150,'Crop Budget (Main)'!K14<=90,L14<=29),155,IF(AND(M8<=150,'Crop Budget (Main)'!K14>90,L14<=29),155
A15: 29 | B15: 200 | C15: IF(AND(M8<=200,'Crop Budget (Main)'!K14<=50,L14<=29),90,IF(AND(M8<=200,'Crop Budget (Main)'!K14<=60,L14<=29),90,IF(AND(M8<=200,'Crop Budget (Main)'!K14<=70,L14<=29),95,IF(AND(M8<=200,'Crop Budget (Main)'!K14<=80,L14<=29),100,IF(AND(M8<=200,'Crop Budget (Main)'!K14<=90,L14<=29),105,IF(AND(M8<=200,'Crop Budget (Main)'!K14>90,L14<=29),105
A16: 29 | B16: 310
A17: 29 | B17: 330
A18: 29 | B18: 350 | D18: IF(AND(M8<=50,'Crop Budget (Main)'!K14<=50,L14<=9),115,IF(AND(M8<=50,'Crop Budget (Main)'!K14<=60,L14<=9),130,IF(AND(M8<=50,'Crop Budget (Main)'!K14<=70,L14<=9),125,IF(AND(M8<=50,'Crop Budget (Main)'!K14<=80,L14<=9),130,IF(AND(M8<=50,'Crop Budget (Main)'!K14<=90,L14<=9),130,IF(AND(M8<=50,'Crop Budget (Main)'!K14>90,L14<=9),130,IF(AND(M8<=100,'Crop Budget (Main)'!K14<=50,L14<=9),85,IF(AND(M8<=100,'Crop Budget (Main)'!K14<=60,L14<=9),90,IF(AND(M8<=100,'Crop Budget (Main)'!K14<=70,L14<=9),95,IF(AND(M8<=100,'Crop Budget (Main)'!K14<=80,L14<=9),95,IF(AND(M8<=100,'Crop Budget (Main)'!K14<=90,L14<=9),100,IF(AND(M8<=100,'Crop Budget (Main)'!K14>90,L14<=9),100,IF(AND(M8<=150,'Crop Budget (Main)'!K14<=50,L14<=9),55,IF(AND(M8<=150,'Crop Budget (Main)'!K14<=60,L14<=9),60,IF(AND(M8<=150,'Crop Budget (Main)'!K14<=70,L14<=9),60,IF(AND(M8<=150,'Crop Budget (Main)'!K14<=80,L14<=9),65,IF(AND(M8<=150,'Crop Budget (Main)'!K14<=90,L14<=9),70,IF(AND(M8<=150,'Crop Budget (Main)'!K14>90,L14<=9),70,IF(AND(M8<=50,'Crop Budget (Main)'!K14<=50,L14<=19),150,IF(AND(M8<=50,'Crop Budget (Main)'!K14<=60,L14<=19),155,IF(AND(M8<=50,'Crop Budget (Main)'!K14<=70,L14<=19),160,IF(AND(M8<=50,'Crop Budget (Main)'!K14<=80,L14<=19),160,IF(AND(M8<=50,'Crop Budget (Main)'!K14<=90,L14<=19),165,IF(AND(M8<=50,'Crop Budget (Main)'!K14>90,L14<=19),165,IF(AND(M8<=100,'Crop Budget (Main)'!K14<=50,L14<=19),115,IF(AND(M8<=100,'Crop Budget (Main)'!K14<=60,L14<=19),115,IF(AND(M8<=100,'Crop Budget (Main)'!K14<=70,L14<=19),120,IF(AND(M8<=100,'Crop Budget (Main)'!K14<=80,L14<=19),125,IF(AND(M8<=100,'Crop Budget (Main)'!K14<=90,L14<=19),130,IF(AND(M8<=100,'Crop Budget (Main)'!K14>90,L14<=19),130,IF(AND(M8<=150,'Crop Budget (Main)'!K14<=50,L14<=19),75,IF(AND(M8<=150,'Crop Budget (Main)'!K14<=60,L14<=19),80,IF(AND(M8<=150,'Crop Budget (Main)'!K14<=70,L14<=19),85,IF(AND(M8<=150,'Crop Budget (Main)'!K14<=80,L14<=19),85,IF(AND(M8<=150,'Crop Budget (Main)'!K14<=90,L14<=19),90,IF(AND(M8<=150,'Crop Budget (Main)'!K14>90,L14<=19),90,IF(AND(M8<=200,'Crop Budget (Main)'!K14<=50,L14<=19),40,IF(AND(M8<=200,'Crop Budget (Main)'!K14<=60,L14<=19),40,IF(AND(M8<=200,'Crop Budget (Main)'!K14<=70,L14<=19),45,IF(AND(M8<=200,'Crop Budget (Main)'!K14<=80,L14<=19),50,IF(AND(M8<=200,'Crop Budget (Main)'!K14<=90,L14<=19),50,IF(AND(M8<=200,'Crop Budget (Main)'!K14>90,L14<=19),50,IF(AND(M8<=100,'Crop Budget (Main)'!K14<=50,L14<=29),190,IF(AND(M8<=100,'Crop Budget (Main)'!K14<=60,L14<=29),190,IF(AND(M8<=100,'Crop Budget (Main)'!K14<=70,L14<=29),195,IF(AND(M8<=100,'Crop Budget (Main)'!K14<=80,L14<=29),200,IF(AND(M8<=100,'Crop Budget (Main)'!K14<=90,L14<=29),205,IF(AND(M8<=100,'Crop Budget (Main)'!K14>90,L14<=29),205,IF(AND(M8<=150,'Crop Budget (Main)'!K14<=50,L14<=29),140,IF(AND(M8<=150,'Crop Budget (Main)'!K14<=60,L14<=29),140,IF(AND(M8<=150,'Crop Budget (Main)'!K14<=70,L14<=29),145,IF(AND(M8<=150,'Crop Budget (Main)'!K14<=80,L14<=29),150,IF(AND(M8<=150,'Crop Budget (Main)'!K14<=90,L14<=29),155,IF(AND(M8<=150,'Crop Budget (Main)'!K14>90,L14<=29),155,IF(AND(M8<=200,'Crop Budget (Main)'!K14<=50,L14<=29),90,IF(AND(M8<=200,'Crop Budget (Main)'!K14<=60,L14<=29),90,IF(AND(M8<=200,'Crop Budget (Main)'!K14<=70,L14<=29),95,IF(AND(M8<=200,'Crop Budget (Main)'!K14<=80,L14<=29),100,IF(AND(M8<=200,'Crop Budget (Main)'!K14<=90,L14<=29),105,IF(AND(M8<=200,'Crop Budget (Main)'!K14>90,L14<=29),105
A19: 30 | B19: 150
A20: 30 | B20: 200
A21: 30 | B21: 250
A22: 30 | B22: 360
A23: 30 | B23: 380
A24: 30 | B24: 400

Sheet Fertilizer Products & Pricing
A1: 1 | B1: 2 | C1: 3 | D1: 4 | E1: 5 | F1: 6 | G1: 7 | H1: 8 | I1: 9 | J1: 10 | K1: 11 | L1: 12 | M1: 13 | N1: 14 | O1: 15
B2: Pounds per Material | O2: (Enter Below)
A3: Macronutrients | B3: Nitrogen | C3: Phosphorus | D3: Potassium | E3: Sulfur | F3: Magnesium | G3: Calcium | H3: Zinc | I3: Boron | J3: Manganese | K3: Unit Size | L3: Units | M3: Units/Pkg | N3: Purchase Units | O3: Price/Unit
A4: None | M4: 1 | N4: None | O4: 0
A5: Ammonium polyphosphate (10-34-0) | B5: =K5*0.1 -> 1.17 | C5: =K5*0.34 -> 3.978 | K5: 11.7 | L5: gal | M5: 2000 | N5: Tons | O5: 704 | Q5: Note: | R5: All listed product values are based on nutrient analysis from product labels
A6: AMS (21-0-0-24S) | B6: 0.21 | E6: 0.24 | K6: 1 | L6: lbs | M6: 2000 | N6: Tons | O6: 485
A7: Anhydrous (82-0-0) | B7: 0.82 | K7: 1 | L7: lbs | M7: 2000 | N7: Tons | O7: 950
A8: DAP (18-46-0) | B8: 0.18 | C8: 0.46 | K8: 1 | L8: lbs | M8: 2000 | N8: Tons | O8: 798
A9: ESN (44-0-0) | B9: 0.44 | K9: 1 | L9: lbs | M9: 2000 | N9: Tons | O9: 0
A10: Gypsum (0-0-0-17S-21Ca) | E10: 0.17 | G10: 0.21 | K10: 1 | L10: lbs | M10: 2000 | N10: Tons | O10: 0
A11: K-Mag (0-0-22-11Mg-21S) | D11: 0.22 | E11: 0.21 | F11: 0.11 | K11: 1 | L11: lbs | M11: 2000 | N11: Gallons | O11: 0
A12: MAP (11-52-00) | B12: 0.11 | C12: 0.52 | K12: 1 | L12: lbs | M12: 2000 | N12: Tons | O12: 0
A13: MESZ (12-40-0-10S-1Z) | B13: 0.12 | C13: 0.4 | E13: 0.1 | H13: 0.01 | K13: 1 | L13: lbs | M13: 2000 | N13: Tons | O13: 0
A14: Potash (0-0-60) | D14: 0.6 | K14: 1 | L14: lbs | M14: 2000 | N14: Tons | O14: 690
A15: Potassium Acetate (0-0-24) | D15: 0.24 | K15: 10.65 | L15: gal | M15: 2000 | N15: Gallons | O15: 0
A16: Potassium Sulphate (0-0-52-18S) | D16: 0.52 | E16: 0.18 | K16: 1 | L16: lbs | M16: 2000 | N16: Tons | O16: 0
A17: Thiosul (12-0-0-26) | B17: =K17*0.12 -> 1.3248 | E17: =K17*0.26 -> 2.8704 | K17: 11.04 | L17: gal | M17: 2000 | N17: Tons | O17: 0
A18: Triple Superphosphate (0-46-0) | C18: 0.46 | K18: 1 | L18: lbs | M18: 2000 | N18: Tons | O18: 0
A19: UAN 28% (28-0-0) | B19: =K19*0.28 -> 2.9876 | K19: 10.67 | L19: gal | M19: 2000 | N19: Tons | O19: 399
A20: UAN 32% (32-0-0) | B20: =K20*0.32 -> 3.5392 | K20: 11.06 | L20: gal | M20: 2000 | N20: Tons | O20: 0
A21: Urea (46-0-0) | B21: =0.46 -> 0.46 | K21: 1 | L21: lbs | M21: 2000 | N21: Tons | O21: 750
A22: 9-18-9 (liquid) | B22: =K22*0.09 -> 0.9873 | C22: =K22*0.18 -> 1.9746 | D22: =K22*0.09 -> 0.9873 | K22: 10.97 | L22: gal | M22: 1 | N22: Gallons | O22: 0 | R22: Manure Resources
A23: 6-24-6 (liquid) | B23: =K23*0.06 -> 0.6654 | C23: =K23*0.24 -> 2.6616 | D23: =K23*0.06 -> 0.6654 | K23: 11.09 | L23: gal | M23: 1 | N23: Gallons | O23: 0 | R23: Manure application methods and nitrogen losses (University of Minnesota)
A24: 6-12-12 (dry) | B24: 0.06 | C24: 0.12 | D24: 0.12 | K24: 1 | L24: lbs | M24: 2000 | N24: Tons | O24: 0 | R24: Michigan GAAMPS | T24: ← See table A4 in Manure Mgmt & Utilization section for approximate manure values in place of nutrient analysis
A25: 5-10-5 (dry) | B25: 0.05 | C25: 0.1 | D25: 0.05 | K25: 1 | L25: lbs | M25: 2000 | N25: Tons | O25: 0
A26: 3-18-18 (liquid) | B26: =K26*0.03 -> 0.351 | C26: =K26*0.18 -> 2.106 | D26: =K26*0.18 -> 2.106 | K26: 11.7 | L26: gal | M26: 1 | N26: Gallons | O26: 0 | R26: Note:
A27: 19-19-19 (dry) | B27: 0.19 | C27: 0.19 | D27: 0.19 | K27: 1 | L27: lbs | M27: 2000 | N27: Tons | O27: 0 | R27: If you are using manure or compost, for best results a nutrient analysis is highly recommended.
A28: 15-15-2 (liquid) | B28: =0.158*K28 -> 1.738 | C28: =0.15*K28 -> 1.65 | D28: =0.02*K28 -> 0.22 | K28: 11 | L28: gal | M28: 1 | N28: Gallons | O28: 0
A29: 15-15-15 (dry) | B29: 0.15 | C29: 0.15 | D29: 0.15 | K29: 1 | L29: lbs | M29: 2000 | N29: Tons | O29: 0
A30: 12-24-24 (dry) | B30: 0.12 | C30: 0.24 | D30: 0.24 | K30: 1 | L30: lbs | M30: 2000 | N30: Tons | O30: 0 | R30: Manure Calculator
A31: 10-10-10 (dry) | B31: 0.1 | C31: 0.1 | D31: 0.1 | K31: 1 | L31: lbs | M31: 2000 | N31: Tons | O31: 0 | R31: Manure (Solid) | V31: Days of Incorporation %
A32: Manure (solid) | B32: =R34 -> 4.2 | C32: =S34 -> 7.5 | D32: =T34 -> 5.7 | E32: =U34 -> 0.8 | K32: 2000 | L32: Tons | M32: 2000 | N32: Tons | O32: 0 | P32: calculator → | R32: N | S32: P | T32: K | U32: S
A33: Manure (liquid) | B33: =R39 -> 4.3 | C33: =S39 -> 1.7 | D33: =T39 -> 3.8 | E33: =U39 -> 1 | K33: 1 | L33: 1,000 gal | M33: 1 | N33: Gallons | O33: 0 | P33: calculator → | R33: 42 | S33: 75 | T33: 57 | U33: 8 | V33: >7 days
A34: Compost | B34: 0 | C34: 0 | D34: 0 | E34: 0 | F34: 0 | G34: 0 | H34: 0 | I34: 0 | J34: 0 | K34: 0 | L34: Enter | M34: 0 | N34: Enter | O34: 0 | R34: ='Manure and Nutrient Credits'!E38 -> 4.2 | S34: ='Manure and Nutrient Credits'!F38 -> 7.5 | T34: ='Manure and Nutrient Credits'!G38 -> 5.7 | U34: ='Manure and Nutrient Credits'!H38 -> 0.8 | V34: ←Incorporation Adjustment
A35: Enter | B35: 0 | C35: 0 | D35: 0 | E35: 0 | F35: 0 | G35: 0 | H35: 0 | I35: 0 | J35: 0 | K35: 0 | L35: Enter | M35: 0 | N35: Enter | O35: 0
A36: Enter | B36: 0 | C36: 0 | D36: 0 | E36: 0 | F36: 0 | G36: 0 | H36: 0 | I36: 0 | J36: 0 | K36: 0 | L36: Enter | M36: 0 | N36: Enter | O36: 0 | R36: Manure (Liquid) | V36: Days of Incorporation %
A37: Enter | B37: 0 | C37: 0 | D37: 0 | E37: 0 | F37: 0 | G37: 0 | H37: 0 | I37: 0 | J37: 0 | K37: 0 | L37: Enter | M37: 0 | N37: Enter | O37: 0 | R37: N | S37: P | T37: K | U37: S
A38: Enter | B38: 0 | C38: 0 | D38: 0 | E38: 0 | F38: 0 | G38: 0 | H38: 0 | I38: 0 | J38: 0 | K38: 0 | L38: Enter | M38: 0 | N38: Enter | O38: 0 | R38: 43 | S38: 17 | T38: 38 | U38: 10 | V38: >7 days
R39: ='Manure and Nutrient Credits'!E41 -> 4.3 | S39: ='Manure and Nutrient Credits'!F41 -> 1.7 | T39: ='Manure and Nutrient Credits'!G41 -> 3.8 | U39: ='Manure and Nutrient Credits'!H41 -> 1 | V39: ←Incorporation Adjustment
A41: Micronutrients | B41: Nitrogen | C41: Phosphorus | D41: Potassium | E41: Sulfur | F41: Magnesium | G41: Calcium | H41: Zinc | I41: Boron | J41: Manganese | K41: Unit Size | L41: Units | M41: Units/Pkg | N41: Purchase Units | O41: (Enter Below)
A42: None | M42: 1 | N42: None | O42: 0 | R42: *Do NOT use manure values if already input on Nutrient Management tab. This will double count values in fertilizer plan.
A43: Boron (14.3%) | I43: 0.143 | K43: 1 | L43: lbs | M43: 1 | N43: Pound | O43: 0
A44: Zinc (35.5%) | H44: 0.355 | K44: 1 | L44: lbs | M44: 1 | N44: Pound | O44: 0
A45: Zinc Liquid (12-0-0-12zn) | B45: 0.318 | H45: 0.318 | K45: 1 | L45: qts | M45: 4 | N45: Gallons | O45: 0
A46: Boron Liquid (0-0-0-10B) | I46: =(11.12*0.25)*0.1 -> 0.278 | K46: 1 | L46: qts | M46: 4 | N46: Gallons | O46: 0
A47: Manganese Sulfate | E47: 0.18 | J47: 0.33 | K47: 1 | L47: lbs | M47: 1 | N47: Pound | O47: 0
A48: Zinc Sulphate | B48: 35.5 | E48: 0.185 | K48: 1 | L48: lbs | M48: 1 | N48: Pound | O48: 0
A49: Magnesium Sulfate | E49: 0.14 | F49: 0.091 | K49: 1 | L49: lbs | M49: 1 | N49: Pound | O49: 0
A50: Borosol 10 | I50: 0.1 | K50: 11.09 | L50: gal | M50: 1 | N50: Gallons | O50: 0
A51: EDTA ZN (9%) | B51: 0.04 | H51: 0.09 | K51: 10.9 | L51: gal | M51: 1 | N51: Gallons | O51: 0
A52: Enter | B52: 0 | C52: 0 | D52: 0 | E52: 0 | F52: 0 | G52: 0 | H52: 0 | I52: 0 | J52: 0 | K52: 0 | L52: Enter | M52: 0 | N52: Enter | O52: 0
A53: Enter | B53: 0 | C53: 0 | D53: 0 | E53: 0 | F53: 0 | G53: 0 | H53: 0 | I53: 0 | J53: 0 | K53: 0 | L53: Enter | M53: 0 | N53: Enter | O53: 0
A54: Enter | B54: 0 | C54: 0 | D54: 0 | E54: 0 | F54: 0 | G54: 0 | H54: 0 | I54: 0 | J54: 0 | K54: 0 | L54: Enter | M54: 0 | N54: Enter | O54: 0
A55: Enter | B55: 0 | C55: 0 | D55: 0 | E55: 0 | F55: 0 | G55: 0 | H55: 0 | I55: 0 | J55: 0 | K55: 0 | L55: Enter | M55: 0 | N55: Enter | O55: 0
A58: Lime | B58: Nitrogen | C58: Phosphorus | D58: Potassium | E58: Sulfur | F58: Magnesium | G58: Calcium | H58: Zinc | I58: Boron | J58: Manganese | K58: Unit Size | L58: Units | M58: Units/Pkg | N58: Purchase Units | O58: (Enter Below)
A59: None | M59: 1 | N59: None | O59: 0
A60: Pelleted Lime | F60: 0.03 | G60: 0.22 | K60: 1 | L60: lbs | M60: 2000 | N60: Ton | O60: 0
A61: Sugar Beet Lime | B61: 0.55 | C61: 0.01 | D61: 0.0036 | G61: 29 | K61: 1 | L61: tons | M61: 1 | N61: Ton | O61: 0
A62: Dolometic | F62: 11 | G62: 42 | K62: 1 | L62: tons | M62: 1 | N62: Ton | O62: 0
A63: High Calcium | G63: 80 | K63: 1 | L63: tons | M63: 1 | N63: Ton | O63: 0
A64: Enter | B64: 0 | C64: 0 | D64: 0 | E64: 0 | F64: 0 | G64: 0 | H64: 0 | I64: 0 | J64: 0 | K64: 0 | L64: Enter | M64: 0 | N64: Enter | O64: 0
A65: Enter | B65: 0 | C65: 0 | D65: 0 | E65: 0 | F65: 0 | G65: 0 | H65: 0 | I65: 0 | J65: 0 | K65: 0 | L65: Enter | M65: 0 | N65: Enter | O65: 0
A66: Enter | B66: 0 | C66: 0 | D66: 0 | E66: 0 | F66: 0 | G66: 0 | H66: 0 | I66: 0 | J66: 0 | K66: 0 | L66: Enter | M66: 0 | N66: Enter | O66: 0
A67: Enter | B67: 0 | C67: 0 | D67: 0 | E67: 0 | F67: 0 | G67: 0 | H67: 0 | I67: 0 | J67: 0 | K67: 0 | L67: Enter | M67: 0 | N67: Enter | O67: 0
A70: Nitrogen Stabilizers | K70: Unit Size | L70: Units | M70: Units/Pkg | N70: Purchase Units | O70: (Enter Below)
A71: None | M71: 1 | N71: None | O71: 0
A72: N-Serve | K72: 1 | L72: ozs | M72: 128 | N72: Gallons | O72: 0
A73: Instinct | K73: 1 | L73: ozs | M73: 128 | N73: Gallons | O73: 0
A74: Factor | K74: 1 | L74: qt/ton | M74: 4 | N74: Gallons | O74: 0
A75: Nutrisphere | K75: 1 | L75: qt/ton | M75: 4 | N75: Gallons | O75: 0
A76: Agrotain | K76: 1 | L76: qt/ton | M76: 4 | N76: Gallons | O76: 0
A77: Enter | K77: 0 | L77: Enter | M77: 0 | N77: Enter | O77: 0
A78: Enter | K78: 0 | L78: Enter | M78: 0 | N78: Enter | O78: 0
A79: Enter | K79: 0 | L79: Enter | M79: 0 | N79: Enter | O79: 0
A80: Enter | K80: 0 | L80: Enter | M80: 0 | N80: Enter | O80: 0

Sheet Manure and Nutrient Credits (hidden)
A3: Select Previous Crop | B3: 0 | L3: Select Option Below
A4: Alfalfa, established | B4: 40 | L4: Nutrient Removal
A5: Alfalfa, seeding | B5: 40 | L5: Soil Test Based Recs
A6: Clover, established | B6: 40
A7: Clover, seeding | B7: 20
A8: Trefoil, established | B8: 40
A9: Barley + legume | B9: 30
A10: Oats + legume | B10: 30
A11: Wheat + legume | B11: 30
A12: Clover-grass hay | B12: 40
A13: Grass hay | B13: 40
A14: Dry edible beans | B14: 20
A15: Soybeans | B15: 30
A16: CRP land | B16: 40
A24: Nutrient Management
A25: Days Before Incorporation | B25: Retention Factor | D25: Manure Nitrogen Multiplier (corn)
A26: ---- | B26: 1 | D26: Factor | E26: Nitrogen | F26: Phosphorus | G26: Potassium | H26: Sulfur
A27: 0-1 days | B27: 0.7 | D27: =VLOOKUP('Nutrient Management'!D35,'Manure and Nutrient Credits'!A26:B30,2,FALSE) -> 0.2 | E27: =$D$27*'Nutrient Management'!B32 -> 8.4 | F27: =$D$27*'Nutrient Management'!C32 -> 15 | G27: =$D$27*'Nutrient Management'!D32 -> 11.4 | H27: =$D$27*'Nutrient Management'!B34 -> 1.6
A28: 2-3 days | B28: 0.4 | D28: Manure Nitrogen Multiplier (soybeans)
A29: 4-7 days | B29: 0.2
A30: >7 days | B30: 0.1 | D30: =VLOOKUP('Nutrient Management'!H35,A26:B30,2,FALSE) -> 0.7 | E30: =$D$30*'Nutrient Management'!F32 -> 29.4 | F30: =$D$30*'Nutrient Management'!G32 -> 52.5 | G30: =$D$30*'Nutrient Management'!H32 -> 39.9 | H30: =$D$30*'Nutrient Management'!F34 -> 5.6
D31: Manure Nitrogen Multiplier (wheat)
D33: =VLOOKUP('Nutrient Management'!L35,A26:B30,2,FALSE) -> 1 | E33: =$D$33*'Nutrient Management'!J32 -> 0 | F33: =$D$33*'Nutrient Management'!K32 -> 0 | G33: =$D$33*'Nutrient Management'!L32 -> 0 | H33: =$D$33*'Nutrient Management'!J34 -> 0
A35: Fertilizer Products & Pricing
A36: Days Before Incorporation | B36: Retention Factor | D36: Manure (solid)
A37: ---- | B37: 1 | D37: Factor | E37: Nitrogen | F37: Phosphorus | G37: Potassium | H37: Sulfur
A38: 0-1 days | B38: 0.7 | D38: =VLOOKUP('Fertilizer Products & Pricing'!V33,'Manure and Nutrient Credits'!A37:B41,2,FALSE) -> 0.1 | E38: =$D$38*'Fertilizer Products & Pricing'!R33 -> 4.2 | F38: =$D$38*'Fertilizer Products & Pricing'!S33 -> 7.5 | G38: =$D$38*'Fertilizer Products & Pricing'!T33 -> 5.7 | H38: =$D$38*'Fertilizer Products & Pricing'!U33 -> 0.8
A39: 2-3 days | B39: 0.4 | D39: Manure (liquid)
A40: 4-7 days | B40: 0.2
A41: >7 days | B41: 0.1 | D41: =VLOOKUP('Fertilizer Products & Pricing'!V38,'Manure and Nutrient Credits'!A37:B41,2,FALSE) -> 0.1 | E41: =$D$41*'Fertilizer Products & Pricing'!R38 -> 4.3 | F41: =$D$41*'Fertilizer Products & Pricing'!S38 -> 1.7 | G41: =$D$41*'Fertilizer Products & Pricing'!T38 -> 3.8 | H41: =$D$41*'Fertilizer Products & Pricing'!U38 -> 1

Sheet Fertilizer Plan (Corn)
A1: Corn | M1: Corn | Y1: Corn
A2: Comparison Plan 1 | M2: Comparison Plan 2 | Y2: Comparison Plan 3
A3: 1st Application (i.e., Pre-Plant or Broadcast Fertilizer) | M3: 1st Application (i.e., Pre-Plant or Broadcast Fertilizer) | Y3: 1st Application (i.e., Pre-Plant or Broadcast Fertilizer)
A4: Fertilizer Source | B4: Purchase Units | C4: Package Price (Gals, Lbs, etc.) | D4: Units/Pkg | E4: Rate/Acre | F4: Units | G4: Cost | M4: Fertilizer Source | N4: Purchase Units | O4: Package Price (Gals, Lbs, etc.) | P4: Units/Pkg | Q4: Rate/Acre | R4: Units | S4: Cost | Y4: Fertilizer Source | Z4: Purchase Units | AA4: Package Price (Gals, Lbs, etc.) | AB4: Units/Pkg | AC4: Rate/Acre | AD4: Units | AE4: Cost
A5: Macronutrients (drop down menu) | E5: (Enter Below) | I5: N | J5: P | K5: K | M5: Macronutrients (drop down menu) | Q5: (Enter Below) | U5: N | V5: P | W5: K | Y5: Macronutrients (drop down menu) | AC5: (Enter Below) | AG5: N | AH5: P | AI5: K
A6: Potash (0-0-60) | B6: =VLOOKUP(A6,Macronutrients,14,FALSE) -> Tons | C6: =VLOOKUP(A6,'Fertilizer Products & Pricing'!$A$4:$O$38,15,FALSE) -> 690 | D6: =VLOOKUP($A6,Macronutrients,13,FALSE) -> 2000 | E6: 108 | F6: =VLOOKUP($A6,Macronutrients,12,FALSE) -> lbs | G6: =(E6*VLOOKUP(A6,Macronutrients,11,FALSE)/D6)*C6 -> 37.26 | I6: =VLOOKUP(A6,'Fertilizer Products & Pricing'!$A$4:$O$38,2,FALSE)*E6+VLOOKUP(A7,'Fertilizer Products & Pricing'!$A$4:$O$38,2,FALSE)*E7+VLOOKUP(A8,'Fertilizer Products & Pricing'!$A$4:$O$38,2,FALSE)*E8+VLOOKUP(A9,'Fertilizer Products & Pricing'!$A$4:$O$38,2,FALSE)*E9+VLOOKUP(A10,'Fertilizer Products & Pricing'!$A$4:$O$38,2,FALSE)*E10+VLOOKUP(A11,'Fertilizer Products & Pricing'!$A$4:$O$38,2,FALSE)*E11+VLOOKUP(A14,'Fertilizer Products & Pricing'!$A$42:$O$55,2,FALSE)*E14+VLOOKUP(A15,'Fertilizer Products & Pricing'!$A$42:$O$55,2,FALSE)*E15+VLOOKUP(A16,'Fertilizer Products & Pricing'!$A$42:$O$55,2,FALSE)*E16+VLOOKUP(A17,'Fertilizer Products & Pricing'!$A$42:$O$55,2,FALSE)*E17 -> 33.66 | J6: =VLOOKUP(A6,'Fertilizer Products & Pricing'!$A$4:$O$38,3,FALSE)*E6+VLOOKUP(A7,'Fertilizer Products & Pricing'!$A$4:$O$38,3,FALSE)*E7+VLOOKUP(A8,'Fertilizer Products & Pricing'!$A$4:$O$38,3,FALSE)*E8+VLOOKUP(A9,'Fertilizer Products & Pricing'!$A$4:$O$38,3,FALSE)*E9+VLOOKUP(A10,'Fertilizer Products & Pricing'!$A$4:$O$38,3,FALSE)*E10+VLOOKUP(A11,'Fertilizer Products & Pricing'!$A$4:$O$38,3,FALSE)*E11+VLOOKUP(A14,'Fertilizer Products & Pricing'!$A$42:$O$55,3,FALSE)*E14+VLOOKUP(A15,'Fertilizer Products & Pricing'!$A$42:$O$55,3,FALSE)*E15+VLOOKUP(A16,'Fertilizer Products & Pricing'!$A$42:$O$55,3,FALSE)*E16+VLOOKUP(A17,'Fertilizer Products & Pricing'!$A$42:$O$55,3,FALSE)*E17 -> 86.02 | K6: =VLOOKUP(A6,'Fertilizer Products & Pricing'!$A$4:$O$38,4,FALSE)*E6+VLOOKUP(A7,'Fertilizer Products & Pricing'!$A$4:$O$38,4,FALSE)*E7+VLOOKUP(A8,'Fertilizer Products & Pricing'!$A$4:$O$38,4,FALSE)*E8+VLOOKUP(A9,'Fertilizer Products & Pricing'!$A$4:$O$38,4,FALSE)*E9+VLOOKUP(A10,'Fertilizer Products & Pricing'!$A$4:$O$38,4,FALSE)*E10+VLOOKUP(A11,'Fertilizer Products & Pricing'!$A$4:$O$38,4,FALSE)*E11+VLOOKUP(A14,'Fertilizer Products & Pricing'!$A$42:$O$55,4,FALSE)*E14+VLOOKUP(A15,'Fertilizer Products & Pricing'!$A$42:$O$55,4,FALSE)*E15+VLOOKUP(A16,'Fertilizer Products & Pricing'!$A$42:$O$55,4,FALSE)*E16+VLOOKUP(A17,'Fertilizer Products & Pricing'!$A$42:$O$55,4,FALSE)*E17 -> 64.8 | M6: DAP (18-46-0) | N6: =VLOOKUP(M6,Macronutrients,14,FALSE) -> Tons | O6: =VLOOKUP(M6,'Fertilizer Products & Pricing'!$A$4:$O$38,15,FALSE) -> 798 | P6: =VLOOKUP($M6,Macronutrients,13,FALSE) -> 2000 | Q6: 78 | R6: =VLOOKUP($M6,Macronutrients,12,FALSE) -> lbs | S6: =(Q6*VLOOKUP(M6,Macronutrients,11,FALSE)/P6)*O6 -> 31.122 | U6: =VLOOKUP(M6,'Fertilizer Products & Pricing'!$A$4:$O$38,2,FALSE)*Q6+VLOOKUP(M7,'Fertilizer Products & Pricing'!$A$4:$O$38,2,FALSE)*Q7+VLOOKUP(M8,'Fertilizer Products & Pricing'!$A$4:$O$38,2,FALSE)*Q8+VLOOKUP(M9,'Fertilizer Products & Pricing'!$A$4:$O$38,2,FALSE)*Q9+VLOOKUP(M10,'Fertilizer Products & Pricing'!$A$4:$O$38,2,FALSE)*Q10+VLOOKUP(M11,'Fertilizer Products & Pricing'!$A$4:$O$38,2,FALSE)*Q11+VLOOKUP(M14,'Fertilizer Products & Pricing'!$A$42:$O$55,2,FALSE)*Q14+VLOOKUP(M15,'Fertilizer Products & Pricing'!$A$42:$O$55,2,FALSE)*Q15+VLOOKUP(M16,'Fertilizer Products & Pricing'!$A$42:$O$55,2,FALSE)*Q16+VLOOKUP(M17,'Fertilizer Products & Pricing'!$A$42:$O$55,2,FALSE)*Q17+VLOOKUP($M20,'Fertilizer Products & Pricing'!$A$59:$O$67,2,FALSE)*Q20 -> 14.04 | V6: =VLOOKUP(M6,'Fertilizer Products & Pricing'!$A$4:$O$38,3,FALSE)*Q6+VLOOKUP(M7,'Fertilizer Products & Pricing'!$A$4:$O$38,3,FALSE)*Q7+VLOOKUP(M8,'Fertilizer Products & Pricing'!$A$4:$O$38,3,FALSE)*Q8+VLOOKUP(M9,'Fertilizer Products & Pricing'!$A$4:$O$38,3,FALSE)*Q9+VLOOKUP(M10,'Fertilizer Products & Pricing'!$A$4:$O$38,3,FALSE)*Q10+VLOOKUP(M11,'Fertilizer Products & Pricing'!$A$4:$O$38,3,FALSE)*Q11+VLOOKUP(M14,'Fertilizer Products & Pricing'!$A$42:$O$55,3,FALSE)*Q14+VLOOKUP(M15,'Fertilizer Products & Pricing'!$A$42:$O$55,3,FALSE)*Q15+VLOOKUP(M16,'Fertilizer Products & Pricing'!$A$42:$O$55,3,FALSE)*Q16+VLOOKUP(M17,'Fertilizer Products & Pricing'!$A$42:$O$55,3,FALSE)*Q17+VLOOKUP($M20,'Fertilizer Products & Pricing'!$A$59:$O$67,2,FALSE)*Q20 -> 35.88 | W6: =VLOOKUP(M6,'Fertilizer Products & Pricing'!$A$4:$O$38,4,FALSE)*Q6+VLOOKUP(M7,'Fertilizer Products & Pricing'!$A$4:$O$38,4,FALSE)*Q7+VLOOKUP(M8,'Fertilizer Products & Pricing'!$A$4:$O$38,4,FALSE)*Q8+VLOOKUP(M9,'Fertilizer Products & Pricing'!$A$4:$O$38,4,FALSE)*Q9+VLOOKUP(M10,'Fertilizer Products & Pricing'!$A$4:$O$38,4,FALSE)*Q10+VLOOKUP(M11,'Fertilizer Products & Pricing'!$A$4:$O$38,4,FALSE)*Q11+VLOOKUP(M14,'Fertilizer Products & Pricing'!$A$42:$O$55,4,FALSE)*Q14+VLOOKUP(M15,'Fertilizer Products & Pricing'!$A$42:$O$55,4,FALSE)*Q15+VLOOKUP(M16,'Fertilizer Products & Pricing'!$A$42:$O$55,4,FALSE)*Q16+VLOOKUP(M17,'Fertilizer Products & Pricing'!$A$42:$O$55,4,FALSE)*Q17+VLOOKUP($M20,'Fertilizer Products & Pricing'!$A$59:$O$67,2,FALSE)*Q20 -> 43.2 | Y6: None | Z6: =VLOOKUP(Y6,Macronutrients,14,FALSE) -> None | AA6: =VLOOKUP(Y6,'Fertilizer Products & Pricing'!$A$4:$O$38,15,FALSE) -> 0 | AB6: =VLOOKUP($Y6,Macronutrients,13,FALSE) -> 1 | AC6: 0 | AD6: =VLOOKUP($Y6,Macronutrients,12,FALSE) -> 0 | AE6: =(AC6*VLOOKUP(Y6,Macronutrients,11,FALSE)/AB6)*AA6 -> 0 | AG6: =VLOOKUP(Y6,'Fertilizer Products & Pricing'!$A$4:$O$38,2,FALSE)*AC6+VLOOKUP(Y7,'Fertilizer Products & Pricing'!$A$4:$O$38,2,FALSE)*AC7+VLOOKUP(Y8,'Fertilizer Products & Pricing'!$A$4:$O$38,2,FALSE)*AC8+VLOOKUP(Y9,'Fertilizer Products & Pricing'!$A$4:$O$38,2,FALSE)*AC9+VLOOKUP(Y10,'Fertilizer Products & Pricing'!$A$4:$O$38,2,FALSE)*AC10+VLOOKUP(Y11,'Fertilizer Products & Pricing'!$A$4:$O$38,2,FALSE)*AC11+VLOOKUP(Y14,'Fertilizer Products & Pricing'!$A$42:$O$55,2,FALSE)*AC14+VLOOKUP(Y15,'Fertilizer Products & Pricing'!$A$42:$O$55,2,FALSE)*AC15+VLOOKUP(Y16,'Fertilizer Products & Pricing'!$A$42:$O$55,2,FALSE)*AC16+VLOOKUP(Y17,'Fertilizer Products & Pricing'!$A$42:$O$55,2,FALSE)*AC17+VLOOKUP($Y20,'Fertilizer Products & Pricing'!$A$59:$O$67,2,FALSE)*AC20 -> 0 | AH6: =VLOOKUP(Y6,'Fertilizer Products & Pricing'!$A$4:$O$38,3,FALSE)*AC6+VLOOKUP(Y7,'Fertilizer Products & Pricing'!$A$4:$O$38,3,FALSE)*AC7+VLOOKUP(Y8,'Fertilizer Products & Pricing'!$A$4:$O$38,3,FALSE)*AC8+VLOOKUP(Y9,'Fertilizer Products & Pricing'!$A$4:$O$38,3,FALSE)*AC9+VLOOKUP(Y10,'Fertilizer Products & Pricing'!$A$4:$O$38,3,FALSE)*AC10+VLOOKUP(Y11,'Fertilizer Products & Pricing'!$A$4:$O$38,3,FALSE)*AC11+VLOOKUP(Y14,'Fertilizer Products & Pricing'!$A$42:$O$55,3,FALSE)*AC14+VLOOKUP(Y15,'Fertilizer Products & Pricing'!$A$42:$O$55,3,FALSE)*AC15+VLOOKUP(Y16,'Fertilizer Products & Pricing'!$A$42:$O$55,3,FALSE)*AC16+VLOOKUP(Y17,'Fertilizer Products & Pricing'!$A$42:$O$55,3,FALSE)*AC17+VLOOKUP($Y20,'Fertilizer Products & Pricing'!$A$59:$O$67,2,FALSE)*AC20 -> 0 | AI6: =VLOOKUP(Y6,'Fertilizer Products & Pricing'!$A$4:$O$38,4,FALSE)*AC6+VLOOKUP(Y7,'Fertilizer Products & Pricing'!$A$4:$O$38,4,FALSE)*AC7+VLOOKUP(Y8,'Fertilizer Products & Pricing'!$A$4:$O$38,4,FALSE)*AC8+VLOOKUP(Y9,'Fertilizer Products & Pricing'!$A$4:$O$38,4,FALSE)*AC9+VLOOKUP(Y10,'Fertilizer Products & Pricing'!$A$4:$O$38,4,FALSE)*AC10+VLOOKUP(Y11,'Fertilizer Products & Pricing'!$A$4:$O$38,4,FALSE)*AC11+VLOOKUP(Y14,'Fertilizer Products & Pricing'!$A$42:$O$55,4,FALSE)*AC14+VLOOKUP(Y15,'Fertilizer Products & Pricing'!$A$42:$O$55,4,FALSE)*AC15+VLOOKUP(Y16,'Fertilizer Products & Pricing'!$A$42:$O$55,4,FALSE)*AC16+VLOOKUP(Y17,'Fertilizer Products & Pricing'!$A$42:$O$55,4,FALSE)*AC17+VLOOKUP($Y20,'Fertilizer Products & Pricing'!$A$59:$O$67,2,FALSE)*AC20 -> 0
A7: DAP (18-46-0) | B7: =VLOOKUP(A7,Macronutrients,14,FALSE) -> Tons | C7: =VLOOKUP(A7,'Fertilizer Products & Pricing'!$A$4:$O$38,15,FALSE) -> 798 | D7: 2000 | E7: 187 | F7: lbs | G7: =(E7*VLOOKUP(A7,Macronutrients,11,FALSE)/D7)*C7 -> 74.613 | M7: Potash (0-0-60) | N7: Tons | O7: =VLOOKUP(M7,'Fertilizer Products & Pricing'!$A$4:$O$38,15,FALSE) -> 690 | P7: 2000 | Q7: 72 | R7: lbs | S7: =(Q7*VLOOKUP(M7,Macronutrients,11,FALSE)/P7)*O7 -> 24.84 | Y7: None | Z7: =VLOOKUP(Y7,Macronutrients,14,FALSE) -> None | AA7: =VLOOKUP(Y7,'Fertilizer Products & Pricing'!$A$4:$O$38,15,FALSE) -> 0 | AB7: 1 | AC7: 0 | AD7: 0 | AE7: =(AC7*VLOOKUP(Y7,Macronutrients,11,FALSE)/AB7)*AA7 -> 0
A8: None | B8: None | C8: =VLOOKUP(A8,'Fertilizer Products & Pricing'!$A$4:$O$38,15,FALSE) -> 0 | D8: 1 | E8: 0 | F8: 0 | G8: 0 | I8: S | J8: Ca | K8: Mg | M8: None | N8: None | O8: =VLOOKUP(M8,'Fertilizer Products & Pricing'!$A$4:$O$38,15,FALSE) -> 0 | P8: 1 | Q8: 0 | R8: 0 | S8: 0 | U8: S | V8: Ca | W8: Mg | Y8: None | Z8: None | AA8: =VLOOKUP(Y8,'Fertilizer Products & Pricing'!$A$4:$O$38,15,FALSE) -> 0 | AB8: 1 | AC8: 0 | AD8: 0 | AE8: 0 | AG8: S | AH8: Ca | AI8: Mg
A9: None | B9: None | C9: =VLOOKUP(A9,'Fertilizer Products & Pricing'!$A$4:$O$38,15,FALSE) -> 0 | D9: 1 | E9: 0 | F9: 0 | G9: 0 | I9: =VLOOKUP($A6,'Fertilizer Products & Pricing'!$A$4:$O$38,5,FALSE)*E6+VLOOKUP($A7,'Fertilizer Products & Pricing'!$A$4:$O$38,5,FALSE)*E7+VLOOKUP($A8,'Fertilizer Products & Pricing'!$A$4:$O$38,5,FALSE)*E8+VLOOKUP($A9,'Fertilizer Products & Pricing'!$A$4:$O$38,5,FALSE)*E9+VLOOKUP($A10,'Fertilizer Products & Pricing'!$A$4:$O$38,5,FALSE)*E10+VLOOKUP($A11,'Fertilizer Products & Pricing'!$A$4:$O$38,5,FALSE)*E11+VLOOKUP($A14,'Fertilizer Products & Pricing'!$A$42:$O$55,5,FALSE)*E14+VLOOKUP(A15,'Fertilizer Products & Pricing'!$A$42:$O$55,5,FALSE)*E15+VLOOKUP($A16,'Fertilizer Products & Pricing'!$A$42:$O$55,5,FALSE)*E16+VLOOKUP($A17,'Fertilizer Products & Pricing'!$A$42:$O$55,5,FALSE)*E17 -> 0 | J9: =VLOOKUP($A6,'Fertilizer Products & Pricing'!$A$4:$O$38,7,FALSE)*$E$6+VLOOKUP($A7,'Fertilizer Products & Pricing'!$A$4:$O$38,7,FALSE)*$E$7+VLOOKUP($A8,'Fertilizer Products & Pricing'!$A$4:$O$38,7,FALSE)*$E$8+VLOOKUP($A9,'Fertilizer Products & Pricing'!$A$4:$O$38,7,FALSE)*$E$9+VLOOKUP($A10,'Fertilizer Products & Pricing'!$A$4:$O$38,7,FALSE)*$E$10+VLOOKUP($A11,'Fertilizer Products & Pricing'!$A$4:$O$38,7,FALSE)*$E$11+VLOOKUP($A14,'Fertilizer Products & Pricing'!$A$42:$O$55,7,FALSE)*$E$14+VLOOKUP($A15,'Fertilizer Products & Pricing'!$A$42:$O$55,7,FALSE)*E15+VLOOKUP($A16,'Fertilizer Products & Pricing'!$A$42:$O$55,7,FALSE)*$E$16+VLOOKUP($A17,'Fertilizer Products & Pricing'!$A$42:$O$55,7,FALSE)*$E$17+VLOOKUP($A20,'Fertilizer Products & Pricing'!$A$59:$O$67,7,FALSE)*E20 -> 0 | K9: =VLOOKUP($A6,'Fertilizer Products & Pricing'!$A$4:$O$38,6,FALSE)*$E$6+VLOOKUP($A7,'Fertilizer Products & Pricing'!$A$4:$O$38,6,FALSE)*$E$7+VLOOKUP($A8,'Fertilizer Products & Pricing'!$A$4:$O$38,6,FALSE)*$E$8+VLOOKUP($A9,'Fertilizer Products & Pricing'!$A$4:$O$38,6,FALSE)*$E$9+VLOOKUP($A10,'Fertilizer Products & Pricing'!$A$4:$O$38,6,FALSE)*$E$10+VLOOKUP($A11,'Fertilizer Products & Pricing'!$A$4:$O$38,6,FALSE)*$E$11+VLOOKUP($A14,'Fertilizer Products & Pricing'!$A$42:$O$55,6,FALSE)*$E$14+VLOOKUP($A15,'Fertilizer Products & Pricing'!$A$42:$O$55,6,FALSE)*$E$15+VLOOKUP($A16,'Fertilizer Products & Pricing'!$A$42:$O$55,6,FALSE)*$E$16+VLOOKUP(A$17,'Fertilizer Products & Pricing'!$A$42:$O$55,6,FALSE)*$E$17+VLOOKUP($A20,'Fertilizer Products & Pricing'!$A$59:$O$67,6,FALSE)*E20 -> 0 | M9: None | N9: None | O9: =VLOOKUP(M9,'Fertilizer Products & Pricing'!$A$4:$O$38,15,FALSE) -> 0 | P9: 1 | Q9: 0 | R9: 0 | S9: 0 | U9: =VLOOKUP($M6,'Fertilizer Products & Pricing'!$A$4:$O$38,5,FALSE)*Q6+VLOOKUP($M7,'Fertilizer Products & Pricing'!$A$4:$O$38,5,FALSE)*Q7+VLOOKUP($M8,'Fertilizer Products & Pricing'!$A$4:$O$38,5,FALSE)*Q8+VLOOKUP($M9,'Fertilizer Products & Pricing'!$A$4:$O$38,5,FALSE)*Q9+VLOOKUP($M10,'Fertilizer Products & Pricing'!$A$4:$O$38,5,FALSE)*Q10+VLOOKUP($M11,'Fertilizer Products & Pricing'!$A$4:$O$38,5,FALSE)*Q11+VLOOKUP($M14,'Fertilizer Products & Pricing'!$A$42:$O$55,5,FALSE)*Q14+VLOOKUP(M15,'Fertilizer Products & Pricing'!$A$42:$O$55,5,FALSE)*Q15+VLOOKUP($M16,'Fertilizer Products & Pricing'!$A$42:$O$55,5,FALSE)*Q16+VLOOKUP($M17,'Fertilizer Products & Pricing'!$A$42:$O$55,5,FALSE)*Q17+VLOOKUP($M20,'Fertilizer Products & Pricing'!$A$59:$O$67,2,FALSE)*Q20 -> 0 | V9: =VLOOKUP($M6,'Fertilizer Products & Pricing'!$A$4:$O$38,7,FALSE)*$Q$6+VLOOKUP($M7,'Fertilizer Products & Pricing'!$A$4:$O$38,7,FALSE)*$Q$7+VLOOKUP($M8,'Fertilizer Products & Pricing'!$A$4:$O$38,7,FALSE)*$Q$8+VLOOKUP($M9,'Fertilizer Products & Pricing'!$A$4:$O$38,7,FALSE)*$Q$9+VLOOKUP($M10,'Fertilizer Products & Pricing'!$A$4:$O$38,7,FALSE)*$Q$10+VLOOKUP($M11,'Fertilizer Products & Pricing'!$A$4:$O$38,7,FALSE)*$Q$11+VLOOKUP($M14,'Fertilizer Products & Pricing'!$A$42:$O$55,7,FALSE)*$Q$14+VLOOKUP($M15,'Fertilizer Products & Pricing'!$A$42:$O$55,7,FALSE)*Q15+VLOOKUP($M16,'Fertilizer Products & Pricing'!$A$42:$O$55,7,FALSE)*$Q$16+VLOOKUP($M17,'Fertilizer Products & Pricing'!$A$42:$O$55,7,FALSE)*$Q$17+VLOOKUP($M20,'Fertilizer Products & Pricing'!$A$59:$O$67,7,FALSE)*Q20 -> 0 | W9: =VLOOKUP($M6,'Fertilizer Products & Pricing'!$A$4:$O$38,6,FALSE)*$Q$6+VLOOKUP($M7,'Fertilizer Products & Pricing'!$A$4:$O$38,6,FALSE)*$Q$7+VLOOKUP($M8,'Fertilizer Products & Pricing'!$A$4:$O$38,6,FALSE)*$Q$8+VLOOKUP($M9,'Fertilizer Products & Pricing'!$A$4:$O$38,6,FALSE)*$Q$9+VLOOKUP($M10,'Fertilizer Products & Pricing'!$A$4:$O$38,6,FALSE)*$Q$10+VLOOKUP($M11,'Fertilizer Products & Pricing'!$A$4:$O$38,6,FALSE)*$Q$11+VLOOKUP($M14,'Fertilizer Products & Pricing'!$A$42:$O$55,6,FALSE)*$Q$14+VLOOKUP($M15,'Fertilizer Products & Pricing'!$A$42:$O$55,6,FALSE)*$Q$15+VLOOKUP($M16,'Fertilizer Products & Pricing'!$A$42:$O$55,6,FALSE)*$Q$16+VLOOKUP(M$17,'Fertilizer Products & Pricing'!$A$42:$O$55,6,FALSE)*$Q$17+VLOOKUP($M20,'Fertilizer Products & Pricing'!$A$59:$O$67,6,FALSE)*Q20 -> 0 | Y9: None | Z9: None | AA9: =VLOOKUP(Y9,'Fertilizer Products & Pricing'!$A$4:$O$38,15,FALSE) -> 0 | AB9: 1 | AC9: 0 | AD9: 0 | AE9: 0 | AG9: =VLOOKUP($Y6,'Fertilizer Products & Pricing'!$A$4:$O$38,5,FALSE)*AC6+VLOOKUP($Y7,'Fertilizer Products & Pricing'!$A$4:$O$38,5,FALSE)*AC7+VLOOKUP($Y8,'Fertilizer Products & Pricing'!$A$4:$O$38,5,FALSE)*AC8+VLOOKUP($Y9,'Fertilizer Products & Pricing'!$A$4:$O$38,5,FALSE)*AC9+VLOOKUP($Y10,'Fertilizer Products & Pricing'!$A$4:$O$38,5,FALSE)*AC10+VLOOKUP($Y11,'Fertilizer Products & Pricing'!$A$4:$O$38,5,FALSE)*AC11+VLOOKUP($Y14,'Fertilizer Products & Pricing'!$A$42:$O$55,5,FALSE)*AC14+VLOOKUP(Y15,'Fertilizer Products & Pricing'!$A$42:$O$55,5,FALSE)*AC15+VLOOKUP($Y16,'Fertilizer Products & Pricing'!$A$42:$O$55,5,FALSE)*AC16+VLOOKUP($Y17,'Fertilizer Products & Pricing'!$A$42:$O$55,5,FALSE)*AC17+VLOOKUP($Y20,'Fertilizer Products & Pricing'!$A$59:$O$67,2,FALSE)*AC20 -> 0 | AH9: =VLOOKUP($Y6,'Fertilizer Products & Pricing'!$A$4:$O$38,7,FALSE)*$AC$6+VLOOKUP($Y7,'Fertilizer Products & Pricing'!$A$4:$O$38,7,FALSE)*$AC$7+VLOOKUP($Y8,'Fertilizer Products & Pricing'!$A$4:$O$38,7,FALSE)*$AC$8+VLOOKUP($Y9,'Fertilizer Products & Pricing'!$A$4:$O$38,7,FALSE)*$AC$9+VLOOKUP($Y10,'Fertilizer Products & Pricing'!$A$4:$O$38,7,FALSE)*$AC$10+VLOOKUP($Y11,'Fertilizer Products & Pricing'!$A$4:$O$38,7,FALSE)*$AC$11+VLOOKUP($Y14,'Fertilizer Products & Pricing'!$A$42:$O$55,7,FALSE)*$AC$14+VLOOKUP($Y15,'Fertilizer Products & Pricing'!$A$42:$O$55,7,FALSE)*AC15+VLOOKUP($Y16,'Fertilizer Products & Pricing'!$A$42:$O$55,7,FALSE)*$AC$16+VLOOKUP($Y17,'Fertilizer Products & Pricing'!$A$42:$O$55,7,FALSE)*$AC$17+VLOOKUP($Y20,'Fertilizer Products & Pricing'!$A$59:$O$67,7,FALSE)*AC20 -> 0 | AI9: =VLOOKUP($Y6,'Fertilizer Products & Pricing'!$A$4:$O$38,6,FALSE)*$AC$6+VLOOKUP($Y7,'Fertilizer Products & Pricing'!$A$4:$O$38,6,FALSE)*$AC$7+VLOOKUP($Y8,'Fertilizer Products & Pricing'!$A$4:$O$38,6,FALSE)*$AC$8+VLOOKUP($Y9,'Fertilizer Products & Pricing'!$A$4:$O$38,6,FALSE)*$AC$9+VLOOKUP($Y10,'Fertilizer Products & Pricing'!$A$4:$O$38,6,FALSE)*$AC$10+VLOOKUP($Y11,'Fertilizer Products & Pricing'!$A$4:$O$38,6,FALSE)*$AC$11+VLOOKUP($Y14,'Fertilizer Products & Pricing'!$A$42:$O$55,6,FALSE)*$AC$14+VLOOKUP($Y15,'Fertilizer Products & Pricing'!$A$42:$O$55,6,FALSE)*$AC$15+VLOOKUP($Y16,'Fertilizer Products & Pricing'!$A$42:$O$55,6,FALSE)*$AC$16+VLOOKUP(Y$17,'Fertilizer Products & Pricing'!$A$42:$O$55,6,FALSE)*$AC$17+VLOOKUP($Y20,'Fertilizer Products & Pricing'!$A$59:$O$67,6,FALSE)*AC20 -> 0
A10: None | B10: None | C10: =VLOOKUP(A10,'Fertilizer Products & Pricing'!$A$4:$O$38,15,FALSE) -> 0 | D10: 1 | E10: 0 | F10: 0 | G10: 0 | M10: None | N10: None | O10: =VLOOKUP(M10,'Fertilizer Products & Pricing'!$A$4:$O$38,15,FALSE) -> 0 | P10: 1 | Q10: 0 | R10: 0 | S10: 0 | Y10: None | Z10: None | AA10: =VLOOKUP(Y10,'Fertilizer Products & Pricing'!$A$4:$O$38,15,FALSE) -> 0 | AB10: 1 | AC10: 0 | AD10: 0 | AE10: 0
A11: None | B11: None | C11: =VLOOKUP(A11,'Fertilizer Products & Pricing'!$A$4:$O$38,15,FALSE) -> 0 | D11: 1 | E11: 0 | F11: 0 | G11: 0 | I11: Zn | J11: B | K11: Mn | M11: None | N11: None | O11: =VLOOKUP(M11,'Fertilizer Products & Pricing'!$A$4:$O$38,15,FALSE) -> 0 | P11: 1 | Q11: 0 | R11: 0 | S11: 0 | U11: Zn | V11: B | W11: Mn | Y11: None | Z11: None | AA11: =VLOOKUP(Y11,'Fertilizer Products & Pricing'!$A$4:$O$38,15,FALSE) -> 0 | AB11: 1 | AC11: 0 | AD11: 0 | AE11: 0 | AG11: Zn | AH11: B | AI11: Mn
I12: =VLOOKUP($A$15,'Fertilizer Products & Pricing'!$A$42:$O$55,8,FALSE)*$E$15+VLOOKUP($A$16,'Fertilizer Products & Pricing'!$A$42:$O$55,8,FALSE)*$E$16+VLOOKUP($A$17,'Fertilizer Products & Pricing'!$A$42:$O$55,8,FALSE)*$E$17+VLOOKUP($A$14,'Fertilizer Products & Pricing'!$A$42:$O$55,8,FALSE)*$E$14+VLOOKUP($A20,'Fertilizer Products & Pricing'!$A$59:$O$67,2,FALSE)*E20 -> 0 | J12: =VLOOKUP($A$15,'Fertilizer Products & Pricing'!$A$42:$O$55,9,FALSE)*$E$15+VLOOKUP($A$16,'Fertilizer Products & Pricing'!$A$42:$O$55,9,FALSE)*$E$16+VLOOKUP($A$17,'Fertilizer Products & Pricing'!$A$42:$O$55,9,FALSE)*$E$17+VLOOKUP($A$14,'Fertilizer Products & Pricing'!$A$42:$O$55,9,FALSE)*$E$14+VLOOKUP($A20,'Fertilizer Products & Pricing'!$A$59:$O$67,2,FALSE)*E20 -> 0 | K12: =VLOOKUP($A$15,'Fertilizer Products & Pricing'!$A$42:$O$55,10,FALSE)*$E$15+VLOOKUP($A$16,'Fertilizer Products & Pricing'!$A$42:$O$55,10,FALSE)*$E$16+VLOOKUP($A$17,'Fertilizer Products & Pricing'!$A$42:$O$55,10,FALSE)*$E$17+VLOOKUP($A$14,'Fertilizer Products & Pricing'!$A$42:$O$55,10,FALSE)*$E$14+VLOOKUP($A20,'Fertilizer Products & Pricing'!$A$59:$O$67,2,FALSE)*E20 -> 0 | U12: =VLOOKUP($M15,'Fertilizer Products & Pricing'!$A$42:$O$55,8,FALSE)*$Q15+VLOOKUP($M16,'Fertilizer Products & Pricing'!$A$42:$O$55,8,FALSE)*$Q16+VLOOKUP($M17,'Fertilizer Products & Pricing'!$A$42:$O$55,8,FALSE)*$Q17+VLOOKUP($M14,'Fertilizer Products & Pricing'!$A$42:$O$55,8,FALSE)*$Q14+VLOOKUP($M20,'Fertilizer Products & Pricing'!$A$59:$O$67,2,FALSE)*Q20 -> 0 | V12: =VLOOKUP($M15,'Fertilizer Products & Pricing'!$A$42:$O$55,9,FALSE)*$Q15+VLOOKUP($M16,'Fertilizer Products & Pricing'!$A$42:$O$55,9,FALSE)*$Q16+VLOOKUP($M17,'Fertilizer Products & Pricing'!$A$42:$O$55,9,FALSE)*$Q17+VLOOKUP($M14,'Fertilizer Products & Pricing'!$A$42:$O$55,9,FALSE)*$Q14+VLOOKUP($M20,'Fertilizer Products & Pricing'!$A$59:$O$67,2,FALSE)*Q20 -> 0 | W12: =VLOOKUP($M15,'Fertilizer Products & Pricing'!$A$42:$O$55,10,FALSE)*$Q15+VLOOKUP($M16,'Fertilizer Products & Pricing'!$A$42:$O$55,10,FALSE)*$Q16+VLOOKUP($M17,'Fertilizer Products & Pricing'!$A$42:$O$55,10,FALSE)*$Q17+VLOOKUP($M14,'Fertilizer Products & Pricing'!$A$42:$O$55,10,FALSE)*$Q14+VLOOKUP($M20,'Fertilizer Products & Pricing'!$A$59:$O$67,2,FALSE)*Q20 -> 0 | AG12: =VLOOKUP($Y15,'Fertilizer Products & Pricing'!$A$42:$O$55,8,FALSE)*$AC15+VLOOKUP($Y16,'Fertilizer Products & Pricing'!$A$42:$O$55,8,FALSE)*$AC16+VLOOKUP($Y17,'Fertilizer Products & Pricing'!$A$42:$O$55,8,FALSE)*$AC17+VLOOKUP($Y14,'Fertilizer Products & Pricing'!$A$42:$O$55,8,FALSE)*$AC14+VLOOKUP($Y20,'Fertilizer Products & Pricing'!$A$59:$O$67,2,FALSE)*AC20 -> 0 | AH12: =VLOOKUP($Y15,'Fertilizer Products & Pricing'!$A$42:$O$55,9,FALSE)*$AC15+VLOOKUP($Y16,'Fertilizer Products & Pricing'!$A$42:$O$55,9,FALSE)*$AC16+VLOOKUP($Y17,'Fertilizer Products & Pricing'!$A$42:$O$55,9,FALSE)*$AC17+VLOOKUP($Y14,'Fertilizer Products & Pricing'!$A$42:$O$55,9,FALSE)*$AC14+VLOOKUP($Y20,'Fertilizer Products & Pricing'!$A$59:$O$67,2,FALSE)*AC20 -> 0 | AI12: =VLOOKUP($Y15,'Fertilizer Products & Pricing'!$A$42:$O$55,10,FALSE)*$AC15+VLOOKUP($Y16,'Fertilizer Products & Pricing'!$A$42:$O$55,10,FALSE)*$AC16+VLOOKUP($Y17,'Fertilizer Products & Pricing'!$A$42:$O$55,10,FALSE)*$AC17+VLOOKUP($Y14,'Fertilizer Products & Pricing'!$A$42:$O$55,10,FALSE)*$AC14+VLOOKUP($Y20,'Fertilizer Products & Pricing'!$A$59:$O$67,2,FALSE)*AC20 -> 0
A13: Micronutrients (drop down menu) | M13: Micronutrients (drop down menu) | Y13: Micronutrients (drop down menu)
A14: None | B14: =VLOOKUP($A14,Micronutrients,14,FALSE) -> None | C14: =VLOOKUP($A14,Micronutrients,15,FALSE) -> 0 | D14: =VLOOKUP($A14,Micronutrients,13,FALSE) -> 1 | E14: 0 | F14: =VLOOKUP($A14,Micronutrients,12,FALSE) -> 0 | G14: =(E14*VLOOKUP(A14,Micronutrients,11,FALSE)/D14)*C14 -> 0 | I14: *Note: For this crop, Nitrogen applied in Pre-Plant applications are not considered to be accessible to meeting the plant's nutritional needs | M14: None | N14: =VLOOKUP(M14,Micronutrients,14,FALSE) -> None | O14: =VLOOKUP(M14,Micronutrients,15,FALSE) -> 0 | P14: =VLOOKUP(M14,Micronutrients,13,FALSE) -> 1 | Q14: 0 | R14: =VLOOKUP(M14,Micronutrients,12,FALSE) -> 0 | S14: =(Q14*VLOOKUP(M14,Micronutrients,11,FALSE)/P14)*O14 -> 0 | U14: *Note: For this crop, Nitrogen applied in Pre-Plant applications are not considered to be accessible to meeting the plant's nutritional needs | Y14: None | Z14: =VLOOKUP(Y14,Micronutrients,14,FALSE) -> None | AA14: =VLOOKUP(Y14,Micronutrients,15,FALSE) -> 0 | AB14: =VLOOKUP(Y14,Micronutrients,13,FALSE) -> 1 | AC14: 0 | AD14: =VLOOKUP(Y14,Micronutrients,12,FALSE) -> 0 | AE14: =(AC14*VLOOKUP(Y14,Micronutrients,11,FALSE)/AB14)*AA14 -> 0 | AG14: *Note: For this crop, Nitrogen applied in Pre-Plant applications are not considered to be accessible to meeting the plant's nutritional needs
A15: None | B15: =VLOOKUP($A15,Micronutrients,14,FALSE) -> None | C15: =VLOOKUP($A15,Micronutrients,15,FALSE) -> 0 | D15: =VLOOKUP($A15,Micronutrients,13,FALSE) -> 1 | E15: 0 | F15: =VLOOKUP($A15,Micronutrients,12,FALSE) -> 0 | G15: =(E15*VLOOKUP(A15,Micronutrients,11,FALSE)/D15)*C15 -> 0 | M15: None | N15: =VLOOKUP(M15,Micronutrients,14,FALSE) -> None | O15: =VLOOKUP(M15,Micronutrients,15,FALSE) -> 0 | P15: =VLOOKUP(M15,Micronutrients,13,FALSE) -> 1 | Q15: 0 | R15: =VLOOKUP(M15,Micronutrients,12,FALSE) -> 0 | S15: =(Q15*VLOOKUP(M15,Micronutrients,11,FALSE)/P15)*O15 -> 0 | Y15: None | Z15: =VLOOKUP(Y15,Micronutrients,14,FALSE) -> None | AA15: =VLOOKUP(Y15,Micronutrients,15,FALSE) -> 0 | AB15: =VLOOKUP(Y15,Micronutrients,13,FALSE) -> 1 | AC15: 0 | AD15: =VLOOKUP(Y15,Micronutrients,12,FALSE) -> 0 | AE15: =(AC15*VLOOKUP(Y15,Micronutrients,11,FALSE)/AB15)*AA15 -> 0
A16: None | B16: =VLOOKUP($A16,Micronutrients,14,FALSE) -> None | C16: =VLOOKUP($A16,Micronutrients,15,FALSE) -> 0 | D16: =VLOOKUP($A16,Micronutrients,13,FALSE) -> 1 | E16: 0 | F16: =VLOOKUP($A16,Micronutrients,12,FALSE) -> 0 | G16: =(E16*VLOOKUP(A16,Micronutrients,11,FALSE)/D16)*C16 -> 0 | M16: None | N16: =VLOOKUP(M16,Micronutrients,14,FALSE) -> None | O16: =VLOOKUP(M16,Micronutrients,15,FALSE) -> 0 | P16: =VLOOKUP(M16,Micronutrients,13,FALSE) -> 1 | Q16: 0 | R16: =VLOOKUP(M16,Micronutrients,12,FALSE) -> 0 | S16: =(Q16*VLOOKUP(M16,Micronutrients,11,FALSE)/P16)*O16 -> 0 | Y16: None | Z16: =VLOOKUP(Y16,Micronutrients,14,FALSE) -> None | AA16: =VLOOKUP(Y16,Micronutrients,15,FALSE) -> 0 | AB16: =VLOOKUP(Y16,Micronutrients,13,FALSE) -> 1 | AC16: 0 | AD16: =VLOOKUP(Y16,Micronutrients,12,FALSE) -> 0 | AE16: =(AC16*VLOOKUP(Y16,Micronutrients,11,FALSE)/AB16)*AA16 -> 0
A17: None | B17: =VLOOKUP($A17,Micronutrients,14,FALSE) -> None | C17: =VLOOKUP($A17,Micronutrients,15,FALSE) -> 0 | D17: =VLOOKUP($A17,Micronutrients,13,FALSE) -> 1 | E17: 0 | F17: =VLOOKUP($A17,Micronutrients,12,FALSE) -> 0 | G17: =(E17*VLOOKUP(A17,Micronutrients,11,FALSE)/D17)*C17 -> 0 | M17: None | N17: =VLOOKUP(M17,Micronutrients,14,FALSE) -> None | O17: =VLOOKUP(M17,Micronutrients,15,FALSE) -> 0 | P17: =VLOOKUP(M17,Micronutrients,13,FALSE) -> 1 | Q17: 0 | R17: =VLOOKUP(M17,Micronutrients,12,FALSE) -> 0 | S17: =(Q17*VLOOKUP(M17,Micronutrients,11,FALSE)/P17)*O17 -> 0 | Y17: None | Z17: =VLOOKUP(Y17,Micronutrients,14,FALSE) -> None | AA17: =VLOOKUP(Y17,Micronutrients,15,FALSE) -> 0 | AB17: =VLOOKUP(Y17,Micronutrients,13,FALSE) -> 1 | AC17: 0 | AD17: =VLOOKUP(Y17,Micronutrients,12,FALSE) -> 0 | AE17: =(AC17*VLOOKUP(Y17,Micronutrients,11,FALSE)/AB17)*AA17 -> 0
A19: Lime (drop down menu) | M19: Lime (drop down menu) | Y19: Lime (drop down menu)
A20: None | B20: =VLOOKUP(A20,Lime,14,FALSE) -> None | C20: =VLOOKUP(A20,Lime,15,FALSE) -> 0 | D20: =VLOOKUP(A20,Lime,13,FALSE) -> 1 | E20: 0 | F20: =VLOOKUP(A20,Lime,12,FALSE) -> 0 | G20: =(E20*VLOOKUP(A20,Lime,11,FALSE)/D20)*C20 -> 0 | M20: None | N20: =VLOOKUP(M20,Lime,14,FALSE) -> None | O20: =VLOOKUP(M20,Lime,15,FALSE) -> 0 | P20: =VLOOKUP(M20,Lime,13,FALSE) -> 1 | Q20: 0 | R20: =VLOOKUP(M20,Lime,12,FALSE) -> 0 | S20: =(Q20*VLOOKUP(M20,Lime,11,FALSE)/P20)*O20 -> 0 | Y20: None | Z20: =VLOOKUP(Y20,Lime,14,FALSE) -> None | AA20: =VLOOKUP(Y20,Lime,15,FALSE) -> 0 | AB20: =VLOOKUP(Y20,Lime,13,FALSE) -> 1 | AC20: 0 | AD20: =VLOOKUP(Y20,Lime,12,FALSE) -> 0 | AE20: =(AC20*VLOOKUP(Y20,Lime,11,FALSE)/AB20)*AA20 -> 0
A22: Nitrogen Stabilizers (drop down menu) | M22: Nitrogen Stabilizers (drop down menu) | Y22: Nitrogen Stabilizers (drop down menu)
A23: None | B23: =VLOOKUP(A23,NitrogenStabilizers,14,FALSE) -> None | C23: =VLOOKUP(A23,NitrogenStabilizers,15,FALSE) -> 0 | D23: =VLOOKUP(A23,NitrogenStabilizers,13,FALSE) -> 1 | E23: 0 | F23: =VLOOKUP(A23,NitrogenStabilizers,12,FALSE) -> 0 | G23: =(E23*VLOOKUP(A23,NitrogenStabilizers,11,FALSE)/D23)*C23 -> 0 | M23: None | N23: =VLOOKUP(M23,NitrogenStabilizers,14,FALSE) -> None | O23: =VLOOKUP(M23,NitrogenStabilizers,15,FALSE) -> 0 | P23: =VLOOKUP(M23,NitrogenStabilizers,13,FALSE) -> 1 | Q23: 0 | R23: =VLOOKUP(M23,NitrogenStabilizers,12,FALSE) -> 0 | S23: =(Q23*VLOOKUP(M23,NitrogenStabilizers,11,FALSE)/P23)*O23 -> 0 | Y23: None | Z23: =VLOOKUP(Y23,NitrogenStabilizers,14,FALSE) -> None | AA23: =VLOOKUP(Y23,NitrogenStabilizers,15,FALSE) -> 0 | AB23: =VLOOKUP(Y23,NitrogenStabilizers,13,FALSE) -> 1 | AC23: 0 | AD23: =VLOOKUP(Y23,NitrogenStabilizers,12,FALSE) -> 0 | AE23: =(AC23*VLOOKUP(Y23,NitrogenStabilizers,11,FALSE)/AB23)*AA23 -> 0
A24: None | B24: =VLOOKUP(A24,NitrogenStabilizers,14,FALSE) -> None | C24: =VLOOKUP(A24,NitrogenStabilizers,15,FALSE) -> 0 | D24: =VLOOKUP(A24,NitrogenStabilizers,13,FALSE) -> 1 | E24: 0 | F24: =VLOOKUP(A24,NitrogenStabilizers,12,FALSE) -> 0 | G24: =(E24*VLOOKUP(A24,NitrogenStabilizers,11,FALSE)/D24)*C24 -> 0 | K24: More | M24: None | N24: =VLOOKUP(M24,NitrogenStabilizers,14,FALSE) -> None | O24: =VLOOKUP(M24,NitrogenStabilizers,15,FALSE) -> 0 | P24: =VLOOKUP(M24,NitrogenStabilizers,13,FALSE) -> 1 | Q24: 0 | R24: =VLOOKUP(M24,NitrogenStabilizers,12,FALSE) -> 0 | S24: =(Q24*VLOOKUP(M24,NitrogenStabilizers,11,FALSE)/P24)*O24 -> 0 | W24: More | Y24: None | Z24: =VLOOKUP(Y24,NitrogenStabilizers,14,FALSE) -> None | AA24: =VLOOKUP(Y24,NitrogenStabilizers,15,FALSE) -> 0 | AB24: =VLOOKUP(Y24,NitrogenStabilizers,13,FALSE) -> 1 | AC24: 0 | AD24: =VLOOKUP(Y24,NitrogenStabilizers,12,FALSE) -> 0 | AE24: =(AC24*VLOOKUP(Y24,NitrogenStabilizers,11,FALSE)/AB24)*AA24 -> 0 | AI24: More
A25: 1st Application Fertilizer Cost/Acre | G25: =SUM(G6:G24) -> 111.873 | K25: Below | M25: 1st Application Fertilizer Cost/Acre | S25: =SUM(S6:S24) -> 55.962 | W25: Below | Y25: 1st Application Fertilizer Cost/Acre | AE25: =SUM(AE6:AE24) -> 0 | AI25: Below
K26: ¯ | W26: ¯
A27: 2nd Application (i.e., Starter Fertilizer or Broadcast) | M27: 2nd Application (i.e., Starter Fertilizer or Broadcast) | Y27: 2nd Application (i.e., Starter Fertilizer or Broadcast)
A28: Fertilizer Source | B28: Purchase Units | C28: Package Price (Gals, Lbs, etc.) | D28: Units/Pkg | E28: Rate/Acre | F28: Units | G28: Cost | M28: Fertilizer Source | N28: Purchase Units | O28: Package Price (Gals, Lbs, etc.) | P28: Units/Pkg | Q28: Rate/Acre | R28: Units | S28: Cost | Y28: Fertilizer Source | Z28: Purchase Units | AA28: Package Price (Gals, Lbs, etc.) | AB28: Units/Pkg | AC28: Rate/Acre | AD28: Units | AE28: Cost
A29: Macronutrients (drop down menu) | E29: (Enter Below) | I29: N | J29: P | K29: K | M29: Macronutrients (drop down menu) | Q29: (Enter Below) | U29: N | V29: P | W29: K | Y29: Macronutrients (drop down menu) | AC29: (Enter Below) | AG29: N | AH29: P | AI29: K
A30: UAN 28% (28-0-0) | B30: =VLOOKUP(A30,Macronutrients,14,FALSE) -> Tons | C30: =VLOOKUP(A30,'Fertilizer Products & Pricing'!$A$4:$O$38,15,FALSE) -> 399 | D30: =VLOOKUP($A30,Macronutrients,13,FALSE) -> 2000 | E30: 6 | F30: =VLOOKUP($A30,Macronutrients,12,FALSE) -> gal | G30: =(E30*VLOOKUP(A30,Macronutrients,11,FALSE)/D30)*C30 -> 12.77199 | I30: =VLOOKUP(A30,'Fertilizer Products & Pricing'!$A$4:$O$38,2,FALSE)*E30+VLOOKUP(A31,'Fertilizer Products & Pricing'!$A$4:$O$38,2,FALSE)*E31+VLOOKUP(A32,'Fertilizer Products & Pricing'!$A$4:$O$38,2,FALSE)*E32+VLOOKUP(A33,'Fertilizer Products & Pricing'!$A$4:$O$38,2,FALSE)*E33+VLOOKUP(A34,'Fertilizer Products & Pricing'!$A$4:$O$38,2,FALSE)*E34+VLOOKUP(A35,'Fertilizer Products & Pricing'!$A$4:$O$38,2,FALSE)*E35+VLOOKUP(A38,'Fertilizer Products & Pricing'!$A$42:$O$55,2,FALSE)*E38+VLOOKUP(A39,'Fertilizer Products & Pricing'!$A$42:$O$55,2,FALSE)*E39+VLOOKUP(A40,'Fertilizer Products & Pricing'!$A$42:$O$55,2,FALSE)*E40+VLOOKUP(A41,'Fertilizer Products & Pricing'!$A$42:$O$55,2,FALSE)*E41 -> 24.9456 | J30: =VLOOKUP(A30,'Fertilizer Products & Pricing'!$A$4:$O$38,3,FALSE)*E30+VLOOKUP(A31,'Fertilizer Products & Pricing'!$A$4:$O$38,3,FALSE)*E31+VLOOKUP(A32,'Fertilizer Products & Pricing'!$A$4:$O$38,3,FALSE)*E32+VLOOKUP(A33,'Fertilizer Products & Pricing'!$A$4:$O$38,3,FALSE)*E33+VLOOKUP(A34,'Fertilizer Products & Pricing'!$A$4:$O$38,3,FALSE)*E34+VLOOKUP(A35,'Fertilizer Products & Pricing'!$A$4:$O$38,3,FALSE)*E35+VLOOKUP(A38,'Fertilizer Products & Pricing'!$A$42:$O$55,3,FALSE)*E38+VLOOKUP(A39,'Fertilizer Products & Pricing'!$A$42:$O$55,3,FALSE)*E39+VLOOKUP(A40,'Fertilizer Products & Pricing'!$A$42:$O$55,3,FALSE)*E40+VLOOKUP(A41,'Fertilizer Products & Pricing'!$A$42:$O$55,3,FALSE)*E41 -> 23.868 | K30: =VLOOKUP(A30,'Fertilizer Products & Pricing'!$A$4:$O$38,4,FALSE)*E30+VLOOKUP(A31,'Fertilizer Products & Pricing'!$A$4:$O$38,4,FALSE)*E31+VLOOKUP(A32,'Fertilizer Products & Pricing'!$A$4:$O$38,4,FALSE)*E32+VLOOKUP(A33,'Fertilizer Products & Pricing'!$A$4:$O$38,4,FALSE)*E33+VLOOKUP(A34,'Fertilizer Products & Pricing'!$A$4:$O$38,4,FALSE)*E34+VLOOKUP(A35,'Fertilizer Products & Pricing'!$A$4:$O$38,4,FALSE)*E35+VLOOKUP(A38,'Fertilizer Products & Pricing'!$A$42:$O$55,4,FALSE)*E38+VLOOKUP(A39,'Fertilizer Products & Pricing'!$A$42:$O$55,4,FALSE)*E39+VLOOKUP(A40,'Fertilizer Products & Pricing'!$A$42:$O$55,4,FALSE)*E40+VLOOKUP(A41,'Fertilizer Products & Pricing'!$A$42:$O$55,4,FALSE)*E41 -> 0 | M30: Ammonium polyphosphate (10-34-0) | N30: =VLOOKUP(M30,Macronutrients,14,FALSE) -> Tons | O30: =VLOOKUP(M30,'Fertilizer Products & Pricing'!$A$4:$O$38,15,FALSE) -> 704 | P30: =VLOOKUP($M30,Macronutrients,13,FALSE) -> 2000 | Q30: 6 | R30: =VLOOKUP($M30,Macronutrients,12,FALSE) -> gal | S30: =(Q30*VLOOKUP(M30,Macronutrients,11,FALSE)/P30)*O30 -> 24.7104 | U30: =VLOOKUP(M30,'Fertilizer Products & Pricing'!$A$4:$O$38,2,FALSE)*Q30+VLOOKUP(M31,'Fertilizer Products & Pricing'!$A$4:$O$38,2,FALSE)*Q31+VLOOKUP(M32,'Fertilizer Products & Pricing'!$A$4:$O$38,2,FALSE)*Q32+VLOOKUP(M33,'Fertilizer Products & Pricing'!$A$4:$O$38,2,FALSE)*Q33+VLOOKUP(M34,'Fertilizer Products & Pricing'!$A$4:$O$38,2,FALSE)*Q34+VLOOKUP(M35,'Fertilizer Products & Pricing'!$A$4:$O$38,2,FALSE)*Q35+VLOOKUP(M38,'Fertilizer Products & Pricing'!$A$42:$O$55,2,FALSE)*Q38+VLOOKUP(M39,'Fertilizer Products & Pricing'!$A$42:$O$55,2,FALSE)*Q39+VLOOKUP(M40,'Fertilizer Products & Pricing'!$A$42:$O$55,2,FALSE)*Q40+VLOOKUP(M41,'Fertilizer Products & Pricing'!$A$42:$O$55,2,FALSE)*Q41 -> 24.9456 | V30: =VLOOKUP(M30,'Fertilizer Products & Pricing'!$A$4:$O$38,3,FALSE)*Q30+VLOOKUP(M31,'Fertilizer Products & Pricing'!$A$4:$O$38,3,FALSE)*Q31+VLOOKUP(M32,'Fertilizer Products & Pricing'!$A$4:$O$38,3,FALSE)*Q32+VLOOKUP(M33,'Fertilizer Products & Pricing'!$A$4:$O$38,3,FALSE)*Q33+VLOOKUP(M34,'Fertilizer Products & Pricing'!$A$4:$O$38,3,FALSE)*Q34+VLOOKUP(M35,'Fertilizer Products & Pricing'!$A$4:$O$38,3,FALSE)*Q35+VLOOKUP(M38,'Fertilizer Products & Pricing'!$A$42:$O$55,3,FALSE)*Q38+VLOOKUP(M39,'Fertilizer Products & Pricing'!$A$42:$O$55,3,FALSE)*Q39+VLOOKUP(M40,'Fertilizer Products & Pricing'!$A$42:$O$55,3,FALSE)*Q40+VLOOKUP(M41,'Fertilizer Products & Pricing'!$A$42:$O$55,3,FALSE)*Q41 -> 23.868 | W30: =VLOOKUP(M30,'Fertilizer Products & Pricing'!$A$4:$O$38,4,FALSE)*Q30+VLOOKUP(M31,'Fertilizer Products & Pricing'!$A$4:$O$38,4,FALSE)*Q31+VLOOKUP(M32,'Fertilizer Products & Pricing'!$A$4:$O$38,4,FALSE)*Q32+VLOOKUP(M33,'Fertilizer Products & Pricing'!$A$4:$O$38,4,FALSE)*Q33+VLOOKUP(M34,'Fertilizer Products & Pricing'!$A$4:$O$38,4,FALSE)*Q34+VLOOKUP(M35,'Fertilizer Products & Pricing'!$A$4:$O$38,4,FALSE)*Q35+VLOOKUP(M38,'Fertilizer Products & Pricing'!$A$42:$O$55,4,FALSE)*Q38+VLOOKUP(M39,'Fertilizer Products & Pricing'!$A$42:$O$55,4,FALSE)*Q39+VLOOKUP(M40,'Fertilizer Products & Pricing'!$A$42:$O$55,4,FALSE)*Q40+VLOOKUP(M41,'Fertilizer Products & Pricing'!$A$42:$O$55,4,FALSE)*Q41 -> 0 | Y30: None | Z30: =VLOOKUP(Y30,Macronutrients,14,FALSE) -> None | AA30: =VLOOKUP(Y30,'Fertilizer Products & Pricing'!$A$4:$O$38,15,FALSE) -> 0 | AB30: =VLOOKUP($Y30,Macronutrients,13,FALSE) -> 1 | AC30: 0 | AD30: =VLOOKUP($Y30,Macronutrients,12,FALSE) -> 0 | AE30: =(AC30*VLOOKUP(Y30,Macronutrients,11,FALSE)/AB30)*AA30 -> 0 | AG30: =VLOOKUP(Y30,'Fertilizer Products & Pricing'!$A$4:$O$38,2,FALSE)*AC30+VLOOKUP(Y31,'Fertilizer Products & Pricing'!$A$4:$O$38,2,FALSE)*AC31+VLOOKUP(Y32,'Fertilizer Products & Pricing'!$A$4:$O$38,2,FALSE)*AC32+VLOOKUP(Y33,'Fertilizer Products & Pricing'!$A$4:$O$38,2,FALSE)*AC33+VLOOKUP(Y34,'Fertilizer Products & Pricing'!$A$4:$O$38,2,FALSE)*AC34+VLOOKUP(Y35,'Fertilizer Products & Pricing'!$A$4:$O$38,2,FALSE)*AC35+VLOOKUP(Y38,'Fertilizer Products & Pricing'!$A$42:$O$55,2,FALSE)*AC38+VLOOKUP(Y39,'Fertilizer Products & Pricing'!$A$42:$O$55,2,FALSE)*AC39+VLOOKUP(Y40,'Fertilizer Products & Pricing'!$A$42:$O$55,2,FALSE)*AC40+VLOOKUP(Y41,'Fertilizer Products & Pricing'!$A$42:$O$55,2,FALSE)*AC41 -> 0 | AH30: =VLOOKUP(Y30,'Fertilizer Products & Pricing'!$A$4:$O$38,3,FALSE)*AC30+VLOOKUP(Y31,'Fertilizer Products & Pricing'!$A$4:$O$38,3,FALSE)*AC31+VLOOKUP(Y32,'Fertilizer Products & Pricing'!$A$4:$O$38,3,FALSE)*AC32+VLOOKUP(Y33,'Fertilizer Products & Pricing'!$A$4:$O$38,3,FALSE)*AC33+VLOOKUP(Y34,'Fertilizer Products & Pricing'!$A$4:$O$38,3,FALSE)*AC34+VLOOKUP(Y35,'Fertilizer Products & Pricing'!$A$4:$O$38,3,FALSE)*AC35+VLOOKUP(Y38,'Fertilizer Products & Pricing'!$A$42:$O$55,3,FALSE)*AC38+VLOOKUP(Y39,'Fertilizer Products & Pricing'!$A$42:$O$55,3,FALSE)*AC39+VLOOKUP(Y40,'Fertilizer Products & Pricing'!$A$42:$O$55,3,FALSE)*AC40+VLOOKUP(Y41,'Fertilizer Products & Pricing'!$A$42:$O$55,3,FALSE)*AC41 -> 0 | AI30: =VLOOKUP(Y30,'Fertilizer Products & Pricing'!$A$4:$O$38,4,FALSE)*AC30+VLOOKUP(Y31,'Fertilizer Products & Pricing'!$A$4:$O$38,4,FALSE)*AC31+VLOOKUP(Y32,'Fertilizer Products & Pricing'!$A$4:$O$38,4,FALSE)*AC32+VLOOKUP(Y33,'Fertilizer Products & Pricing'!$A$4:$O$38,4,FALSE)*AC33+VLOOKUP(Y34,'Fertilizer Products & Pricing'!$A$4:$O$38,4,FALSE)*AC34+VLOOKUP(Y35,'Fertilizer Products & Pricing'!$A$4:$O$38,4,FALSE)*AC35+VLOOKUP(Y38,'Fertilizer Products & Pricing'!$A$42:$O$55,4,FALSE)*AC38+VLOOKUP(Y39,'Fertilizer Products & Pricing'!$A$42:$O$55,4,FALSE)*AC39+VLOOKUP(Y40,'Fertilizer Products & Pricing'!$A$42:$O$55,4,FALSE)*AC40+VLOOKUP(Y41,'Fertilizer Products & Pricing'!$A$42:$O$55,4,FALSE)*AC41 -> 0
A31: Ammonium polyphosphate (10-34-0) | B31: Tons | C31: =VLOOKUP(A31,'Fertilizer Products & Pricing'!$A$4:$O$38,15,FALSE) -> 704 | D31: 2000 | E31: 6 | F31: gal | G31: 24.7104 | M31: UAN 28% (28-0-0) | N31: =VLOOKUP(M31,Macronutrients,14,FALSE) -> Tons | O31: =VLOOKUP(M31,'Fertilizer Products & Pricing'!$A$4:$O$38,15,FALSE) -> 399 | P31: 2000 | Q31: 6 | R31: gal | S31: =(Q31*VLOOKUP(M31,Macronutrients,11,FALSE)/P31)*O31 -> 12.77199 | Y31: None | Z31: None | AA31: =VLOOKUP(Y31,'Fertilizer Products & Pricing'!$A$4:$O$38,15,FALSE) -> 0 | AB31: 1 | AC31: 0 | AD31: 0 | AE31: =(AC31*VLOOKUP(Y31,Macronutrients,11,FALSE)/AB31)*AA31 -> 0
A32: None | B32: None | C32: =VLOOKUP(A32,'Fertilizer Products & Pricing'!$A$4:$O$38,15,FALSE) -> 0 | D32: 1 | E32: 0 | F32: 0 | G32: 0 | I32: S | J32: Ca | K32: Mg | M32: None | N32: None | O32: =VLOOKUP(M32,'Fertilizer Products & Pricing'!$A$4:$O$38,15,FALSE) -> 0 | P32: 1 | Q32: 0 | R32: 0 | S32: 0 | U32: S | V32: Ca | W32: Mg | Y32: None | Z32: None | AA32: =VLOOKUP(Y32,'Fertilizer Products & Pricing'!$A$4:$O$38,15,FALSE) -> 0 | AB32: 1 | AC32: 0 | AD32: 0 | AE32: 0 | AG32: S | AH32: Ca | AI32: Mg
A33: None | B33: None | C33: =VLOOKUP(A33,'Fertilizer Products & Pricing'!$A$4:$O$38,15,FALSE) -> 0 | D33: 1 | E33: 0 | F33: 0 | G33: 0 | I33: =VLOOKUP(A30,'Fertilizer Products & Pricing'!$A$4:$O$38,5,FALSE)*E30+VLOOKUP(A31,'Fertilizer Products & Pricing'!$A$4:$O$38,5,FALSE)*E31+VLOOKUP(A32,'Fertilizer Products & Pricing'!$A$4:$O$38,5,FALSE)*E32+VLOOKUP(A33,'Fertilizer Products & Pricing'!$A$4:$O$38,5,FALSE)*E33+VLOOKUP(A34,'Fertilizer Products & Pricing'!$A$4:$O$38,5,FALSE)*E34+VLOOKUP(A35,'Fertilizer Products & Pricing'!$A$4:$O$38,5,FALSE)*E35+VLOOKUP(A38,'Fertilizer Products & Pricing'!$A$42:$O$55,5,FALSE)*E38+VLOOKUP(A39,'Fertilizer Products & Pricing'!$A$42:$O$55,5,FALSE)*E39+VLOOKUP(A40,'Fertilizer Products & Pricing'!$A$42:$O$55,5,FALSE)*E40+VLOOKUP(A41,'Fertilizer Products & Pricing'!$A$42:$O$55,5,FALSE)*E41 -> 0 | J33: =VLOOKUP(A30,'Fertilizer Products & Pricing'!$A$4:$O$38,7,FALSE)*E30+VLOOKUP(A31,'Fertilizer Products & Pricing'!$A$4:$O$38,7,FALSE)*E31+VLOOKUP(A32,'Fertilizer Products & Pricing'!$A$4:$O$38,7,FALSE)*E32+VLOOKUP(A33,'Fertilizer Products & Pricing'!$A$4:$O$38,7,FALSE)*E33+VLOOKUP(A34,'Fertilizer Products & Pricing'!$A$4:$O$38,7,FALSE)*E34+VLOOKUP(A35,'Fertilizer Products & Pricing'!$A$4:$O$38,7,FALSE)*E35+VLOOKUP(A38,'Fertilizer Products & Pricing'!$A$42:$O$55,7,FALSE)*E38+VLOOKUP(A39,'Fertilizer Products & Pricing'!$A$42:$O$55,7,FALSE)*E39+VLOOKUP(A40,'Fertilizer Products & Pricing'!$A$42:$O$55,7,FALSE)*E40+VLOOKUP(A41,'Fertilizer Products & Pricing'!$A$42:$O$55,7,FALSE)*E41 -> 0 | K33: =VLOOKUP(A30,'Fertilizer Products & Pricing'!$A$4:$O$38,6,FALSE)*E30+VLOOKUP(A31,'Fertilizer Products & Pricing'!$A$4:$O$38,6,FALSE)*E31+VLOOKUP(A32,'Fertilizer Products & Pricing'!$A$4:$O$38,6,FALSE)*E32+VLOOKUP(A33,'Fertilizer Products & Pricing'!$A$4:$O$38,6,FALSE)*E33+VLOOKUP(A34,'Fertilizer Products & Pricing'!$A$4:$O$38,6,FALSE)*E34+VLOOKUP(A35,'Fertilizer Products & Pricing'!$A$4:$O$38,6,FALSE)*E35+VLOOKUP(A38,'Fertilizer Products & Pricing'!$A$42:$O$55,6,FALSE)*E38+VLOOKUP(A39,'Fertilizer Products & Pricing'!$A$42:$O$55,6,FALSE)*E39+VLOOKUP(A40,'Fertilizer Products & Pricing'!$A$42:$O$55,6,FALSE)*E40+VLOOKUP(A41,'Fertilizer Products & Pricing'!$A$42:$O$55,6,FALSE)*E41 -> 0 | M33: None | N33: None | O33: =VLOOKUP(M33,'Fertilizer Products & Pricing'!$A$4:$O$38,15,FALSE) -> 0 | P33: 1 | Q33: 0 | R33: 0 | S33: 0 | U33: =VLOOKUP(M30,'Fertilizer Products & Pricing'!$A$4:$O$38,5,FALSE)*Q30+VLOOKUP(M31,'Fertilizer Products & Pricing'!$A$4:$O$38,5,FALSE)*Q31+VLOOKUP(M32,'Fertilizer Products & Pricing'!$A$4:$O$38,5,FALSE)*Q32+VLOOKUP(M33,'Fertilizer Products & Pricing'!$A$4:$O$38,5,FALSE)*Q33+VLOOKUP(M34,'Fertilizer Products & Pricing'!$A$4:$O$38,5,FALSE)*Q34+VLOOKUP(M35,'Fertilizer Products & Pricing'!$A$4:$O$38,5,FALSE)*Q35+VLOOKUP(M38,'Fertilizer Products & Pricing'!$A$42:$O$55,5,FALSE)*Q38+VLOOKUP(M39,'Fertilizer Products & Pricing'!$A$42:$O$55,5,FALSE)*Q39+VLOOKUP(M40,'Fertilizer Products & Pricing'!$A$42:$O$55,5,FALSE)*Q40+VLOOKUP(M41,'Fertilizer Products & Pricing'!$A$42:$O$55,5,FALSE)*Q41 -> 0 | V33: =VLOOKUP(M30,'Fertilizer Products & Pricing'!$A$4:$O$38,7,FALSE)*Q30+VLOOKUP(M31,'Fertilizer Products & Pricing'!$A$4:$O$38,7,FALSE)*Q31+VLOOKUP(M32,'Fertilizer Products & Pricing'!$A$4:$O$38,7,FALSE)*Q32+VLOOKUP(M33,'Fertilizer Products & Pricing'!$A$4:$O$38,7,FALSE)*Q33+VLOOKUP(M34,'Fertilizer Products & Pricing'!$A$4:$O$38,7,FALSE)*Q34+VLOOKUP(M35,'Fertilizer Products & Pricing'!$A$4:$O$38,7,FALSE)*Q35+VLOOKUP(M38,'Fertilizer Products & Pricing'!$A$42:$O$55,7,FALSE)*Q38+VLOOKUP(M39,'Fertilizer Products & Pricing'!$A$42:$O$55,7,FALSE)*Q39+VLOOKUP(M40,'Fertilizer Products & Pricing'!$A$42:$O$55,7,FALSE)*Q40+VLOOKUP(M41,'Fertilizer Products & Pricing'!$A$42:$O$55,7,FALSE)*Q41 -> 0 | W33: =VLOOKUP(M30,'Fertilizer Products & Pricing'!$A$4:$O$38,6,FALSE)*Q30+VLOOKUP(M31,'Fertilizer Products & Pricing'!$A$4:$O$38,6,FALSE)*Q31+VLOOKUP(M32,'Fertilizer Products & Pricing'!$A$4:$O$38,6,FALSE)*Q32+VLOOKUP(M33,'Fertilizer Products & Pricing'!$A$4:$O$38,6,FALSE)*Q33+VLOOKUP(M34,'Fertilizer Products & Pricing'!$A$4:$O$38,6,FALSE)*Q34+VLOOKUP(M35,'Fertilizer Products & Pricing'!$A$4:$O$38,6,FALSE)*Q35+VLOOKUP(M38,'Fertilizer Products & Pricing'!$A$42:$O$55,6,FALSE)*Q38+VLOOKUP(M39,'Fertilizer Products & Pricing'!$A$42:$O$55,6,FALSE)*Q39+VLOOKUP(M40,'Fertilizer Products & Pricing'!$A$42:$O$55,6,FALSE)*Q40+VLOOKUP(M41,'Fertilizer Products & Pricing'!$A$42:$O$55,6,FALSE)*Q41 -> 0 | Y33: None | Z33: None | AA33: =VLOOKUP(Y33,'Fertilizer Products & Pricing'!$A$4:$O$38,15,FALSE) -> 0 | AB33: 1 | AC33: 0 | AD33: 0 | AE33: 0 | AG33: =VLOOKUP(Y30,'Fertilizer Products & Pricing'!$A$4:$O$38,5,FALSE)*AC30+VLOOKUP(Y31,'Fertilizer Products & Pricing'!$A$4:$O$38,5,FALSE)*AC31+VLOOKUP(Y32,'Fertilizer Products & Pricing'!$A$4:$O$38,5,FALSE)*AC32+VLOOKUP(Y33,'Fertilizer Products & Pricing'!$A$4:$O$38,5,FALSE)*AC33+VLOOKUP(Y34,'Fertilizer Products & Pricing'!$A$4:$O$38,5,FALSE)*AC34+VLOOKUP(Y35,'Fertilizer Products & Pricing'!$A$4:$O$38,5,FALSE)*AC35+VLOOKUP(Y38,'Fertilizer Products & Pricing'!$A$42:$O$55,5,FALSE)*AC38+VLOOKUP(Y39,'Fertilizer Products & Pricing'!$A$42:$O$55,5,FALSE)*AC39+VLOOKUP(Y40,'Fertilizer Products & Pricing'!$A$42:$O$55,5,FALSE)*AC40+VLOOKUP(Y41,'Fertilizer Products & Pricing'!$A$42:$O$55,5,FALSE)*AC41 -> 0 | AH33: =VLOOKUP(Y30,'Fertilizer Products & Pricing'!$A$4:$O$38,7,FALSE)*AC30+VLOOKUP(Y31,'Fertilizer Products & Pricing'!$A$4:$O$38,7,FALSE)*AC31+VLOOKUP(Y32,'Fertilizer Products & Pricing'!$A$4:$O$38,7,FALSE)*AC32+VLOOKUP(Y33,'Fertilizer Products & Pricing'!$A$4:$O$38,7,FALSE)*AC33+VLOOKUP(Y34,'Fertilizer Products & Pricing'!$A$4:$O$38,7,FALSE)*AC34+VLOOKUP(Y35,'Fertilizer Products & Pricing'!$A$4:$O$38,7,FALSE)*AC35+VLOOKUP(Y38,'Fertilizer Products & Pricing'!$A$42:$O$55,7,FALSE)*AC38+VLOOKUP(Y39,'Fertilizer Products & Pricing'!$A$42:$O$55,7,FALSE)*AC39+VLOOKUP(Y40,'Fertilizer Products & Pricing'!$A$42:$O$55,7,FALSE)*AC40+VLOOKUP(Y41,'Fertilizer Products & Pricing'!$A$42:$O$55,7,FALSE)*AC41 -> 0 | AI33: =VLOOKUP(Y30,'Fertilizer Products & Pricing'!$A$4:$O$38,6,FALSE)*AC30+VLOOKUP(Y31,'Fertilizer Products & Pricing'!$A$4:$O$38,6,FALSE)*AC31+VLOOKUP(Y32,'Fertilizer Products & Pricing'!$A$4:$O$38,6,FALSE)*AC32+VLOOKUP(Y33,'Fertilizer Products & Pricing'!$A$4:$O$38,6,FALSE)*AC33+VLOOKUP(Y34,'Fertilizer Products & Pricing'!$A$4:$O$38,6,FALSE)*AC34+VLOOKUP(Y35,'Fertilizer Products & Pricing'!$A$4:$O$38,6,FALSE)*AC35+VLOOKUP(Y38,'Fertilizer Products & Pricing'!$A$42:$O$55,6,FALSE)*AC38+VLOOKUP(Y39,'Fertilizer Products & Pricing'!$A$42:$O$55,6,FALSE)*AC39+VLOOKUP(Y40,'Fertilizer Products & Pricing'!$A$42:$O$55,6,FALSE)*AC40+VLOOKUP(Y41,'Fertilizer Products & Pricing'!$A$42:$O$55,6,FALSE)*AC41 -> 0
A34: None | B34: None | C34: =VLOOKUP(A34,'Fertilizer Products & Pricing'!$A$4:$O$38,15,FALSE) -> 0 | D34: 1 | E34: 0 | F34: 0 | G34: 0 | M34: None | N34: None | O34: =VLOOKUP(M34,'Fertilizer Products & Pricing'!$A$4:$O$38,15,FALSE) -> 0 | P34: 1 | Q34: 0 | R34: 0 | S34: 0 | Y34: None | Z34: None | AA34: =VLOOKUP(Y34,'Fertilizer Products & Pricing'!$A$4:$O$38,15,FALSE) -> 0 | AB34: 1 | AC34: 0 | AD34: 0 | AE34: 0
A35: None | B35: None | C35: =VLOOKUP(A35,'Fertilizer Products & Pricing'!$A$4:$O$38,15,FALSE) -> 0 | D35: 1 | E35: 0 | F35: 0 | G35: 0 | I35: Zn | J35: B | K35: Mn | M35: None | N35: None | O35: =VLOOKUP(M35,'Fertilizer Products & Pricing'!$A$4:$O$38,15,FALSE) -> 0 | P35: 1 | Q35: 0 | R35: 0 | S35: 0 | U35: Zn | V35: B | W35: Mn | Y35: None | Z35: None | AA35: =VLOOKUP(Y35,'Fertilizer Products & Pricing'!$A$4:$O$38,15,FALSE) -> 0 | AB35: 1 | AC35: 0 | AD35: 0 | AE35: 0 | AG35: Zn | AH35: B | AI35: Mn
I36: =VLOOKUP($A$39,'Fertilizer Products & Pricing'!$A$42:$O$55,8,FALSE)*$E$39+VLOOKUP($A$40,'Fertilizer Products & Pricing'!$A$42:$O$55,8,FALSE)*$E$40+VLOOKUP($A$41,'Fertilizer Products & Pricing'!$A$42:$O$55,8,FALSE)*$E$41+VLOOKUP($A$38,'Fertilizer Products & Pricing'!$A$42:$O$55,8,FALSE)*$E$38 -> 0 | J36: =VLOOKUP($A$39,'Fertilizer Products & Pricing'!$A$42:$O$55,9,FALSE)*$E$39+VLOOKUP($A$40,'Fertilizer Products & Pricing'!$A$42:$O$55,9,FALSE)*$E$40+VLOOKUP($A$41,'Fertilizer Products & Pricing'!$A$42:$O$55,9,FALSE)*$E$41+VLOOKUP($A$38,'Fertilizer Products & Pricing'!$A$42:$O$55,9,FALSE)*$E$38 -> 0 | K36: =VLOOKUP($A$39,'Fertilizer Products & Pricing'!$A$42:$O$55,10,FALSE)*$E$39+VLOOKUP($A$40,'Fertilizer Products & Pricing'!$A$42:$O$55,10,FALSE)*$E$40+VLOOKUP($A$41,'Fertilizer Products & Pricing'!$A$42:$O$55,10,FALSE)*$E$41+VLOOKUP($A$38,'Fertilizer Products & Pricing'!$A$42:$O$55,10,FALSE)*$E$38 -> 0 | U36: =VLOOKUP($M39,'Fertilizer Products & Pricing'!$A$42:$O$55,8,FALSE)*$Q39+VLOOKUP($M40,'Fertilizer Products & Pricing'!$A$42:$O$55,8,FALSE)*$Q40+VLOOKUP($M41,'Fertilizer Products & Pricing'!$A$42:$O$55,8,FALSE)*$Q41+VLOOKUP($M38,'Fertilizer Products & Pricing'!$A$42:$O$55,8,FALSE)*$Q38 -> 0 | V36: =VLOOKUP($M39,'Fertilizer Products & Pricing'!$A$42:$O$55,9,FALSE)*$Q39+VLOOKUP($M40,'Fertilizer Products & Pricing'!$A$42:$O$55,9,FALSE)*$Q40+VLOOKUP($M41,'Fertilizer Products & Pricing'!$A$42:$O$55,9,FALSE)*$Q41+VLOOKUP($M38,'Fertilizer Products & Pricing'!$A$42:$O$55,9,FALSE)*$Q38 -> 0 | W36: =VLOOKUP($M$39,'Fertilizer Products & Pricing'!$A$42:$O$55,10,FALSE)*$Q$39+VLOOKUP($M$40,'Fertilizer Products & Pricing'!$A$42:$O$55,10,FALSE)*$Q$40+VLOOKUP($M$41,'Fertilizer Products & Pricing'!$A$42:$O$55,10,FALSE)*$Q$41+VLOOKUP($M$38,'Fertilizer Products & Pricing'!$A$42:$O$55,10,FALSE)*$Q$38 -> 0 | AG36: =VLOOKUP($Y39,'Fertilizer Products & Pricing'!$A$42:$O$55,8,FALSE)*$AC39+VLOOKUP($Y40,'Fertilizer Products & Pricing'!$A$42:$O$55,8,FALSE)*$AC40+VLOOKUP($Y41,'Fertilizer Products & Pricing'!$A$42:$O$55,8,FALSE)*$AC41+VLOOKUP($Y38,'Fertilizer Products & Pricing'!$A$42:$O$55,8,FALSE)*$AC38 -> 0 | AH36: =VLOOKUP($Y39,'Fertilizer Products & Pricing'!$A$42:$O$55,9,FALSE)*$AC39+VLOOKUP($Y40,'Fertilizer Products & Pricing'!$A$42:$O$55,9,FALSE)*$AC40+VLOOKUP($Y41,'Fertilizer Products & Pricing'!$A$42:$O$55,9,FALSE)*$AC41+VLOOKUP($Y38,'Fertilizer Products & Pricing'!$A$42:$O$55,9,FALSE)*$AC38 -> 0 | AI36: =VLOOKUP($Y39,'Fertilizer Products & Pricing'!$A$42:$O$55,10,FALSE)*$AC39+VLOOKUP($Y40,'Fertilizer Products & Pricing'!$A$42:$O$55,10,FALSE)*$AC40+VLOOKUP($Y41,'Fertilizer Products & Pricing'!$A$42:$O$55,10,FALSE)*$AC41+VLOOKUP($Y38,'Fertilizer Products & Pricing'!$A$42:$O$55,10,FALSE)*$AC38 -> 0
A37: Micronutrients (drop down menu) | M37: Micronutrients (drop down menu) | Y37: Micronutrients (drop down menu)
A38: None | B38: =VLOOKUP($A38,Micronutrients,14,FALSE) -> None | C38: =VLOOKUP($A38,Micronutrients,15,FALSE) -> 0 | D38: =VLOOKUP($A38,Micronutrients,13,FALSE) -> 1 | E38: 0 | F38: =VLOOKUP($A38,Micronutrients,12,FALSE) -> 0 | G38: =(E38*VLOOKUP(A38,Micronutrients,11,FALSE)/D38)*C38 -> 0 | M38: None | N38: =VLOOKUP($M38,Micronutrients,14,FALSE) -> None | O38: =VLOOKUP($M38,Micronutrients,15,FALSE) -> 0 | P38: =VLOOKUP($M38,Micronutrients,13,FALSE) -> 1 | Q38: 0 | R38: =VLOOKUP($M38,Micronutrients,12,FALSE) -> 0 | S38: =(Q38*VLOOKUP(M38,Micronutrients,11,FALSE)/P38)*O38 -> 0 | Y38: None | Z38: =VLOOKUP(Y38,Micronutrients,14,FALSE) -> None | AA38: =VLOOKUP(Y38,Micronutrients,15,FALSE) -> 0 | AB38: =VLOOKUP(Y38,Micronutrients,13,FALSE) -> 1 | AC38: 0 | AD38: =VLOOKUP(Y38,Micronutrients,12,FALSE) -> 0 | AE38: =(AC38*VLOOKUP(Y38,Micronutrients,11,FALSE)/AB38)*AA38 -> 0
A39: None | B39: =VLOOKUP($A39,Micronutrients,14,FALSE) -> None | C39: =VLOOKUP($A39,Micronutrients,15,FALSE) -> 0 | D39: =VLOOKUP($A39,Micronutrients,13,FALSE) -> 1 | E39: 0 | F39: =VLOOKUP($A39,Micronutrients,12,FALSE) -> 0 | G39: =(E39*VLOOKUP(A39,Micronutrients,11,FALSE)/D39)*C39 -> 0 | M39: None | N39: =VLOOKUP($M39,Micronutrients,14,FALSE) -> None | O39: =VLOOKUP($M39,Micronutrients,15,FALSE) -> 0 | P39: =VLOOKUP($M39,Micronutrients,13,FALSE) -> 1 | Q39: 0 | R39: =VLOOKUP($M39,Micronutrients,12,FALSE) -> 0 | S39: =(Q39*VLOOKUP(M39,Micronutrients,11,FALSE)/P39)*O39 -> 0 | Y39: None | Z39: =VLOOKUP(Y39,Micronutrients,14,FALSE) -> None | AA39: =VLOOKUP(Y39,Micronutrients,15,FALSE) -> 0 | AB39: =VLOOKUP(Y39,Micronutrients,13,FALSE) -> 1 | AC39: 0 | AD39: =VLOOKUP(Y39,Micronutrients,12,FALSE) -> 0 | AE39: =(AC39*VLOOKUP(Y39,Micronutrients,11,FALSE)/AB39)*AA39 -> 0
A40: None | B40: =VLOOKUP($A40,Micronutrients,14,FALSE) -> None | C40: =VLOOKUP($A40,Micronutrients,15,FALSE) -> 0 | D40: =VLOOKUP($A40,Micronutrients,13,FALSE) -> 1 | E40: 0 | F40: =VLOOKUP($A40,Micronutrients,12,FALSE) -> 0 | G40: =(E40*VLOOKUP(A40,Micronutrients,11,FALSE)/D40)*C40 -> 0 | M40: None | N40: =VLOOKUP($M40,Micronutrients,14,FALSE) -> None | O40: =VLOOKUP($M40,Micronutrients,15,FALSE) -> 0 | P40: =VLOOKUP($M40,Micronutrients,13,FALSE) -> 1 | Q40: 0 | R40: =VLOOKUP($M40,Micronutrients,12,FALSE) -> 0 | S40: =(Q40*VLOOKUP(M40,Micronutrients,11,FALSE)/P40)*O40 -> 0 | Y40: None | Z40: =VLOOKUP(Y40,Micronutrients,14,FALSE) -> None | AA40: =VLOOKUP(Y40,Micronutrients,15,FALSE) -> 0 | AB40: =VLOOKUP(Y40,Micronutrients,13,FALSE) -> 1 | AC40: 0 | AD40: =VLOOKUP(Y40,Micronutrients,12,FALSE) -> 0 | AE40: =(AC40*VLOOKUP(Y40,Micronutrients,11,FALSE)/AB40)*AA40 -> 0
A41: None | B41: =VLOOKUP($A41,Micronutrients,14,FALSE) -> None | C41: =VLOOKUP($A41,Micronutrients,15,FALSE) -> 0 | D41: =VLOOKUP($A41,Micronutrients,13,FALSE) -> 1 | E41: 0 | F41: =VLOOKUP($A41,Micronutrients,12,FALSE) -> 0 | G41: =(E41*VLOOKUP(A41,Micronutrients,11,FALSE)/D41)*C41 -> 0 | M41: None | N41: =VLOOKUP($M41,Micronutrients,14,FALSE) -> None | O41: =VLOOKUP($M41,Micronutrients,15,FALSE) -> 0 | P41: =VLOOKUP($M41,Micronutrients,13,FALSE) -> 1 | Q41: 0 | R41: =VLOOKUP($M41,Micronutrients,12,FALSE) -> 0 | S41: =(Q41*VLOOKUP(M41,Micronutrients,11,FALSE)/P41)*O41 -> 0 | Y41: None | Z41: =VLOOKUP(Y41,Micronutrients,14,FALSE) -> None | AA41: =VLOOKUP(Y41,Micronutrients,15,FALSE) -> 0 | AB41: =VLOOKUP(Y41,Micronutrients,13,FALSE) -> 1 | AC41: 0 | AD41: =VLOOKUP(Y41,Micronutrients,12,FALSE) -> 0 | AE41: =(AC41*VLOOKUP(Y41,Micronutrients,11,FALSE)/AB41)*AA41 -> 0
A43: Nitrogen Stabilizers (drop down menu) | M43: Nitrogen Stabilizers (drop down menu) | Y43: Nitrogen Stabilizers (drop down menu)
A44: None | B44: =VLOOKUP(A44,NitrogenStabilizers,14,FALSE) -> None | C44: =VLOOKUP(A44,NitrogenStabilizers,15,FALSE) -> 0 | D44: =VLOOKUP(A44,NitrogenStabilizers,13,FALSE) -> 1 | E44: 0 | F44: =VLOOKUP(A44,NitrogenStabilizers,12,FALSE) -> 0 | G44: =(E44*VLOOKUP(A44,NitrogenStabilizers,11,FALSE)/D44)*C44 -> 0 | M44: None | N44: =VLOOKUP(M44,NitrogenStabilizers,14,FALSE) -> None | O44: =VLOOKUP(M44,NitrogenStabilizers,15,FALSE) -> 0 | P44: =VLOOKUP(M44,NitrogenStabilizers,13,FALSE) -> 1 | Q44: 0 | R44: =VLOOKUP(M44,NitrogenStabilizers,12,FALSE) -> 0 | S44: =(Q44*VLOOKUP(M44,NitrogenStabilizers,11,FALSE)/P44)*O44 -> 0 | Y44: None | Z44: =VLOOKUP(Y44,NitrogenStabilizers,14,FALSE) -> None | AA44: =VLOOKUP(Y44,NitrogenStabilizers,15,FALSE) -> 0 | AB44: =VLOOKUP(Y44,NitrogenStabilizers,13,FALSE) -> 1 | AC44: 0 | AD44: =VLOOKUP(Y44,NitrogenStabilizers,12,FALSE) -> 0 | AE44: =(AC44*VLOOKUP(Y44,NitrogenStabilizers,11,FALSE)/AB44)*AA44 -> 0
A45: None | B45: =VLOOKUP(A45,NitrogenStabilizers,14,FALSE) -> None | C45: =VLOOKUP(A45,NitrogenStabilizers,15,FALSE) -> 0 | D45: =VLOOKUP(A45,NitrogenStabilizers,13,FALSE) -> 1 | E45: 0 | F45: =VLOOKUP(A45,NitrogenStabilizers,12,FALSE) -> 0 | G45: =(E45*VLOOKUP(A45,NitrogenStabilizers,11,FALSE)/D45)*C45 -> 0 | K45: More | M45: None | N45: =VLOOKUP(M45,NitrogenStabilizers,14,FALSE) -> None | O45: =VLOOKUP(M45,NitrogenStabilizers,15,FALSE) -> 0 | P45: =VLOOKUP(M45,NitrogenStabilizers,13,FALSE) -> 1 | Q45: 0 | R45: =VLOOKUP(M45,NitrogenStabilizers,12,FALSE) -> 0 | S45: =(Q45*VLOOKUP(M45,NitrogenStabilizers,11,FALSE)/P45)*O45 -> 0 | W45: More | Y45: None | Z45: =VLOOKUP(Y45,NitrogenStabilizers,14,FALSE) -> None | AA45: =VLOOKUP(Y45,NitrogenStabilizers,15,FALSE) -> 0 | AB45: =VLOOKUP(Y45,NitrogenStabilizers,13,FALSE) -> 1 | AC45: 0 | AD45: =VLOOKUP(Y45,NitrogenStabilizers,12,FALSE) -> 0 | AE45: =(AC45*VLOOKUP(Y45,NitrogenStabilizers,11,FALSE)/AB45)*AA45 -> 0 | AI45: More
A46: 2nd Application Fertilizer Cost/Acre | G46: =SUM(G30:G45) -> 37.48239 | K46: Below | M46: 2nd Application Fertilizer Cost/Acre | S46: =SUM(S30:S45) -> 37.48239 | W46: Below | Y46: 2nd Application Fertilizer Cost/Acre | AE46: =SUM(AE30:AE45) -> 0 | AI46: Below
K47: ¯ | W47: ¯
A48: 3rd Application (i.e., Side-Dress or Broadcast) | M48: 3rd Application (i.e., Side-Dress or Broadcast) | Y48: 3rd Application (i.e., Side-Dress or Broadcast)
A49: Fertilizer Source | B49: Purchase Units | C49: Package Price (Gals, Lbs, etc.) | D49: Units/Pkg | E49: Rate/Acre | F49: Units | G49: Cost | M49: Fertilizer Source | N49: Purchase Units | O49: Package Price (Gals, Lbs, etc.) | P49: Units/Pkg | Q49: Rate/Acre | R49: Units | S49: Cost | Y49: Fertilizer Source | Z49: Purchase Units | AA49: Package Price (Gals, Lbs, etc.) | AB49: Units/Pkg | AC49: Rate/Acre | AD49: Units | AE49: Cost
A50: Macronutrients (drop down menu) | E50: (Enter Below) | I50: N | J50: P | K50: K | M50: Macronutrients (drop down menu) | Q50: (Enter Below) | U50: N | V50: P | W50: K | Y50: Macronutrients (drop down menu) | AC50: (Enter Below) | AG50: N | AH50: P | AI50: K
A51: AMS (21-0-0-24S) | B51: =VLOOKUP(A51,Macronutrients,14,FALSE) -> Tons | C51: =VLOOKUP(A51,'Fertilizer Products & Pricing'!$A$4:$O$38,15,FALSE) -> 485 | D51: =VLOOKUP($A51,Macronutrients,13,FALSE) -> 2000 | E51: 35 | F51: =VLOOKUP($A51,Macronutrients,12,FALSE) -> lbs | G51: =(E51*VLOOKUP(A51,Macronutrients,11,FALSE)/D51)*C51 -> 8.4875 | I51: =VLOOKUP(A51,'Fertilizer Products & Pricing'!$A$4:$O$38,2,FALSE)*E51+VLOOKUP(A52,'Fertilizer Products & Pricing'!$A$4:$O$38,2,FALSE)*E52+VLOOKUP(A53,'Fertilizer Products & Pricing'!$A$4:$O$38,2,FALSE)*E53+VLOOKUP(A54,'Fertilizer Products & Pricing'!$A$4:$O$38,2,FALSE)*E54+VLOOKUP(A55,'Fertilizer Products & Pricing'!$A$4:$O$38,2,FALSE)*E55+VLOOKUP(A56,'Fertilizer Products & Pricing'!$A$4:$O$38,2,FALSE)*E56+VLOOKUP(A59,'Fertilizer Products & Pricing'!$A$42:$O$55,2,FALSE)*E59+VLOOKUP(A60,'Fertilizer Products & Pricing'!$A$42:$O$55,2,FALSE)*E60+VLOOKUP(A61,'Fertilizer Products & Pricing'!$A$42:$O$55,2,FALSE)*E61+VLOOKUP(A62,'Fertilizer Products & Pricing'!$A$42:$O$55,2,FALSE)*E62 -> 87.85 | J51: =VLOOKUP(A51,'Fertilizer Products & Pricing'!$A$4:$O$38,3,FALSE)*E51+VLOOKUP(A52,'Fertilizer Products & Pricing'!$A$4:$O$38,3,FALSE)*E52+VLOOKUP(A53,'Fertilizer Products & Pricing'!$A$4:$O$38,3,FALSE)*E53+VLOOKUP(A54,'Fertilizer Products & Pricing'!$A$4:$O$38,3,FALSE)*E54+VLOOKUP(A55,'Fertilizer Products & Pricing'!$A$4:$O$38,3,FALSE)*E55+VLOOKUP(A56,'Fertilizer Products & Pricing'!$A$4:$O$38,3,FALSE)*E56+VLOOKUP(A59,'Fertilizer Products & Pricing'!$A$42:$O$55,3,FALSE)*E59+VLOOKUP(A60,'Fertilizer Products & Pricing'!$A$42:$O$55,3,FALSE)*E60+VLOOKUP(A61,'Fertilizer Products & Pricing'!$A$42:$O$55,3,FALSE)*E61+VLOOKUP(A62,'Fertilizer Products & Pricing'!$A$42:$O$55,3,FALSE)*E62 -> 0 | K51: =VLOOKUP(A51,'Fertilizer Products & Pricing'!$A$4:$O$38,4,FALSE)*E51+VLOOKUP(A52,'Fertilizer Products & Pricing'!$A$4:$O$38,4,FALSE)*E52+VLOOKUP(A53,'Fertilizer Products & Pricing'!$A$4:$O$38,4,FALSE)*E53+VLOOKUP(A54,'Fertilizer Products & Pricing'!$A$4:$O$38,4,FALSE)*E54+VLOOKUP(A55,'Fertilizer Products & Pricing'!$A$4:$O$38,4,FALSE)*E55+VLOOKUP(A56,'Fertilizer Products & Pricing'!$A$4:$O$38,4,FALSE)*E56+VLOOKUP(A59,'Fertilizer Products & Pricing'!$A$42:$O$55,4,FALSE)*E59+VLOOKUP(A60,'Fertilizer Products & Pricing'!$A$42:$O$55,4,FALSE)*E60+VLOOKUP(A61,'Fertilizer Products & Pricing'!$A$42:$O$55,4,FALSE)*E61+VLOOKUP(A62,'Fertilizer Products & Pricing'!$A$42:$O$55,4,FALSE)*E62 -> 0 | M51: Urea (46-0-0) | N51: =VLOOKUP(M51,Macronutrients,14,FALSE) -> Tons | O51: =VLOOKUP(M51,'Fertilizer Products & Pricing'!$A$4:$O$38,15,FALSE) -> 750 | P51: =VLOOKUP($M51,Macronutrients,13,FALSE) -> 2000 | Q51: 232 | R51: =VLOOKUP($M51,Macronutrients,12,FALSE) -> lbs | S51: =(Q51*VLOOKUP(M51,Macronutrients,11,FALSE)/P51)*O51 -> 87 | U51: =VLOOKUP(M51,'Fertilizer Products & Pricing'!$A$4:$O$38,2,FALSE)*Q51+VLOOKUP(M52,'Fertilizer Products & Pricing'!$A$4:$O$38,2,FALSE)*Q52+VLOOKUP(M53,'Fertilizer Products & Pricing'!$A$4:$O$38,2,FALSE)*Q53+VLOOKUP(M54,'Fertilizer Products & Pricing'!$A$4:$O$38,2,FALSE)*Q54+VLOOKUP(M55,'Fertilizer Products & Pricing'!$A$4:$O$38,2,FALSE)*Q55+VLOOKUP(M56,'Fertilizer Products & Pricing'!$A$4:$O$38,2,FALSE)*Q56+VLOOKUP(M59,'Fertilizer Products & Pricing'!$A$42:$O$55,2,FALSE)*Q59+VLOOKUP(M60,'Fertilizer Products & Pricing'!$A$42:$O$55,2,FALSE)*Q60+VLOOKUP(M61,'Fertilizer Products & Pricing'!$A$42:$O$55,2,FALSE)*Q61+VLOOKUP(M62,'Fertilizer Products & Pricing'!$A$42:$O$55,2,FALSE)*Q62 -> 115.75 | V51: =VLOOKUP(M51,'Fertilizer Products & Pricing'!$A$4:$O$38,3,FALSE)*Q51+VLOOKUP(M52,'Fertilizer Products & Pricing'!$A$4:$O$38,3,FALSE)*Q52+VLOOKUP(M53,'Fertilizer Products & Pricing'!$A$4:$O$38,3,FALSE)*Q53+VLOOKUP(M54,'Fertilizer Products & Pricing'!$A$4:$O$38,3,FALSE)*Q54+VLOOKUP(M55,'Fertilizer Products & Pricing'!$A$4:$O$38,3,FALSE)*Q55+VLOOKUP(M56,'Fertilizer Products & Pricing'!$A$4:$O$38,3,FALSE)*Q56+VLOOKUP(M59,'Fertilizer Products & Pricing'!$A$42:$O$55,3,FALSE)*Q59+VLOOKUP(M60,'Fertilizer Products & Pricing'!$A$42:$O$55,3,FALSE)*Q60+VLOOKUP(M61,'Fertilizer Products & Pricing'!$A$42:$O$55,3,FALSE)*Q61+VLOOKUP(M62,'Fertilizer Products & Pricing'!$A$42:$O$55,3,FALSE)*Q62 -> 0 | W51: =VLOOKUP(M51,'Fertilizer Products & Pricing'!$A$4:$O$38,4,FALSE)*Q51+VLOOKUP(M52,'Fertilizer Products & Pricing'!$A$4:$O$38,4,FALSE)*Q52+VLOOKUP(M53,'Fertilizer Products & Pricing'!$A$4:$O$38,4,FALSE)*Q53+VLOOKUP(M54,'Fertilizer Products & Pricing'!$A$4:$O$38,4,FALSE)*Q54+VLOOKUP(M55,'Fertilizer Products & Pricing'!$A$4:$O$38,4,FALSE)*Q55+VLOOKUP(M56,'Fertilizer Products & Pricing'!$A$4:$O$38,4,FALSE)*Q56+VLOOKUP(M59,'Fertilizer Products & Pricing'!$A$42:$O$55,4,FALSE)*Q59+VLOOKUP(M60,'Fertilizer Products & Pricing'!$A$42:$O$55,4,FALSE)*Q60+VLOOKUP(M61,'Fertilizer Products & Pricing'!$A$42:$O$55,4,FALSE)*Q61+VLOOKUP(M62,'Fertilizer Products & Pricing'!$A$42:$O$55,4,FALSE)*Q62 -> 0 | Y51: None | Z51: =VLOOKUP(Y51,Macronutrients,14,FALSE) -> None | AA51: =VLOOKUP(Y51,'Fertilizer Products & Pricing'!$A$4:$O$38,15,FALSE) -> 0 | AB51: =VLOOKUP($Y51,Macronutrients,13,FALSE) -> 1 | AC51: 0 | AD51: =VLOOKUP($Y51,Macronutrients,12,FALSE) -> 0 | AE51: =(AC51*VLOOKUP(Y51,Macronutrients,11,FALSE)/AB51)*AA51 -> 0 | AG51: =VLOOKUP(Y51,'Fertilizer Products & Pricing'!$A$4:$O$38,2,FALSE)*AC51+VLOOKUP(Y52,'Fertilizer Products & Pricing'!$A$4:$O$38,2,FALSE)*AC52+VLOOKUP(Y53,'Fertilizer Products & Pricing'!$A$4:$O$38,2,FALSE)*AC53+VLOOKUP(Y54,'Fertilizer Products & Pricing'!$A$4:$O$38,2,FALSE)*AC54+VLOOKUP(Y55,'Fertilizer Products & Pricing'!$A$4:$O$38,2,FALSE)*AC55+VLOOKUP(Y56,'Fertilizer Products & Pricing'!$A$4:$O$38,2,FALSE)*AC56+VLOOKUP(Y59,'Fertilizer Products & Pricing'!$A$42:$O$55,2,FALSE)*AC59+VLOOKUP(Y60,'Fertilizer Products & Pricing'!$A$42:$O$55,2,FALSE)*AC60+VLOOKUP(Y61,'Fertilizer Products & Pricing'!$A$42:$O$55,2,FALSE)*AC61+VLOOKUP(Y62,'Fertilizer Products & Pricing'!$A$42:$O$55,2,FALSE)*AC62 -> 0 | AH51: =VLOOKUP(Y51,'Fertilizer Products & Pricing'!$A$4:$O$38,3,FALSE)*AC51+VLOOKUP(Y52,'Fertilizer Products & Pricing'!$A$4:$O$38,3,FALSE)*AC52+VLOOKUP(Y53,'Fertilizer Products & Pricing'!$A$4:$O$38,3,FALSE)*AC53+VLOOKUP(Y54,'Fertilizer Products & Pricing'!$A$4:$O$38,3,FALSE)*AC54+VLOOKUP(Y55,'Fertilizer Products & Pricing'!$A$4:$O$38,3,FALSE)*AC55+VLOOKUP(Y56,'Fertilizer Products & Pricing'!$A$4:$O$38,3,FALSE)*AC56+VLOOKUP(Y59,'Fertilizer Products & Pricing'!$A$42:$O$55,3,FALSE)*AC59+VLOOKUP(Y60,'Fertilizer Products & Pricing'!$A$42:$O$55,3,FALSE)*AC60+VLOOKUP(Y61,'Fertilizer Products & Pricing'!$A$42:$O$55,3,FALSE)*AC61+VLOOKUP(Y62,'Fertilizer Products & Pricing'!$A$42:$O$55,3,FALSE)*AC62 -> 0 | AI51: =VLOOKUP(Y51,'Fertilizer Products & Pricing'!$A$4:$O$38,4,FALSE)*AC51+VLOOKUP(Y52,'Fertilizer Products & Pricing'!$A$4:$O$38,4,FALSE)*AC52+VLOOKUP(Y53,'Fertilizer Products & Pricing'!$A$4:$O$38,4,FALSE)*AC53+VLOOKUP(Y54,'Fertilizer Products & Pricing'!$A$4:$O$38,4,FALSE)*AC54+VLOOKUP(Y55,'Fertilizer Products & Pricing'!$A$4:$O$38,4,FALSE)*AC55+VLOOKUP(Y56,'Fertilizer Products & Pricing'!$A$4:$O$38,4,FALSE)*AC56+VLOOKUP(Y59,'Fertilizer Products & Pricing'!$A$42:$O$55,4,FALSE)*AC59+VLOOKUP(Y60,'Fertilizer Products & Pricing'!$A$42:$O$55,4,FALSE)*AC60+VLOOKUP(Y61,'Fertilizer Products & Pricing'!$A$42:$O$55,4,FALSE)*AC61+VLOOKUP(Y62,'Fertilizer Products & Pricing'!$A$42:$O$55,4,FALSE)*AC62 -> 0
A52: Urea (46-0-0) | B52: Tons | C52: =VLOOKUP(A52,'Fertilizer Products & Pricing'!$A$4:$O$38,15,FALSE) -> 750 | D52: 2000 | E52: 175 | F52: lbs | G52: 65.625 | M52: AMS (21-0-0-24S) | N52: =VLOOKUP(M52,Macronutrients,14,FALSE) -> Tons | O52: =VLOOKUP(M52,'Fertilizer Products & Pricing'!$A$4:$O$38,15,FALSE) -> 485 | P52: 2000 | Q52: 43 | R52: lbs | S52: =(Q52*VLOOKUP(M52,Macronutrients,11,FALSE)/P52)*O52 -> 10.4275 | Y52: None | Z52: None | AA52: =VLOOKUP(Y52,'Fertilizer Products & Pricing'!$A$4:$O$38,15,FALSE) -> 0 | AB52: 1 | AC52: 0 | AD52: 0 | AE52: =(AC52*VLOOKUP(Y52,Macronutrients,11,FALSE)/AB52)*AA52 -> 0
A53: None | B53: None | C53: =VLOOKUP(A53,'Fertilizer Products & Pricing'!$A$4:$O$38,15,FALSE) -> 0 | D53: 1 | E53: 0 | F53: 0 | G53: 0 | I53: S | J53: Ca | K53: Mg | M53: None | N53: None | O53: =VLOOKUP(M53,'Fertilizer Products & Pricing'!$A$4:$O$38,15,FALSE) -> 0 | P53: 1 | Q53: 0 | R53: 0 | S53: 0 | U53: S | V53: Ca | W53: Mg | Y53: None | Z53: None | AA53: =VLOOKUP(Y53,'Fertilizer Products & Pricing'!$A$4:$O$38,15,FALSE) -> 0 | AB53: 1 | AC53: 0 | AD53: 0 | AE53: 0 | AG53: S | AH53: Ca | AI53: Mg
A54: None | B54: None | C54: =VLOOKUP(A54,'Fertilizer Products & Pricing'!$A$4:$O$38,15,FALSE) -> 0 | D54: 1 | E54: 0 | F54: 0 | G54: 0 | I54: =VLOOKUP(A51,'Fertilizer Products & Pricing'!$A$4:$O$38,5,FALSE)*E51+VLOOKUP(A52,'Fertilizer Products & Pricing'!$A$4:$O$38,5,FALSE)*E52+VLOOKUP(A53,'Fertilizer Products & Pricing'!$A$4:$O$38,5,FALSE)*E53+VLOOKUP(A54,'Fertilizer Products & Pricing'!$A$4:$O$38,5,FALSE)*E54+VLOOKUP(A55,'Fertilizer Products & Pricing'!$A$4:$O$38,5,FALSE)*E55+VLOOKUP(A56,'Fertilizer Products & Pricing'!$A$4:$O$38,5,FALSE)*E56+VLOOKUP(A59,'Fertilizer Products & Pricing'!$A$42:$O$55,5,FALSE)*E59+VLOOKUP(A60,'Fertilizer Products & Pricing'!$A$42:$O$55,5,FALSE)*E60+VLOOKUP(A61,'Fertilizer Products & Pricing'!$A$42:$O$55,5,FALSE)*E61+VLOOKUP(A62,'Fertilizer Products & Pricing'!$A$42:$O$55,5,FALSE)*E62 -> 8.4 | J54: =VLOOKUP(A51,'Fertilizer Products & Pricing'!$A$4:$O$38,7,FALSE)*E51+VLOOKUP(A52,'Fertilizer Products & Pricing'!$A$4:$O$38,7,FALSE)*E52+VLOOKUP(A53,'Fertilizer Products & Pricing'!$A$4:$O$38,7,FALSE)*E53+VLOOKUP(A54,'Fertilizer Products & Pricing'!$A$4:$O$38,7,FALSE)*E54+VLOOKUP(A55,'Fertilizer Products & Pricing'!$A$4:$O$38,7,FALSE)*E55+VLOOKUP(A56,'Fertilizer Products & Pricing'!$A$4:$O$38,7,FALSE)*E56+VLOOKUP(A59,'Fertilizer Products & Pricing'!$A$42:$O$55,7,FALSE)*E59+VLOOKUP(A60,'Fertilizer Products & Pricing'!$A$42:$O$55,7,FALSE)*E60+VLOOKUP(A61,'Fertilizer Products & Pricing'!$A$42:$O$55,7,FALSE)*E61+VLOOKUP(A62,'Fertilizer Products & Pricing'!$A$42:$O$55,7,FALSE)*E62 -> 0 | K54: =VLOOKUP(A51,'Fertilizer Products & Pricing'!$A$4:$O$38,6,FALSE)*E51+VLOOKUP(A52,'Fertilizer Products & Pricing'!$A$4:$O$38,6,FALSE)*E52+VLOOKUP(A53,'Fertilizer Products & Pricing'!$A$4:$O$38,6,FALSE)*E53+VLOOKUP(A54,'Fertilizer Products & Pricing'!$A$4:$O$38,6,FALSE)*E54+VLOOKUP(A55,'Fertilizer Products & Pricing'!$A$4:$O$38,6,FALSE)*E55+VLOOKUP(A56,'Fertilizer Products & Pricing'!$A$4:$O$38,6,FALSE)*E56+VLOOKUP(A59,'Fertilizer Products & Pricing'!$A$42:$O$55,6,FALSE)*E59+VLOOKUP(A60,'Fertilizer Products & Pricing'!$A$42:$O$55,6,FALSE)*E60+VLOOKUP(A61,'Fertilizer Products & Pricing'!$A$42:$O$55,6,FALSE)*E61+VLOOKUP(A62,'Fertilizer Products & Pricing'!$A$42:$O$55,6,FALSE)*E62 -> 0 | M54: None | N54: None | O54: =VLOOKUP(M54,'Fertilizer Products & Pricing'!$A$4:$O$38,15,FALSE) -> 0 | P54: 1 | Q54: 0 | R54: 0 | S54: 0 | U54: =VLOOKUP(M51,'Fertilizer Products & Pricing'!$A$4:$O$38,5,FALSE)*Q51+VLOOKUP(M52,'Fertilizer Products & Pricing'!$A$4:$O$38,5,FALSE)*Q52+VLOOKUP(M53,'Fertilizer Products & Pricing'!$A$4:$O$38,5,FALSE)*Q53+VLOOKUP(M54,'Fertilizer Products & Pricing'!$A$4:$O$38,5,FALSE)*Q54+VLOOKUP(M55,'Fertilizer Products & Pricing'!$A$4:$O$38,5,FALSE)*Q55+VLOOKUP(M56,'Fertilizer Products & Pricing'!$A$4:$O$38,5,FALSE)*Q56+VLOOKUP(M59,'Fertilizer Products & Pricing'!$A$42:$O$55,5,FALSE)*Q59+VLOOKUP(M60,'Fertilizer Products & Pricing'!$A$42:$O$55,5,FALSE)*Q60+VLOOKUP(M61,'Fertilizer Products & Pricing'!$A$42:$O$55,5,FALSE)*Q61+VLOOKUP(M62,'Fertilizer Products & Pricing'!$A$42:$O$55,5,FALSE)*Q62 -> 10.32 | V54: =VLOOKUP(M51,'Fertilizer Products & Pricing'!$A$4:$O$38,7,FALSE)*Q51+VLOOKUP(M52,'Fertilizer Products & Pricing'!$A$4:$O$38,7,FALSE)*Q52+VLOOKUP(M53,'Fertilizer Products & Pricing'!$A$4:$O$38,7,FALSE)*Q53+VLOOKUP(M54,'Fertilizer Products & Pricing'!$A$4:$O$38,7,FALSE)*Q54+VLOOKUP(M55,'Fertilizer Products & Pricing'!$A$4:$O$38,7,FALSE)*Q55+VLOOKUP(M56,'Fertilizer Products & Pricing'!$A$4:$O$38,7,FALSE)*Q56+VLOOKUP(M59,'Fertilizer Products & Pricing'!$A$42:$O$55,7,FALSE)*Q59+VLOOKUP(M60,'Fertilizer Products & Pricing'!$A$42:$O$55,7,FALSE)*Q60+VLOOKUP(M61,'Fertilizer Products & Pricing'!$A$42:$O$55,7,FALSE)*Q61+VLOOKUP(M62,'Fertilizer Products & Pricing'!$A$42:$O$55,7,FALSE)*Q62 -> 0 | W54: =VLOOKUP(M51,'Fertilizer Products & Pricing'!$A$4:$O$38,6,FALSE)*Q51+VLOOKUP(M52,'Fertilizer Products & Pricing'!$A$4:$O$38,6,FALSE)*Q52+VLOOKUP(M53,'Fertilizer Products & Pricing'!$A$4:$O$38,6,FALSE)*Q53+VLOOKUP(M54,'Fertilizer Products & Pricing'!$A$4:$O$38,6,FALSE)*Q54+VLOOKUP(M55,'Fertilizer Products & Pricing'!$A$4:$O$38,6,FALSE)*Q55+VLOOKUP(M56,'Fertilizer Products & Pricing'!$A$4:$O$38,6,FALSE)*Q56+VLOOKUP(M59,'Fertilizer Products & Pricing'!$A$42:$O$55,6,FALSE)*Q59+VLOOKUP(M60,'Fertilizer Products & Pricing'!$A$42:$O$55,6,FALSE)*Q60+VLOOKUP(M61,'Fertilizer Products & Pricing'!$A$42:$O$55,6,FALSE)*Q61+VLOOKUP(M62,'Fertilizer Products & Pricing'!$A$42:$O$55,6,FALSE)*Q62 -> 0 | Y54: None | Z54: None | AA54: =VLOOKUP(Y54,'Fertilizer Products & Pricing'!$A$4:$O$38,15,FALSE) -> 0 | AB54: 1 | AC54: 0 | AD54: 0 | AE54: 0 | AG54: =VLOOKUP(Y51,'Fertilizer Products & Pricing'!$A$4:$O$38,5,FALSE)*AC51+VLOOKUP(Y52,'Fertilizer Products & Pricing'!$A$4:$O$38,5,FALSE)*AC52+VLOOKUP(Y53,'Fertilizer Products & Pricing'!$A$4:$O$38,5,FALSE)*AC53+VLOOKUP(Y54,'Fertilizer Products & Pricing'!$A$4:$O$38,5,FALSE)*AC54+VLOOKUP(Y55,'Fertilizer Products & Pricing'!$A$4:$O$38,5,FALSE)*AC55+VLOOKUP(Y56,'Fertilizer Products & Pricing'!$A$4:$O$38,5,FALSE)*AC56+VLOOKUP(Y59,'Fertilizer Products & Pricing'!$A$42:$O$55,5,FALSE)*AC59+VLOOKUP(Y60,'Fertilizer Products & Pricing'!$A$42:$O$55,5,FALSE)*AC60+VLOOKUP(Y61,'Fertilizer Products & Pricing'!$A$42:$O$55,5,FALSE)*AC61+VLOOKUP(Y62,'Fertilizer Products & Pricing'!$A$42:$O$55,5,FALSE)*AC62 -> 0 | AH54: =VLOOKUP(Y51,'Fertilizer Products & Pricing'!$A$4:$O$38,7,FALSE)*AC51+VLOOKUP(Y52,'Fertilizer Products & Pricing'!$A$4:$O$38,7,FALSE)*AC52+VLOOKUP(Y53,'Fertilizer Products & Pricing'!$A$4:$O$38,7,FALSE)*AC53+VLOOKUP(Y54,'Fertilizer Products & Pricing'!$A$4:$O$38,7,FALSE)*AC54+VLOOKUP(Y55,'Fertilizer Products & Pricing'!$A$4:$O$38,7,FALSE)*AC55+VLOOKUP(Y56,'Fertilizer Products & Pricing'!$A$4:$O$38,7,FALSE)*AC56+VLOOKUP(Y59,'Fertilizer Products & Pricing'!$A$42:$O$55,7,FALSE)*AC59+VLOOKUP(Y60,'Fertilizer Products & Pricing'!$A$42:$O$55,7,FALSE)*AC60+VLOOKUP(Y61,'Fertilizer Products & Pricing'!$A$42:$O$55,7,FALSE)*AC61+VLOOKUP(Y62,'Fertilizer Products & Pricing'!$A$42:$O$55,7,FALSE)*AC62 -> 0 | AI54: =VLOOKUP(Y51,'Fertilizer Products & Pricing'!$A$4:$O$38,6,FALSE)*AC51+VLOOKUP(Y52,'Fertilizer Products & Pricing'!$A$4:$O$38,6,FALSE)*AC52+VLOOKUP(Y53,'Fertilizer Products & Pricing'!$A$4:$O$38,6,FALSE)*AC53+VLOOKUP(Y54,'Fertilizer Products & Pricing'!$A$4:$O$38,6,FALSE)*AC54+VLOOKUP(Y55,'Fertilizer Products & Pricing'!$A$4:$O$38,6,FALSE)*AC55+VLOOKUP(Y56,'Fertilizer Products & Pricing'!$A$4:$O$38,6,FALSE)*AC56+VLOOKUP(Y59,'Fertilizer Products & Pricing'!$A$42:$O$55,6,FALSE)*AC59+VLOOKUP(Y60,'Fertilizer Products & Pricing'!$A$42:$O$55,6,FALSE)*AC60+VLOOKUP(Y61,'Fertilizer Products & Pricing'!$A$42:$O$55,6,FALSE)*AC61+VLOOKUP(Y62,'Fertilizer Products & Pricing'!$A$42:$O$55,6,FALSE)*AC62 -> 0
A55: None | B55: None | C55: =VLOOKUP(A55,'Fertilizer Products & Pricing'!$A$4:$O$38,15,FALSE) -> 0 | D55: 1 | E55: 0 | F55: 0 | G55: 0 | M55: None | N55: None | O55: =VLOOKUP(M55,'Fertilizer Products & Pricing'!$A$4:$O$38,15,FALSE) -> 0 | P55: 1 | Q55: 0 | R55: 0 | S55: 0 | Y55: None | Z55: None | AA55: =VLOOKUP(Y55,'Fertilizer Products & Pricing'!$A$4:$O$38,15,FALSE) -> 0 | AB55: 1 | AC55: 0 | AD55: 0 | AE55: 0
A56: None | B56: None | C56: =VLOOKUP(A56,'Fertilizer Products & Pricing'!$A$4:$O$38,15,FALSE) -> 0 | D56: 1 | E56: 0 | F56: 0 | G56: 0 | I56: Zn | J56: B | K56: Mn | M56: None | N56: None | O56: =VLOOKUP(M56,'Fertilizer Products & Pricing'!$A$4:$O$38,15,FALSE) -> 0 | P56: 1 | Q56: 0 | R56: 0 | S56: 0 | U56: Zn | V56: B | W56: Mn | Y56: None | Z56: None | AA56: =VLOOKUP(Y56,'Fertilizer Products & Pricing'!$A$4:$O$38,15,FALSE) -> 0 | AB56: 1 | AC56: 0 | AD56: 0 | AE56: 0 | AG56: Zn | AH56: B | AI56: Mn
I57: =VLOOKUP($A$60,'Fertilizer Products & Pricing'!$A$42:$O$55,8,FALSE)*$E$60+VLOOKUP($A$61,'Fertilizer Products & Pricing'!$A$42:$O$55,8,FALSE)*$E$61+VLOOKUP($A$62,'Fertilizer Products & Pricing'!$A$42:$O$55,8,FALSE)*$E$62+VLOOKUP($A$59,'Fertilizer Products & Pricing'!$A$42:$O$55,8,FALSE)*$E$59 -> 0 | J57: =VLOOKUP($A$60,'Fertilizer Products & Pricing'!$A$42:$O$55,9,FALSE)*$E$60+VLOOKUP($A$61,'Fertilizer Products & Pricing'!$A$42:$O$55,9,FALSE)*$E$61+VLOOKUP($A$62,'Fertilizer Products & Pricing'!$A$42:$O$55,9,FALSE)*$E$62+VLOOKUP($A$59,'Fertilizer Products & Pricing'!$A$42:$O$55,9,FALSE)*$E$59 -> 0 | K57: =VLOOKUP($A$60,'Fertilizer Products & Pricing'!$A$42:$O$55,10,FALSE)*$E$60+VLOOKUP($A$61,'Fertilizer Products & Pricing'!$A$42:$O$55,10,FALSE)*$E$61+VLOOKUP($A$62,'Fertilizer Products & Pricing'!$A$42:$O$55,10,FALSE)*$E$62+VLOOKUP($A$59,'Fertilizer Products & Pricing'!$A$42:$O$55,10,FALSE)*$E$59 -> 0 | U57: =VLOOKUP($M60,'Fertilizer Products & Pricing'!$A$42:$O$55,8,FALSE)*$Q60+VLOOKUP($M61,'Fertilizer Products & Pricing'!$A$42:$O$55,8,FALSE)*$Q61+VLOOKUP($M62,'Fertilizer Products & Pricing'!$A$42:$O$55,8,FALSE)*$Q62+VLOOKUP($M59,'Fertilizer Products & Pricing'!$A$42:$O$55,8,FALSE)*$Q59 -> 0 | V57: =VLOOKUP($M60,'Fertilizer Products & Pricing'!$A$42:$O$55,9,FALSE)*$Q60+VLOOKUP($M61,'Fertilizer Products & Pricing'!$A$42:$O$55,9,FALSE)*$Q61+VLOOKUP($M62,'Fertilizer Products & Pricing'!$A$42:$O$55,9,FALSE)*$Q62+VLOOKUP($M59,'Fertilizer Products & Pricing'!$A$42:$O$55,9,FALSE)*$Q59 -> 0 | W57: =VLOOKUP($M60,'Fertilizer Products & Pricing'!$A$42:$O$55,10,FALSE)*$Q60+VLOOKUP($M61,'Fertilizer Products & Pricing'!$A$42:$O$55,10,FALSE)*$Q61+VLOOKUP($M62,'Fertilizer Products & Pricing'!$A$42:$O$55,10,FALSE)*$Q62+VLOOKUP($M59,'Fertilizer Products & Pricing'!$A$42:$O$55,10,FALSE)*$Q59 -> 0 | AG57: =VLOOKUP($Y60,'Fertilizer Products & Pricing'!$A$42:$O$55,8,FALSE)*$AC60+VLOOKUP($Y61,'Fertilizer Products & Pricing'!$A$42:$O$55,8,FALSE)*$AC61+VLOOKUP($Y62,'Fertilizer Products & Pricing'!$A$42:$O$55,8,FALSE)*$AC62+VLOOKUP($Y59,'Fertilizer Products & Pricing'!$A$42:$O$55,8,FALSE)*$AC59 -> 0 | AH57: =VLOOKUP($Y60,'Fertilizer Products & Pricing'!$A$42:$O$55,9,FALSE)*$AC60+VLOOKUP($Y61,'Fertilizer Products & Pricing'!$A$42:$O$55,9,FALSE)*$AC61+VLOOKUP($Y62,'Fertilizer Products & Pricing'!$A$42:$O$55,9,FALSE)*$AC62+VLOOKUP($Y59,'Fertilizer Products & Pricing'!$A$42:$O$55,9,FALSE)*$AC59 -> 0 | AI57: =VLOOKUP($Y60,'Fertilizer Products & Pricing'!$A$42:$O$55,10,FALSE)*$AC60+VLOOKUP($Y61,'Fertilizer Products & Pricing'!$A$42:$O$55,10,FALSE)*$AC61+VLOOKUP($Y62,'Fertilizer Products & Pricing'!$A$42:$O$55,10,FALSE)*$AC62+VLOOKUP($Y59,'Fertilizer Products & Pricing'!$A$42:$O$55,10,FALSE)*$AC59 -> 0
A58: Micronutrients (drop down menu) | M58: Micronutrients (drop down menu) | Y58: Micronutrients (drop down menu)
A59: None | B59: =VLOOKUP($A59,Micronutrients,14,FALSE) -> None | C59: =VLOOKUP($A59,Micronutrients,15,FALSE) -> 0 | D59: =VLOOKUP($A59,Micronutrients,13,FALSE) -> 1 | E59: 0 | F59: =VLOOKUP($A59,Micronutrients,12,FALSE) -> 0 | G59: =(E59*VLOOKUP(A59,Micronutrients,11,FALSE)/D59)*C59 -> 0 | M59: None | N59: =VLOOKUP($M59,Micronutrients,14,FALSE) -> None | O59: =VLOOKUP($M59,Micronutrients,15,FALSE) -> 0 | P59: =VLOOKUP($M59,Micronutrients,13,FALSE) -> 1 | Q59: 0 | R59: =VLOOKUP($M59,Micronutrients,12,FALSE) -> 0 | S59: =(Q59*VLOOKUP(M59,Micronutrients,11,FALSE)/P59)*O59 -> 0 | Y59: None | Z59: =VLOOKUP(Y59,Micronutrients,14,FALSE) -> None | AA59: =VLOOKUP(Y59,Micronutrients,15,FALSE) -> 0 | AB59: =VLOOKUP(Y59,Micronutrients,13,FALSE) -> 1 | AC59: 0 | AD59: =VLOOKUP(Y59,Micronutrients,12,FALSE) -> 0 | AE59: =(AC59*VLOOKUP(Y59,Micronutrients,11,FALSE)/AB59)*AA59 -> 0
A60: None | B60: =VLOOKUP($A60,Micronutrients,14,FALSE) -> None | C60: =VLOOKUP($A60,Micronutrients,15,FALSE) -> 0 | D60: =VLOOKUP($A60,Micronutrients,13,FALSE) -> 1 | E60: 0 | F60: =VLOOKUP($A60,Micronutrients,12,FALSE) -> 0 | G60: =(E60*VLOOKUP(A60,Micronutrients,11,FALSE)/D60)*C60 -> 0 | M60: None | N60: =VLOOKUP($M60,Micronutrients,14,FALSE) -> None | O60: =VLOOKUP($M60,Micronutrients,15,FALSE) -> 0 | P60: =VLOOKUP($M60,Micronutrients,13,FALSE) -> 1 | Q60: 0 | R60: =VLOOKUP($M60,Micronutrients,12,FALSE) -> 0 | S60: =(Q60*VLOOKUP(M60,Micronutrients,11,FALSE)/P60)*O60 -> 0 | Y60: None | Z60: =VLOOKUP(Y60,Micronutrients,14,FALSE) -> None | AA60: =VLOOKUP(Y60,Micronutrients,15,FALSE) -> 0 | AB60: =VLOOKUP(Y60,Micronutrients,13,FALSE) -> 1 | AC60: 0 | AD60: =VLOOKUP(Y60,Micronutrients,12,FALSE) -> 0 | AE60: =(AC60*VLOOKUP(Y60,Micronutrients,11,FALSE)/AB60)*AA60 -> 0
A61: None | B61: =VLOOKUP($A61,Micronutrients,14,FALSE) -> None | C61: =VLOOKUP($A61,Micronutrients,15,FALSE) -> 0 | D61: =VLOOKUP($A61,Micronutrients,13,FALSE) -> 1 | E61: 0 | F61: =VLOOKUP($A61,Micronutrients,12,FALSE) -> 0 | G61: =(E61*VLOOKUP(A61,Micronutrients,11,FALSE)/D61)*C61 -> 0 | M61: None | N61: =VLOOKUP($M61,Micronutrients,14,FALSE) -> None | O61: =VLOOKUP($M61,Micronutrients,15,FALSE) -> 0 | P61: =VLOOKUP($M61,Micronutrients,13,FALSE) -> 1 | Q61: 0 | R61: =VLOOKUP($M61,Micronutrients,12,FALSE) -> 0 | S61: =(Q61*VLOOKUP(M61,Micronutrients,11,FALSE)/P61)*O61 -> 0 | Y61: None | Z61: =VLOOKUP(Y61,Micronutrients,14,FALSE) -> None | AA61: =VLOOKUP(Y61,Micronutrients,15,FALSE) -> 0 | AB61: =VLOOKUP(Y61,Micronutrients,13,FALSE) -> 1 | AC61: 0 | AD61: =VLOOKUP(Y61,Micronutrients,12,FALSE) -> 0 | AE61: =(AC61*VLOOKUP(Y61,Micronutrients,11,FALSE)/AB61)*AA61 -> 0
A62: None | B62: =VLOOKUP($A62,Micronutrients,14,FALSE) -> None | C62: =VLOOKUP($A62,Micronutrients,15,FALSE) -> 0 | D62: =VLOOKUP($A62,Micronutrients,13,FALSE) -> 1 | E62: 0 | F62: =VLOOKUP($A62,Micronutrients,12,FALSE) -> 0 | G62: =(E62*VLOOKUP(A62,Micronutrients,11,FALSE)/D62)*C62 -> 0 | M62: None | N62: =VLOOKUP($M62,Micronutrients,14,FALSE) -> None | O62: =VLOOKUP($M62,Micronutrients,15,FALSE) -> 0 | P62: =VLOOKUP($M62,Micronutrients,13,FALSE) -> 1 | Q62: 0 | R62: =VLOOKUP($M62,Micronutrients,12,FALSE) -> 0 | S62: =(Q62*VLOOKUP(M62,Micronutrients,11,FALSE)/P62)*O62 -> 0 | Y62: None | Z62: =VLOOKUP(Y62,Micronutrients,14,FALSE) -> None | AA62: =VLOOKUP(Y62,Micronutrients,15,FALSE) -> 0 | AB62: =VLOOKUP(Y62,Micronutrients,13,FALSE) -> 1 | AC62: 0 | AD62: =VLOOKUP(Y62,Micronutrients,12,FALSE) -> 0 | AE62: =(AC62*VLOOKUP(Y62,Micronutrients,11,FALSE)/AB62)*AA62 -> 0
A64: Nitrogen Stabilizers (drop down menu) | M64: Nitrogen Stabilizers (drop down menu) | Y64: Nitrogen Stabilizers (drop down menu)
A65: None | B65: =VLOOKUP(A65,NitrogenStabilizers,14,FALSE) -> None | C65: =VLOOKUP(A65,NitrogenStabilizers,15,FALSE) -> 0 | D65: =VLOOKUP(A65,NitrogenStabilizers,13,FALSE) -> 1 | E65: 0 | F65: =VLOOKUP(A65,NitrogenStabilizers,12,FALSE) -> 0 | G65: =(E65*VLOOKUP(A65,NitrogenStabilizers,11,FALSE)/D65)*C65 -> 0 | M65: None | N65: =VLOOKUP(M65,NitrogenStabilizers,14,FALSE) -> None | O65: =VLOOKUP(M65,NitrogenStabilizers,15,FALSE) -> 0 | P65: =VLOOKUP(M65,NitrogenStabilizers,13,FALSE) -> 1 | Q65: 0 | R65: =VLOOKUP(M65,NitrogenStabilizers,12,FALSE) -> 0 | S65: =(Q65*VLOOKUP(M65,NitrogenStabilizers,11,FALSE)/P65)*O65 -> 0 | Y65: None | Z65: =VLOOKUP(Y65,NitrogenStabilizers,14,FALSE) -> None | AA65: =VLOOKUP(Y65,NitrogenStabilizers,15,FALSE) -> 0 | AB65: =VLOOKUP(Y65,NitrogenStabilizers,13,FALSE) -> 1 | AC65: 0 | AD65: =VLOOKUP(Y65,NitrogenStabilizers,12,FALSE) -> 0 | AE65: =(AC65*VLOOKUP(Y65,NitrogenStabilizers,11,FALSE)/AB65)*AA65 -> 0
A66: None | B66: =VLOOKUP(A66,NitrogenStabilizers,14,FALSE) -> None | C66: =VLOOKUP(A66,NitrogenStabilizers,15,FALSE) -> 0 | D66: =VLOOKUP(A66,NitrogenStabilizers,13,FALSE) -> 1 | E66: 0 | F66: =VLOOKUP(A66,NitrogenStabilizers,12,FALSE) -> 0 | G66: =(E66*VLOOKUP(A66,NitrogenStabilizers,11,FALSE)/D66)*C66 -> 0 | M66: None | N66: =VLOOKUP(M66,NitrogenStabilizers,14,FALSE) -> None | O66: =VLOOKUP(M66,NitrogenStabilizers,15,FALSE) -> 0 | P66: =VLOOKUP(M66,NitrogenStabilizers,13,FALSE) -> 1 | Q66: 0 | R66: =VLOOKUP(M66,NitrogenStabilizers,12,FALSE) -> 0 | S66: =(Q66*VLOOKUP(M66,NitrogenStabilizers,11,FALSE)/P66)*O66 -> 0 | Y66: None | Z66: =VLOOKUP(Y66,NitrogenStabilizers,14,FALSE) -> None | AA66: =VLOOKUP(Y66,NitrogenStabilizers,15,FALSE) -> 0 | AB66: =VLOOKUP(Y66,NitrogenStabilizers,13,FALSE) -> 1 | AC66: 0 | AD66: =VLOOKUP(Y66,NitrogenStabilizers,12,FALSE) -> 0 | AE66: =(AC66*VLOOKUP(Y66,NitrogenStabilizers,11,FALSE)/AB66)*AA66 -> 0
A67: 3rd Application Fertilizer Cost/Acre | G67: =SUM(G51:G66) -> 74.1125 | M67: 3rd Application Fertilizer Cost/Acre | S67: =SUM(S51:S66) -> 97.4275 | Y67: 3rd Application Fertilizer Cost/Acre | AE67: =SUM(AE51:AE66) -> 0
A69: Total Fertilizer Cost/Acre | G69: =G67+G46+G25 -> 223.46789 | M69: Total Fertilizer Cost/Acre | S69: =S67+S46+S25 -> 190.87189 | Y69: Total Fertilizer Cost/Acre | AE69: =AE67+AE46+AE25 -> 0
E71: Total Nutrient Needs | Q71: Total Nutrient Needs | AC71: Total Nutrient Needs
E72: Based on: | F72: Soil Test Based Recs | I72: Total Fertilizer Program | Q72: Based on: | R72: Nutrient Removal | U72: Total Fertilizer Program | AC72: Based on: | AD72: Nutrient Removal | AG72: Total Fertilizer Program
A73: Farm Name | E73: N | F73: P | G73: K | I73: N | J73: P | K73: K | M73: =A73 -> Farm Name | Q73: N | R73: P | S73: K | U73: N | V73: P | W73: K | Y73: =A73 -> Farm Name | AC73: N | AD73: P | AE73: K | AG73: N | AH73: P | AI73: K
A74: Farm Tract | E74: ='Nutrient Management'!B55 -> 111.6 | F74: ='Nutrient Management'!C55 -> 110 | G74: ='Nutrient Management'!D55 -> 63.6 | I74: =I51+I30+I6 -> 146.4556 | J74: =J51+J30+J6 -> 109.888 | K74: =K51+K30+K6 -> 64.8 | M74: =A74 -> Farm Tract | Q74: ='Nutrient Management'!B65 -> 141.6 | R74: ='Nutrient Management'!C65 -> 59 | S74: ='Nutrient Management'!D65 -> 42.6 | U74: =U51+U30+U6 -> 154.7356 | V74: =V51+V30+V6 -> 59.748 | W74: =W51+W30+W6 -> 43.2 | Y74: =A74 -> Farm Tract | AC74: ='Nutrient Management'!B65 -> 141.6 | AD74: ='Nutrient Management'!C65 -> 59 | AE74: ='Nutrient Management'!D65 -> 42.6 | AG74: =AG51+AG30+AG6 -> 0 | AH74: =AH51+AH30+AH6 -> 0 | AI74: =AI51+AI30+AI6 -> 0
A75: Farm Number | E75: S | F75: Ca | G75: Mg | I75: S | J75: Ca | K75: Mg | M75: Farm Number | Q75: S | R75: Ca | S75: Mg | U75: S | V75: Ca | W75: Mg | Y75: Farm Number | AC75: S | AD75: Ca | AE75: Mg | AG75: S | AH75: Ca | AI75: Mg
E76: ='Nutrient Management'!B58 -> 6.4 | F76: 0 | G76: 0 | I76: =I54+I33+I9 -> 8.4 | J76: =J54+J33+J9 -> 0 | K76: =K54+K33+K9 -> 0 | Q76: ='Nutrient Management'!B68 -> 8.4 | R76: 0 | S76: 0 | U76: =U54+U33+U9 -> 10.32 | V76: =V54+V33+V9 -> 0 | W76: =W54+W33+W9 -> 0 | AC76: ='Nutrient Management'!B68 -> 8.4 | AD76: 0 | AE76: 0 | AG76: =AG54+AG33+AG9 -> 0 | AH76: =AH54+AH33+AH9 -> 0 | AI76: =AI54+AI33+AI9 -> 0
E77: Zn | F77: B | G77: Mn | I77: Zn | J77: B | K77: Mn | Q77: Zn | R77: B | S77: Mn | U77: Zn | V77: B | W77: Mn | AC77: Zn | AD77: B | AE77: Mn | AG77: Zn | AH77: B | AI77: Mn
E78: 0 | F78: 0 | G78: 0 | I78: =I57+I36+I12 -> 0 | J78: =J57+J36+J12 -> 0 | K78: =K57+K36+K12 -> 0 | Q78: 0 | R78: 0 | S78: 0 | U78: =U57+U36+U12 -> 0 | V78: =V57+V36+V12 -> 0 | W78: =W57+W36+W12 -> 0 | AC78: 0 | AD78: 0 | AE78: 0 | AG78: =AG57+AG36+AG12 -> 0 | AH78: =AH57+AH36+AH12 -> 0 | AI78: =AI57+AI36+AI12 -> 0
E79: * from Nutrient Management tab | Q79: * from Nutrient Management tab | AC79: * from Nutrient Management tab

Sheet Fertilizer Plan (Soybean)
A1: Soybean | M1: Soybean | Y1: Soybean
A2: Comparison Plan 1 | M2: Comparison Plan 2 | Y2: Comparison Plan 3
A3: 1st Application (i.e., Pre-Plant or Broadcast Fertilizer) | M3: 1st Application (i.e., Pre-Plant or Broadcast Fertilizer) | Y3: 1st Application (i.e., Pre-Plant or Broadcast Fertilizer)
A4: Fertilizer Source | B4: Purchase Units | C4: Package Price (Gals, Lbs, etc.) | D4: Units/Pkg | E4: Rate/Acre | F4: Units | G4: Cost | M4: Fertilizer Source | N4: Purchase Units | O4: Package Price (Gals, Lbs, etc.) | P4: Units/Pkg | Q4: Rate/Acre | R4: Units | S4: Cost | Y4: Fertilizer Source | Z4: Purchase Units | AA4: Package Price (Gals, Lbs, etc.) | AB4: Units/Pkg | AC4: Rate/Acre | AD4: Units | AE4: Cost
A5: Macronutrients (drop down menu) | E5: (Enter Below) | I5: N | J5: P | K5: K | M5: Macronutrients (drop down menu) | Q5: (Enter Below) | U5: N | V5: P | W5: K | Y5: Macronutrients (drop down menu) | AC5: (Enter Below) | AG5: N | AH5: P | AI5: K
A6: Potash (0-0-60) | B6: =VLOOKUP(A6,Macronutrients,14,FALSE) -> Tons | C6: =VLOOKUP(A6,'Fertilizer Products & Pricing'!$A$4:$O$38,15,FALSE) -> 690 | D6: =VLOOKUP($A6,Macronutrients,13,FALSE) -> 2000 | E6: 275 | F6: =VLOOKUP($A6,Macronutrients,12,FALSE) -> lbs | G6: =(E6*VLOOKUP(A6,Macronutrients,11,FALSE)/D6)*C6 -> 94.875 | I6: =VLOOKUP(A6,'Fertilizer Products & Pricing'!$A$4:$O$38,2,FALSE)*E6+VLOOKUP(A7,'Fertilizer Products & Pricing'!$A$4:$O$38,2,FALSE)*E7+VLOOKUP(A8,'Fertilizer Products & Pricing'!$A$4:$O$38,2,FALSE)*E8+VLOOKUP(A9,'Fertilizer Products & Pricing'!$A$4:$O$38,2,FALSE)*E9+VLOOKUP(A10,'Fertilizer Products & Pricing'!$A$4:$O$38,2,FALSE)*E10+VLOOKUP(A11,'Fertilizer Products & Pricing'!$A$4:$O$38,2,FALSE)*E11+VLOOKUP(A14,'Fertilizer Products & Pricing'!$A$42:$O$55,2,FALSE)*E14+VLOOKUP(A15,'Fertilizer Products & Pricing'!$A$42:$O$55,2,FALSE)*E15+VLOOKUP(A16,'Fertilizer Products & Pricing'!$A$42:$O$55,2,FALSE)*E16+VLOOKUP(A17,'Fertilizer Products & Pricing'!$A$42:$O$55,2,FALSE)*E17 -> 5.25 | J6: =VLOOKUP(A6,'Fertilizer Products & Pricing'!$A$4:$O$38,3,FALSE)*E6+VLOOKUP(A7,'Fertilizer Products & Pricing'!$A$4:$O$38,3,FALSE)*E7+VLOOKUP(A8,'Fertilizer Products & Pricing'!$A$4:$O$38,3,FALSE)*E8+VLOOKUP(A9,'Fertilizer Products & Pricing'!$A$4:$O$38,3,FALSE)*E9+VLOOKUP(A10,'Fertilizer Products & Pricing'!$A$4:$O$38,3,FALSE)*E10+VLOOKUP(A11,'Fertilizer Products & Pricing'!$A$4:$O$38,3,FALSE)*E11+VLOOKUP(A14,'Fertilizer Products & Pricing'!$A$42:$O$55,3,FALSE)*E14+VLOOKUP(A15,'Fertilizer Products & Pricing'!$A$42:$O$55,3,FALSE)*E15+VLOOKUP(A16,'Fertilizer Products & Pricing'!$A$42:$O$55,3,FALSE)*E16+VLOOKUP(A17,'Fertilizer Products & Pricing'!$A$42:$O$55,3,FALSE)*E17 -> 0 | K6: =VLOOKUP(A6,'Fertilizer Products & Pricing'!$A$4:$O$38,4,FALSE)*E6+VLOOKUP(A7,'Fertilizer Products & Pricing'!$A$4:$O$38,4,FALSE)*E7+VLOOKUP(A8,'Fertilizer Products & Pricing'!$A$4:$O$38,4,FALSE)*E8+VLOOKUP(A9,'Fertilizer Products & Pricing'!$A$4:$O$38,4,FALSE)*E9+VLOOKUP(A10,'Fertilizer Products & Pricing'!$A$4:$O$38,4,FALSE)*E10+VLOOKUP(A11,'Fertilizer Products & Pricing'!$A$4:$O$38,4,FALSE)*E11+VLOOKUP(A14,'Fertilizer Products & Pricing'!$A$42:$O$55,4,FALSE)*E14+VLOOKUP(A15,'Fertilizer Products & Pricing'!$A$42:$O$55,4,FALSE)*E15+VLOOKUP(A16,'Fertilizer Products & Pricing'!$A$42:$O$55,4,FALSE)*E16+VLOOKUP(A17,'Fertilizer Products & Pricing'!$A$42:$O$55,4,FALSE)*E17 -> 165 | M6: None | N6: =VLOOKUP(M6,Macronutrients,14,FALSE) -> None | O6: =VLOOKUP(M6,'Fertilizer Products & Pricing'!$A$4:$O$38,15,FALSE) -> 0 | P6: =VLOOKUP($M6,Macronutrients,13,FALSE) -> 1 | Q6: 0 | R6: =VLOOKUP($M6,Macronutrients,12,FALSE) -> 0 | S6: =(Q6*VLOOKUP(M6,Macronutrients,11,FALSE)/P6)*O6 -> 0 | U6: =VLOOKUP(M6,'Fertilizer Products & Pricing'!$A$4:$O$38,2,FALSE)*Q6+VLOOKUP(M7,'Fertilizer Products & Pricing'!$A$4:$O$38,2,FALSE)*Q7+VLOOKUP(M8,'Fertilizer Products & Pricing'!$A$4:$O$38,2,FALSE)*Q8+VLOOKUP(M9,'Fertilizer Products & Pricing'!$A$4:$O$38,2,FALSE)*Q9+VLOOKUP(M10,'Fertilizer Products & Pricing'!$A$4:$O$38,2,FALSE)*Q10+VLOOKUP(M11,'Fertilizer Products & Pricing'!$A$4:$O$38,2,FALSE)*Q11+VLOOKUP(M14,'Fertilizer Products & Pricing'!$A$42:$O$55,2,FALSE)*Q14+VLOOKUP(M15,'Fertilizer Products & Pricing'!$A$42:$O$55,2,FALSE)*Q15+VLOOKUP(M16,'Fertilizer Products & Pricing'!$A$42:$O$55,2,FALSE)*Q16+VLOOKUP(M17,'Fertilizer Products & Pricing'!$A$42:$O$55,2,FALSE)*Q17+VLOOKUP($M20,'Fertilizer Products & Pricing'!$A$59:$O$67,2,FALSE)*Q20 -> 0 | V6: =VLOOKUP(M6,'Fertilizer Products & Pricing'!$A$4:$O$38,3,FALSE)*Q6+VLOOKUP(M7,'Fertilizer Products & Pricing'!$A$4:$O$38,3,FALSE)*Q7+VLOOKUP(M8,'Fertilizer Products & Pricing'!$A$4:$O$38,3,FALSE)*Q8+VLOOKUP(M9,'Fertilizer Products & Pricing'!$A$4:$O$38,3,FALSE)*Q9+VLOOKUP(M10,'Fertilizer Products & Pricing'!$A$4:$O$38,3,FALSE)*Q10+VLOOKUP(M11,'Fertilizer Products & Pricing'!$A$4:$O$38,3,FALSE)*Q11+VLOOKUP(M14,'Fertilizer Products & Pricing'!$A$42:$O$55,3,FALSE)*Q14+VLOOKUP(M15,'Fertilizer Products & Pricing'!$A$42:$O$55,3,FALSE)*Q15+VLOOKUP(M16,'Fertilizer Products & Pricing'!$A$42:$O$55,3,FALSE)*Q16+VLOOKUP(M17,'Fertilizer Products & Pricing'!$A$42:$O$55,3,FALSE)*Q17+VLOOKUP($M20,'Fertilizer Products & Pricing'!$A$59:$O$67,2,FALSE)*Q20 -> 0 | W6: =VLOOKUP(M6,'Fertilizer Products & Pricing'!$A$4:$O$38,4,FALSE)*Q6+VLOOKUP(M7,'Fertilizer Products & Pricing'!$A$4:$O$38,4,FALSE)*Q7+VLOOKUP(M8,'Fertilizer Products & Pricing'!$A$4:$O$38,4,FALSE)*Q8+VLOOKUP(M9,'Fertilizer Products & Pricing'!$A$4:$O$38,4,FALSE)*Q9+VLOOKUP(M10,'Fertilizer Products & Pricing'!$A$4:$O$38,4,FALSE)*Q10+VLOOKUP(M11,'Fertilizer Products & Pricing'!$A$4:$O$38,4,FALSE)*Q11+VLOOKUP(M14,'Fertilizer Products & Pricing'!$A$42:$O$55,4,FALSE)*Q14+VLOOKUP(M15,'Fertilizer Products & Pricing'!$A$42:$O$55,4,FALSE)*Q15+VLOOKUP(M16,'Fertilizer Products & Pricing'!$A$42:$O$55,4,FALSE)*Q16+VLOOKUP(M17,'Fertilizer Products & Pricing'!$A$42:$O$55,4,FALSE)*Q17+VLOOKUP($M20,'Fertilizer Products & Pricing'!$A$59:$O$67,2,FALSE)*Q20 -> 0 | Y6: None | Z6: =VLOOKUP(Y6,Macronutrients,14,FALSE) -> None | AA6: =VLOOKUP(Y6,'Fertilizer Products & Pricing'!$A$4:$O$38,15,FALSE) -> 0 | AB6: =VLOOKUP($Y6,Macronutrients,13,FALSE) -> 1 | AC6: 0 | AD6: =VLOOKUP(Y6,Macronutrients,12,FALSE) -> 0 | AE6: =(AC6*VLOOKUP(Y6,Macronutrients,11,FALSE)/AB6)*AA6 -> 0 | AG6: =VLOOKUP(Y6,'Fertilizer Products & Pricing'!$A$4:$O$38,2,FALSE)*AC6+VLOOKUP(Y7,'Fertilizer Products & Pricing'!$A$4:$O$38,2,FALSE)*AC7+VLOOKUP(Y8,'Fertilizer Products & Pricing'!$A$4:$O$38,2,FALSE)*AC8+VLOOKUP(Y9,'Fertilizer Products & Pricing'!$A$4:$O$38,2,FALSE)*AC9+VLOOKUP(Y10,'Fertilizer Products & Pricing'!$A$4:$O$38,2,FALSE)*AC10+VLOOKUP(Y11,'Fertilizer Products & Pricing'!$A$4:$O$38,2,FALSE)*AC11+VLOOKUP(Y14,'Fertilizer Products & Pricing'!$A$42:$O$55,2,FALSE)*AC14+VLOOKUP(Y15,'Fertilizer Products & Pricing'!$A$42:$O$55,2,FALSE)*AC15+VLOOKUP(Y16,'Fertilizer Products & Pricing'!$A$42:$O$55,2,FALSE)*AC16+VLOOKUP(Y17,'Fertilizer Products & Pricing'!$A$42:$O$55,2,FALSE)*AC17+VLOOKUP($Y20,'Fertilizer Products & Pricing'!$A$59:$O$67,2,FALSE)*AC20 -> 0 | AH6: =VLOOKUP(Y6,'Fertilizer Products & Pricing'!$A$4:$O$38,3,FALSE)*AC6+VLOOKUP(Y7,'Fertilizer Products & Pricing'!$A$4:$O$38,3,FALSE)*AC7+VLOOKUP(Y8,'Fertilizer Products & Pricing'!$A$4:$O$38,3,FALSE)*AC8+VLOOKUP(Y9,'Fertilizer Products & Pricing'!$A$4:$O$38,3,FALSE)*AC9+VLOOKUP(Y10,'Fertilizer Products & Pricing'!$A$4:$O$38,3,FALSE)*AC10+VLOOKUP(Y11,'Fertilizer Products & Pricing'!$A$4:$O$38,3,FALSE)*AC11+VLOOKUP(Y14,'Fertilizer Products & Pricing'!$A$42:$O$55,3,FALSE)*AC14+VLOOKUP(Y15,'Fertilizer Products & Pricing'!$A$42:$O$55,3,FALSE)*AC15+VLOOKUP(Y16,'Fertilizer Products & Pricing'!$A$42:$O$55,3,FALSE)*AC16+VLOOKUP(Y17,'Fertilizer Products & Pricing'!$A$42:$O$55,3,FALSE)*AC17+VLOOKUP($Y20,'Fertilizer Products & Pricing'!$A$59:$O$67,2,FALSE)*AC20 -> 0 | AI6: =VLOOKUP(Y6,'Fertilizer Products & Pricing'!$A$4:$O$38,4,FALSE)*AC6+VLOOKUP(Y7,'Fertilizer Products & Pricing'!$A$4:$O$38,4,FALSE)*AC7+VLOOKUP(Y8,'Fertilizer Products & Pricing'!$A$4:$O$38,4,FALSE)*AC8+VLOOKUP(Y9,'Fertilizer Products & Pricing'!$A$4:$O$38,4,FALSE)*AC9+VLOOKUP(Y10,'Fertilizer Products & Pricing'!$A$4:$O$38,4,FALSE)*AC10+VLOOKUP(Y11,'Fertilizer Products & Pricing'!$A$4:$O$38,4,FALSE)*AC11+VLOOKUP(Y14,'Fertilizer Products & Pricing'!$A$42:$O$55,4,FALSE)*AC14+VLOOKUP(Y15,'Fertilizer Products & Pricing'!$A$42:$O$55,4,FALSE)*AC15+VLOOKUP(Y16,'Fertilizer Products & Pricing'!$A$42:$O$55,4,FALSE)*AC16+VLOOKUP(Y17,'Fertilizer Products & Pricing'!$A$42:$O$55,4,FALSE)*AC17+VLOOKUP($Y20,'Fertilizer Products & Pricing'!$A$59:$O$67,2,FALSE)*AC20 -> 0
A7: AMS (21-0-0-24S) | B7: Tons | C7: =VLOOKUP(A7,'Fertilizer Products & Pricing'!$A$4:$O$38,15,FALSE) -> 485 | D7: 2000 | E7: 25 | F7: lbs | G7: 6.0625 | M7: None | N7: None | O7: =VLOOKUP(M7,'Fertilizer Products & Pricing'!$A$4:$O$38,15,FALSE) -> 0 | P7: 1 | Q7: 0 | R7: 0 | S7: =(Q7*VLOOKUP(M7,Macronutrients,11,FALSE)/P7)*O7 -> 0 | Y7: None | Z7: None | AA7: =VLOOKUP(Y7,'Fertilizer Products & Pricing'!$A$4:$O$38,15,FALSE) -> 0 | AB7: 1 | AC7: 0 | AD7: 0 | AE7: =(AC7*VLOOKUP(Y7,Macronutrients,11,FALSE)/AB7)*AA7 -> 0
A8: None | B8: None | C8: =VLOOKUP(A8,'Fertilizer Products & Pricing'!$A$4:$O$38,15,FALSE) -> 0 | D8: 1 | E8: 0 | F8: 0 | G8: 0 | I8: S | J8: Ca | K8: Mg | M8: None | N8: None | O8: =VLOOKUP(M8,'Fertilizer Products & Pricing'!$A$4:$O$38,15,FALSE) -> 0 | P8: 1 | Q8: 0 | R8: 0 | S8: 0 | U8: S | V8: Ca | W8: Mg | Y8: None | Z8: None | AA8: =VLOOKUP(Y8,'Fertilizer Products & Pricing'!$A$4:$O$38,15,FALSE) -> 0 | AB8: 1 | AC8: 0 | AD8: 0 | AE8: 0 | AG8: S | AH8: Ca | AI8: Mg
A9: None | B9: None | C9: =VLOOKUP(A9,'Fertilizer Products & Pricing'!$A$4:$O$38,15,FALSE) -> 0 | D9: 1 | E9: 0 | F9: 0 | G9: 0 | I9: =VLOOKUP($A6,'Fertilizer Products & Pricing'!$A$4:$O$38,5,FALSE)*E6+VLOOKUP($A7,'Fertilizer Products & Pricing'!$A$4:$O$38,5,FALSE)*E7+VLOOKUP($A8,'Fertilizer Products & Pricing'!$A$4:$O$38,5,FALSE)*E8+VLOOKUP($A9,'Fertilizer Products & Pricing'!$A$4:$O$38,5,FALSE)*E9+VLOOKUP($A10,'Fertilizer Products & Pricing'!$A$4:$O$38,5,FALSE)*E10+VLOOKUP($A11,'Fertilizer Products & Pricing'!$A$4:$O$38,5,FALSE)*E11+VLOOKUP($A14,'Fertilizer Products & Pricing'!$A$42:$O$55,5,FALSE)*E14+VLOOKUP(A15,'Fertilizer Products & Pricing'!$A$42:$O$55,5,FALSE)*E15+VLOOKUP($A16,'Fertilizer Products & Pricing'!$A$42:$O$55,5,FALSE)*E16+VLOOKUP($A17,'Fertilizer Products & Pricing'!$A$42:$O$55,5,FALSE)*E17 -> 6 | J9: =VLOOKUP($A6,'Fertilizer Products & Pricing'!$A$4:$O$38,7,FALSE)*$E$6+VLOOKUP($A7,'Fertilizer Products & Pricing'!$A$4:$O$38,7,FALSE)*$E$7+VLOOKUP($A8,'Fertilizer Products & Pricing'!$A$4:$O$38,7,FALSE)*$E$8+VLOOKUP($A9,'Fertilizer Products & Pricing'!$A$4:$O$38,7,FALSE)*$E$9+VLOOKUP($A10,'Fertilizer Products & Pricing'!$A$4:$O$38,7,FALSE)*$E$10+VLOOKUP($A11,'Fertilizer Products & Pricing'!$A$4:$O$38,7,FALSE)*$E$11+VLOOKUP($A14,'Fertilizer Products & Pricing'!$A$42:$O$55,7,FALSE)*$E$14+VLOOKUP($A15,'Fertilizer Products & Pricing'!$A$42:$O$55,7,FALSE)*E15+VLOOKUP($A16,'Fertilizer Products & Pricing'!$A$42:$O$55,7,FALSE)*$E$16+VLOOKUP($A17,'Fertilizer Products & Pricing'!$A$42:$O$55,7,FALSE)*$E$17+VLOOKUP($A20,'Fertilizer Products & Pricing'!$A$59:$O$67,7,FALSE)*E20 -> 0 | K9: =VLOOKUP($A6,'Fertilizer Products & Pricing'!$A$4:$O$38,6,FALSE)*$E$6+VLOOKUP($A7,'Fertilizer Products & Pricing'!$A$4:$O$38,6,FALSE)*$E$7+VLOOKUP($A8,'Fertilizer Products & Pricing'!$A$4:$O$38,6,FALSE)*$E$8+VLOOKUP($A9,'Fertilizer Products & Pricing'!$A$4:$O$38,6,FALSE)*$E$9+VLOOKUP($A10,'Fertilizer Products & Pricing'!$A$4:$O$38,6,FALSE)*$E$10+VLOOKUP($A11,'Fertilizer Products & Pricing'!$A$4:$O$38,6,FALSE)*$E$11+VLOOKUP($A14,'Fertilizer Products & Pricing'!$A$42:$O$55,6,FALSE)*$E$14+VLOOKUP($A15,'Fertilizer Products & Pricing'!$A$42:$O$55,6,FALSE)*$E$15+VLOOKUP($A16,'Fertilizer Products & Pricing'!$A$42:$O$55,6,FALSE)*$E$16+VLOOKUP(A$17,'Fertilizer Products & Pricing'!$A$42:$O$55,6,FALSE)*$E$17+VLOOKUP($A20,'Fertilizer Products & Pricing'!$A$59:$O$67,6,FALSE)*E20 -> 0 | M9: None | N9: None | O9: =VLOOKUP(M9,'Fertilizer Products & Pricing'!$A$4:$O$38,15,FALSE) -> 0 | P9: 1 | Q9: 0 | R9: 0 | S9: 0 | U9: =VLOOKUP($M6,'Fertilizer Products & Pricing'!$A$4:$O$38,5,FALSE)*Q6+VLOOKUP($M7,'Fertilizer Products & Pricing'!$A$4:$O$38,5,FALSE)*Q7+VLOOKUP($M8,'Fertilizer Products & Pricing'!$A$4:$O$38,5,FALSE)*Q8+VLOOKUP($M9,'Fertilizer Products & Pricing'!$A$4:$O$38,5,FALSE)*Q9+VLOOKUP($M10,'Fertilizer Products & Pricing'!$A$4:$O$38,5,FALSE)*Q10+VLOOKUP($M11,'Fertilizer Products & Pricing'!$A$4:$O$38,5,FALSE)*Q11+VLOOKUP($M14,'Fertilizer Products & Pricing'!$A$42:$O$55,5,FALSE)*Q14+VLOOKUP(M15,'Fertilizer Products & Pricing'!$A$42:$O$55,5,FALSE)*Q15+VLOOKUP($M16,'Fertilizer Products & Pricing'!$A$42:$O$55,5,FALSE)*Q16+VLOOKUP($M17,'Fertilizer Products & Pricing'!$A$42:$O$55,5,FALSE)*Q17+VLOOKUP($M20,'Fertilizer Products & Pricing'!$A$59:$O$67,2,FALSE)*Q20 -> 0 | V9: =VLOOKUP($M6,'Fertilizer Products & Pricing'!$A$4:$O$38,7,FALSE)*$Q$6+VLOOKUP($M7,'Fertilizer Products & Pricing'!$A$4:$O$38,7,FALSE)*$Q$7+VLOOKUP($M8,'Fertilizer Products & Pricing'!$A$4:$O$38,7,FALSE)*$Q$8+VLOOKUP($M9,'Fertilizer Products & Pricing'!$A$4:$O$38,7,FALSE)*$Q$9+VLOOKUP($M10,'Fertilizer Products & Pricing'!$A$4:$O$38,7,FALSE)*$Q$10+VLOOKUP($M11,'Fertilizer Products & Pricing'!$A$4:$O$38,7,FALSE)*$Q$11+VLOOKUP($M14,'Fertilizer Products & Pricing'!$A$42:$O$55,7,FALSE)*$Q$14+VLOOKUP($M15,'Fertilizer Products & Pricing'!$A$42:$O$55,7,FALSE)*Q15+VLOOKUP($M16,'Fertilizer Products & Pricing'!$A$42:$O$55,7,FALSE)*$Q$16+VLOOKUP($M17,'Fertilizer Products & Pricing'!$A$42:$O$55,7,FALSE)*$Q$17+VLOOKUP($M20,'Fertilizer Products & Pricing'!$A$59:$O$67,7,FALSE)*Q20 -> 0 | W9: =VLOOKUP($M6,'Fertilizer Products & Pricing'!$A$4:$O$38,6,FALSE)*$Q$6+VLOOKUP($M7,'Fertilizer Products & Pricing'!$A$4:$O$38,6,FALSE)*$Q$7+VLOOKUP($M8,'Fertilizer Products & Pricing'!$A$4:$O$38,6,FALSE)*$Q$8+VLOOKUP($M9,'Fertilizer Products & Pricing'!$A$4:$O$38,6,FALSE)*$Q$9+VLOOKUP($M10,'Fertilizer Products & Pricing'!$A$4:$O$38,6,FALSE)*$Q$10+VLOOKUP($M11,'Fertilizer Products & Pricing'!$A$4:$O$38,6,FALSE)*$Q$11+VLOOKUP($M14,'Fertilizer Products & Pricing'!$A$42:$O$55,6,FALSE)*$Q$14+VLOOKUP($M15,'Fertilizer Products & Pricing'!$A$42:$O$55,6,FALSE)*$Q$15+VLOOKUP($M16,'Fertilizer Products & Pricing'!$A$42:$O$55,6,FALSE)*$Q$16+VLOOKUP(M$17,'Fertilizer Products & Pricing'!$A$42:$O$55,6,FALSE)*$Q$17+VLOOKUP($M20,'Fertilizer Products & Pricing'!$A$59:$O$67,6,FALSE)*Q20 -> 0 | Y9: None | Z9: None | AA9: =VLOOKUP(Y9,'Fertilizer Products & Pricing'!$A$4:$O$38,15,FALSE) -> 0 | AB9: 1 | AC9: 0 | AD9: 0 | AE9: 0 | AG9: =VLOOKUP($Y6,'Fertilizer Products & Pricing'!$A$4:$O$38,5,FALSE)*AC6+VLOOKUP($Y7,'Fertilizer Products & Pricing'!$A$4:$O$38,5,FALSE)*AC7+VLOOKUP($Y8,'Fertilizer Products & Pricing'!$A$4:$O$38,5,FALSE)*AC8+VLOOKUP($Y9,'Fertilizer Products & Pricing'!$A$4:$O$38,5,FALSE)*AC9+VLOOKUP($Y10,'Fertilizer Products & Pricing'!$A$4:$O$38,5,FALSE)*AC10+VLOOKUP($Y11,'Fertilizer Products & Pricing'!$A$4:$O$38,5,FALSE)*AC11+VLOOKUP($Y14,'Fertilizer Products & Pricing'!$A$42:$O$55,5,FALSE)*AC14+VLOOKUP(Y15,'Fertilizer Products & Pricing'!$A$42:$O$55,5,FALSE)*AC15+VLOOKUP($Y16,'Fertilizer Products & Pricing'!$A$42:$O$55,5,FALSE)*AC16+VLOOKUP($Y17,'Fertilizer Products & Pricing'!$A$42:$O$55,5,FALSE)*AC17+VLOOKUP($Y20,'Fertilizer Products & Pricing'!$A$59:$O$67,2,FALSE)*AC20 -> 0 | AH9: =VLOOKUP($Y6,'Fertilizer Products & Pricing'!$A$4:$O$38,7,FALSE)*$AC$6+VLOOKUP($Y7,'Fertilizer Products & Pricing'!$A$4:$O$38,7,FALSE)*$AC$7+VLOOKUP($Y8,'Fertilizer Products & Pricing'!$A$4:$O$38,7,FALSE)*$AC$8+VLOOKUP($Y9,'Fertilizer Products & Pricing'!$A$4:$O$38,7,FALSE)*$AC$9+VLOOKUP($Y10,'Fertilizer Products & Pricing'!$A$4:$O$38,7,FALSE)*$AC$10+VLOOKUP($Y11,'Fertilizer Products & Pricing'!$A$4:$O$38,7,FALSE)*$AC$11+VLOOKUP($Y14,'Fertilizer Products & Pricing'!$A$42:$O$55,7,FALSE)*$AC$14+VLOOKUP($Y15,'Fertilizer Products & Pricing'!$A$42:$O$55,7,FALSE)*AC15+VLOOKUP($Y16,'Fertilizer Products & Pricing'!$A$42:$O$55,7,FALSE)*$AC$16+VLOOKUP($Y17,'Fertilizer Products & Pricing'!$A$42:$O$55,7,FALSE)*$AC$17+VLOOKUP($Y20,'Fertilizer Products & Pricing'!$A$59:$O$67,7,FALSE)*AC20 -> 0 | AI9: =VLOOKUP($Y6,'Fertilizer Products & Pricing'!$A$4:$O$38,6,FALSE)*$AC$6+VLOOKUP($Y7,'Fertilizer Products & Pricing'!$A$4:$O$38,6,FALSE)*$AC$7+VLOOKUP($Y8,'Fertilizer Products & Pricing'!$A$4:$O$38,6,FALSE)*$AC$8+VLOOKUP($Y9,'Fertilizer Products & Pricing'!$A$4:$O$38,6,FALSE)*$AC$9+VLOOKUP($Y10,'Fertilizer Products & Pricing'!$A$4:$O$38,6,FALSE)*$AC$10+VLOOKUP($Y11,'Fertilizer Products & Pricing'!$A$4:$O$38,6,FALSE)*$AC$11+VLOOKUP($Y14,'Fertilizer Products & Pricing'!$A$42:$O$55,6,FALSE)*$AC$14+VLOOKUP($Y15,'Fertilizer Products & Pricing'!$A$42:$O$55,6,FALSE)*$AC$15+VLOOKUP($Y16,'Fertilizer Products & Pricing'!$A$42:$O$55,6,FALSE)*$AC$16+VLOOKUP(Y$17,'Fertilizer Products & Pricing'!$A$42:$O$55,6,FALSE)*$AC$17+VLOOKUP($Y20,'Fertilizer Products & Pricing'!$A$59:$O$67,6,FALSE)*AC20 -> 0
A10: None | B10: None | C10: =VLOOKUP(A10,'Fertilizer Products & Pricing'!$A$4:$O$38,15,FALSE) -> 0 | D10: 1 | E10: 0 | F10: 0 | G10: 0 | M10: None | N10: None | O10: =VLOOKUP(M10,'Fertilizer Products & Pricing'!$A$4:$O$38,15,FALSE) -> 0 | P10: 1 | Q10: 0 | R10: 0 | S10: 0 | Y10: None | Z10: None | AA10: =VLOOKUP(Y10,'Fertilizer Products & Pricing'!$A$4:$O$38,15,FALSE) -> 0 | AB10: 1 | AC10: 0 | AD10: 0 | AE10: 0
A11: None | B11: None | C11: =VLOOKUP(A11,'Fertilizer Products & Pricing'!$A$4:$O$38,15,FALSE) -> 0 | D11: 1 | E11: 0 | F11: 0 | G11: 0 | I11: Zn | J11: B | K11: Mn | M11: None | N11: None | O11: =VLOOKUP(M11,'Fertilizer Products & Pricing'!$A$4:$O$38,15,FALSE) -> 0 | P11: 1 | Q11: 0 | R11: 0 | S11: 0 | U11: Zn | V11: B | W11: Mn | Y11: None | Z11: None | AA11: =VLOOKUP(Y11,'Fertilizer Products & Pricing'!$A$4:$O$38,15,FALSE) -> 0 | AB11: 1 | AC11: 0 | AD11: 0 | AE11: 0 | AG11: Zn | AH11: B | AI11: Mn
I12: =VLOOKUP($A$15,'Fertilizer Products & Pricing'!$A$42:$O$55,8,FALSE)*$E$15+VLOOKUP($A$16,'Fertilizer Products & Pricing'!$A$42:$O$55,8,FALSE)*$E$16+VLOOKUP($A$17,'Fertilizer Products & Pricing'!$A$42:$O$55,8,FALSE)*$E$17+VLOOKUP($A$14,'Fertilizer Products & Pricing'!$A$42:$O$55,8,FALSE)*$E$14+VLOOKUP($A20,'Fertilizer Products & Pricing'!$A$59:$O$67,2,FALSE)*E20 -> 0 | J12: =VLOOKUP($A$15,'Fertilizer Products & Pricing'!$A$42:$O$55,9,FALSE)*$E$15+VLOOKUP($A$16,'Fertilizer Products & Pricing'!$A$42:$O$55,9,FALSE)*$E$16+VLOOKUP($A$17,'Fertilizer Products & Pricing'!$A$42:$O$55,9,FALSE)*$E$17+VLOOKUP($A$14,'Fertilizer Products & Pricing'!$A$42:$O$55,9,FALSE)*$E$14+VLOOKUP($A20,'Fertilizer Products & Pricing'!$A$59:$O$67,2,FALSE)*E20 -> 0 | K12: =VLOOKUP($A$15,'Fertilizer Products & Pricing'!$A$42:$O$55,10,FALSE)*$E$15+VLOOKUP($A$16,'Fertilizer Products & Pricing'!$A$42:$O$55,10,FALSE)*$E$16+VLOOKUP($A$17,'Fertilizer Products & Pricing'!$A$42:$O$55,10,FALSE)*$E$17+VLOOKUP($A$14,'Fertilizer Products & Pricing'!$A$42:$O$55,10,FALSE)*$E$14+VLOOKUP($A20,'Fertilizer Products & Pricing'!$A$59:$O$67,2,FALSE)*E20 -> 0 | U12: =VLOOKUP($M15,'Fertilizer Products & Pricing'!$A$42:$O$55,8,FALSE)*$Q15+VLOOKUP($M16,'Fertilizer Products & Pricing'!$A$42:$O$55,8,FALSE)*$Q16+VLOOKUP($M17,'Fertilizer Products & Pricing'!$A$42:$O$55,8,FALSE)*$Q17+VLOOKUP($M14,'Fertilizer Products & Pricing'!$A$42:$O$55,8,FALSE)*$Q14+VLOOKUP($M20,'Fertilizer Products & Pricing'!$A$59:$O$67,2,FALSE)*Q20 -> 0 | V12: =VLOOKUP($M15,'Fertilizer Products & Pricing'!$A$42:$O$55,9,FALSE)*$Q15+VLOOKUP($M16,'Fertilizer Products & Pricing'!$A$42:$O$55,9,FALSE)*$Q16+VLOOKUP($M17,'Fertilizer Products & Pricing'!$A$42:$O$55,9,FALSE)*$Q17+VLOOKUP($M14,'Fertilizer Products & Pricing'!$A$42:$O$55,9,FALSE)*$Q14+VLOOKUP($M20,'Fertilizer Products & Pricing'!$A$59:$O$67,2,FALSE)*Q20 -> 0 | W12: =VLOOKUP($M15,'Fertilizer Products & Pricing'!$A$42:$O$55,10,FALSE)*$Q15+VLOOKUP($M16,'Fertilizer Products & Pricing'!$A$42:$O$55,10,FALSE)*$Q16+VLOOKUP($M17,'Fertilizer Products & Pricing'!$A$42:$O$55,10,FALSE)*$Q17+VLOOKUP($M14,'Fertilizer Products & Pricing'!$A$42:$O$55,10,FALSE)*$Q14+VLOOKUP($M20,'Fertilizer Products & Pricing'!$A$59:$O$67,2,FALSE)*Q20 -> 0 | AG12: =VLOOKUP($Y15,'Fertilizer Products & Pricing'!$A$42:$O$55,8,FALSE)*$AC15+VLOOKUP($Y16,'Fertilizer Products & Pricing'!$A$42:$O$55,8,FALSE)*$AC16+VLOOKUP($Y17,'Fertilizer Products & Pricing'!$A$42:$O$55,8,FALSE)*$AC17+VLOOKUP($Y14,'Fertilizer Products & Pricing'!$A$42:$O$55,8,FALSE)*$AC14+VLOOKUP($Y20,'Fertilizer Products & Pricing'!$A$59:$O$67,2,FALSE)*AC20 -> 0 | AH12: =VLOOKUP($Y15,'Fertilizer Products & Pricing'!$A$42:$O$55,9,FALSE)*$AC15+VLOOKUP($Y16,'Fertilizer Products & Pricing'!$A$42:$O$55,9,FALSE)*$AC16+VLOOKUP($Y17,'Fertilizer Products & Pricing'!$A$42:$O$55,9,FALSE)*$AC17+VLOOKUP($Y14,'Fertilizer Products & Pricing'!$A$42:$O$55,9,FALSE)*$AC14+VLOOKUP($Y20,'Fertilizer Products & Pricing'!$A$59:$O$67,2,FALSE)*AC20 -> 0 | AI12: =VLOOKUP($Y15,'Fertilizer Products & Pricing'!$A$42:$O$55,10,FALSE)*$AC15+VLOOKUP($Y16,'Fertilizer Products & Pricing'!$A$42:$O$55,10,FALSE)*$AC16+VLOOKUP($Y17,'Fertilizer Products & Pricing'!$A$42:$O$55,10,FALSE)*$AC17+VLOOKUP($Y14,'Fertilizer Products & Pricing'!$A$42:$O$55,10,FALSE)*$AC14+VLOOKUP($Y20,'Fertilizer Products & Pricing'!$A$59:$O$67,2,FALSE)*AC20 -> 0
A13: Micronutrients (drop down menu) | M13: Micronutrients (drop down menu) | Y13: Micronutrients (drop down menu)
A14: None | B14: =VLOOKUP($A14,Micronutrients,14,FALSE) -> None | C14: =VLOOKUP($A14,Micronutrients,15,FALSE) -> 0 | D14: =VLOOKUP($A14,Micronutrients,13,FALSE) -> 1 | E14: 0 | F14: =VLOOKUP($A14,Micronutrients,12,FALSE) -> 0 | G14: =(E14*VLOOKUP(A14,Micronutrients,11,FALSE)/D14)*C14 -> 0 | I14: *Note: For this crop, Nitrogen applied in Pre-Plant applications are not considered to be accessible to meeting the plant's nutritional needs | M14: None | N14: =VLOOKUP(M14,Micronutrients,14,FALSE) -> None | O14: =VLOOKUP(M14,Micronutrients,15,FALSE) -> 0 | P14: =VLOOKUP(M14,Micronutrients,13,FALSE) -> 1 | Q14: 0 | R14: =VLOOKUP(M14,Micronutrients,12,FALSE) -> 0 | S14: =(Q14*VLOOKUP(M14,Micronutrients,11,FALSE)/P14)*O14 -> 0 | U14: *Note: For this crop, Nitrogen applied in Pre-Plant applications are not considered to be accessible to meeting the plant's nutritional needs | Y14: None | Z14: =VLOOKUP(Y14,Micronutrients,14,FALSE) -> None | AA14: =VLOOKUP(Y14,Micronutrients,15,FALSE) -> 0 | AB14: =VLOOKUP(Y14,Micronutrients,13,FALSE) -> 1 | AC14: 0 | AD14: =VLOOKUP(Y14,Micronutrients,12,FALSE) -> 0 | AE14: =(AC14*VLOOKUP(Y14,Micronutrients,11,FALSE)/AB14)*AA14 -> 0 | AG14: *Note: For this crop, Nitrogen applied in Pre-Plant applications are not considered to be accessible to meeting the plant's nutritional needs
A15: None | B15: =VLOOKUP($A15,Micronutrients,14,FALSE) -> None | C15: =VLOOKUP($A15,Micronutrients,15,FALSE) -> 0 | D15: =VLOOKUP($A15,Micronutrients,13,FALSE) -> 1 | E15: 0 | F15: =VLOOKUP($A15,Micronutrients,12,FALSE) -> 0 | G15: =(E15*VLOOKUP(A15,Micronutrients,11,FALSE)/D15)*C15 -> 0 | M15: None | N15: =VLOOKUP(M15,Micronutrients,14,FALSE) -> None | O15: =VLOOKUP(M15,Micronutrients,15,FALSE) -> 0 | P15: =VLOOKUP(M15,Micronutrients,13,FALSE) -> 1 | Q15: 0 | R15: =VLOOKUP(M15,Micronutrients,12,FALSE) -> 0 | S15: =(Q15*VLOOKUP(M15,Micronutrients,11,FALSE)/P15)*O15 -> 0 | Y15: None | Z15: =VLOOKUP(Y15,Micronutrients,14,FALSE) -> None | AA15: =VLOOKUP(Y15,Micronutrients,15,FALSE) -> 0 | AB15: =VLOOKUP(Y15,Micronutrients,13,FALSE) -> 1 | AC15: 0 | AD15: =VLOOKUP(Y15,Micronutrients,12,FALSE) -> 0 | AE15: =(AC15*VLOOKUP(Y15,Micronutrients,11,FALSE)/AB15)*AA15 -> 0
A16: None | B16: =VLOOKUP($A16,Micronutrients,14,FALSE) -> None | C16: =VLOOKUP($A16,Micronutrients,15,FALSE) -> 0 | D16: =VLOOKUP($A16,Micronutrients,13,FALSE) -> 1 | E16: 0 | F16: =VLOOKUP($A16,Micronutrients,12,FALSE) -> 0 | G16: =(E16*VLOOKUP(A16,Micronutrients,11,FALSE)/D16)*C16 -> 0 | M16: None | N16: =VLOOKUP(M16,Micronutrients,14,FALSE) -> None | O16: =VLOOKUP(M16,Micronutrients,15,FALSE) -> 0 | P16: =VLOOKUP(M16,Micronutrients,13,FALSE) -> 1 | Q16: 0 | R16: =VLOOKUP(M16,Micronutrients,12,FALSE) -> 0 | S16: =(Q16*VLOOKUP(M16,Micronutrients,11,FALSE)/P16)*O16 -> 0 | Y16: None | Z16: =VLOOKUP(Y16,Micronutrients,14,FALSE) -> None | AA16: =VLOOKUP(Y16,Micronutrients,15,FALSE) -> 0 | AB16: =VLOOKUP(Y16,Micronutrients,13,FALSE) -> 1 | AC16: 0 | AD16: =VLOOKUP(Y16,Micronutrients,12,FALSE) -> 0 | AE16: =(AC16*VLOOKUP(Y16,Micronutrients,11,FALSE)/AB16)*AA16 -> 0
A17: None | B17: =VLOOKUP($A17,Micronutrients,14,FALSE) -> None | C17: =VLOOKUP($A17,Micronutrients,15,FALSE) -> 0 | D17: =VLOOKUP($A17,Micronutrients,13,FALSE) -> 1 | E17: 0 | F17: =VLOOKUP($A17,Micronutrients,12,FALSE) -> 0 | G17: =(E17*VLOOKUP(A17,Micronutrients,11,FALSE)/D17)*C17 -> 0 | M17: None | N17: =VLOOKUP(M17,Micronutrients,14,FALSE) -> None | O17: =VLOOKUP(M17,Micronutrients,15,FALSE) -> 0 | P17: =VLOOKUP(M17,Micronutrients,13,FALSE) -> 1 | Q17: 0 | R17: =VLOOKUP(M17,Micronutrients,12,FALSE) -> 0 | S17: =(Q17*VLOOKUP(M17,Micronutrients,11,FALSE)/P17)*O17 -> 0 | Y17: None | Z17: =VLOOKUP(Y17,Micronutrients,14,FALSE) -> None | AA17: =VLOOKUP(Y17,Micronutrients,15,FALSE) -> 0 | AB17: =VLOOKUP(Y17,Micronutrients,13,FALSE) -> 1 | AC17: 0 | AD17: =VLOOKUP(Y17,Micronutrients,12,FALSE) -> 0 | AE17: =(AC17*VLOOKUP(Y17,Micronutrients,11,FALSE)/AB17)*AA17 -> 0
A19: Lime (drop down menu) | M19: Lime (drop down menu) | Y19: Lime (drop down menu)
A20: None | B20: =VLOOKUP(A20,Lime,14,FALSE) -> None | C20: =VLOOKUP(A20,Lime,15,FALSE) -> 0 | D20: =VLOOKUP(A20,Lime,13,FALSE) -> 1 | E20: 0 | F20: =VLOOKUP(A20,Lime,12,FALSE) -> 0 | G20: =(E20*VLOOKUP(A20,Lime,11,FALSE)/D20)*C20 -> 0 | M20: None | N20: =VLOOKUP(M20,Lime,14,FALSE) -> None | O20: =VLOOKUP(M20,Lime,15,FALSE) -> 0 | P20: =VLOOKUP(M20,Lime,13,FALSE) -> 1 | Q20: 0 | R20: =VLOOKUP(M20,Lime,12,FALSE) -> 0 | S20: =(Q20*VLOOKUP(M20,Lime,11,FALSE)/P20)*O20 -> 0 | Y20: None | Z20: =VLOOKUP(Y20,Lime,14,FALSE) -> None | AA20: =VLOOKUP(Y20,Lime,15,FALSE) -> 0 | AB20: =VLOOKUP(Y20,Lime,13,FALSE) -> 1 | AC20: 0 | AD20: =VLOOKUP(Y20,Lime,12,FALSE) -> 0 | AE20: =(AC20*VLOOKUP(Y20,Lime,11,FALSE)/AB20)*AA20 -> 0
A22: Nitrogen Stabilizers (drop down menu) | M22: Nitrogen Stabilizers (drop down menu) | Y22: Nitrogen Stabilizers (drop down menu)
A23: None | B23: =VLOOKUP(A23,NitrogenStabilizers,14,FALSE) -> None | C23: =VLOOKUP(A23,NitrogenStabilizers,15,FALSE) -> 0 | D23: =VLOOKUP(A23,NitrogenStabilizers,13,FALSE) -> 1 | E23: 0 | F23: =VLOOKUP(A23,NitrogenStabilizers,12,FALSE) -> 0 | G23: =(E23*VLOOKUP(A23,NitrogenStabilizers,11,FALSE)/D23)*C23 -> 0 | M23: None | N23: =VLOOKUP(M23,NitrogenStabilizers,14,FALSE) -> None | O23: =VLOOKUP(M23,NitrogenStabilizers,15,FALSE) -> 0 | P23: =VLOOKUP(M23,NitrogenStabilizers,13,FALSE) -> 1 | Q23: 0 | R23: =VLOOKUP(M23,NitrogenStabilizers,12,FALSE) -> 0 | S23: =(Q23*VLOOKUP(M23,NitrogenStabilizers,11,FALSE)/P23)*O23 -> 0 | Y23: None | Z23: =VLOOKUP(Y23,NitrogenStabilizers,14,FALSE) -> None | AA23: =VLOOKUP(Y23,NitrogenStabilizers,15,FALSE) -> 0 | AB23: =VLOOKUP(Y23,NitrogenStabilizers,13,FALSE) -> 1 | AC23: 0 | AD23: =VLOOKUP(Y23,NitrogenStabilizers,12,FALSE) -> 0 | AE23: =(AC23*VLOOKUP(Y23,NitrogenStabilizers,11,FALSE)/AB23)*AA23 -> 0
A24: None | B24: =VLOOKUP(A24,NitrogenStabilizers,14,FALSE) -> None | C24: =VLOOKUP(A24,NitrogenStabilizers,15,FALSE) -> 0 | D24: =VLOOKUP(A24,NitrogenStabilizers,13,FALSE) -> 1 | E24: 0 | F24: =VLOOKUP(A24,NitrogenStabilizers,12,FALSE) -> 0 | G24: =(E24*VLOOKUP(A24,NitrogenStabilizers,11,FALSE)/D24)*C24 -> 0 | K24: More | M24: None | N24: =VLOOKUP(M24,NitrogenStabilizers,14,FALSE) -> None | O24: =VLOOKUP(M24,NitrogenStabilizers,15,FALSE) -> 0 | P24: =VLOOKUP(M24,NitrogenStabilizers,13,FALSE) -> 1 | Q24: 0 | R24: =VLOOKUP(M24,NitrogenStabilizers,12,FALSE) -> 0 | S24: =(Q24*VLOOKUP(M24,NitrogenStabilizers,11,FALSE)/P24)*O24 -> 0 | W24: More | Y24: None | Z24: =VLOOKUP(Y24,NitrogenStabilizers,14,FALSE) -> None | AA24: =VLOOKUP(Y24,NitrogenStabilizers,15,FALSE) -> 0 | AB24: =VLOOKUP(Y24,NitrogenStabilizers,13,FALSE) -> 1 | AC24: 0 | AD24: =VLOOKUP(Y24,NitrogenStabilizers,12,FALSE) -> 0 | AE24: =(AC24*VLOOKUP(Y24,NitrogenStabilizers,11,FALSE)/AB24)*AA24 -> 0 | AI24: More
A25: 1st Application Fertilizer Cost/Acre | G25: =SUM(G6:G24) -> 100.9375 | K25: Below | M25: 1st Application Fertilizer Cost/Acre | S25: =SUM(S6:S24) -> 0 | W25: Below | Y25: 1st Application Fertilizer Cost/Acre | AE25: =SUM(AE6:AE24) -> 0 | AI25: Below
K26: ¯ | W26: ¯ | AI26: ¯
A27: 2nd Application (i.e., Starter Fertilizer or Broadcast) | M27: 2nd Application (i.e., Starter Fertilizer or Broadcast) | Y27: 2nd Application (i.e., Starter Fertilizer or Broadcast)
A28: Fertilizer Source | B28: Purchase Units | C28: Package Price (Gals, Lbs, etc.) | D28: Units/Pkg | E28: Rate/Acre | F28: Units | G28: Cost | M28: Fertilizer Source | N28: Purchase Units | O28: Package Price (Gals, Lbs, etc.) | P28: Units/Pkg | Q28: Rate/Acre | R28: Units | S28: Cost | Y28: Fertilizer Source | Z28: Purchase Units | AA28: Package Price (Gals, Lbs, etc.) | AB28: Units/Pkg | AC28: Rate/Acre | AD28: Units | AE28: Cost
A29: Macronutrients (drop down menu) | E29: (Enter Below) | I29: N | J29: P | K29: K | M29: Macronutrients (drop down menu) | Q29: (Enter Below) | U29: N | V29: P | W29: K | Y29: Macronutrients (drop down menu) | AC29: (Enter Below) | AG29: N | AH29: P | AI29: K
A30: None | B30: =VLOOKUP(A30,Macronutrients,14,FALSE) -> None | C30: =VLOOKUP(A30,'Fertilizer Products & Pricing'!$A$4:$O$38,15,FALSE) -> 0 | D30: =VLOOKUP($A30,Macronutrients,13,FALSE) -> 1 | E30: 0 | F30: =VLOOKUP($A30,Macronutrients,12,FALSE) -> 0 | G30: =(E30*VLOOKUP(A30,Macronutrients,11,FALSE)/D30)*C30 -> 0 | I30: =VLOOKUP(A30,'Fertilizer Products & Pricing'!$A$4:$O$38,2,FALSE)*E30+VLOOKUP(A31,'Fertilizer Products & Pricing'!$A$4:$O$38,2,FALSE)*E31+VLOOKUP(A32,'Fertilizer Products & Pricing'!$A$4:$O$38,2,FALSE)*E32+VLOOKUP(A33,'Fertilizer Products & Pricing'!$A$4:$O$38,2,FALSE)*E33+VLOOKUP(A34,'Fertilizer Products & Pricing'!$A$4:$O$38,2,FALSE)*E34+VLOOKUP(A35,'Fertilizer Products & Pricing'!$A$4:$O$38,2,FALSE)*E35+VLOOKUP(A38,'Fertilizer Products & Pricing'!$A$42:$O$55,2,FALSE)*E38+VLOOKUP(A39,'Fertilizer Products & Pricing'!$A$42:$O$55,2,FALSE)*E39+VLOOKUP(A40,'Fertilizer Products & Pricing'!$A$42:$O$55,2,FALSE)*E40+VLOOKUP(A41,'Fertilizer Products & Pricing'!$A$42:$O$55,2,FALSE)*E41 -> 0 | J30: =VLOOKUP(A30,'Fertilizer Products & Pricing'!$A$4:$O$38,3,FALSE)*E30+VLOOKUP(A31,'Fertilizer Products & Pricing'!$A$4:$O$38,3,FALSE)*E31+VLOOKUP(A32,'Fertilizer Products & Pricing'!$A$4:$O$38,3,FALSE)*E32+VLOOKUP(A33,'Fertilizer Products & Pricing'!$A$4:$O$38,3,FALSE)*E33+VLOOKUP(A34,'Fertilizer Products & Pricing'!$A$4:$O$38,3,FALSE)*E34+VLOOKUP(A35,'Fertilizer Products & Pricing'!$A$4:$O$38,3,FALSE)*E35+VLOOKUP(A38,'Fertilizer Products & Pricing'!$A$42:$O$55,3,FALSE)*E38+VLOOKUP(A39,'Fertilizer Products & Pricing'!$A$42:$O$55,3,FALSE)*E39+VLOOKUP(A40,'Fertilizer Products & Pricing'!$A$42:$O$55,3,FALSE)*E40+VLOOKUP(A41,'Fertilizer Products & Pricing'!$A$42:$O$55,3,FALSE)*E41 -> 0 | K30: =VLOOKUP(A30,'Fertilizer Products & Pricing'!$A$4:$O$38,4,FALSE)*E30+VLOOKUP(A31,'Fertilizer Products & Pricing'!$A$4:$O$38,4,FALSE)*E31+VLOOKUP(A32,'Fertilizer Products & Pricing'!$A$4:$O$38,4,FALSE)*E32+VLOOKUP(A33,'Fertilizer Products & Pricing'!$A$4:$O$38,4,FALSE)*E33+VLOOKUP(A34,'Fertilizer Products & Pricing'!$A$4:$O$38,4,FALSE)*E34+VLOOKUP(A35,'Fertilizer Products & Pricing'!$A$4:$O$38,4,FALSE)*E35+VLOOKUP(A38,'Fertilizer Products & Pricing'!$A$42:$O$55,4,FALSE)*E38+VLOOKUP(A39,'Fertilizer Products & Pricing'!$A$42:$O$55,4,FALSE)*E39+VLOOKUP(A40,'Fertilizer Products & Pricing'!$A$42:$O$55,4,FALSE)*E40+VLOOKUP(A41,'Fertilizer Products & Pricing'!$A$42:$O$55,4,FALSE)*E41 -> 0 | M30: None | N30: =VLOOKUP(M30,Macronutrients,14,FALSE) -> None | O30: =VLOOKUP(M30,'Fertilizer Products & Pricing'!$A$4:$O$38,15,FALSE) -> 0 | P30: =VLOOKUP($M30,Macronutrients,13,FALSE) -> 1 | Q30: 0 | R30: =VLOOKUP($M30,Macronutrients,12,FALSE) -> 0 | S30: =(Q30*VLOOKUP(M30,Macronutrients,11,FALSE)/P30)*O30 -> 0 | U30: =VLOOKUP(M30,'Fertilizer Products & Pricing'!$A$4:$O$38,2,FALSE)*Q30+VLOOKUP(M31,'Fertilizer Products & Pricing'!$A$4:$O$38,2,FALSE)*Q31+VLOOKUP(M32,'Fertilizer Products & Pricing'!$A$4:$O$38,2,FALSE)*Q32+VLOOKUP(M33,'Fertilizer Products & Pricing'!$A$4:$O$38,2,FALSE)*Q33+VLOOKUP(M34,'Fertilizer Products & Pricing'!$A$4:$O$38,2,FALSE)*Q34+VLOOKUP(M35,'Fertilizer Products & Pricing'!$A$4:$O$38,2,FALSE)*Q35+VLOOKUP(M38,'Fertilizer Products & Pricing'!$A$42:$O$55,2,FALSE)*Q38+VLOOKUP(M39,'Fertilizer Products & Pricing'!$A$42:$O$55,2,FALSE)*Q39+VLOOKUP(M40,'Fertilizer Products & Pricing'!$A$42:$O$55,2,FALSE)*Q40+VLOOKUP(M41,'Fertilizer Products & Pricing'!$A$42:$O$55,2,FALSE)*Q41 -> 0 | V30: =VLOOKUP(M30,'Fertilizer Products & Pricing'!$A$4:$O$38,3,FALSE)*Q30+VLOOKUP(M31,'Fertilizer Products & Pricing'!$A$4:$O$38,3,FALSE)*Q31+VLOOKUP(M32,'Fertilizer Products & Pricing'!$A$4:$O$38,3,FALSE)*Q32+VLOOKUP(M33,'Fertilizer Products & Pricing'!$A$4:$O$38,3,FALSE)*Q33+VLOOKUP(M34,'Fertilizer Products & Pricing'!$A$4:$O$38,3,FALSE)*Q34+VLOOKUP(M35,'Fertilizer Products & Pricing'!$A$4:$O$38,3,FALSE)*Q35+VLOOKUP(M38,'Fertilizer Products & Pricing'!$A$42:$O$55,3,FALSE)*Q38+VLOOKUP(M39,'Fertilizer Products & Pricing'!$A$42:$O$55,3,FALSE)*Q39+VLOOKUP(M40,'Fertilizer Products & Pricing'!$A$42:$O$55,3,FALSE)*Q40+VLOOKUP(M41,'Fertilizer Products & Pricing'!$A$42:$O$55,3,FALSE)*Q41 -> 0 | W30: =VLOOKUP(M30,'Fertilizer Products & Pricing'!$A$4:$O$38,4,FALSE)*Q30+VLOOKUP(M31,'Fertilizer Products & Pricing'!$A$4:$O$38,4,FALSE)*Q31+VLOOKUP(M32,'Fertilizer Products & Pricing'!$A$4:$O$38,4,FALSE)*Q32+VLOOKUP(M33,'Fertilizer Products & Pricing'!$A$4:$O$38,4,FALSE)*Q33+VLOOKUP(M34,'Fertilizer Products & Pricing'!$A$4:$O$38,4,FALSE)*Q34+VLOOKUP(M35,'Fertilizer Products & Pricing'!$A$4:$O$38,4,FALSE)*Q35+VLOOKUP(M38,'Fertilizer Products & Pricing'!$A$42:$O$55,4,FALSE)*Q38+VLOOKUP(M39,'Fertilizer Products & Pricing'!$A$42:$O$55,4,FALSE)*Q39+VLOOKUP(M40,'Fertilizer Products & Pricing'!$A$42:$O$55,4,FALSE)*Q40+VLOOKUP(M41,'Fertilizer Products & Pricing'!$A$42:$O$55,4,FALSE)*Q41 -> 0 | Y30: None | Z30: =VLOOKUP(Y30,Macronutrients,14,FALSE) -> None | AA30: =VLOOKUP(Y30,'Fertilizer Products & Pricing'!$A$4:$O$38,15,FALSE) -> 0 | AB30: =VLOOKUP($Y30,Macronutrients,13,FALSE) -> 1 | AC30: 0 | AD30: =VLOOKUP(Y30,Macronutrients,12,FALSE) -> 0 | AE30: =(AC30*VLOOKUP(Y30,Macronutrients,11,FALSE)/AB30)*AA30 -> 0 | AG30: =VLOOKUP(Y30,'Fertilizer Products & Pricing'!$A$4:$O$38,2,FALSE)*AC30+VLOOKUP(Y31,'Fertilizer Products & Pricing'!$A$4:$O$38,2,FALSE)*AC31+VLOOKUP(Y32,'Fertilizer Products & Pricing'!$A$4:$O$38,2,FALSE)*AC32+VLOOKUP(Y33,'Fertilizer Products & Pricing'!$A$4:$O$38,2,FALSE)*AC33+VLOOKUP(Y34,'Fertilizer Products & Pricing'!$A$4:$O$38,2,FALSE)*AC34+VLOOKUP(Y35,'Fertilizer Products & Pricing'!$A$4:$O$38,2,FALSE)*AC35+VLOOKUP(Y38,'Fertilizer Products & Pricing'!$A$42:$O$55,2,FALSE)*AC38+VLOOKUP(Y39,'Fertilizer Products & Pricing'!$A$42:$O$55,2,FALSE)*AC39+VLOOKUP(Y40,'Fertilizer Products & Pricing'!$A$42:$O$55,2,FALSE)*AC40+VLOOKUP(Y41,'Fertilizer Products & Pricing'!$A$42:$O$55,2,FALSE)*AC41 -> 0 | AH30: =VLOOKUP(Y30,'Fertilizer Products & Pricing'!$A$4:$O$38,3,FALSE)*AC30+VLOOKUP(Y31,'Fertilizer Products & Pricing'!$A$4:$O$38,3,FALSE)*AC31+VLOOKUP(Y32,'Fertilizer Products & Pricing'!$A$4:$O$38,3,FALSE)*AC32+VLOOKUP(Y33,'Fertilizer Products & Pricing'!$A$4:$O$38,3,FALSE)*AC33+VLOOKUP(Y34,'Fertilizer Products & Pricing'!$A$4:$O$38,3,FALSE)*AC34+VLOOKUP(Y35,'Fertilizer Products & Pricing'!$A$4:$O$38,3,FALSE)*AC35+VLOOKUP(Y38,'Fertilizer Products & Pricing'!$A$42:$O$55,3,FALSE)*AC38+VLOOKUP(Y39,'Fertilizer Products & Pricing'!$A$42:$O$55,3,FALSE)*AC39+VLOOKUP(Y40,'Fertilizer Products & Pricing'!$A$42:$O$55,3,FALSE)*AC40+VLOOKUP(Y41,'Fertilizer Products & Pricing'!$A$42:$O$55,3,FALSE)*AC41 -> 0 | AI30: =VLOOKUP(Y30,'Fertilizer Products & Pricing'!$A$4:$O$38,4,FALSE)*AC30+VLOOKUP(Y31,'Fertilizer Products & Pricing'!$A$4:$O$38,4,FALSE)*AC31+VLOOKUP(Y32,'Fertilizer Products & Pricing'!$A$4:$O$38,4,FALSE)*AC32+VLOOKUP(Y33,'Fertilizer Products & Pricing'!$A$4:$O$38,4,FALSE)*AC33+VLOOKUP(Y34,'Fertilizer Products & Pricing'!$A$4:$O$38,4,FALSE)*AC34+VLOOKUP(Y35,'Fertilizer Products & Pricing'!$A$4:$O$38,4,FALSE)*AC35+VLOOKUP(Y38,'Fertilizer Products & Pricing'!$A$42:$O$55,4,FALSE)*AC38+VLOOKUP(Y39,'Fertilizer Products & Pricing'!$A$42:$O$55,4,FALSE)*AC39+VLOOKUP(Y40,'Fertilizer Products & Pricing'!$A$42:$O$55,4,FALSE)*AC40+VLOOKUP(Y41,'Fertilizer Products & Pricing'!$A$42:$O$55,4,FALSE)*AC41 -> 0
A31: None | B31: None | C31: =VLOOKUP(A31,'Fertilizer Products & Pricing'!$A$4:$O$38,15,FALSE) -> 0 | D31: 1 | E31: 0 | F31: 0 | G31: 0 | M31: None | N31: =VLOOKUP(M31,Macronutrients,14,FALSE) -> None | O31: =VLOOKUP(M31,'Fertilizer Products & Pricing'!$A$4:$O$38,15,FALSE) -> 0 | P31: 1 | Q31: 0 | R31: 0 | S31: =(Q31*VLOOKUP(M31,Macronutrients,11,FALSE)/P31)*O31 -> 0 | Y31: None | Z31: None | AA31: =VLOOKUP(Y31,'Fertilizer Products & Pricing'!$A$4:$O$38,15,FALSE) -> 0 | AB31: 1 | AC31: 0 | AD31: 0 | AE31: 0
A32: None | B32: None | C32: =VLOOKUP(A32,'Fertilizer Products & Pricing'!$A$4:$O$38,15,FALSE) -> 0 | D32: 1 | E32: 0 | F32: 0 | G32: 0 | I32: S | J32: Ca | K32: Mg | M32: None | N32: None | O32: =VLOOKUP(M32,'Fertilizer Products & Pricing'!$A$4:$O$38,15,FALSE) -> 0 | P32: 1 | Q32: 0 | R32: 0 | S32: 0 | U32: S | V32: Ca | W32: Mg | Y32: None | Z32: None | AA32: =VLOOKUP(Y32,'Fertilizer Products & Pricing'!$A$4:$O$38,15,FALSE) -> 0 | AB32: 1 | AC32: 0 | AD32: 0 | AE32: 0 | AG32: S | AH32: Ca | AI32: Mg
A33: None | B33: None | C33: =VLOOKUP(A33,'Fertilizer Products & Pricing'!$A$4:$O$38,15,FALSE) -> 0 | D33: 1 | E33: 0 | F33: 0 | G33: 0 | I33: =VLOOKUP(A30,'Fertilizer Products & Pricing'!$A$4:$O$38,5,FALSE)*E30+VLOOKUP(A31,'Fertilizer Products & Pricing'!$A$4:$O$38,5,FALSE)*E31+VLOOKUP(A32,'Fertilizer Products & Pricing'!$A$4:$O$38,5,FALSE)*E32+VLOOKUP(A33,'Fertilizer Products & Pricing'!$A$4:$O$38,5,FALSE)*E33+VLOOKUP(A34,'Fertilizer Products & Pricing'!$A$4:$O$38,5,FALSE)*E34+VLOOKUP(A35,'Fertilizer Products & Pricing'!$A$4:$O$38,5,FALSE)*E35+VLOOKUP(A38,'Fertilizer Products & Pricing'!$A$42:$O$55,5,FALSE)*E38+VLOOKUP(A39,'Fertilizer Products & Pricing'!$A$42:$O$55,5,FALSE)*E39+VLOOKUP(A40,'Fertilizer Products & Pricing'!$A$42:$O$55,5,FALSE)*E40+VLOOKUP(A41,'Fertilizer Products & Pricing'!$A$42:$O$55,5,FALSE)*E41 -> 0 | J33: =VLOOKUP(A30,'Fertilizer Products & Pricing'!$A$4:$O$38,7,FALSE)*E30+VLOOKUP(A31,'Fertilizer Products & Pricing'!$A$4:$O$38,7,FALSE)*E31+VLOOKUP(A32,'Fertilizer Products & Pricing'!$A$4:$O$38,7,FALSE)*E32+VLOOKUP(A33,'Fertilizer Products & Pricing'!$A$4:$O$38,7,FALSE)*E33+VLOOKUP(A34,'Fertilizer Products & Pricing'!$A$4:$O$38,7,FALSE)*E34+VLOOKUP(A35,'Fertilizer Products & Pricing'!$A$4:$O$38,7,FALSE)*E35+VLOOKUP(A38,'Fertilizer Products & Pricing'!$A$42:$O$55,7,FALSE)*E38+VLOOKUP(A39,'Fertilizer Products & Pricing'!$A$42:$O$55,7,FALSE)*E39+VLOOKUP(A40,'Fertilizer Products & Pricing'!$A$42:$O$55,7,FALSE)*E40+VLOOKUP(A41,'Fertilizer Products & Pricing'!$A$42:$O$55,7,FALSE)*E41 -> 0 | K33: =VLOOKUP(A30,'Fertilizer Products & Pricing'!$A$4:$O$38,6,FALSE)*E30+VLOOKUP(A31,'Fertilizer Products & Pricing'!$A$4:$O$38,6,FALSE)*E31+VLOOKUP(A32,'Fertilizer Products & Pricing'!$A$4:$O$38,6,FALSE)*E32+VLOOKUP(A33,'Fertilizer Products & Pricing'!$A$4:$O$38,6,FALSE)*E33+VLOOKUP(A34,'Fertilizer Products & Pricing'!$A$4:$O$38,6,FALSE)*E34+VLOOKUP(A35,'Fertilizer Products & Pricing'!$A$4:$O$38,6,FALSE)*E35+VLOOKUP(A38,'Fertilizer Products & Pricing'!$A$42:$O$55,6,FALSE)*E38+VLOOKUP(A39,'Fertilizer Products & Pricing'!$A$42:$O$55,6,FALSE)*E39+VLOOKUP(A40,'Fertilizer Products & Pricing'!$A$42:$O$55,6,FALSE)*E40+VLOOKUP(A41,'Fertilizer Products & Pricing'!$A$42:$O$55,6,FALSE)*E41 -> 0 | M33: None | N33: None | O33: =VLOOKUP(M33,'Fertilizer Products & Pricing'!$A$4:$O$38,15,FALSE) -> 0 | P33: 1 | Q33: 0 | R33: 0 | S33: 0 | U33: =VLOOKUP(M30,'Fertilizer Products & Pricing'!$A$4:$O$38,5,FALSE)*Q30+VLOOKUP(M31,'Fertilizer Products & Pricing'!$A$4:$O$38,5,FALSE)*Q31+VLOOKUP(M32,'Fertilizer Products & Pricing'!$A$4:$O$38,5,FALSE)*Q32+VLOOKUP(M33,'Fertilizer Products & Pricing'!$A$4:$O$38,5,FALSE)*Q33+VLOOKUP(M34,'Fertilizer Products & Pricing'!$A$4:$O$38,5,FALSE)*Q34+VLOOKUP(M35,'Fertilizer Products & Pricing'!$A$4:$O$38,5,FALSE)*Q35+VLOOKUP(M38,'Fertilizer Products & Pricing'!$A$42:$O$55,5,FALSE)*Q38+VLOOKUP(M39,'Fertilizer Products & Pricing'!$A$42:$O$55,5,FALSE)*Q39+VLOOKUP(M40,'Fertilizer Products & Pricing'!$A$42:$O$55,5,FALSE)*Q40+VLOOKUP(M41,'Fertilizer Products & Pricing'!$A$42:$O$55,5,FALSE)*Q41 -> 0 | V33: =VLOOKUP(M30,'Fertilizer Products & Pricing'!$A$4:$O$38,7,FALSE)*Q30+VLOOKUP(M31,'Fertilizer Products & Pricing'!$A$4:$O$38,7,FALSE)*Q31+VLOOKUP(M32,'Fertilizer Products & Pricing'!$A$4:$O$38,7,FALSE)*Q32+VLOOKUP(M33,'Fertilizer Products & Pricing'!$A$4:$O$38,7,FALSE)*Q33+VLOOKUP(M34,'Fertilizer Products & Pricing'!$A$4:$O$38,7,FALSE)*Q34+VLOOKUP(M35,'Fertilizer Products & Pricing'!$A$4:$O$38,7,FALSE)*Q35+VLOOKUP(M38,'Fertilizer Products & Pricing'!$A$42:$O$55,7,FALSE)*Q38+VLOOKUP(M39,'Fertilizer Products & Pricing'!$A$42:$O$55,7,FALSE)*Q39+VLOOKUP(M40,'Fertilizer Products & Pricing'!$A$42:$O$55,7,FALSE)*Q40+VLOOKUP(M41,'Fertilizer Products & Pricing'!$A$42:$O$55,7,FALSE)*Q41 -> 0 | W33: =VLOOKUP(M30,'Fertilizer Products & Pricing'!$A$4:$O$38,6,FALSE)*Q30+VLOOKUP(M31,'Fertilizer Products & Pricing'!$A$4:$O$38,6,FALSE)*Q31+VLOOKUP(M32,'Fertilizer Products & Pricing'!$A$4:$O$38,6,FALSE)*Q32+VLOOKUP(M33,'Fertilizer Products & Pricing'!$A$4:$O$38,6,FALSE)*Q33+VLOOKUP(M34,'Fertilizer Products & Pricing'!$A$4:$O$38,6,FALSE)*Q34+VLOOKUP(M35,'Fertilizer Products & Pricing'!$A$4:$O$38,6,FALSE)*Q35+VLOOKUP(M38,'Fertilizer Products & Pricing'!$A$42:$O$55,6,FALSE)*Q38+VLOOKUP(M39,'Fertilizer Products & Pricing'!$A$42:$O$55,6,FALSE)*Q39+VLOOKUP(M40,'Fertilizer Products & Pricing'!$A$42:$O$55,6,FALSE)*Q40+VLOOKUP(M41,'Fertilizer Products & Pricing'!$A$42:$O$55,6,FALSE)*Q41 -> 0 | Y33: None | Z33: None | AA33: =VLOOKUP(Y33,'Fertilizer Products & Pricing'!$A$4:$O$38,15,FALSE) -> 0 | AB33: 1 | AC33: 0 | AD33: 0 | AE33: 0 | AG33: =VLOOKUP(Y30,'Fertilizer Products & Pricing'!$A$4:$O$38,5,FALSE)*AC30+VLOOKUP(Y31,'Fertilizer Products & Pricing'!$A$4:$O$38,5,FALSE)*AC31+VLOOKUP(Y32,'Fertilizer Products & Pricing'!$A$4:$O$38,5,FALSE)*AC32+VLOOKUP(Y33,'Fertilizer Products & Pricing'!$A$4:$O$38,5,FALSE)*AC33+VLOOKUP(Y34,'Fertilizer Products & Pricing'!$A$4:$O$38,5,FALSE)*AC34+VLOOKUP(Y35,'Fertilizer Products & Pricing'!$A$4:$O$38,5,FALSE)*AC35+VLOOKUP(Y38,'Fertilizer Products & Pricing'!$A$42:$O$55,5,FALSE)*AC38+VLOOKUP(Y39,'Fertilizer Products & Pricing'!$A$42:$O$55,5,FALSE)*AC39+VLOOKUP(Y40,'Fertilizer Products & Pricing'!$A$42:$O$55,5,FALSE)*AC40+VLOOKUP(Y41,'Fertilizer Products & Pricing'!$A$42:$O$55,5,FALSE)*AC41 -> 0 | AH33: =VLOOKUP(Y30,'Fertilizer Products & Pricing'!$A$4:$O$38,7,FALSE)*AC30+VLOOKUP(Y31,'Fertilizer Products & Pricing'!$A$4:$O$38,7,FALSE)*AC31+VLOOKUP(Y32,'Fertilizer Products & Pricing'!$A$4:$O$38,7,FALSE)*AC32+VLOOKUP(Y33,'Fertilizer Products & Pricing'!$A$4:$O$38,7,FALSE)*AC33+VLOOKUP(Y34,'Fertilizer Products & Pricing'!$A$4:$O$38,7,FALSE)*AC34+VLOOKUP(Y35,'Fertilizer Products & Pricing'!$A$4:$O$38,7,FALSE)*AC35+VLOOKUP(Y38,'Fertilizer Products & Pricing'!$A$42:$O$55,7,FALSE)*AC38+VLOOKUP(Y39,'Fertilizer Products & Pricing'!$A$42:$O$55,7,FALSE)*AC39+VLOOKUP(Y40,'Fertilizer Products & Pricing'!$A$42:$O$55,7,FALSE)*AC40+VLOOKUP(Y41,'Fertilizer Products & Pricing'!$A$42:$O$55,7,FALSE)*AC41 -> 0 | AI33: =VLOOKUP(Y30,'Fertilizer Products & Pricing'!$A$4:$O$38,6,FALSE)*AC30+VLOOKUP(Y31,'Fertilizer Products & Pricing'!$A$4:$O$38,6,FALSE)*AC31+VLOOKUP(Y32,'Fertilizer Products & Pricing'!$A$4:$O$38,6,FALSE)*AC32+VLOOKUP(Y33,'Fertilizer Products & Pricing'!$A$4:$O$38,6,FALSE)*AC33+VLOOKUP(Y34,'Fertilizer Products & Pricing'!$A$4:$O$38,6,FALSE)*AC34+VLOOKUP(Y35,'Fertilizer Products & Pricing'!$A$4:$O$38,6,FALSE)*AC35+VLOOKUP(Y38,'Fertilizer Products & Pricing'!$A$42:$O$55,6,FALSE)*AC38+VLOOKUP(Y39,'Fertilizer Products & Pricing'!$A$42:$O$55,6,FALSE)*AC39+VLOOKUP(Y40,'Fertilizer Products & Pricing'!$A$42:$O$55,6,FALSE)*AC40+VLOOKUP(Y41,'Fertilizer Products & Pricing'!$A$42:$O$55,6,FALSE)*AC41 -> 0
A34: None | B34: None | C34: =VLOOKUP(A34,'Fertilizer Products & Pricing'!$A$4:$O$38,15,FALSE) -> 0 | D34: 1 | E34: 0 | F34: 0 | G34: 0 | M34: None | N34: None | O34: =VLOOKUP(M34,'Fertilizer Products & Pricing'!$A$4:$O$38,15,FALSE) -> 0 | P34: 1 | Q34: 0 | R34: 0 | S34: 0 | Y34: None | Z34: None | AA34: =VLOOKUP(Y34,'Fertilizer Products & Pricing'!$A$4:$O$38,15,FALSE) -> 0 | AB34: 1 | AC34: 0 | AD34: 0 | AE34: 0
A35: None | B35: None | C35: =VLOOKUP(A35,'Fertilizer Products & Pricing'!$A$4:$O$38,15,FALSE) -> 0 | D35: 1 | E35: 0 | F35: 0 | G35: 0 | I35: Zn | J35: B | K35: Mn | M35: None | N35: None | O35: =VLOOKUP(M35,'Fertilizer Products & Pricing'!$A$4:$O$38,15,FALSE) -> 0 | P35: 1 | Q35: 0 | R35: 0 | S35: 0 | U35: Zn | V35: B | W35: Mn | Y35: None | Z35: None | AA35: =VLOOKUP(Y35,'Fertilizer Products & Pricing'!$A$4:$O$38,15,FALSE) -> 0 | AB35: 1 | AC35: 0 | AD35: 0 | AE35: 0 | AG35: Zn | AH35: B | AI35: Mn
I36: =VLOOKUP($A$39,'Fertilizer Products & Pricing'!$A$42:$O$55,8,FALSE)*$E$39+VLOOKUP($A$40,'Fertilizer Products & Pricing'!$A$42:$O$55,8,FALSE)*$E$40+VLOOKUP($A$41,'Fertilizer Products & Pricing'!$A$42:$O$55,8,FALSE)*$E$41+VLOOKUP($A$38,'Fertilizer Products & Pricing'!$A$42:$O$55,8,FALSE)*$E$38 -> 0 | J36: =VLOOKUP($A$39,'Fertilizer Products & Pricing'!$A$42:$O$55,9,FALSE)*$E$39+VLOOKUP($A$40,'Fertilizer Products & Pricing'!$A$42:$O$55,9,FALSE)*$E$40+VLOOKUP($A$41,'Fertilizer Products & Pricing'!$A$42:$O$55,9,FALSE)*$E$41+VLOOKUP($A$38,'Fertilizer Products & Pricing'!$A$42:$O$55,9,FALSE)*$E$38 -> 0 | K36: =VLOOKUP($A$39,'Fertilizer Products & Pricing'!$A$42:$O$55,10,FALSE)*$E$39+VLOOKUP($A$40,'Fertilizer Products & Pricing'!$A$42:$O$55,10,FALSE)*$E$40+VLOOKUP($A$41,'Fertilizer Products & Pricing'!$A$42:$O$55,10,FALSE)*$E$41+VLOOKUP($A$38,'Fertilizer Products & Pricing'!$A$42:$O$55,10,FALSE)*$E$38 -> 0 | U36: =VLOOKUP($M39,'Fertilizer Products & Pricing'!$A$42:$O$55,8,FALSE)*$Q39+VLOOKUP($M40,'Fertilizer Products & Pricing'!$A$42:$O$55,8,FALSE)*$Q40+VLOOKUP($M41,'Fertilizer Products & Pricing'!$A$42:$O$55,8,FALSE)*$Q41+VLOOKUP($M38,'Fertilizer Products & Pricing'!$A$42:$O$55,8,FALSE)*$Q38 -> 0 | V36: =VLOOKUP($M39,'Fertilizer Products & Pricing'!$A$42:$O$55,9,FALSE)*$Q39+VLOOKUP($M40,'Fertilizer Products & Pricing'!$A$42:$O$55,9,FALSE)*$Q40+VLOOKUP($M41,'Fertilizer Products & Pricing'!$A$42:$O$55,9,FALSE)*$Q41+VLOOKUP($M38,'Fertilizer Products & Pricing'!$A$42:$O$55,9,FALSE)*$Q38 -> 0 | W36: =VLOOKUP($M$39,'Fertilizer Products & Pricing'!$A$42:$O$55,10,FALSE)*$Q$39+VLOOKUP($M$40,'Fertilizer Products & Pricing'!$A$42:$O$55,10,FALSE)*$Q$40+VLOOKUP($M$41,'Fertilizer Products & Pricing'!$A$42:$O$55,10,FALSE)*$Q$41+VLOOKUP($M$38,'Fertilizer Products & Pricing'!$A$42:$O$55,10,FALSE)*$Q$38 -> 0 | AG36: =VLOOKUP($Y39,'Fertilizer Products & Pricing'!$A$42:$O$55,8,FALSE)*$AC39+VLOOKUP($Y40,'Fertilizer Products & Pricing'!$A$42:$O$55,8,FALSE)*$AC40+VLOOKUP($Y41,'Fertilizer Products & Pricing'!$A$42:$O$55,8,FALSE)*$AC41+VLOOKUP($Y38,'Fertilizer Products & Pricing'!$A$42:$O$55,8,FALSE)*$AC38 -> 0 | AH36: =VLOOKUP($Y39,'Fertilizer Products & Pricing'!$A$42:$O$55,9,FALSE)*$AC39+VLOOKUP($Y40,'Fertilizer Products & Pricing'!$A$42:$O$55,9,FALSE)*$AC40+VLOOKUP($Y41,'Fertilizer Products & Pricing'!$A$42:$O$55,9,FALSE)*$AC41+VLOOKUP($Y38,'Fertilizer Products & Pricing'!$A$42:$O$55,9,FALSE)*$AC38 -> 0 | AI36: =VLOOKUP($Y39,'Fertilizer Products & Pricing'!$A$42:$O$55,10,FALSE)*$AC39+VLOOKUP($Y40,'Fertilizer Products & Pricing'!$A$42:$O$55,10,FALSE)*$AC40+VLOOKUP($Y41,'Fertilizer Products & Pricing'!$A$42:$O$55,10,FALSE)*$AC41+VLOOKUP($Y38,'Fertilizer Products & Pricing'!$A$42:$O$55,10,FALSE)*$AC38 -> 0
A37: Micronutrients (drop down menu) | M37: Micronutrients (drop down menu) | Y37: Micronutrients (drop down menu)
A38: None | B38: =VLOOKUP($A38,Micronutrients,14,FALSE) -> None | C38: =VLOOKUP($A38,Micronutrients,15,FALSE) -> 0 | D38: =VLOOKUP($A38,Micronutrients,13,FALSE) -> 1 | E38: 0 | F38: =VLOOKUP($A38,Micronutrients,12,FALSE) -> 0 | G38: =(E38*VLOOKUP(A38,Micronutrients,11,FALSE)/D38)*C38 -> 0 | M38: None | N38: =VLOOKUP($M38,Micronutrients,14,FALSE) -> None | O38: =VLOOKUP($M38,Micronutrients,15,FALSE) -> 0 | P38: =VLOOKUP($M38,Micronutrients,13,FALSE) -> 1 | Q38: 0 | R38: =VLOOKUP($M38,Micronutrients,12,FALSE) -> 0 | S38: =(Q38*VLOOKUP(M38,Micronutrients,11,FALSE)/P38)*O38 -> 0 | Y38: None | Z38: =VLOOKUP(Y38,Micronutrients,14,FALSE) -> None | AA38: =VLOOKUP(Y38,Micronutrients,15,FALSE) -> 0 | AB38: =VLOOKUP(Y38,Micronutrients,13,FALSE) -> 1 | AC38: 0 | AD38: =VLOOKUP(Y38,Micronutrients,12,FALSE) -> 0 | AE38: =(AC38*VLOOKUP(Y38,Micronutrients,11,FALSE)/AB38)*AA38 -> 0
A39: None | B39: =VLOOKUP($A39,Micronutrients,14,FALSE) -> None | C39: =VLOOKUP($A39,Micronutrients,15,FALSE) -> 0 | D39: =VLOOKUP($A39,Micronutrients,13,FALSE) -> 1 | E39: 0 | F39: =VLOOKUP($A39,Micronutrients,12,FALSE) -> 0 | G39: =(E39*VLOOKUP(A39,Micronutrients,11,FALSE)/D39)*C39 -> 0 | M39: None | N39: =VLOOKUP($M39,Micronutrients,14,FALSE) -> None | O39: =VLOOKUP($M39,Micronutrients,15,FALSE) -> 0 | P39: =VLOOKUP($M39,Micronutrients,13,FALSE) -> 1 | Q39: 0 | R39: =VLOOKUP($M39,Micronutrients,12,FALSE) -> 0 | S39: =(Q39*VLOOKUP(M39,Micronutrients,11,FALSE)/P39)*O39 -> 0 | Y39: None | Z39: =VLOOKUP(Y39,Micronutrients,14,FALSE) -> None | AA39: =VLOOKUP(Y39,Micronutrients,15,FALSE) -> 0 | AB39: =VLOOKUP(Y39,Micronutrients,13,FALSE) -> 1 | AC39: 0 | AD39: =VLOOKUP(Y39,Micronutrients,12,FALSE) -> 0 | AE39: =(AC39*VLOOKUP(Y39,Micronutrients,11,FALSE)/AB39)*AA39 -> 0
A40: None | B40: =VLOOKUP($A40,Micronutrients,14,FALSE) -> None | C40: =VLOOKUP($A40,Micronutrients,15,FALSE) -> 0 | D40: =VLOOKUP($A40,Micronutrients,13,FALSE) -> 1 | E40: 0 | F40: =VLOOKUP($A40,Micronutrients,12,FALSE) -> 0 | G40: =(E40*VLOOKUP(A40,Micronutrients,11,FALSE)/D40)*C40 -> 0 | M40: None | N40: =VLOOKUP($M40,Micronutrients,14,FALSE) -> None | O40: =VLOOKUP($M40,Micronutrients,15,FALSE) -> 0 | P40: =VLOOKUP($M40,Micronutrients,13,FALSE) -> 1 | Q40: 0 | R40: =VLOOKUP($M40,Micronutrients,12,FALSE) -> 0 | S40: =(Q40*VLOOKUP(M40,Micronutrients,11,FALSE)/P40)*O40 -> 0 | Y40: None | Z40: =VLOOKUP(Y40,Micronutrients,14,FALSE) -> None | AA40: =VLOOKUP(Y40,Micronutrients,15,FALSE) -> 0 | AB40: =VLOOKUP(Y40,Micronutrients,13,FALSE) -> 1 | AC40: 0 | AD40: =VLOOKUP(Y40,Micronutrients,12,FALSE) -> 0 | AE40: =(AC40*VLOOKUP(Y40,Micronutrients,11,FALSE)/AB40)*AA40 -> 0
A41: None | B41: =VLOOKUP($A41,Micronutrients,14,FALSE) -> None | C41: =VLOOKUP($A41,Micronutrients,15,FALSE) -> 0 | D41: =VLOOKUP($A41,Micronutrients,13,FALSE) -> 1 | E41: 0 | F41: =VLOOKUP($A41,Micronutrients,12,FALSE) -> 0 | G41: =(E41*VLOOKUP(A41,Micronutrients,11,FALSE)/D41)*C41 -> 0 | M41: None | N41: =VLOOKUP($M41,Micronutrients,14,FALSE) -> None | O41: =VLOOKUP($M41,Micronutrients,15,FALSE) -> 0 | P41: =VLOOKUP($M41,Micronutrients,13,FALSE) -> 1 | Q41: 0 | R41: =VLOOKUP($M41,Micronutrients,12,FALSE) -> 0 | S41: =(Q41*VLOOKUP(M41,Micronutrients,11,FALSE)/P41)*O41 -> 0 | Y41: None | Z41: =VLOOKUP(Y41,Micronutrients,14,FALSE) -> None | AA41: =VLOOKUP(Y41,Micronutrients,15,FALSE) -> 0 | AB41: =VLOOKUP(Y41,Micronutrients,13,FALSE) -> 1 | AC41: 0 | AD41: =VLOOKUP(Y41,Micronutrients,12,FALSE) -> 0 | AE41: =(AC41*VLOOKUP(Y41,Micronutrients,11,FALSE)/AB41)*AA41 -> 0
A43: Nitrogen Stabilizers (drop down menu) | M43: Nitrogen Stabilizers (drop down menu) | Y43: Nitrogen Stabilizers (drop down menu)
A44: None | B44: =VLOOKUP(A44,NitrogenStabilizers,14,FALSE) -> None | C44: =VLOOKUP(A44,NitrogenStabilizers,15,FALSE) -> 0 | D44: =VLOOKUP(A44,NitrogenStabilizers,13,FALSE) -> 1 | E44: 0 | F44: =VLOOKUP(A44,NitrogenStabilizers,12,FALSE) -> 0 | G44: =(E44*VLOOKUP(A44,NitrogenStabilizers,11,FALSE)/D44)*C44 -> 0 | M44: None | N44: =VLOOKUP(M44,NitrogenStabilizers,14,FALSE) -> None | O44: =VLOOKUP(M44,NitrogenStabilizers,15,FALSE) -> 0 | P44: =VLOOKUP(M44,NitrogenStabilizers,13,FALSE) -> 1 | Q44: 0 | R44: =VLOOKUP(M44,NitrogenStabilizers,12,FALSE) -> 0 | S44: =(Q44*VLOOKUP(M44,NitrogenStabilizers,11,FALSE)/P44)*O44 -> 0 | Y44: None | Z44: =VLOOKUP(Y44,NitrogenStabilizers,14,FALSE) -> None | AA44: =VLOOKUP(Y44,NitrogenStabilizers,15,FALSE) -> 0 | AB44: =VLOOKUP(Y44,NitrogenStabilizers,13,FALSE) -> 1 | AC44: 0 | AD44: =VLOOKUP(Y44,NitrogenStabilizers,12,FALSE) -> 0 | AE44: =(AC44*VLOOKUP(Y44,NitrogenStabilizers,11,FALSE)/AB44)*AA44 -> 0
A45: None | B45: =VLOOKUP(A45,NitrogenStabilizers,14,FALSE) -> None | C45: =VLOOKUP(A45,NitrogenStabilizers,15,FALSE) -> 0 | D45: =VLOOKUP(A45,NitrogenStabilizers,13,FALSE) -> 1 | E45: 0 | F45: =VLOOKUP(A45,NitrogenStabilizers,12,FALSE) -> 0 | G45: =(E45*VLOOKUP(A45,NitrogenStabilizers,11,FALSE)/D45)*C45 -> 0 | K45: More | M45: None | N45: =VLOOKUP(M45,NitrogenStabilizers,14,FALSE) -> None | O45: =VLOOKUP(M45,NitrogenStabilizers,15,FALSE) -> 0 | P45: =VLOOKUP(M45,NitrogenStabilizers,13,FALSE) -> 1 | Q45: 0 | R45: =VLOOKUP(M45,NitrogenStabilizers,12,FALSE) -> 0 | S45: =(Q45*VLOOKUP(M45,NitrogenStabilizers,11,FALSE)/P45)*O45 -> 0 | W45: More | Y45: None | Z45: =VLOOKUP(Y45,NitrogenStabilizers,14,FALSE) -> None | AA45: =VLOOKUP(Y45,NitrogenStabilizers,15,FALSE) -> 0 | AB45: =VLOOKUP(Y45,NitrogenStabilizers,13,FALSE) -> 1 | AC45: 0 | AD45: =VLOOKUP(Y45,NitrogenStabilizers,12,FALSE) -> 0 | AE45: =(AC45*VLOOKUP(Y45,NitrogenStabilizers,11,FALSE)/AB45)*AA45 -> 0 | AI45: More
A46: 2nd Application Fertilizer Cost/Acre | G46: =SUM(G30:G45) -> 0 | K46: Below | M46: 2nd Application Fertilizer Cost/Acre | S46: =SUM(S30:S45) -> 0 | W46: Below | Y46: 2nd Application Fertilizer Cost/Acre | AE46: =SUM(AE30:AE45) -> 0 | AI46: Below
K47: ¯ | W47: ¯ | AI47: ¯
A48: 3rd Application (i.e., Side-Dress or Broadcast) | M48: 3rd Application (i.e., Side-Dress or Broadcast) | Y48: 3rd Application (i.e., Side-Dress or Broadcast)
A49: Fertilizer Source | B49: Purchase Units | C49: Package Price (Gals, Lbs, etc.) | D49: Units/Pkg | E49: Rate/Acre | F49: Units | G49: Cost | M49: Fertilizer Source | N49: Purchase Units | O49: Package Price (Gals, Lbs, etc.) | P49: Units/Pkg | Q49: Rate/Acre | R49: Units | S49: Cost | Y49: Fertilizer Source | Z49: Purchase Units | AA49: Package Price (Gals, Lbs, etc.) | AB49: Units/Pkg | AC49: Rate/Acre | AD49: Units | AE49: Cost
A50: Macronutrients (drop down menu) | E50: (Enter Below) | I50: N | J50: P | K50: K | M50: Macronutrients (drop down menu) | Q50: (Enter Below) | U50: N | V50: P | W50: K | Y50: Macronutrients (drop down menu) | AC50: (Enter Below) | AG50: N | AH50: P | AI50: K
A51: None | B51: =VLOOKUP(A51,Macronutrients,14,FALSE) -> None | C51: =VLOOKUP(A51,'Fertilizer Products & Pricing'!$A$4:$O$38,15,FALSE) -> 0 | D51: =VLOOKUP($A51,Macronutrients,13,FALSE) -> 1 | E51: 0 | F51: =VLOOKUP($A51,Macronutrients,12,FALSE) -> 0 | G51: =(E51*VLOOKUP(A51,Macronutrients,11,FALSE)/D51)*C51 -> 0 | I51: =VLOOKUP(A51,'Fertilizer Products & Pricing'!$A$4:$O$38,2,FALSE)*E51+VLOOKUP(A52,'Fertilizer Products & Pricing'!$A$4:$O$38,2,FALSE)*E52+VLOOKUP(A53,'Fertilizer Products & Pricing'!$A$4:$O$38,2,FALSE)*E53+VLOOKUP(A54,'Fertilizer Products & Pricing'!$A$4:$O$38,2,FALSE)*E54+VLOOKUP(A55,'Fertilizer Products & Pricing'!$A$4:$O$38,2,FALSE)*E55+VLOOKUP(A56,'Fertilizer Products & Pricing'!$A$4:$O$38,2,FALSE)*E56+VLOOKUP(A59,'Fertilizer Products & Pricing'!$A$42:$O$55,2,FALSE)*E59+VLOOKUP(A60,'Fertilizer Products & Pricing'!$A$42:$O$55,2,FALSE)*E60+VLOOKUP(A61,'Fertilizer Products & Pricing'!$A$42:$O$55,2,FALSE)*E61+VLOOKUP(A62,'Fertilizer Products & Pricing'!$A$42:$O$55,2,FALSE)*E62 -> 0 | J51: =VLOOKUP(A51,'Fertilizer Products & Pricing'!$A$4:$O$38,3,FALSE)*E51+VLOOKUP(A52,'Fertilizer Products & Pricing'!$A$4:$O$38,3,FALSE)*E52+VLOOKUP(A53,'Fertilizer Products & Pricing'!$A$4:$O$38,3,FALSE)*E53+VLOOKUP(A54,'Fertilizer Products & Pricing'!$A$4:$O$38,3,FALSE)*E54+VLOOKUP(A55,'Fertilizer Products & Pricing'!$A$4:$O$38,3,FALSE)*E55+VLOOKUP(A56,'Fertilizer Products & Pricing'!$A$4:$O$38,3,FALSE)*E56+VLOOKUP(A59,'Fertilizer Products & Pricing'!$A$42:$O$55,3,FALSE)*E59+VLOOKUP(A60,'Fertilizer Products & Pricing'!$A$42:$O$55,3,FALSE)*E60+VLOOKUP(A61,'Fertilizer Products & Pricing'!$A$42:$O$55,3,FALSE)*E61+VLOOKUP(A62,'Fertilizer Products & Pricing'!$A$42:$O$55,3,FALSE)*E62 -> 0 | K51: =VLOOKUP(A51,'Fertilizer Products & Pricing'!$A$4:$O$38,4,FALSE)*E51+VLOOKUP(A52,'Fertilizer Products & Pricing'!$A$4:$O$38,4,FALSE)*E52+VLOOKUP(A53,'Fertilizer Products & Pricing'!$A$4:$O$38,4,FALSE)*E53+VLOOKUP(A54,'Fertilizer Products & Pricing'!$A$4:$O$38,4,FALSE)*E54+VLOOKUP(A55,'Fertilizer Products & Pricing'!$A$4:$O$38,4,FALSE)*E55+VLOOKUP(A56,'Fertilizer Products & Pricing'!$A$4:$O$38,4,FALSE)*E56+VLOOKUP(A59,'Fertilizer Products & Pricing'!$A$42:$O$55,4,FALSE)*E59+VLOOKUP(A60,'Fertilizer Products & Pricing'!$A$42:$O$55,4,FALSE)*E60+VLOOKUP(A61,'Fertilizer Products & Pricing'!$A$42:$O$55,4,FALSE)*E61+VLOOKUP(A62,'Fertilizer Products & Pricing'!$A$42:$O$55,4,FALSE)*E62 -> 0 | M51: None | N51: =VLOOKUP(M51,Macronutrients,14,FALSE) -> None | O51: =VLOOKUP(M51,'Fertilizer Products & Pricing'!$A$4:$O$38,15,FALSE) -> 0 | P51: =VLOOKUP($M51,Macronutrients,13,FALSE) -> 1 | Q51: 0 | R51: =VLOOKUP($M51,Macronutrients,12,FALSE) -> 0 | S51: =(Q51*VLOOKUP(M51,Macronutrients,11,FALSE)/P51)*O51 -> 0 | U51: =VLOOKUP(M51,'Fertilizer Products & Pricing'!$A$4:$O$38,2,FALSE)*Q51+VLOOKUP(M52,'Fertilizer Products & Pricing'!$A$4:$O$38,2,FALSE)*Q52+VLOOKUP(M53,'Fertilizer Products & Pricing'!$A$4:$O$38,2,FALSE)*Q53+VLOOKUP(M54,'Fertilizer Products & Pricing'!$A$4:$O$38,2,FALSE)*Q54+VLOOKUP(M55,'Fertilizer Products & Pricing'!$A$4:$O$38,2,FALSE)*Q55+VLOOKUP(M56,'Fertilizer Products & Pricing'!$A$4:$O$38,2,FALSE)*Q56+VLOOKUP(M59,'Fertilizer Products & Pricing'!$A$42:$O$55,2,FALSE)*Q59+VLOOKUP(M60,'Fertilizer Products & Pricing'!$A$42:$O$55,2,FALSE)*Q60+VLOOKUP(M61,'Fertilizer Products & Pricing'!$A$42:$O$55,2,FALSE)*Q61+VLOOKUP(M62,'Fertilizer Products & Pricing'!$A$42:$O$55,2,FALSE)*Q62 -> 0 | V51: =VLOOKUP(M51,'Fertilizer Products & Pricing'!$A$4:$O$38,3,FALSE)*Q51+VLOOKUP(M52,'Fertilizer Products & Pricing'!$A$4:$O$38,3,FALSE)*Q52+VLOOKUP(M53,'Fertilizer Products & Pricing'!$A$4:$O$38,3,FALSE)*Q53+VLOOKUP(M54,'Fertilizer Products & Pricing'!$A$4:$O$38,3,FALSE)*Q54+VLOOKUP(M55,'Fertilizer Products & Pricing'!$A$4:$O$38,3,FALSE)*Q55+VLOOKUP(M56,'Fertilizer Products & Pricing'!$A$4:$O$38,3,FALSE)*Q56+VLOOKUP(M59,'Fertilizer Products & Pricing'!$A$42:$O$55,3,FALSE)*Q59+VLOOKUP(M60,'Fertilizer Products & Pricing'!$A$42:$O$55,3,FALSE)*Q60+VLOOKUP(M61,'Fertilizer Products & Pricing'!$A$42:$O$55,3,FALSE)*Q61+VLOOKUP(M62,'Fertilizer Products & Pricing'!$A$42:$O$55,3,FALSE)*Q62 -> 0 | W51: =VLOOKUP(M51,'Fertilizer Products & Pricing'!$A$4:$O$38,4,FALSE)*Q51+VLOOKUP(M52,'Fertilizer Products & Pricing'!$A$4:$O$38,4,FALSE)*Q52+VLOOKUP(M53,'Fertilizer Products & Pricing'!$A$4:$O$38,4,FALSE)*Q53+VLOOKUP(M54,'Fertilizer Products & Pricing'!$A$4:$O$38,4,FALSE)*Q54+VLOOKUP(M55,'Fertilizer Products & Pricing'!$A$4:$O$38,4,FALSE)*Q55+VLOOKUP(M56,'Fertilizer Products & Pricing'!$A$4:$O$38,4,FALSE)*Q56+VLOOKUP(M59,'Fertilizer Products & Pricing'!$A$42:$O$55,4,FALSE)*Q59+VLOOKUP(M60,'Fertilizer Products & Pricing'!$A$42:$O$55,4,FALSE)*Q60+VLOOKUP(M61,'Fertilizer Products & Pricing'!$A$42:$O$55,4,FALSE)*Q61+VLOOKUP(M62,'Fertilizer Products & Pricing'!$A$42:$O$55,4,FALSE)*Q62 -> 0 | Y51: None | Z51: =VLOOKUP(Y51,Macronutrients,14,FALSE) -> None | AA51: =VLOOKUP(Y51,'Fertilizer Products & Pricing'!$A$4:$O$38,15,FALSE) -> 0 | AB51: =VLOOKUP($Y51,Macronutrients,13,FALSE) -> 1 | AC51: 0 | AD51: =VLOOKUP($Y51,Macronutrients,12,FALSE) -> 0 | AE51: =(AC51*VLOOKUP(Y51,Macronutrients,11,FALSE)/AB51)*AA51 -> 0 | AG51: =VLOOKUP(Y51,'Fertilizer Products & Pricing'!$A$4:$O$38,2,FALSE)*AC51+VLOOKUP(Y52,'Fertilizer Products & Pricing'!$A$4:$O$38,2,FALSE)*AC52+VLOOKUP(Y53,'Fertilizer Products & Pricing'!$A$4:$O$38,2,FALSE)*AC53+VLOOKUP(Y54,'Fertilizer Products & Pricing'!$A$4:$O$38,2,FALSE)*AC54+VLOOKUP(Y55,'Fertilizer Products & Pricing'!$A$4:$O$38,2,FALSE)*AC55+VLOOKUP(Y56,'Fertilizer Products & Pricing'!$A$4:$O$38,2,FALSE)*AC56+VLOOKUP(Y59,'Fertilizer Products & Pricing'!$A$42:$O$55,2,FALSE)*AC59+VLOOKUP(Y60,'Fertilizer Products & Pricing'!$A$42:$O$55,2,FALSE)*AC60+VLOOKUP(Y61,'Fertilizer Products & Pricing'!$A$42:$O$55,2,FALSE)*AC61+VLOOKUP(Y62,'Fertilizer Products & Pricing'!$A$42:$O$55,2,FALSE)*AC62 -> 0 | AH51: =VLOOKUP(Y51,'Fertilizer Products & Pricing'!$A$4:$O$38,3,FALSE)*AC51+VLOOKUP(Y52,'Fertilizer Products & Pricing'!$A$4:$O$38,3,FALSE)*AC52+VLOOKUP(Y53,'Fertilizer Products & Pricing'!$A$4:$O$38,3,FALSE)*AC53+VLOOKUP(Y54,'Fertilizer Products & Pricing'!$A$4:$O$38,3,FALSE)*AC54+VLOOKUP(Y55,'Fertilizer Products & Pricing'!$A$4:$O$38,3,FALSE)*AC55+VLOOKUP(Y56,'Fertilizer Products & Pricing'!$A$4:$O$38,3,FALSE)*AC56+VLOOKUP(Y59,'Fertilizer Products & Pricing'!$A$42:$O$55,3,FALSE)*AC59+VLOOKUP(Y60,'Fertilizer Products & Pricing'!$A$42:$O$55,3,FALSE)*AC60+VLOOKUP(Y61,'Fertilizer Products & Pricing'!$A$42:$O$55,3,FALSE)*AC61+VLOOKUP(Y62,'Fertilizer Products & Pricing'!$A$42:$O$55,3,FALSE)*AC62 -> 0 | AI51: =VLOOKUP(Y51,'Fertilizer Products & Pricing'!$A$4:$O$38,4,FALSE)*AC51+VLOOKUP(Y52,'Fertilizer Products & Pricing'!$A$4:$O$38,4,FALSE)*AC52+VLOOKUP(Y53,'Fertilizer Products & Pricing'!$A$4:$O$38,4,FALSE)*AC53+VLOOKUP(Y54,'Fertilizer Products & Pricing'!$A$4:$O$38,4,FALSE)*AC54+VLOOKUP(Y55,'Fertilizer Products & Pricing'!$A$4:$O$38,4,FALSE)*AC55+VLOOKUP(Y56,'Fertilizer Products & Pricing'!$A$4:$O$38,4,FALSE)*AC56+VLOOKUP(Y59,'Fertilizer Products & Pricing'!$A$42:$O$55,4,FALSE)*AC59+VLOOKUP(Y60,'Fertilizer Products & Pricing'!$A$42:$O$55,4,FALSE)*AC60+VLOOKUP(Y61,'Fertilizer Products & Pricing'!$A$42:$O$55,4,FALSE)*AC61+VLOOKUP(Y62,'Fertilizer Products & Pricing'!$A$42:$O$55,4,FALSE)*AC62 -> 0
A52: None | B52: None | C52: =VLOOKUP(A52,'Fertilizer Products & Pricing'!$A$4:$O$38,15,FALSE) -> 0 | D52: 1 | E52: 0 | F52: 0 | G52: 0 | M52: None | N52: =VLOOKUP(M52,Macronutrients,14,FALSE) -> None | O52: =VLOOKUP(M52,'Fertilizer Products & Pricing'!$A$4:$O$38,15,FALSE) -> 0 | P52: 1 | Q52: 0 | R52: 0 | S52: =(Q52*VLOOKUP(M52,Macronutrients,11,FALSE)/P52)*O52 -> 0 | Y52: None | Z52: =VLOOKUP(Y52,Macronutrients,14,FALSE) -> None | AA52: =VLOOKUP(Y52,'Fertilizer Products & Pricing'!$A$4:$O$38,15,FALSE) -> 0 | AB52: 1 | AC52: 0 | AD52: 0 | AE52: =(AC52*VLOOKUP(Y52,Macronutrients,11,FALSE)/AB52)*AA52 -> 0
A53: None | B53: None | C53: =VLOOKUP(A53,'Fertilizer Products & Pricing'!$A$4:$O$38,15,FALSE) -> 0 | D53: 1 | E53: 0 | F53: 0 | G53: 0 | I53: S | J53: Ca | K53: Mg | M53: None | N53: None | O53: =VLOOKUP(M53,'Fertilizer Products & Pricing'!$A$4:$O$38,15,FALSE) -> 0 | P53: 1 | Q53: 0 | R53: 0 | S53: 0 | U53: S | V53: Ca | W53: Mg | Y53: None | Z53: None | AA53: =VLOOKUP(Y53,'Fertilizer Products & Pricing'!$A$4:$O$38,15,FALSE) -> 0 | AB53: 1 | AC53: 0 | AD53: 0 | AE53: 0 | AG53: S | AH53: Ca | AI53: Mg
A54: None | B54: None | C54: =VLOOKUP(A54,'Fertilizer Products & Pricing'!$A$4:$O$38,15,FALSE) -> 0 | D54: 1 | E54: 0 | F54: 0 | G54: 0 | I54: =VLOOKUP(A51,'Fertilizer Products & Pricing'!$A$4:$O$38,5,FALSE)*E51+VLOOKUP(A52,'Fertilizer Products & Pricing'!$A$4:$O$38,5,FALSE)*E52+VLOOKUP(A53,'Fertilizer Products & Pricing'!$A$4:$O$38,5,FALSE)*E53+VLOOKUP(A54,'Fertilizer Products & Pricing'!$A$4:$O$38,5,FALSE)*E54+VLOOKUP(A55,'Fertilizer Products & Pricing'!$A$4:$O$38,5,FALSE)*E55+VLOOKUP(A56,'Fertilizer Products & Pricing'!$A$4:$O$38,5,FALSE)*E56+VLOOKUP(A59,'Fertilizer Products & Pricing'!$A$42:$O$55,5,FALSE)*E59+VLOOKUP(A60,'Fertilizer Products & Pricing'!$A$42:$O$55,5,FALSE)*E60+VLOOKUP(A61,'Fertilizer Products & Pricing'!$A$42:$O$55,5,FALSE)*E61+VLOOKUP(A62,'Fertilizer Products & Pricing'!$A$42:$O$55,5,FALSE)*E62 -> 0 | J54: =VLOOKUP(A51,'Fertilizer Products & Pricing'!$A$4:$O$38,7,FALSE)*E51+VLOOKUP(A52,'Fertilizer Products & Pricing'!$A$4:$O$38,7,FALSE)*E52+VLOOKUP(A53,'Fertilizer Products & Pricing'!$A$4:$O$38,7,FALSE)*E53+VLOOKUP(A54,'Fertilizer Products & Pricing'!$A$4:$O$38,7,FALSE)*E54+VLOOKUP(A55,'Fertilizer Products & Pricing'!$A$4:$O$38,7,FALSE)*E55+VLOOKUP(A56,'Fertilizer Products & Pricing'!$A$4:$O$38,7,FALSE)*E56+VLOOKUP(A59,'Fertilizer Products & Pricing'!$A$42:$O$55,7,FALSE)*E59+VLOOKUP(A60,'Fertilizer Products & Pricing'!$A$42:$O$55,7,FALSE)*E60+VLOOKUP(A61,'Fertilizer Products & Pricing'!$A$42:$O$55,7,FALSE)*E61+VLOOKUP(A62,'Fertilizer Products & Pricing'!$A$42:$O$55,7,FALSE)*E62 -> 0 | K54: =VLOOKUP(A51,'Fertilizer Products & Pricing'!$A$4:$O$38,6,FALSE)*E51+VLOOKUP(A52,'Fertilizer Products & Pricing'!$A$4:$O$38,6,FALSE)*E52+VLOOKUP(A53,'Fertilizer Products & Pricing'!$A$4:$O$38,6,FALSE)*E53+VLOOKUP(A54,'Fertilizer Products & Pricing'!$A$4:$O$38,6,FALSE)*E54+VLOOKUP(A55,'Fertilizer Products & Pricing'!$A$4:$O$38,6,FALSE)*E55+VLOOKUP(A56,'Fertilizer Products & Pricing'!$A$4:$O$38,6,FALSE)*E56+VLOOKUP(A59,'Fertilizer Products & Pricing'!$A$42:$O$55,6,FALSE)*E59+VLOOKUP(A60,'Fertilizer Products & Pricing'!$A$42:$O$55,6,FALSE)*E60+VLOOKUP(A61,'Fertilizer Products & Pricing'!$A$42:$O$55,6,FALSE)*E61+VLOOKUP(A62,'Fertilizer Products & Pricing'!$A$42:$O$55,6,FALSE)*E62 -> 0 | M54: None | N54: None | O54: =VLOOKUP(M54,'Fertilizer Products & Pricing'!$A$4:$O$38,15,FALSE) -> 0 | P54: 1 | Q54: 0 | R54: 0 | S54: 0 | U54: =VLOOKUP(M51,'Fertilizer Products & Pricing'!$A$4:$O$38,5,FALSE)*Q51+VLOOKUP(M52,'Fertilizer Products & Pricing'!$A$4:$O$38,5,FALSE)*Q52+VLOOKUP(M53,'Fertilizer Products & Pricing'!$A$4:$O$38,5,FALSE)*Q53+VLOOKUP(M54,'Fertilizer Products & Pricing'!$A$4:$O$38,5,FALSE)*Q54+VLOOKUP(M55,'Fertilizer Products & Pricing'!$A$4:$O$38,5,FALSE)*Q55+VLOOKUP(M56,'Fertilizer Products & Pricing'!$A$4:$O$38,5,FALSE)*Q56+VLOOKUP(M59,'Fertilizer Products & Pricing'!$A$42:$O$55,5,FALSE)*Q59+VLOOKUP(M60,'Fertilizer Products & Pricing'!$A$42:$O$55,5,FALSE)*Q60+VLOOKUP(M61,'Fertilizer Products & Pricing'!$A$42:$O$55,5,FALSE)*Q61+VLOOKUP(M62,'Fertilizer Products & Pricing'!$A$42:$O$55,5,FALSE)*Q62 -> 0 | V54: =VLOOKUP(M51,'Fertilizer Products & Pricing'!$A$4:$O$38,7,FALSE)*Q51+VLOOKUP(M52,'Fertilizer Products & Pricing'!$A$4:$O$38,7,FALSE)*Q52+VLOOKUP(M53,'Fertilizer Products & Pricing'!$A$4:$O$38,7,FALSE)*Q53+VLOOKUP(M54,'Fertilizer Products & Pricing'!$A$4:$O$38,7,FALSE)*Q54+VLOOKUP(M55,'Fertilizer Products & Pricing'!$A$4:$O$38,7,FALSE)*Q55+VLOOKUP(M56,'Fertilizer Products & Pricing'!$A$4:$O$38,7,FALSE)*Q56+VLOOKUP(M59,'Fertilizer Products & Pricing'!$A$42:$O$55,7,FALSE)*Q59+VLOOKUP(M60,'Fertilizer Products & Pricing'!$A$42:$O$55,7,FALSE)*Q60+VLOOKUP(M61,'Fertilizer Products & Pricing'!$A$42:$O$55,7,FALSE)*Q61+VLOOKUP(M62,'Fertilizer Products & Pricing'!$A$42:$O$55,7,FALSE)*Q62 -> 0 | W54: =VLOOKUP(M51,'Fertilizer Products & Pricing'!$A$4:$O$38,6,FALSE)*Q51+VLOOKUP(M52,'Fertilizer Products & Pricing'!$A$4:$O$38,6,FALSE)*Q52+VLOOKUP(M53,'Fertilizer Products & Pricing'!$A$4:$O$38,6,FALSE)*Q53+VLOOKUP(M54,'Fertilizer Products & Pricing'!$A$4:$O$38,6,FALSE)*Q54+VLOOKUP(M55,'Fertilizer Products & Pricing'!$A$4:$O$38,6,FALSE)*Q55+VLOOKUP(M56,'Fertilizer Products & Pricing'!$A$4:$O$38,6,FALSE)*Q56+VLOOKUP(M59,'Fertilizer Products & Pricing'!$A$42:$O$55,6,FALSE)*Q59+VLOOKUP(M60,'Fertilizer Products & Pricing'!$A$42:$O$55,6,FALSE)*Q60+VLOOKUP(M61,'Fertilizer Products & Pricing'!$A$42:$O$55,6,FALSE)*Q61+VLOOKUP(M62,'Fertilizer Products & Pricing'!$A$42:$O$55,6,FALSE)*Q62 -> 0 | Y54: None | Z54: None | AA54: =VLOOKUP(Y54,'Fertilizer Products & Pricing'!$A$4:$O$38,15,FALSE) -> 0 | AB54: 1 | AC54: 0 | AD54: 0 | AE54: 0 | AG54: =VLOOKUP(Y51,'Fertilizer Products & Pricing'!$A$4:$O$38,5,FALSE)*AC51+VLOOKUP(Y52,'Fertilizer Products & Pricing'!$A$4:$O$38,5,FALSE)*AC52+VLOOKUP(Y53,'Fertilizer Products & Pricing'!$A$4:$O$38,5,FALSE)*AC53+VLOOKUP(Y54,'Fertilizer Products & Pricing'!$A$4:$O$38,5,FALSE)*AC54+VLOOKUP(Y55,'Fertilizer Products & Pricing'!$A$4:$O$38,5,FALSE)*AC55+VLOOKUP(Y56,'Fertilizer Products & Pricing'!$A$4:$O$38,5,FALSE)*AC56+VLOOKUP(Y59,'Fertilizer Products & Pricing'!$A$42:$O$55,5,FALSE)*AC59+VLOOKUP(Y60,'Fertilizer Products & Pricing'!$A$42:$O$55,5,FALSE)*AC60+VLOOKUP(Y61,'Fertilizer Products & Pricing'!$A$42:$O$55,5,FALSE)*AC61+VLOOKUP(Y62,'Fertilizer Products & Pricing'!$A$42:$O$55,5,FALSE)*AC62 -> 0 | AH54: =VLOOKUP(Y51,'Fertilizer Products & Pricing'!$A$4:$O$38,7,FALSE)*AC51+VLOOKUP(Y52,'Fertilizer Products & Pricing'!$A$4:$O$38,7,FALSE)*AC52+VLOOKUP(Y53,'Fertilizer Products & Pricing'!$A$4:$O$38,7,FALSE)*AC53+VLOOKUP(Y54,'Fertilizer Products & Pricing'!$A$4:$O$38,7,FALSE)*AC54+VLOOKUP(Y55,'Fertilizer Products & Pricing'!$A$4:$O$38,7,FALSE)*AC55+VLOOKUP(Y56,'Fertilizer Products & Pricing'!$A$4:$O$38,7,FALSE)*AC56+VLOOKUP(Y59,'Fertilizer Products & Pricing'!$A$42:$O$55,7,FALSE)*AC59+VLOOKUP(Y60,'Fertilizer Products & Pricing'!$A$42:$O$55,7,FALSE)*AC60+VLOOKUP(Y61,'Fertilizer Products & Pricing'!$A$42:$O$55,7,FALSE)*AC61+VLOOKUP(Y62,'Fertilizer Products & Pricing'!$A$42:$O$55,7,FALSE)*AC62 -> 0 | AI54: =VLOOKUP(Y51,'Fertilizer Products & Pricing'!$A$4:$O$38,6,FALSE)*AC51+VLOOKUP(Y52,'Fertilizer Products & Pricing'!$A$4:$O$38,6,FALSE)*AC52+VLOOKUP(Y53,'Fertilizer Products & Pricing'!$A$4:$O$38,6,FALSE)*AC53+VLOOKUP(Y54,'Fertilizer Products & Pricing'!$A$4:$O$38,6,FALSE)*AC54+VLOOKUP(Y55,'Fertilizer Products & Pricing'!$A$4:$O$38,6,FALSE)*AC55+VLOOKUP(Y56,'Fertilizer Products & Pricing'!$A$4:$O$38,6,FALSE)*AC56+VLOOKUP(Y59,'Fertilizer Products & Pricing'!$A$42:$O$55,6,FALSE)*AC59+VLOOKUP(Y60,'Fertilizer Products & Pricing'!$A$42:$O$55,6,FALSE)*AC60+VLOOKUP(Y61,'Fertilizer Products & Pricing'!$A$42:$O$55,6,FALSE)*AC61+VLOOKUP(Y62,'Fertilizer Products & Pricing'!$A$42:$O$55,6,FALSE)*AC62 -> 0
A55: None | B55: None | C55: =VLOOKUP(A55,'Fertilizer Products & Pricing'!$A$4:$O$38,15,FALSE) -> 0 | D55: 1 | E55: 0 | F55: 0 | G55: 0 | M55: None | N55: None | O55: =VLOOKUP(M55,'Fertilizer Products & Pricing'!$A$4:$O$38,15,FALSE) -> 0 | P55: 1 | Q55: 0 | R55: 0 | S55: 0 | Y55: None | Z55: None | AA55: =VLOOKUP(Y55,'Fertilizer Products & Pricing'!$A$4:$O$38,15,FALSE) -> 0 | AB55: 1 | AC55: 0 | AD55: 0 | AE55: 0
A56: None | B56: None | C56: =VLOOKUP(A56,'Fertilizer Products & Pricing'!$A$4:$O$38,15,FALSE) -> 0 | D56: 1 | E56: 0 | F56: 0 | G56: 0 | I56: Zn | J56: B | K56: Mn | M56: None | N56: None | O56: =VLOOKUP(M56,'Fertilizer Products & Pricing'!$A$4:$O$38,15,FALSE) -> 0 | P56: 1 | Q56: 0 | R56: 0 | S56: 0 | U56: Zn | V56: B | W56: Mn | Y56: None | Z56: None | AA56: =VLOOKUP(Y56,'Fertilizer Products & Pricing'!$A$4:$O$38,15,FALSE) -> 0 | AB56: 1 | AC56: 0 | AD56: 0 | AE56: 0 | AG56: Zn | AH56: B | AI56: Mn
I57: =VLOOKUP($A$60,'Fertilizer Products & Pricing'!$A$42:$O$55,8,FALSE)*$E$60+VLOOKUP($A$61,'Fertilizer Products & Pricing'!$A$42:$O$55,8,FALSE)*$E$61+VLOOKUP($A$62,'Fertilizer Products & Pricing'!$A$42:$O$55,8,FALSE)*$E$62+VLOOKUP($A$59,'Fertilizer Products & Pricing'!$A$42:$O$55,8,FALSE)*$E$59 -> 0 | J57: =VLOOKUP($A$60,'Fertilizer Products & Pricing'!$A$42:$O$55,9,FALSE)*$E$60+VLOOKUP($A$61,'Fertilizer Products & Pricing'!$A$42:$O$55,9,FALSE)*$E$61+VLOOKUP($A$62,'Fertilizer Products & Pricing'!$A$42:$O$55,9,FALSE)*$E$62+VLOOKUP($A$59,'Fertilizer Products & Pricing'!$A$42:$O$55,9,FALSE)*$E$59 -> 0 | K57: =VLOOKUP($A$60,'Fertilizer Products & Pricing'!$A$42:$O$55,10,FALSE)*$E$60+VLOOKUP($A$61,'Fertilizer Products & Pricing'!$A$42:$O$55,10,FALSE)*$E$61+VLOOKUP($A$62,'Fertilizer Products & Pricing'!$A$42:$O$55,10,FALSE)*$E$62+VLOOKUP($A$59,'Fertilizer Products & Pricing'!$A$42:$O$55,10,FALSE)*$E$59 -> 0 | U57: =VLOOKUP($M60,'Fertilizer Products & Pricing'!$A$42:$O$55,8,FALSE)*$Q60+VLOOKUP($M61,'Fertilizer Products & Pricing'!$A$42:$O$55,8,FALSE)*$Q61+VLOOKUP($M62,'Fertilizer Products & Pricing'!$A$42:$O$55,8,FALSE)*$Q62+VLOOKUP($M59,'Fertilizer Products & Pricing'!$A$42:$O$55,8,FALSE)*$Q59 -> 0 | V57: =VLOOKUP($M60,'Fertilizer Products & Pricing'!$A$42:$O$55,9,FALSE)*$Q60+VLOOKUP($M61,'Fertilizer Products & Pricing'!$A$42:$O$55,9,FALSE)*$Q61+VLOOKUP($M62,'Fertilizer Products & Pricing'!$A$42:$O$55,9,FALSE)*$Q62+VLOOKUP($M59,'Fertilizer Products & Pricing'!$A$42:$O$55,9,FALSE)*$Q59 -> 0 | W57: =VLOOKUP($M60,'Fertilizer Products & Pricing'!$A$42:$O$55,10,FALSE)*$Q60+VLOOKUP($M61,'Fertilizer Products & Pricing'!$A$42:$O$55,10,FALSE)*$Q61+VLOOKUP($M62,'Fertilizer Products & Pricing'!$A$42:$O$55,10,FALSE)*$Q62+VLOOKUP($M59,'Fertilizer Products & Pricing'!$A$42:$O$55,10,FALSE)*$Q59 -> 0 | AG57: =VLOOKUP($Y60,'Fertilizer Products & Pricing'!$A$42:$O$55,8,FALSE)*$AC60+VLOOKUP($Y61,'Fertilizer Products & Pricing'!$A$42:$O$55,8,FALSE)*$AC61+VLOOKUP($Y62,'Fertilizer Products & Pricing'!$A$42:$O$55,8,FALSE)*$AC62+VLOOKUP($Y59,'Fertilizer Products & Pricing'!$A$42:$O$55,8,FALSE)*$AC59 -> 0 | AH57: =VLOOKUP($Y60,'Fertilizer Products & Pricing'!$A$42:$O$55,9,FALSE)*$AC60+VLOOKUP($Y61,'Fertilizer Products & Pricing'!$A$42:$O$55,9,FALSE)*$AC61+VLOOKUP($Y62,'Fertilizer Products & Pricing'!$A$42:$O$55,9,FALSE)*$AC62+VLOOKUP($Y59,'Fertilizer Products & Pricing'!$A$42:$O$55,9,FALSE)*$AC59 -> 0 | AI57: =VLOOKUP($Y60,'Fertilizer Products & Pricing'!$A$42:$O$55,10,FALSE)*$AC60+VLOOKUP($Y61,'Fertilizer Products & Pricing'!$A$42:$O$55,10,FALSE)*$AC61+VLOOKUP($Y62,'Fertilizer Products & Pricing'!$A$42:$O$55,10,FALSE)*$AC62+VLOOKUP($Y59,'Fertilizer Products & Pricing'!$A$42:$O$55,10,FALSE)*$AC59 -> 0
A58: Micronutrients (drop down menu) | M58: Micronutrients (drop down menu) | Y58: Micronutrients (drop down menu)
A59: None | B59: =VLOOKUP($A59,Micronutrients,14,FALSE) -> None | C59: =VLOOKUP($A59,Micronutrients,15,FALSE) -> 0 | D59: =VLOOKUP($A59,Micronutrients,13,FALSE) -> 1 | E59: 0 | F59: =VLOOKUP($A59,Micronutrients,12,FALSE) -> 0 | G59: =(E59*VLOOKUP(A59,Micronutrients,11,FALSE)/D59)*C59 -> 0 | M59: None | N59: =VLOOKUP($M59,Micronutrients,14,FALSE) -> None | O59: =VLOOKUP($M59,Micronutrients,15,FALSE) -> 0 | P59: =VLOOKUP($M59,Micronutrients,13,FALSE) -> 1 | Q59: 0 | R59: =VLOOKUP($M59,Micronutrients,12,FALSE) -> 0 | S59: =(Q59*VLOOKUP(M59,Micronutrients,11,FALSE)/P59)*O59 -> 0 | Y59: None | Z59: =VLOOKUP(Y59,Micronutrients,14,FALSE) -> None | AA59: =VLOOKUP(Y59,Micronutrients,15,FALSE) -> 0 | AB59: =VLOOKUP(Y59,Micronutrients,13,FALSE) -> 1 | AC59: 0 | AD59: =VLOOKUP(Y59,Micronutrients,12,FALSE) -> 0 | AE59: =(AC59*VLOOKUP(Y59,Micronutrients,11,FALSE)/AB59)*AA59 -> 0
A60: None | B60: =VLOOKUP($A60,Micronutrients,14,FALSE) -> None | C60: =VLOOKUP($A60,Micronutrients,15,FALSE) -> 0 | D60: =VLOOKUP($A60,Micronutrients,13,FALSE) -> 1 | E60: 0 | F60: =VLOOKUP($A60,Micronutrients,12,FALSE) -> 0 | G60: =(E60*VLOOKUP(A60,Micronutrients,11,FALSE)/D60)*C60 -> 0 | M60: None | N60: =VLOOKUP($M60,Micronutrients,14,FALSE) -> None | O60: =VLOOKUP($M60,Micronutrients,15,FALSE) -> 0 | P60: =VLOOKUP($M60,Micronutrients,13,FALSE) -> 1 | Q60: 0 | R60: =VLOOKUP($M60,Micronutrients,12,FALSE) -> 0 | S60: =(Q60*VLOOKUP(M60,Micronutrients,11,FALSE)/P60)*O60 -> 0 | Y60: None | Z60: =VLOOKUP(Y60,Micronutrients,14,FALSE) -> None | AA60: =VLOOKUP(Y60,Micronutrients,15,FALSE) -> 0 | AB60: =VLOOKUP(Y60,Micronutrients,13,FALSE) -> 1 | AC60: 0 | AD60: =VLOOKUP(Y60,Micronutrients,12,FALSE) -> 0 | AE60: =(AC60*VLOOKUP(Y60,Micronutrients,11,FALSE)/AB60)*AA60 -> 0
A61: None | B61: =VLOOKUP($A61,Micronutrients,14,FALSE) -> None | C61: =VLOOKUP($A61,Micronutrients,15,FALSE) -> 0 | D61: =VLOOKUP($A61,Micronutrients,13,FALSE) -> 1 | E61: 0 | F61: =VLOOKUP($A61,Micronutrients,12,FALSE) -> 0 | G61: =(E61*VLOOKUP(A61,Micronutrients,11,FALSE)/D61)*C61 -> 0 | M61: None | N61: =VLOOKUP($M61,Micronutrients,14,FALSE) -> None | O61: =VLOOKUP($M61,Micronutrients,15,FALSE) -> 0 | P61: =VLOOKUP($M61,Micronutrients,13,FALSE) -> 1 | Q61: 0 | R61: =VLOOKUP($M61,Micronutrients,12,FALSE) -> 0 | S61: =(Q61*VLOOKUP(M61,Micronutrients,11,FALSE)/P61)*O61 -> 0 | Y61: None | Z61: =VLOOKUP(Y61,Micronutrients,14,FALSE) -> None | AA61: =VLOOKUP(Y61,Micronutrients,15,FALSE) -> 0 | AB61: =VLOOKUP(Y61,Micronutrients,13,FALSE) -> 1 | AC61: 0 | AD61: =VLOOKUP(Y61,Micronutrients,12,FALSE) -> 0 | AE61: =(AC61*VLOOKUP(Y61,Micronutrients,11,FALSE)/AB61)*AA61 -> 0
A62: None | B62: =VLOOKUP($A62,Micronutrients,14,FALSE) -> None | C62: =VLOOKUP($A62,Micronutrients,15,FALSE) -> 0 | D62: =VLOOKUP($A62,Micronutrients,13,FALSE) -> 1 | E62: 0 | F62: =VLOOKUP($A62,Micronutrients,12,FALSE) -> 0 | G62: =(E62*VLOOKUP(A62,Micronutrients,11,FALSE)/D62)*C62 -> 0 | M62: None | N62: =VLOOKUP($M62,Micronutrients,14,FALSE) -> None | O62: =VLOOKUP($M62,Micronutrients,15,FALSE) -> 0 | P62: =VLOOKUP($M62,Micronutrients,13,FALSE) -> 1 | Q62: 0 | R62: =VLOOKUP($M62,Micronutrients,12,FALSE) -> 0 | S62: =(Q62*VLOOKUP(M62,Micronutrients,11,FALSE)/P62)*O62 -> 0 | Y62: None | Z62: =VLOOKUP(Y62,Micronutrients,14,FALSE) -> None | AA62: =VLOOKUP(Y62,Micronutrients,15,FALSE) -> 0 | AB62: =VLOOKUP(Y62,Micronutrients,13,FALSE) -> 1 | AC62: 0 | AD62: =VLOOKUP(Y62,Micronutrients,12,FALSE) -> 0 | AE62: =(AC62*VLOOKUP(Y62,Micronutrients,11,FALSE)/AB62)*AA62 -> 0
A64: Nitrogen Stabilizers (drop down menu) | M64: Nitrogen Stabilizers (drop down menu) | Y64: Nitrogen Stabilizers (drop down menu)
A65: None | B65: =VLOOKUP(A65,NitrogenStabilizers,14,FALSE) -> None | C65: =VLOOKUP(A65,NitrogenStabilizers,15,FALSE) -> 0 | D65: =VLOOKUP(A65,NitrogenStabilizers,13,FALSE) -> 1 | E65: 0 | F65: =VLOOKUP(A65,NitrogenStabilizers,12,FALSE) -> 0 | G65: =(E65*VLOOKUP(A65,NitrogenStabilizers,11,FALSE)/D65)*C65 -> 0 | M65: None | N65: =VLOOKUP(M65,NitrogenStabilizers,14,FALSE) -> None | O65: =VLOOKUP(M65,NitrogenStabilizers,15,FALSE) -> 0 | P65: =VLOOKUP(M65,NitrogenStabilizers,13,FALSE) -> 1 | Q65: 0 | R65: =VLOOKUP(M65,NitrogenStabilizers,12,FALSE) -> 0 | S65: =(Q65*VLOOKUP(M65,NitrogenStabilizers,11,FALSE)/P65)*O65 -> 0 | Y65: None | Z65: =VLOOKUP(Y65,NitrogenStabilizers,14,FALSE) -> None | AA65: =VLOOKUP(Y65,NitrogenStabilizers,15,FALSE) -> 0 | AB65: =VLOOKUP(Y65,NitrogenStabilizers,13,FALSE) -> 1 | AC65: 0 | AD65: =VLOOKUP(Y65,NitrogenStabilizers,12,FALSE) -> 0 | AE65: =(AC65*VLOOKUP(Y65,NitrogenStabilizers,11,FALSE)/AB65)*AA65 -> 0
A66: None | B66: =VLOOKUP(A66,NitrogenStabilizers,14,FALSE) -> None | C66: =VLOOKUP(A66,NitrogenStabilizers,15,FALSE) -> 0 | D66: =VLOOKUP(A66,NitrogenStabilizers,13,FALSE) -> 1 | E66: 0 | F66: =VLOOKUP(A66,NitrogenStabilizers,12,FALSE) -> 0 | G66: =(E66*VLOOKUP(A66,NitrogenStabilizers,11,FALSE)/D66)*C66 -> 0 | M66: None | N66: =VLOOKUP(M66,NitrogenStabilizers,14,FALSE) -> None | O66: =VLOOKUP(M66,NitrogenStabilizers,15,FALSE) -> 0 | P66: =VLOOKUP(M66,NitrogenStabilizers,13,FALSE) -> 1 | Q66: 0 | R66: =VLOOKUP(M66,NitrogenStabilizers,12,FALSE) -> 0 | S66: =(Q66*VLOOKUP(M66,NitrogenStabilizers,11,FALSE)/P66)*O66 -> 0 | Y66: None | Z66: =VLOOKUP(Y66,NitrogenStabilizers,14,FALSE) -> None | AA66: =VLOOKUP(Y66,NitrogenStabilizers,15,FALSE) -> 0 | AB66: =VLOOKUP(Y66,NitrogenStabilizers,13,FALSE) -> 1 | AC66: 0 | AD66: =VLOOKUP(Y66,NitrogenStabilizers,12,FALSE) -> 0 | AE66: =(AC66*VLOOKUP(Y66,NitrogenStabilizers,11,FALSE)/AB66)*AA66 -> 0
A67: 3rd Application Fertilizer Cost/Acre | G67: =SUM(G51:G66) -> 0 | M67: 3rd Application Fertilizer Cost/Acre | S67: =SUM(S51:S66) -> 0 | Y67: 3rd Application Fertilizer Cost/Acre | AE67: =SUM(AE51:AE66) -> 0
A69: Total Fertilizer Cost/Acre | G69: =G67+G46+G25 -> 100.9375 | M69: Total Fertilizer Cost/Acre | S69: =S67+S46+S25 -> 0 | Y69: Total Fertilizer Cost/Acre | AE69: =AE67+AE46+AE25 -> 0
E71: Total Nutrient Needs | Q71: Total Nutrient Needs | AC71: Total Nutrient Needs
E72: Based on: | F72: Soil Test Based Recs | I72: Total Fertilizer Program | Q72: Based on: | R72: Soil Test Based Recs | U72: Total Fertilizer Program | AC72: Based on: | AD72: Soil Test Based Recs | AG72: Total Fertilizer Program
A73: Farm Name | E73: N | F73: P | G73: K | I73: N | J73: P | K73: K | M73: =A73 -> Farm Name | Q73: N | R73: P | S73: K | U73: N | V73: P | W73: K | Y73: =A73 -> Farm Name | AC73: N | AD73: P | AE73: K | AG73: N | AH73: P | AI73: K
A74: Farm Tract | E74: ='Nutrient Management'!F55 -> 0 | F74: ='Nutrient Management'!G55 -> 0 | G74: ='Nutrient Management'!H55 -> 165.1 | I74: =I51+I30 -> 0 | J74: =J51+J30+J6 -> 0 | K74: =K51+K30+K6 -> 165 | M74: =A74 -> Farm Tract | Q74: ='Nutrient Management'!F55 -> 0 | R74: ='Nutrient Management'!G55 -> 0 | S74: ='Nutrient Management'!H55 -> 165.1 | U74: =U51+U30 -> 0 | V74: =V51+V30+V6 -> 0 | W74: =W51+W30+W6 -> 0 | Y74: =A74 -> Farm Tract | AC74: ='Nutrient Management'!F55 -> 0 | AD74: ='Nutrient Management'!G55 -> 0 | AE74: ='Nutrient Management'!H55 -> 165.1 | AG74: =AG51+AG30 -> 0 | AH74: =AH51+AH30+AH6 -> 0 | AI74: =AI51+AI30+AI6 -> 0
A75: Farm Number | E75: S | F75: Ca | G75: Mg | I75: S | J75: Ca | K75: Mg | M75: Farm Number | Q75: S | R75: Ca | S75: Mg | U75: S | V75: Ca | W75: Mg | Y75: Farm Number | AC75: S | AD75: Ca | AE75: Mg | AG75: S | AH75: Ca | AI75: Mg
E76: ='Nutrient Management'!F58 -> 6.4 | F76: 0 | G76: 0 | I76: =I54+I33+I9 -> 6 | J76: =J54+J33+J9 -> 0 | K76: =K54+K33+K9 -> 0 | Q76: ='Nutrient Management'!F58 -> 6.4 | R76: 0 | S76: 0 | U76: =U54+U33+U9 -> 0 | V76: =V54+V33+V9 -> 0 | W76: =W54+W33+W9 -> 0 | AC76: ='Nutrient Management'!F58 -> 6.4 | AD76: 0 | AE76: 0 | AG76: =AG54+AG33+AG9 -> 0 | AH76: =AH54+AH33+AH9 -> 0 | AI76: =AI54+AI33+AI9 -> 0
E77: Zn | F77: B | G77: Mn | I77: Zn | J77: B | K77: Mn | Q77: Zn | R77: B | S77: Mn | U77: Zn | V77: B | W77: Mn | AC77: Zn | AD77: B | AE77: Mn | AG77: Zn | AH77: B | AI77: Mn
E78: 0 | F78: 0 | G78: 0 | I78: =I57+I36+I12 -> 0 | J78: =J57+J36+J12 -> 0 | K78: =K57+K36+K12 -> 0 | Q78: 0 | R78: 0 | S78: 0 | U78: =U57+U36+U12 -> 0 | V78: =V57+V36+V12 -> 0 | W78: =W57+W36+W12 -> 0 | AC78: 0 | AD78: 0 | AE78: 0 | AG78: =AG57+AG36+AG12 -> 0 | AH78: =AH57+AH36+AH12 -> 0 | AI78: =AI57+AI36+AI12 -> 0
E79: * from Nutrient Management tab | Q79: * from Nutrient Management tab | AC79: * from Nutrient Management tab

Sheet Fertilizer Plan (Wheat)
A1: Wheat | M1: Wheat | Y1: Wheat
A2: Comparison Plan 1 | M2: Comparison Plan 2 | Y2: Comparison Plan 3
A3: 1st Application (i.e., Pre-Plant or Broadcast Fertilizer) | M3: 1st Application (i.e., Pre-Plant or Broadcast Fertilizer) | Y3: 1st Application (i.e., Pre-Plant or Broadcast Fertilizer)
A4: Fertilizer Source | B4: Purchase Units | C4: Package Price (Gals, Lbs, etc.) | D4: Units/Pkg | E4: Rate/Acre | F4: Units | G4: Cost | M4: Fertilizer Source | N4: Purchase Units | O4: Package Price (Gals, Lbs, etc.) | P4: Units/Pkg | Q4: Rate/Acre | R4: Units | S4: Cost | Y4: Fertilizer Source | Z4: Purchase Units | AA4: Package Price (Gals, Lbs, etc.) | AB4: Units/Pkg | AC4: Rate/Acre | AD4: Units | AE4: Cost
A5: Macronutrients (drop down menu) | E5: (Enter Below) | I5: N | J5: P | K5: K | M5: Macronutrients (drop down menu) | Q5: (Enter Below) | U5: N | V5: P | W5: K | Y5: Macronutrients (drop down menu) | AC5: (Enter Below) | AG5: N | AH5: P | AI5: K
A6: DAP (18-46-0) | B6: =VLOOKUP(A6,Macronutrients,14,FALSE) -> Tons | C6: =VLOOKUP(A6,'Fertilizer Products & Pricing'!$A$4:$O$38,15,FALSE) -> 798 | D6: =VLOOKUP($A6,Macronutrients,13,FALSE) -> 2000 | E6: 75 | F6: =VLOOKUP($A6,Macronutrients,12,FALSE) -> lbs | G6: =(E6*VLOOKUP(A6,Macronutrients,11,FALSE)/D6)*C6 -> 29.925 | I6: =VLOOKUP(A6,'Fertilizer Products & Pricing'!$A$4:$O$38,2,FALSE)*E6+VLOOKUP(A7,'Fertilizer Products & Pricing'!$A$4:$O$38,2,FALSE)*E7+VLOOKUP(A8,'Fertilizer Products & Pricing'!$A$4:$O$38,2,FALSE)*E8+VLOOKUP(A9,'Fertilizer Products & Pricing'!$A$4:$O$38,2,FALSE)*E9+VLOOKUP(A10,'Fertilizer Products & Pricing'!$A$4:$O$38,2,FALSE)*E10+VLOOKUP(A11,'Fertilizer Products & Pricing'!$A$4:$O$38,2,FALSE)*E11+VLOOKUP(A14,'Fertilizer Products & Pricing'!$A$42:$O$55,2,FALSE)*E14+VLOOKUP(A15,'Fertilizer Products & Pricing'!$A$42:$O$55,2,FALSE)*E15+VLOOKUP(A16,'Fertilizer Products & Pricing'!$A$42:$O$55,2,FALSE)*E16+VLOOKUP(A17,'Fertilizer Products & Pricing'!$A$42:$O$55,2,FALSE)*E17 -> 13.5 | J6: =VLOOKUP(A6,'Fertilizer Products & Pricing'!$A$4:$O$38,3,FALSE)*E6+VLOOKUP(A7,'Fertilizer Products & Pricing'!$A$4:$O$38,3,FALSE)*E7+VLOOKUP(A8,'Fertilizer Products & Pricing'!$A$4:$O$38,3,FALSE)*E8+VLOOKUP(A9,'Fertilizer Products & Pricing'!$A$4:$O$38,3,FALSE)*E9+VLOOKUP(A10,'Fertilizer Products & Pricing'!$A$4:$O$38,3,FALSE)*E10+VLOOKUP(A11,'Fertilizer Products & Pricing'!$A$4:$O$38,3,FALSE)*E11+VLOOKUP(A14,'Fertilizer Products & Pricing'!$A$42:$O$55,3,FALSE)*E14+VLOOKUP(A15,'Fertilizer Products & Pricing'!$A$42:$O$55,3,FALSE)*E15+VLOOKUP(A16,'Fertilizer Products & Pricing'!$A$42:$O$55,3,FALSE)*E16+VLOOKUP(A17,'Fertilizer Products & Pricing'!$A$42:$O$55,3,FALSE)*E17 -> 34.5 | K6: =VLOOKUP(A6,'Fertilizer Products & Pricing'!$A$4:$O$38,4,FALSE)*E6+VLOOKUP(A7,'Fertilizer Products & Pricing'!$A$4:$O$38,4,FALSE)*E7+VLOOKUP(A8,'Fertilizer Products & Pricing'!$A$4:$O$38,4,FALSE)*E8+VLOOKUP(A9,'Fertilizer Products & Pricing'!$A$4:$O$38,4,FALSE)*E9+VLOOKUP(A10,'Fertilizer Products & Pricing'!$A$4:$O$38,4,FALSE)*E10+VLOOKUP(A11,'Fertilizer Products & Pricing'!$A$4:$O$38,4,FALSE)*E11+VLOOKUP(A14,'Fertilizer Products & Pricing'!$A$42:$O$55,4,FALSE)*E14+VLOOKUP(A15,'Fertilizer Products & Pricing'!$A$42:$O$55,4,FALSE)*E15+VLOOKUP(A16,'Fertilizer Products & Pricing'!$A$42:$O$55,4,FALSE)*E16+VLOOKUP(A17,'Fertilizer Products & Pricing'!$A$42:$O$55,4,FALSE)*E17 -> 15 | M6: None | N6: =VLOOKUP(M6,Macronutrients,14,FALSE) -> None | O6: =VLOOKUP(M6,'Fertilizer Products & Pricing'!$A$4:$O$38,15,FALSE) -> 0 | P6: =VLOOKUP($M6,Macronutrients,13,FALSE) -> 1 | Q6: 0 | R6: =VLOOKUP($M6,Macronutrients,12,FALSE) -> 0 | S6: =(Q6*VLOOKUP(M6,Macronutrients,11,FALSE)/P6)*O6 -> 0 | U6: =VLOOKUP(M6,'Fertilizer Products & Pricing'!$A$4:$O$38,2,FALSE)*Q6+VLOOKUP(M7,'Fertilizer Products & Pricing'!$A$4:$O$38,2,FALSE)*Q7+VLOOKUP(M8,'Fertilizer Products & Pricing'!$A$4:$O$38,2,FALSE)*Q8+VLOOKUP(M9,'Fertilizer Products & Pricing'!$A$4:$O$38,2,FALSE)*Q9+VLOOKUP(M10,'Fertilizer Products & Pricing'!$A$4:$O$38,2,FALSE)*Q10+VLOOKUP(M11,'Fertilizer Products & Pricing'!$A$4:$O$38,2,FALSE)*Q11+VLOOKUP(M14,'Fertilizer Products & Pricing'!$A$42:$O$55,2,FALSE)*Q14+VLOOKUP(M15,'Fertilizer Products & Pricing'!$A$42:$O$55,2,FALSE)*Q15+VLOOKUP(M16,'Fertilizer Products & Pricing'!$A$42:$O$55,2,FALSE)*Q16+VLOOKUP(M17,'Fertilizer Products & Pricing'!$A$42:$O$55,2,FALSE)*Q17+VLOOKUP($M20,'Fertilizer Products & Pricing'!$A$59:$O$67,2,FALSE)*Q20 -> 0 | V6: =VLOOKUP(M6,'Fertilizer Products & Pricing'!$A$4:$O$38,3,FALSE)*Q6+VLOOKUP(M7,'Fertilizer Products & Pricing'!$A$4:$O$38,3,FALSE)*Q7+VLOOKUP(M8,'Fertilizer Products & Pricing'!$A$4:$O$38,3,FALSE)*Q8+VLOOKUP(M9,'Fertilizer Products & Pricing'!$A$4:$O$38,3,FALSE)*Q9+VLOOKUP(M10,'Fertilizer Products & Pricing'!$A$4:$O$38,3,FALSE)*Q10+VLOOKUP(M11,'Fertilizer Products & Pricing'!$A$4:$O$38,3,FALSE)*Q11+VLOOKUP(M14,'Fertilizer Products & Pricing'!$A$42:$O$55,3,FALSE)*Q14+VLOOKUP(M15,'Fertilizer Products & Pricing'!$A$42:$O$55,3,FALSE)*Q15+VLOOKUP(M16,'Fertilizer Products & Pricing'!$A$42:$O$55,3,FALSE)*Q16+VLOOKUP(M17,'Fertilizer Products & Pricing'!$A$42:$O$55,3,FALSE)*Q17+VLOOKUP($M20,'Fertilizer Products & Pricing'!$A$59:$O$67,2,FALSE)*Q20 -> 0 | W6: =VLOOKUP(M6,'Fertilizer Products & Pricing'!$A$4:$O$38,4,FALSE)*Q6+VLOOKUP(M7,'Fertilizer Products & Pricing'!$A$4:$O$38,4,FALSE)*Q7+VLOOKUP(M8,'Fertilizer Products & Pricing'!$A$4:$O$38,4,FALSE)*Q8+VLOOKUP(M9,'Fertilizer Products & Pricing'!$A$4:$O$38,4,FALSE)*Q9+VLOOKUP(M10,'Fertilizer Products & Pricing'!$A$4:$O$38,4,FALSE)*Q10+VLOOKUP(M11,'Fertilizer Products & Pricing'!$A$4:$O$38,4,FALSE)*Q11+VLOOKUP(M14,'Fertilizer Products & Pricing'!$A$42:$O$55,4,FALSE)*Q14+VLOOKUP(M15,'Fertilizer Products & Pricing'!$A$42:$O$55,4,FALSE)*Q15+VLOOKUP(M16,'Fertilizer Products & Pricing'!$A$42:$O$55,4,FALSE)*Q16+VLOOKUP(M17,'Fertilizer Products & Pricing'!$A$42:$O$55,4,FALSE)*Q17+VLOOKUP($M20,'Fertilizer Products & Pricing'!$A$59:$O$67,2,FALSE)*Q20 -> 0 | Y6: None | Z6: =VLOOKUP(Y6,Macronutrients,14,FALSE) -> None | AA6: =VLOOKUP(Y6,'Fertilizer Products & Pricing'!$A$4:$O$38,15,FALSE) -> 0 | AB6: =VLOOKUP($Y6,Macronutrients,13,FALSE) -> 1 | AC6: 0 | AD6: =VLOOKUP($Y6,Macronutrients,12,FALSE) -> 0 | AE6: =(AC6*VLOOKUP(Y6,Macronutrients,11,FALSE)/AB6)*AA6 -> 0 | AG6: =VLOOKUP(Y6,'Fertilizer Products & Pricing'!$A$4:$O$38,2,FALSE)*AC6+VLOOKUP(Y7,'Fertilizer Products & Pricing'!$A$4:$O$38,2,FALSE)*AC7+VLOOKUP(Y8,'Fertilizer Products & Pricing'!$A$4:$O$38,2,FALSE)*AC8+VLOOKUP(Y9,'Fertilizer Products & Pricing'!$A$4:$O$38,2,FALSE)*AC9+VLOOKUP(Y10,'Fertilizer Products & Pricing'!$A$4:$O$38,2,FALSE)*AC10+VLOOKUP(Y11,'Fertilizer Products & Pricing'!$A$4:$O$38,2,FALSE)*AC11+VLOOKUP(Y14,'Fertilizer Products & Pricing'!$A$42:$O$55,2,FALSE)*AC14+VLOOKUP(Y15,'Fertilizer Products & Pricing'!$A$42:$O$55,2,FALSE)*AC15+VLOOKUP(Y16,'Fertilizer Products & Pricing'!$A$42:$O$55,2,FALSE)*AC16+VLOOKUP(Y17,'Fertilizer Products & Pricing'!$A$42:$O$55,2,FALSE)*AC17+VLOOKUP($Y20,'Fertilizer Products & Pricing'!$A$59:$O$67,2,FALSE)*AC20 -> 0 | AH6: =VLOOKUP(Y6,'Fertilizer Products & Pricing'!$A$4:$O$38,3,FALSE)*AC6+VLOOKUP(Y7,'Fertilizer Products & Pricing'!$A$4:$O$38,3,FALSE)*AC7+VLOOKUP(Y8,'Fertilizer Products & Pricing'!$A$4:$O$38,3,FALSE)*AC8+VLOOKUP(Y9,'Fertilizer Products & Pricing'!$A$4:$O$38,3,FALSE)*AC9+VLOOKUP(Y10,'Fertilizer Products & Pricing'!$A$4:$O$38,3,FALSE)*AC10+VLOOKUP(Y11,'Fertilizer Products & Pricing'!$A$4:$O$38,3,FALSE)*AC11+VLOOKUP(Y14,'Fertilizer Products & Pricing'!$A$42:$O$55,3,FALSE)*AC14+VLOOKUP(Y15,'Fertilizer Products & Pricing'!$A$42:$O$55,3,FALSE)*AC15+VLOOKUP(Y16,'Fertilizer Products & Pricing'!$A$42:$O$55,3,FALSE)*AC16+VLOOKUP(Y17,'Fertilizer Products & Pricing'!$A$42:$O$55,3,FALSE)*AC17+VLOOKUP($Y20,'Fertilizer Products & Pricing'!$A$59:$O$67,2,FALSE)*AC20 -> 0 | AI6: =VLOOKUP(Y6,'Fertilizer Products & Pricing'!$A$4:$O$38,4,FALSE)*AC6+VLOOKUP(Y7,'Fertilizer Products & Pricing'!$A$4:$O$38,4,FALSE)*AC7+VLOOKUP(Y8,'Fertilizer Products & Pricing'!$A$4:$O$38,4,FALSE)*AC8+VLOOKUP(Y9,'Fertilizer Products & Pricing'!$A$4:$O$38,4,FALSE)*AC9+VLOOKUP(Y10,'Fertilizer Products & Pricing'!$A$4:$O$38,4,FALSE)*AC10+VLOOKUP(Y11,'Fertilizer Products & Pricing'!$A$4:$O$38,4,FALSE)*AC11+VLOOKUP(Y14,'Fertilizer Products & Pricing'!$A$42:$O$55,4,FALSE)*AC14+VLOOKUP(Y15,'Fertilizer Products & Pricing'!$A$42:$O$55,4,FALSE)*AC15+VLOOKUP(Y16,'Fertilizer Products & Pricing'!$A$42:$O$55,4,FALSE)*AC16+VLOOKUP(Y17,'Fertilizer Products & Pricing'!$A$42:$O$55,4,FALSE)*AC17+VLOOKUP($Y20,'Fertilizer Products & Pricing'!$A$59:$O$67,2,FALSE)*AC20 -> 0
A7: Potash (0-0-60) | B7: Tons | C7: =VLOOKUP(A7,'Fertilizer Products & Pricing'!$A$4:$O$38,15,FALSE) -> 690 | D7: 2000 | E7: 25 | F7: lbs | G7: 8.625 | M7: None | N7: =VLOOKUP(M7,Macronutrients,14,FALSE) -> None | O7: =VLOOKUP(M7,'Fertilizer Products & Pricing'!$A$4:$O$38,15,FALSE) -> 0 | P7: 1 | Q7: 0 | R7: 0 | S7: =(Q7*VLOOKUP(M7,Macronutrients,11,FALSE)/P7)*O7 -> 0 | Y7: None | Z7: None | AA7: =VLOOKUP(Y7,'Fertilizer Products & Pricing'!$A$4:$O$38,15,FALSE) -> 0 | AB7: 1 | AC7: 0 | AD7: 0 | AE7: 0
A8: None | B8: None | C8: =VLOOKUP(A8,'Fertilizer Products & Pricing'!$A$4:$O$38,15,FALSE) -> 0 | D8: 1 | E8: 0 | F8: 0 | G8: 0 | I8: S | J8: Ca | K8: Mg | M8: None | N8: None | O8: =VLOOKUP(M8,'Fertilizer Products & Pricing'!$A$4:$O$38,15,FALSE) -> 0 | P8: 1 | Q8: 0 | R8: 0 | S8: 0 | U8: S | V8: Ca | W8: Mg | Y8: None | Z8: None | AA8: =VLOOKUP(Y8,'Fertilizer Products & Pricing'!$A$4:$O$38,15,FALSE) -> 0 | AB8: 1 | AC8: 0 | AD8: 0 | AE8: 0 | AG8: S | AH8: Ca | AI8: Mg
A9: None | B9: None | C9: =VLOOKUP(A9,'Fertilizer Products & Pricing'!$A$4:$O$38,15,FALSE) -> 0 | D9: 1 | E9: 0 | F9: 0 | G9: 0 | I9: =VLOOKUP($A6,'Fertilizer Products & Pricing'!$A$4:$O$38,5,FALSE)*E6+VLOOKUP($A7,'Fertilizer Products & Pricing'!$A$4:$O$38,5,FALSE)*E7+VLOOKUP($A8,'Fertilizer Products & Pricing'!$A$4:$O$38,5,FALSE)*E8+VLOOKUP($A9,'Fertilizer Products & Pricing'!$A$4:$O$38,5,FALSE)*E9+VLOOKUP($A10,'Fertilizer Products & Pricing'!$A$4:$O$38,5,FALSE)*E10+VLOOKUP($A11,'Fertilizer Products & Pricing'!$A$4:$O$38,5,FALSE)*E11+VLOOKUP($A14,'Fertilizer Products & Pricing'!$A$42:$O$55,5,FALSE)*E14+VLOOKUP(A15,'Fertilizer Products & Pricing'!$A$42:$O$55,5,FALSE)*E15+VLOOKUP($A16,'Fertilizer Products & Pricing'!$A$42:$O$55,5,FALSE)*E16+VLOOKUP($A17,'Fertilizer Products & Pricing'!$A$42:$O$55,5,FALSE)*E17 -> 0 | J9: =VLOOKUP($A6,'Fertilizer Products & Pricing'!$A$4:$O$38,7,FALSE)*$E$6+VLOOKUP($A7,'Fertilizer Products & Pricing'!$A$4:$O$38,7,FALSE)*$E$7+VLOOKUP($A8,'Fertilizer Products & Pricing'!$A$4:$O$38,7,FALSE)*$E$8+VLOOKUP($A9,'Fertilizer Products & Pricing'!$A$4:$O$38,7,FALSE)*$E$9+VLOOKUP($A10,'Fertilizer Products & Pricing'!$A$4:$O$38,7,FALSE)*$E$10+VLOOKUP($A11,'Fertilizer Products & Pricing'!$A$4:$O$38,7,FALSE)*$E$11+VLOOKUP($A14,'Fertilizer Products & Pricing'!$A$42:$O$55,7,FALSE)*$E$14+VLOOKUP($A15,'Fertilizer Products & Pricing'!$A$42:$O$55,7,FALSE)*E15+VLOOKUP($A16,'Fertilizer Products & Pricing'!$A$42:$O$55,7,FALSE)*$E$16+VLOOKUP($A17,'Fertilizer Products & Pricing'!$A$42:$O$55,7,FALSE)*$E$17+VLOOKUP($A20,'Fertilizer Products & Pricing'!$A$59:$O$67,7,FALSE)*E20 -> 0 | K9: =VLOOKUP($A6,'Fertilizer Products & Pricing'!$A$4:$O$38,6,FALSE)*$E$6+VLOOKUP($A7,'Fertilizer Products & Pricing'!$A$4:$O$38,6,FALSE)*$E$7+VLOOKUP($A8,'Fertilizer Products & Pricing'!$A$4:$O$38,6,FALSE)*$E$8+VLOOKUP($A9,'Fertilizer Products & Pricing'!$A$4:$O$38,6,FALSE)*$E$9+VLOOKUP($A10,'Fertilizer Products & Pricing'!$A$4:$O$38,6,FALSE)*$E$10+VLOOKUP($A11,'Fertilizer Products & Pricing'!$A$4:$O$38,6,FALSE)*$E$11+VLOOKUP($A14,'Fertilizer Products & Pricing'!$A$42:$O$55,6,FALSE)*$E$14+VLOOKUP($A15,'Fertilizer Products & Pricing'!$A$42:$O$55,6,FALSE)*$E$15+VLOOKUP($A16,'Fertilizer Products & Pricing'!$A$42:$O$55,6,FALSE)*$E$16+VLOOKUP(A$17,'Fertilizer Products & Pricing'!$A$42:$O$55,6,FALSE)*$E$17+VLOOKUP($A20,'Fertilizer Products & Pricing'!$A$59:$O$67,6,FALSE)*E20 -> 0 | M9: None | N9: None | O9: =VLOOKUP(M9,'Fertilizer Products & Pricing'!$A$4:$O$38,15,FALSE) -> 0 | P9: 1 | Q9: 0 | R9: 0 | S9: 0 | U9: =VLOOKUP($M6,'Fertilizer Products & Pricing'!$A$4:$O$38,5,FALSE)*Q6+VLOOKUP($M7,'Fertilizer Products & Pricing'!$A$4:$O$38,5,FALSE)*Q7+VLOOKUP($M8,'Fertilizer Products & Pricing'!$A$4:$O$38,5,FALSE)*Q8+VLOOKUP($M9,'Fertilizer Products & Pricing'!$A$4:$O$38,5,FALSE)*Q9+VLOOKUP($M10,'Fertilizer Products & Pricing'!$A$4:$O$38,5,FALSE)*Q10+VLOOKUP($M11,'Fertilizer Products & Pricing'!$A$4:$O$38,5,FALSE)*Q11+VLOOKUP($M14,'Fertilizer Products & Pricing'!$A$42:$O$55,5,FALSE)*Q14+VLOOKUP(M15,'Fertilizer Products & Pricing'!$A$42:$O$55,5,FALSE)*Q15+VLOOKUP($M16,'Fertilizer Products & Pricing'!$A$42:$O$55,5,FALSE)*Q16+VLOOKUP($M17,'Fertilizer Products & Pricing'!$A$42:$O$55,5,FALSE)*Q17+VLOOKUP($M20,'Fertilizer Products & Pricing'!$A$59:$O$67,2,FALSE)*Q20 -> 0 | V9: =VLOOKUP($M6,'Fertilizer Products & Pricing'!$A$4:$O$38,7,FALSE)*$Q$6+VLOOKUP($M7,'Fertilizer Products & Pricing'!$A$4:$O$38,7,FALSE)*$Q$7+VLOOKUP($M8,'Fertilizer Products & Pricing'!$A$4:$O$38,7,FALSE)*$Q$8+VLOOKUP($M9,'Fertilizer Products & Pricing'!$A$4:$O$38,7,FALSE)*$Q$9+VLOOKUP($M10,'Fertilizer Products & Pricing'!$A$4:$O$38,7,FALSE)*$Q$10+VLOOKUP($M11,'Fertilizer Products & Pricing'!$A$4:$O$38,7,FALSE)*$Q$11+VLOOKUP($M14,'Fertilizer Products & Pricing'!$A$42:$O$55,7,FALSE)*$Q$14+VLOOKUP($M15,'Fertilizer Products & Pricing'!$A$42:$O$55,7,FALSE)*Q15+VLOOKUP($M16,'Fertilizer Products & Pricing'!$A$42:$O$55,7,FALSE)*$Q$16+VLOOKUP($M17,'Fertilizer Products & Pricing'!$A$42:$O$55,7,FALSE)*$Q$17+VLOOKUP($M20,'Fertilizer Products & Pricing'!$A$59:$O$67,7,FALSE)*Q20 -> 0 | W9: =VLOOKUP($M6,'Fertilizer Products & Pricing'!$A$4:$O$38,6,FALSE)*$Q$6+VLOOKUP($M7,'Fertilizer Products & Pricing'!$A$4:$O$38,6,FALSE)*$Q$7+VLOOKUP($M8,'Fertilizer Products & Pricing'!$A$4:$O$38,6,FALSE)*$Q$8+VLOOKUP($M9,'Fertilizer Products & Pricing'!$A$4:$O$38,6,FALSE)*$Q$9+VLOOKUP($M10,'Fertilizer Products & Pricing'!$A$4:$O$38,6,FALSE)*$Q$10+VLOOKUP($M11,'Fertilizer Products & Pricing'!$A$4:$O$38,6,FALSE)*$Q$11+VLOOKUP($M14,'Fertilizer Products & Pricing'!$A$42:$O$55,6,FALSE)*$Q$14+VLOOKUP($M15,'Fertilizer Products & Pricing'!$A$42:$O$55,6,FALSE)*$Q$15+VLOOKUP($M16,'Fertilizer Products & Pricing'!$A$42:$O$55,6,FALSE)*$Q$16+VLOOKUP(M$17,'Fertilizer Products & Pricing'!$A$42:$O$55,6,FALSE)*$Q$17+VLOOKUP($M20,'Fertilizer Products & Pricing'!$A$59:$O$67,6,FALSE)*Q20 -> 0 | Y9: None | Z9: None | AA9: =VLOOKUP(Y9,'Fertilizer Products & Pricing'!$A$4:$O$38,15,FALSE) -> 0 | AB9: 1 | AC9: 0 | AD9: 0 | AE9: 0 | AG9: =VLOOKUP($Y6,'Fertilizer Products & Pricing'!$A$4:$O$38,5,FALSE)*AC6+VLOOKUP($Y7,'Fertilizer Products & Pricing'!$A$4:$O$38,5,FALSE)*AC7+VLOOKUP($Y8,'Fertilizer Products & Pricing'!$A$4:$O$38,5,FALSE)*AC8+VLOOKUP($Y9,'Fertilizer Products & Pricing'!$A$4:$O$38,5,FALSE)*AC9+VLOOKUP($Y10,'Fertilizer Products & Pricing'!$A$4:$O$38,5,FALSE)*AC10+VLOOKUP($Y11,'Fertilizer Products & Pricing'!$A$4:$O$38,5,FALSE)*AC11+VLOOKUP($Y14,'Fertilizer Products & Pricing'!$A$42:$O$55,5,FALSE)*AC14+VLOOKUP(Y15,'Fertilizer Products & Pricing'!$A$42:$O$55,5,FALSE)*AC15+VLOOKUP($Y16,'Fertilizer Products & Pricing'!$A$42:$O$55,5,FALSE)*AC16+VLOOKUP($Y17,'Fertilizer Products & Pricing'!$A$42:$O$55,5,FALSE)*AC17+VLOOKUP($Y20,'Fertilizer Products & Pricing'!$A$59:$O$67,2,FALSE)*AC20 -> 0 | AH9: =VLOOKUP($Y6,'Fertilizer Products & Pricing'!$A$4:$O$38,7,FALSE)*$AC$6+VLOOKUP($Y7,'Fertilizer Products & Pricing'!$A$4:$O$38,7,FALSE)*$AC$7+VLOOKUP($Y8,'Fertilizer Products & Pricing'!$A$4:$O$38,7,FALSE)*$AC$8+VLOOKUP($Y9,'Fertilizer Products & Pricing'!$A$4:$O$38,7,FALSE)*$AC$9+VLOOKUP($Y10,'Fertilizer Products & Pricing'!$A$4:$O$38,7,FALSE)*$AC$10+VLOOKUP($Y11,'Fertilizer Products & Pricing'!$A$4:$O$38,7,FALSE)*$AC$11+VLOOKUP($Y14,'Fertilizer Products & Pricing'!$A$42:$O$55,7,FALSE)*$AC$14+VLOOKUP($Y15,'Fertilizer Products & Pricing'!$A$42:$O$55,7,FALSE)*AC15+VLOOKUP($Y16,'Fertilizer Products & Pricing'!$A$42:$O$55,7,FALSE)*$AC$16+VLOOKUP($Y17,'Fertilizer Products & Pricing'!$A$42:$O$55,7,FALSE)*$AC$17+VLOOKUP($Y20,'Fertilizer Products & Pricing'!$A$59:$O$67,7,FALSE)*AC20 -> 0 | AI9: =VLOOKUP($Y6,'Fertilizer Products & Pricing'!$A$4:$O$38,6,FALSE)*$AC$6+VLOOKUP($Y7,'Fertilizer Products & Pricing'!$A$4:$O$38,6,FALSE)*$AC$7+VLOOKUP($Y8,'Fertilizer Products & Pricing'!$A$4:$O$38,6,FALSE)*$AC$8+VLOOKUP($Y9,'Fertilizer Products & Pricing'!$A$4:$O$38,6,FALSE)*$AC$9+VLOOKUP($Y10,'Fertilizer Products & Pricing'!$A$4:$O$38,6,FALSE)*$AC$10+VLOOKUP($Y11,'Fertilizer Products & Pricing'!$A$4:$O$38,6,FALSE)*$AC$11+VLOOKUP($Y14,'Fertilizer Products & Pricing'!$A$42:$O$55,6,FALSE)*$AC$14+VLOOKUP($Y15,'Fertilizer Products & Pricing'!$A$42:$O$55,6,FALSE)*$AC$15+VLOOKUP($Y16,'Fertilizer Products & Pricing'!$A$42:$O$55,6,FALSE)*$AC$16+VLOOKUP(Y$17,'Fertilizer Products & Pricing'!$A$42:$O$55,6,FALSE)*$AC$17+VLOOKUP($Y20,'Fertilizer Products & Pricing'!$A$59:$O$67,6,FALSE)*AC20 -> 0
A10: None | B10: None | C10: =VLOOKUP(A10,'Fertilizer Products & Pricing'!$A$4:$O$38,15,FALSE) -> 0 | D10: 1 | E10: 0 | F10: 0 | G10: 0 | M10: None | N10: None | O10: =VLOOKUP(M10,'Fertilizer Products & Pricing'!$A$4:$O$38,15,FALSE) -> 0 | P10: 1 | Q10: 0 | R10: 0 | S10: 0 | Y10: None | Z10: None | AA10: =VLOOKUP(Y10,'Fertilizer Products & Pricing'!$A$4:$O$38,15,FALSE) -> 0 | AB10: 1 | AC10: 0 | AD10: 0 | AE10: 0
A11: None | B11: None | C11: =VLOOKUP(A11,'Fertilizer Products & Pricing'!$A$4:$O$38,15,FALSE) -> 0 | D11: 1 | E11: 0 | F11: 0 | G11: 0 | I11: Zn | J11: B | K11: Mn | M11: None | N11: None | O11: =VLOOKUP(M11,'Fertilizer Products & Pricing'!$A$4:$O$38,15,FALSE) -> 0 | P11: 1 | Q11: 0 | R11: 0 | S11: 0 | U11: Zn | V11: B | W11: Mn | Y11: None | Z11: None | AA11: =VLOOKUP(Y11,'Fertilizer Products & Pricing'!$A$4:$O$38,15,FALSE) -> 0 | AB11: 1 | AC11: 0 | AD11: 0 | AE11: 0 | AG11: Zn | AH11: B | AI11: Mn
I12: =VLOOKUP($A$15,'Fertilizer Products & Pricing'!$A$42:$O$55,8,FALSE)*$E$15+VLOOKUP($A$16,'Fertilizer Products & Pricing'!$A$42:$O$55,8,FALSE)*$E$16+VLOOKUP($A$17,'Fertilizer Products & Pricing'!$A$42:$O$55,8,FALSE)*$E$17+VLOOKUP($A$14,'Fertilizer Products & Pricing'!$A$42:$O$55,8,FALSE)*$E$14+VLOOKUP($A20,'Fertilizer Products & Pricing'!$A$59:$O$67,2,FALSE)*E20 -> 0 | J12: =VLOOKUP($A$15,'Fertilizer Products & Pricing'!$A$42:$O$55,9,FALSE)*$E$15+VLOOKUP($A$16,'Fertilizer Products & Pricing'!$A$42:$O$55,9,FALSE)*$E$16+VLOOKUP($A$17,'Fertilizer Products & Pricing'!$A$42:$O$55,9,FALSE)*$E$17+VLOOKUP($A$14,'Fertilizer Products & Pricing'!$A$42:$O$55,9,FALSE)*$E$14+VLOOKUP($A20,'Fertilizer Products & Pricing'!$A$59:$O$67,2,FALSE)*E20 -> 0 | K12: =VLOOKUP($A$15,'Fertilizer Products & Pricing'!$A$42:$O$55,10,FALSE)*$E$15+VLOOKUP($A$16,'Fertilizer Products & Pricing'!$A$42:$O$55,10,FALSE)*$E$16+VLOOKUP($A$17,'Fertilizer Products & Pricing'!$A$42:$O$55,10,FALSE)*$E$17+VLOOKUP($A$14,'Fertilizer Products & Pricing'!$A$42:$O$55,10,FALSE)*$E$14+VLOOKUP($A20,'Fertilizer Products & Pricing'!$A$59:$O$67,2,FALSE)*E20 -> 0 | U12: =VLOOKUP($M15,'Fertilizer Products & Pricing'!$A$42:$O$55,8,FALSE)*$Q15+VLOOKUP($M16,'Fertilizer Products & Pricing'!$A$42:$O$55,8,FALSE)*$Q16+VLOOKUP($M17,'Fertilizer Products & Pricing'!$A$42:$O$55,8,FALSE)*$Q17+VLOOKUP($M14,'Fertilizer Products & Pricing'!$A$42:$O$55,8,FALSE)*$Q14+VLOOKUP($M20,'Fertilizer Products & Pricing'!$A$59:$O$67,2,FALSE)*Q20 -> 0 | V12: =VLOOKUP($M15,'Fertilizer Products & Pricing'!$A$42:$O$55,9,FALSE)*$Q15+VLOOKUP($M16,'Fertilizer Products & Pricing'!$A$42:$O$55,9,FALSE)*$Q16+VLOOKUP($M17,'Fertilizer Products & Pricing'!$A$42:$O$55,9,FALSE)*$Q17+VLOOKUP($M14,'Fertilizer Products & Pricing'!$A$42:$O$55,9,FALSE)*$Q14+VLOOKUP($M20,'Fertilizer Products & Pricing'!$A$59:$O$67,2,FALSE)*Q20 -> 0 | W12: =VLOOKUP($M15,'Fertilizer Products & Pricing'!$A$42:$O$55,10,FALSE)*$Q15+VLOOKUP($M16,'Fertilizer Products & Pricing'!$A$42:$O$55,10,FALSE)*$Q16+VLOOKUP($M17,'Fertilizer Products & Pricing'!$A$42:$O$55,10,FALSE)*$Q17+VLOOKUP($M14,'Fertilizer Products & Pricing'!$A$42:$O$55,10,FALSE)*$Q14+VLOOKUP($M20,'Fertilizer Products & Pricing'!$A$59:$O$67,2,FALSE)*Q20 -> 0 | AG12: =VLOOKUP($Y15,'Fertilizer Products & Pricing'!$A$42:$O$55,8,FALSE)*$AC15+VLOOKUP($Y16,'Fertilizer Products & Pricing'!$A$42:$O$55,8,FALSE)*$AC16+VLOOKUP($Y17,'Fertilizer Products & Pricing'!$A$42:$O$55,8,FALSE)*$AC17+VLOOKUP($Y14,'Fertilizer Products & Pricing'!$A$42:$O$55,8,FALSE)*$AC14+VLOOKUP($Y20,'Fertilizer Products & Pricing'!$A$59:$O$67,2,FALSE)*AC20 -> 0 | AH12: =VLOOKUP($Y15,'Fertilizer Products & Pricing'!$A$42:$O$55,9,FALSE)*$AC15+VLOOKUP($Y16,'Fertilizer Products & Pricing'!$A$42:$O$55,9,FALSE)*$AC16+VLOOKUP($Y17,'Fertilizer Products & Pricing'!$A$42:$O$55,9,FALSE)*$AC17+VLOOKUP($Y14,'Fertilizer Products & Pricing'!$A$42:$O$55,9,FALSE)*$AC14+VLOOKUP($Y20,'Fertilizer Products & Pricing'!$A$59:$O$67,2,FALSE)*AC20 -> 0 | AI12: =VLOOKUP($Y15,'Fertilizer Products & Pricing'!$A$42:$O$55,10,FALSE)*$AC15+VLOOKUP($Y16,'Fertilizer Products & Pricing'!$A$42:$O$55,10,FALSE)*$AC16+VLOOKUP($Y17,'Fertilizer Products & Pricing'!$A$42:$O$55,10,FALSE)*$AC17+VLOOKUP($Y14,'Fertilizer Products & Pricing'!$A$42:$O$55,10,FALSE)*$AC14+VLOOKUP($Y20,'Fertilizer Products & Pricing'!$A$59:$O$67,2,FALSE)*AC20 -> 0
A13: Micronutrients (drop down menu) | M13: Micronutrients (drop down menu) | Y13: Micronutrients (drop down menu)
A14: None | B14: =VLOOKUP($A14,Micronutrients,14,FALSE) -> None | C14: =VLOOKUP($A14,Micronutrients,15,FALSE) -> 0 | D14: =VLOOKUP($A14,Micronutrients,13,FALSE) -> 1 | E14: 0 | F14: =VLOOKUP($A14,Micronutrients,12,FALSE) -> 0 | G14: =(E14*VLOOKUP(A14,Micronutrients,11,FALSE)/D14)*C14 -> 0 | M14: None | N14: =VLOOKUP(M14,Micronutrients,14,FALSE) -> None | O14: =VLOOKUP(M14,Micronutrients,15,FALSE) -> 0 | P14: =VLOOKUP(M14,Micronutrients,13,FALSE) -> 1 | Q14: 0 | R14: =VLOOKUP(M14,Micronutrients,12,FALSE) -> 0 | S14: =(Q14*VLOOKUP(M14,Micronutrients,11,FALSE)/P14)*O14 -> 0 | Y14: None | Z14: =VLOOKUP(Y14,Micronutrients,14,FALSE) -> None | AA14: =VLOOKUP(Y14,Micronutrients,15,FALSE) -> 0 | AB14: =VLOOKUP(Y14,Micronutrients,13,FALSE) -> 1 | AC14: 0 | AD14: =VLOOKUP(Y14,Micronutrients,12,FALSE) -> 0 | AE14: =(AC14*VLOOKUP(Y14,Micronutrients,11,FALSE)/AB14)*AA14 -> 0
A15: None | B15: =VLOOKUP($A15,Micronutrients,14,FALSE) -> None | C15: =VLOOKUP($A15,Micronutrients,15,FALSE) -> 0 | D15: =VLOOKUP($A15,Micronutrients,13,FALSE) -> 1 | E15: 0 | F15: =VLOOKUP($A15,Micronutrients,12,FALSE) -> 0 | G15: =(E15*VLOOKUP(A15,Micronutrients,11,FALSE)/D15)*C15 -> 0 | M15: None | N15: =VLOOKUP(M15,Micronutrients,14,FALSE) -> None | O15: =VLOOKUP(M15,Micronutrients,15,FALSE) -> 0 | P15: =VLOOKUP(M15,Micronutrients,13,FALSE) -> 1 | Q15: 0 | R15: =VLOOKUP(M15,Micronutrients,12,FALSE) -> 0 | S15: =(Q15*VLOOKUP(M15,Micronutrients,11,FALSE)/P15)*O15 -> 0 | Y15: None | Z15: =VLOOKUP(Y15,Micronutrients,14,FALSE) -> None | AA15: =VLOOKUP(Y15,Micronutrients,15,FALSE) -> 0 | AB15: =VLOOKUP(Y15,Micronutrients,13,FALSE) -> 1 | AC15: 0 | AD15: =VLOOKUP(Y15,Micronutrients,12,FALSE) -> 0 | AE15: =(AC15*VLOOKUP(Y15,Micronutrients,11,FALSE)/AB15)*AA15 -> 0
A16: None | B16: =VLOOKUP($A16,Micronutrients,14,FALSE) -> None | C16: =VLOOKUP($A16,Micronutrients,15,FALSE) -> 0 | D16: =VLOOKUP($A16,Micronutrients,13,FALSE) -> 1 | E16: 0 | F16: =VLOOKUP($A16,Micronutrients,12,FALSE) -> 0 | G16: =(E16*VLOOKUP(A16,Micronutrients,11,FALSE)/D16)*C16 -> 0 | M16: None | N16: =VLOOKUP(M16,Micronutrients,14,FALSE) -> None | O16: =VLOOKUP(M16,Micronutrients,15,FALSE) -> 0 | P16: =VLOOKUP(M16,Micronutrients,13,FALSE) -> 1 | Q16: 0 | R16: =VLOOKUP(M16,Micronutrients,12,FALSE) -> 0 | S16: =(Q16*VLOOKUP(M16,Micronutrients,11,FALSE)/P16)*O16 -> 0 | Y16: None | Z16: =VLOOKUP(Y16,Micronutrients,14,FALSE) -> None | AA16: =VLOOKUP(Y16,Micronutrients,15,FALSE) -> 0 | AB16: =VLOOKUP(Y16,Micronutrients,13,FALSE) -> 1 | AC16: 0 | AD16: =VLOOKUP(Y16,Micronutrients,12,FALSE) -> 0 | AE16: =(AC16*VLOOKUP(Y16,Micronutrients,11,FALSE)/AB16)*AA16 -> 0
A17: None | B17: =VLOOKUP($A17,Micronutrients,14,FALSE) -> None | C17: =VLOOKUP($A17,Micronutrients,15,FALSE) -> 0 | D17: =VLOOKUP($A17,Micronutrients,13,FALSE) -> 1 | E17: 0 | F17: =VLOOKUP($A17,Micronutrients,12,FALSE) -> 0 | G17: =(E17*VLOOKUP(A17,Micronutrients,11,FALSE)/D17)*C17 -> 0 | M17: None | N17: =VLOOKUP(M17,Micronutrients,14,FALSE) -> None | O17: =VLOOKUP(M17,Micronutrients,15,FALSE) -> 0 | P17: =VLOOKUP(M17,Micronutrients,13,FALSE) -> 1 | Q17: 0 | R17: =VLOOKUP(M17,Micronutrients,12,FALSE) -> 0 | S17: =(Q17*VLOOKUP(M17,Micronutrients,11,FALSE)/P17)*O17 -> 0 | Y17: None | Z17: =VLOOKUP(Y17,Micronutrients,14,FALSE) -> None | AA17: =VLOOKUP(Y17,Micronutrients,15,FALSE) -> 0 | AB17: =VLOOKUP(Y17,Micronutrients,13,FALSE) -> 1 | AC17: 0 | AD17: =VLOOKUP(Y17,Micronutrients,12,FALSE) -> 0 | AE17: =(AC17*VLOOKUP(Y17,Micronutrients,11,FALSE)/AB17)*AA17 -> 0
A19: Lime (drop down menu) | M19: Lime (drop down menu) | Y19: Lime (drop down menu)
A20: None | B20: =VLOOKUP(A20,Lime,14,FALSE) -> None | C20: =VLOOKUP(A20,Lime,15,FALSE) -> 0 | D20: =VLOOKUP(A20,Lime,13,FALSE) -> 1 | E20: 0 | F20: =VLOOKUP(A20,Lime,12,FALSE) -> 0 | G20: =(E20*VLOOKUP(A20,Lime,11,FALSE)/D20)*C20 -> 0 | M20: None | N20: =VLOOKUP(M20,Lime,14,FALSE) -> None | O20: =VLOOKUP(M20,Lime,15,FALSE) -> 0 | P20: =VLOOKUP(M20,Lime,13,FALSE) -> 1 | Q20: 0 | R20: =VLOOKUP(M20,Lime,12,FALSE) -> 0 | S20: =(Q20*VLOOKUP(M20,Lime,11,FALSE)/P20)*O20 -> 0 | Y20: None | Z20: =VLOOKUP(Y20,Lime,14,FALSE) -> None | AA20: =VLOOKUP(Y20,Lime,15,FALSE) -> 0 | AB20: =VLOOKUP(Y20,Lime,13,FALSE) -> 1 | AC20: 0 | AD20: =VLOOKUP(Y20,Lime,12,FALSE) -> 0 | AE20: =(AC20*VLOOKUP(Y20,Lime,11,FALSE)/AB20)*AA20 -> 0
A22: Nitrogen Stabilizers (drop down menu) | M22: Nitrogen Stabilizers (drop down menu) | Y22: Nitrogen Stabilizers (drop down menu)
A23: None | B23: =VLOOKUP(A23,NitrogenStabilizers,14,FALSE) -> None | C23: =VLOOKUP(A23,NitrogenStabilizers,15,FALSE) -> 0 | D23: =VLOOKUP(A23,NitrogenStabilizers,13,FALSE) -> 1 | E23: 0 | F23: =VLOOKUP(A23,NitrogenStabilizers,12,FALSE) -> 0 | G23: =(E23*VLOOKUP(A23,NitrogenStabilizers,11,FALSE)/D23)*C23 -> 0 | M23: None | N23: =VLOOKUP(M23,NitrogenStabilizers,14,FALSE) -> None | O23: =VLOOKUP(M23,NitrogenStabilizers,15,FALSE) -> 0 | P23: =VLOOKUP(M23,NitrogenStabilizers,13,FALSE) -> 1 | Q23: 0 | R23: =VLOOKUP(M23,NitrogenStabilizers,12,FALSE) -> 0 | S23: =(Q23*VLOOKUP(M23,NitrogenStabilizers,11,FALSE)/P23)*O23 -> 0 | Y23: None | Z23: =VLOOKUP(Y23,NitrogenStabilizers,14,FALSE) -> None | AA23: =VLOOKUP(Y23,NitrogenStabilizers,15,FALSE) -> 0 | AB23: =VLOOKUP(Y23,NitrogenStabilizers,13,FALSE) -> 1 | AC23: 0 | AD23: =VLOOKUP(Y23,NitrogenStabilizers,12,FALSE) -> 0 | AE23: =(AC23*VLOOKUP(Y23,NitrogenStabilizers,11,FALSE)/AB23)*AA23 -> 0
A24: None | B24: =VLOOKUP(A24,NitrogenStabilizers,14,FALSE) -> None | C24: =VLOOKUP(A24,NitrogenStabilizers,15,FALSE) -> 0 | D24: =VLOOKUP(A24,NitrogenStabilizers,13,FALSE) -> 1 | E24: 0 | F24: =VLOOKUP(A24,NitrogenStabilizers,12,FALSE) -> 0 | G24: =(E24*VLOOKUP(A24,NitrogenStabilizers,11,FALSE)/D24)*C24 -> 0 | K24: More | M24: None | N24: =VLOOKUP(M24,NitrogenStabilizers,14,FALSE) -> None | O24: =VLOOKUP(M24,NitrogenStabilizers,15,FALSE) -> 0 | P24: =VLOOKUP(M24,NitrogenStabilizers,13,FALSE) -> 1 | Q24: 0 | R24: =VLOOKUP(M24,NitrogenStabilizers,12,FALSE) -> 0 | S24: =(Q24*VLOOKUP(M24,NitrogenStabilizers,11,FALSE)/P24)*O24 -> 0 | W24: More | Y24: None | Z24: =VLOOKUP(Y24,NitrogenStabilizers,14,FALSE) -> None | AA24: =VLOOKUP(Y24,NitrogenStabilizers,15,FALSE) -> 0 | AB24: =VLOOKUP(Y24,NitrogenStabilizers,13,FALSE) -> 1 | AC24: 0 | AD24: =VLOOKUP(Y24,NitrogenStabilizers,12,FALSE) -> 0 | AE24: =(AC24*VLOOKUP(Y24,NitrogenStabilizers,11,FALSE)/AB24)*AA24 -> 0 | AI24: More
A25: 1st Application Fertilizer Cost/Acre | G25: =SUM(G6:G24) -> 38.55 | K25: Below | M25: 1st Application Fertilizer Cost/Acre | S25: =SUM(S6:S24) -> 0 | W25: Below | Y25: 1st Application Fertilizer Cost/Acre | AE25: =SUM(AE6:AE24) -> 0 | AI25: Below
K26: ¯ | W26: ¯ | AI26: ¯
A27: 2nd Application (i.e., Starter Fertilizer or Broadcast) | M27: 2nd Application (i.e., Starter Fertilizer or Broadcast) | Y27: 2nd Application (i.e., Starter Fertilizer or Broadcast)
A28: Fertilizer Source | B28: Purchase Units | C28: Package Price (Gals, Lbs, etc.) | D28: Units/Pkg | E28: Rate/Acre | F28: Units | G28: Cost | M28: Fertilizer Source | N28: Purchase Units | O28: Package Price (Gals, Lbs, etc.) | P28: Units/Pkg | Q28: Rate/Acre | R28: Units | S28: Cost | Y28: Fertilizer Source | Z28: Purchase Units | AA28: Package Price (Gals, Lbs, etc.) | AB28: Units/Pkg | AC28: Rate/Acre | AD28: Units | AE28: Cost
A29: Macronutrients (drop down menu) | E29: (Enter Below) | I29: N | J29: P | K29: K | M29: Macronutrients (drop down menu) | Q29: (Enter Below) | U29: N | V29: P | W29: K | Y29: Macronutrients (drop down menu) | AC29: (Enter Below) | AG29: N | AH29: P | AI29: K
A30: Urea (46-0-0) | B30: =VLOOKUP(A30,Macronutrients,14,FALSE) -> Tons | C30: =VLOOKUP(A30,'Fertilizer Products & Pricing'!$A$4:$O$38,15,FALSE) -> 750 | D30: =VLOOKUP($A30,Macronutrients,13,FALSE) -> 2000 | E30: 105 | F30: =VLOOKUP($A30,Macronutrients,12,FALSE) -> lbs | G30: =(E30*VLOOKUP(A30,Macronutrients,11,FALSE)/D30)*C30 -> 39.375 | I30: =VLOOKUP(A30,'Fertilizer Products & Pricing'!$A$4:$O$38,2,FALSE)*E30+VLOOKUP(A31,'Fertilizer Products & Pricing'!$A$4:$O$38,2,FALSE)*E31+VLOOKUP(A32,'Fertilizer Products & Pricing'!$A$4:$O$38,2,FALSE)*E32+VLOOKUP(A33,'Fertilizer Products & Pricing'!$A$4:$O$38,2,FALSE)*E33+VLOOKUP(A34,'Fertilizer Products & Pricing'!$A$4:$O$38,2,FALSE)*E34+VLOOKUP(A35,'Fertilizer Products & Pricing'!$A$4:$O$38,2,FALSE)*E35+VLOOKUP(A38,'Fertilizer Products & Pricing'!$A$42:$O$55,2,FALSE)*E38+VLOOKUP(A39,'Fertilizer Products & Pricing'!$A$42:$O$55,2,FALSE)*E39+VLOOKUP(A40,'Fertilizer Products & Pricing'!$A$42:$O$55,2,FALSE)*E40+VLOOKUP(A41,'Fertilizer Products & Pricing'!$A$42:$O$55,2,FALSE)*E41 -> 55.65 | J30: =VLOOKUP(A30,'Fertilizer Products & Pricing'!$A$4:$O$38,3,FALSE)*E30+VLOOKUP(A31,'Fertilizer Products & Pricing'!$A$4:$O$38,3,FALSE)*E31+VLOOKUP(A32,'Fertilizer Products & Pricing'!$A$4:$O$38,3,FALSE)*E32+VLOOKUP(A33,'Fertilizer Products & Pricing'!$A$4:$O$38,3,FALSE)*E33+VLOOKUP(A34,'Fertilizer Products & Pricing'!$A$4:$O$38,3,FALSE)*E34+VLOOKUP(A35,'Fertilizer Products & Pricing'!$A$4:$O$38,3,FALSE)*E35+VLOOKUP(A38,'Fertilizer Products & Pricing'!$A$42:$O$55,3,FALSE)*E38+VLOOKUP(A39,'Fertilizer Products & Pricing'!$A$42:$O$55,3,FALSE)*E39+VLOOKUP(A40,'Fertilizer Products & Pricing'!$A$42:$O$55,3,FALSE)*E40+VLOOKUP(A41,'Fertilizer Products & Pricing'!$A$42:$O$55,3,FALSE)*E41 -> 0 | K30: =VLOOKUP(A30,'Fertilizer Products & Pricing'!$A$4:$O$38,4,FALSE)*E30+VLOOKUP(A31,'Fertilizer Products & Pricing'!$A$4:$O$38,4,FALSE)*E31+VLOOKUP(A32,'Fertilizer Products & Pricing'!$A$4:$O$38,4,FALSE)*E32+VLOOKUP(A33,'Fertilizer Products & Pricing'!$A$4:$O$38,4,FALSE)*E33+VLOOKUP(A34,'Fertilizer Products & Pricing'!$A$4:$O$38,4,FALSE)*E34+VLOOKUP(A35,'Fertilizer Products & Pricing'!$A$4:$O$38,4,FALSE)*E35+VLOOKUP(A38,'Fertilizer Products & Pricing'!$A$42:$O$55,4,FALSE)*E38+VLOOKUP(A39,'Fertilizer Products & Pricing'!$A$42:$O$55,4,FALSE)*E39+VLOOKUP(A40,'Fertilizer Products & Pricing'!$A$42:$O$55,4,FALSE)*E40+VLOOKUP(A41,'Fertilizer Products & Pricing'!$A$42:$O$55,4,FALSE)*E41 -> 0 | M30: None | N30: =VLOOKUP(M30,Macronutrients,14,FALSE) -> None | O30: =VLOOKUP(M30,'Fertilizer Products & Pricing'!$A$4:$O$38,15,FALSE) -> 0 | P30: =VLOOKUP($M30,Macronutrients,13,FALSE) -> 1 | Q30: 0 | R30: =VLOOKUP($M30,Macronutrients,12,FALSE) -> 0 | S30: =(Q30*VLOOKUP(M30,Macronutrients,11,FALSE)/P30)*O30 -> 0 | U30: =VLOOKUP(M30,'Fertilizer Products & Pricing'!$A$4:$O$38,2,FALSE)*Q30+VLOOKUP(M31,'Fertilizer Products & Pricing'!$A$4:$O$38,2,FALSE)*Q31+VLOOKUP(M32,'Fertilizer Products & Pricing'!$A$4:$O$38,2,FALSE)*Q32+VLOOKUP(M33,'Fertilizer Products & Pricing'!$A$4:$O$38,2,FALSE)*Q33+VLOOKUP(M34,'Fertilizer Products & Pricing'!$A$4:$O$38,2,FALSE)*Q34+VLOOKUP(M35,'Fertilizer Products & Pricing'!$A$4:$O$38,2,FALSE)*Q35+VLOOKUP(M38,'Fertilizer Products & Pricing'!$A$42:$O$55,2,FALSE)*Q38+VLOOKUP(M39,'Fertilizer Products & Pricing'!$A$42:$O$55,2,FALSE)*Q39+VLOOKUP(M40,'Fertilizer Products & Pricing'!$A$42:$O$55,2,FALSE)*Q40+VLOOKUP(M41,'Fertilizer Products & Pricing'!$A$42:$O$55,2,FALSE)*Q41 -> 0 | V30: =VLOOKUP(M30,'Fertilizer Products & Pricing'!$A$4:$O$38,3,FALSE)*Q30+VLOOKUP(M31,'Fertilizer Products & Pricing'!$A$4:$O$38,3,FALSE)*Q31+VLOOKUP(M32,'Fertilizer Products & Pricing'!$A$4:$O$38,3,FALSE)*Q32+VLOOKUP(M33,'Fertilizer Products & Pricing'!$A$4:$O$38,3,FALSE)*Q33+VLOOKUP(M34,'Fertilizer Products & Pricing'!$A$4:$O$38,3,FALSE)*Q34+VLOOKUP(M35,'Fertilizer Products & Pricing'!$A$4:$O$38,3,FALSE)*Q35+VLOOKUP(M38,'Fertilizer Products & Pricing'!$A$42:$O$55,3,FALSE)*Q38+VLOOKUP(M39,'Fertilizer Products & Pricing'!$A$42:$O$55,3,FALSE)*Q39+VLOOKUP(M40,'Fertilizer Products & Pricing'!$A$42:$O$55,3,FALSE)*Q40+VLOOKUP(M41,'Fertilizer Products & Pricing'!$A$42:$O$55,3,FALSE)*Q41 -> 0 | W30: =VLOOKUP(M30,'Fertilizer Products & Pricing'!$A$4:$O$38,4,FALSE)*Q30+VLOOKUP(M31,'Fertilizer Products & Pricing'!$A$4:$O$38,4,FALSE)*Q31+VLOOKUP(M32,'Fertilizer Products & Pricing'!$A$4:$O$38,4,FALSE)*Q32+VLOOKUP(M33,'Fertilizer Products & Pricing'!$A$4:$O$38,4,FALSE)*Q33+VLOOKUP(M34,'Fertilizer Products & Pricing'!$A$4:$O$38,4,FALSE)*Q34+VLOOKUP(M35,'Fertilizer Products & Pricing'!$A$4:$O$38,4,FALSE)*Q35+VLOOKUP(M38,'Fertilizer Products & Pricing'!$A$42:$O$55,4,FALSE)*Q38+VLOOKUP(M39,'Fertilizer Products & Pricing'!$A$42:$O$55,4,FALSE)*Q39+VLOOKUP(M40,'Fertilizer Products & Pricing'!$A$42:$O$55,4,FALSE)*Q40+VLOOKUP(M41,'Fertilizer Products & Pricing'!$A$42:$O$55,4,FALSE)*Q41 -> 0 | Y30: None | Z30: =VLOOKUP(Y30,Macronutrients,14,FALSE) -> None | AA30: =VLOOKUP(Y30,'Fertilizer Products & Pricing'!$A$4:$O$38,15,FALSE) -> 0 | AB30: =VLOOKUP($Y30,Macronutrients,13,FALSE) -> 1 | AC30: 0 | AD30: =VLOOKUP($Y30,Macronutrients,12,FALSE) -> 0 | AE30: =(AC30*VLOOKUP(Y30,Macronutrients,11,FALSE)/AB30)*AA30 -> 0 | AG30: =VLOOKUP(Y30,'Fertilizer Products & Pricing'!$A$4:$O$38,2,FALSE)*AC30+VLOOKUP(Y31,'Fertilizer Products & Pricing'!$A$4:$O$38,2,FALSE)*AC31+VLOOKUP(Y32,'Fertilizer Products & Pricing'!$A$4:$O$38,2,FALSE)*AC32+VLOOKUP(Y33,'Fertilizer Products & Pricing'!$A$4:$O$38,2,FALSE)*AC33+VLOOKUP(Y34,'Fertilizer Products & Pricing'!$A$4:$O$38,2,FALSE)*AC34+VLOOKUP(Y35,'Fertilizer Products & Pricing'!$A$4:$O$38,2,FALSE)*AC35+VLOOKUP(Y38,'Fertilizer Products & Pricing'!$A$42:$O$55,2,FALSE)*AC38+VLOOKUP(Y39,'Fertilizer Products & Pricing'!$A$42:$O$55,2,FALSE)*AC39+VLOOKUP(Y40,'Fertilizer Products & Pricing'!$A$42:$O$55,2,FALSE)*AC40+VLOOKUP(Y41,'Fertilizer Products & Pricing'!$A$42:$O$55,2,FALSE)*AC41 -> 0 | AH30: =VLOOKUP(Y30,'Fertilizer Products & Pricing'!$A$4:$O$38,3,FALSE)*AC30+VLOOKUP(Y31,'Fertilizer Products & Pricing'!$A$4:$O$38,3,FALSE)*AC31+VLOOKUP(Y32,'Fertilizer Products & Pricing'!$A$4:$O$38,3,FALSE)*AC32+VLOOKUP(Y33,'Fertilizer Products & Pricing'!$A$4:$O$38,3,FALSE)*AC33+VLOOKUP(Y34,'Fertilizer Products & Pricing'!$A$4:$O$38,3,FALSE)*AC34+VLOOKUP(Y35,'Fertilizer Products & Pricing'!$A$4:$O$38,3,FALSE)*AC35+VLOOKUP(Y38,'Fertilizer Products & Pricing'!$A$42:$O$55,3,FALSE)*AC38+VLOOKUP(Y39,'Fertilizer Products & Pricing'!$A$42:$O$55,3,FALSE)*AC39+VLOOKUP(Y40,'Fertilizer Products & Pricing'!$A$42:$O$55,3,FALSE)*AC40+VLOOKUP(Y41,'Fertilizer Products & Pricing'!$A$42:$O$55,3,FALSE)*AC41 -> 0 | AI30: =VLOOKUP(Y30,'Fertilizer Products & Pricing'!$A$4:$O$38,4,FALSE)*AC30+VLOOKUP(Y31,'Fertilizer Products & Pricing'!$A$4:$O$38,4,FALSE)*AC31+VLOOKUP(Y32,'Fertilizer Products & Pricing'!$A$4:$O$38,4,FALSE)*AC32+VLOOKUP(Y33,'Fertilizer Products & Pricing'!$A$4:$O$38,4,FALSE)*AC33+VLOOKUP(Y34,'Fertilizer Products & Pricing'!$A$4:$O$38,4,FALSE)*AC34+VLOOKUP(Y35,'Fertilizer Products & Pricing'!$A$4:$O$38,4,FALSE)*AC35+VLOOKUP(Y38,'Fertilizer Products & Pricing'!$A$42:$O$55,4,FALSE)*AC38+VLOOKUP(Y39,'Fertilizer Products & Pricing'!$A$42:$O$55,4,FALSE)*AC39+VLOOKUP(Y40,'Fertilizer Products & Pricing'!$A$42:$O$55,4,FALSE)*AC40+VLOOKUP(Y41,'Fertilizer Products & Pricing'!$A$42:$O$55,4,FALSE)*AC41 -> 0
A31: AMS (21-0-0-24S) | B31: Tons | C31: =VLOOKUP(A31,'Fertilizer Products & Pricing'!$A$4:$O$38,15,FALSE) -> 485 | D31: 2000 | E31: 35 | F31: lbs | G31: 8.4875 | M31: None | N31: =VLOOKUP(M31,Macronutrients,14,FALSE) -> None | O31: =VLOOKUP(M31,'Fertilizer Products & Pricing'!$A$4:$O$38,15,FALSE) -> 0 | P31: 1 | Q31: 0 | R31: 0 | S31: =(Q31*VLOOKUP(M31,Macronutrients,11,FALSE)/P31)*O31 -> 0 | Y31: None | Z31: =VLOOKUP(Y31,Macronutrients,14,FALSE) -> None | AA31: =VLOOKUP(Y31,'Fertilizer Products & Pricing'!$A$4:$O$38,15,FALSE) -> 0 | AB31: 1 | AC31: 0 | AD31: 0 | AE31: =(AC31*VLOOKUP(Y31,Macronutrients,11,FALSE)/AB31)*AA31 -> 0
A32: None | B32: None | C32: =VLOOKUP(A32,'Fertilizer Products & Pricing'!$A$4:$O$38,15,FALSE) -> 0 | D32: 1 | E32: 0 | F32: 0 | G32: 0 | I32: S | J32: Ca | K32: Mg | M32: None | N32: None | O32: =VLOOKUP(M32,'Fertilizer Products & Pricing'!$A$4:$O$38,15,FALSE) -> 0 | P32: 1 | Q32: 0 | R32: 0 | S32: 0 | U32: S | V32: Ca | W32: Mg | Y32: None | Z32: None | AA32: =VLOOKUP(Y32,'Fertilizer Products & Pricing'!$A$4:$O$38,15,FALSE) -> 0 | AB32: 1 | AC32: 0 | AD32: 0 | AE32: 0 | AG32: S | AH32: Ca | AI32: Mg
A33: None | B33: None | C33: =VLOOKUP(A33,'Fertilizer Products & Pricing'!$A$4:$O$38,15,FALSE) -> 0 | D33: 1 | E33: 0 | F33: 0 | G33: 0 | I33: =VLOOKUP(A30,'Fertilizer Products & Pricing'!$A$4:$O$38,5,FALSE)*E30+VLOOKUP(A31,'Fertilizer Products & Pricing'!$A$4:$O$38,5,FALSE)*E31+VLOOKUP(A32,'Fertilizer Products & Pricing'!$A$4:$O$38,5,FALSE)*E32+VLOOKUP(A33,'Fertilizer Products & Pricing'!$A$4:$O$38,5,FALSE)*E33+VLOOKUP(A34,'Fertilizer Products & Pricing'!$A$4:$O$38,5,FALSE)*E34+VLOOKUP(A35,'Fertilizer Products & Pricing'!$A$4:$O$38,5,FALSE)*E35+VLOOKUP(A38,'Fertilizer Products & Pricing'!$A$42:$O$55,5,FALSE)*E38+VLOOKUP(A39,'Fertilizer Products & Pricing'!$A$42:$O$55,5,FALSE)*E39+VLOOKUP(A40,'Fertilizer Products & Pricing'!$A$42:$O$55,5,FALSE)*E40+VLOOKUP(A41,'Fertilizer Products & Pricing'!$A$42:$O$55,5,FALSE)*E41 -> 8.4 | J33: =VLOOKUP(A30,'Fertilizer Products & Pricing'!$A$4:$O$38,7,FALSE)*E30+VLOOKUP(A31,'Fertilizer Products & Pricing'!$A$4:$O$38,7,FALSE)*E31+VLOOKUP(A32,'Fertilizer Products & Pricing'!$A$4:$O$38,7,FALSE)*E32+VLOOKUP(A33,'Fertilizer Products & Pricing'!$A$4:$O$38,7,FALSE)*E33+VLOOKUP(A34,'Fertilizer Products & Pricing'!$A$4:$O$38,7,FALSE)*E34+VLOOKUP(A35,'Fertilizer Products & Pricing'!$A$4:$O$38,7,FALSE)*E35+VLOOKUP(A38,'Fertilizer Products & Pricing'!$A$42:$O$55,7,FALSE)*E38+VLOOKUP(A39,'Fertilizer Products & Pricing'!$A$42:$O$55,7,FALSE)*E39+VLOOKUP(A40,'Fertilizer Products & Pricing'!$A$42:$O$55,7,FALSE)*E40+VLOOKUP(A41,'Fertilizer Products & Pricing'!$A$42:$O$55,7,FALSE)*E41 -> 0 | K33: =VLOOKUP(A30,'Fertilizer Products & Pricing'!$A$4:$O$38,6,FALSE)*E30+VLOOKUP(A31,'Fertilizer Products & Pricing'!$A$4:$O$38,6,FALSE)*E31+VLOOKUP(A32,'Fertilizer Products & Pricing'!$A$4:$O$38,6,FALSE)*E32+VLOOKUP(A33,'Fertilizer Products & Pricing'!$A$4:$O$38,6,FALSE)*E33+VLOOKUP(A34,'Fertilizer Products & Pricing'!$A$4:$O$38,6,FALSE)*E34+VLOOKUP(A35,'Fertilizer Products & Pricing'!$A$4:$O$38,6,FALSE)*E35+VLOOKUP(A38,'Fertilizer Products & Pricing'!$A$42:$O$55,6,FALSE)*E38+VLOOKUP(A39,'Fertilizer Products & Pricing'!$A$42:$O$55,6,FALSE)*E39+VLOOKUP(A40,'Fertilizer Products & Pricing'!$A$42:$O$55,6,FALSE)*E40+VLOOKUP(A41,'Fertilizer Products & Pricing'!$A$42:$O$55,6,FALSE)*E41 -> 0 | M33: None | N33: None | O33: =VLOOKUP(M33,'Fertilizer Products & Pricing'!$A$4:$O$38,15,FALSE) -> 0 | P33: 1 | Q33: 0 | R33: 0 | S33: 0 | U33: =VLOOKUP(M30,'Fertilizer Products & Pricing'!$A$4:$O$38,5,FALSE)*Q30+VLOOKUP(M31,'Fertilizer Products & Pricing'!$A$4:$O$38,5,FALSE)*Q31+VLOOKUP(M32,'Fertilizer Products & Pricing'!$A$4:$O$38,5,FALSE)*Q32+VLOOKUP(M33,'Fertilizer Products & Pricing'!$A$4:$O$38,5,FALSE)*Q33+VLOOKUP(M34,'Fertilizer Products & Pricing'!$A$4:$O$38,5,FALSE)*Q34+VLOOKUP(M35,'Fertilizer Products & Pricing'!$A$4:$O$38,5,FALSE)*Q35+VLOOKUP(M38,'Fertilizer Products & Pricing'!$A$42:$O$55,5,FALSE)*Q38+VLOOKUP(M39,'Fertilizer Products & Pricing'!$A$42:$O$55,5,FALSE)*Q39+VLOOKUP(M40,'Fertilizer Products & Pricing'!$A$42:$O$55,5,FALSE)*Q40+VLOOKUP(M41,'Fertilizer Products & Pricing'!$A$42:$O$55,5,FALSE)*Q41 -> 0 | V33: =VLOOKUP(M30,'Fertilizer Products & Pricing'!$A$4:$O$38,7,FALSE)*Q30+VLOOKUP(M31,'Fertilizer Products & Pricing'!$A$4:$O$38,7,FALSE)*Q31+VLOOKUP(M32,'Fertilizer Products & Pricing'!$A$4:$O$38,7,FALSE)*Q32+VLOOKUP(M33,'Fertilizer Products & Pricing'!$A$4:$O$38,7,FALSE)*Q33+VLOOKUP(M34,'Fertilizer Products & Pricing'!$A$4:$O$38,7,FALSE)*Q34+VLOOKUP(M35,'Fertilizer Products & Pricing'!$A$4:$O$38,7,FALSE)*Q35+VLOOKUP(M38,'Fertilizer Products & Pricing'!$A$42:$O$55,7,FALSE)*Q38+VLOOKUP(M39,'Fertilizer Products & Pricing'!$A$42:$O$55,7,FALSE)*Q39+VLOOKUP(M40,'Fertilizer Products & Pricing'!$A$42:$O$55,7,FALSE)*Q40+VLOOKUP(M41,'Fertilizer Products & Pricing'!$A$42:$O$55,7,FALSE)*Q41 -> 0 | W33: =VLOOKUP(M30,'Fertilizer Products & Pricing'!$A$4:$O$38,6,FALSE)*Q30+VLOOKUP(M31,'Fertilizer Products & Pricing'!$A$4:$O$38,6,FALSE)*Q31+VLOOKUP(M32,'Fertilizer Products & Pricing'!$A$4:$O$38,6,FALSE)*Q32+VLOOKUP(M33,'Fertilizer Products & Pricing'!$A$4:$O$38,6,FALSE)*Q33+VLOOKUP(M34,'Fertilizer Products & Pricing'!$A$4:$O$38,6,FALSE)*Q34+VLOOKUP(M35,'Fertilizer Products & Pricing'!$A$4:$O$38,6,FALSE)*Q35+VLOOKUP(M38,'Fertilizer Products & Pricing'!$A$42:$O$55,6,FALSE)*Q38+VLOOKUP(M39,'Fertilizer Products & Pricing'!$A$42:$O$55,6,FALSE)*Q39+VLOOKUP(M40,'Fertilizer Products & Pricing'!$A$42:$O$55,6,FALSE)*Q40+VLOOKUP(M41,'Fertilizer Products & Pricing'!$A$42:$O$55,6,FALSE)*Q41 -> 0 | Y33: None | Z33: None | AA33: =VLOOKUP(Y33,'Fertilizer Products & Pricing'!$A$4:$O$38,15,FALSE) -> 0 | AB33: 1 | AC33: 0 | AD33: 0 | AE33: 0 | AG33: =VLOOKUP(Y30,'Fertilizer Products & Pricing'!$A$4:$O$38,5,FALSE)*AC30+VLOOKUP(Y31,'Fertilizer Products & Pricing'!$A$4:$O$38,5,FALSE)*AC31+VLOOKUP(Y32,'Fertilizer Products & Pricing'!$A$4:$O$38,5,FALSE)*AC32+VLOOKUP(Y33,'Fertilizer Products & Pricing'!$A$4:$O$38,5,FALSE)*AC33+VLOOKUP(Y34,'Fertilizer Products & Pricing'!$A$4:$O$38,5,FALSE)*AC34+VLOOKUP(Y35,'Fertilizer Products & Pricing'!$A$4:$O$38,5,FALSE)*AC35+VLOOKUP(Y38,'Fertilizer Products & Pricing'!$A$42:$O$55,5,FALSE)*AC38+VLOOKUP(Y39,'Fertilizer Products & Pricing'!$A$42:$O$55,5,FALSE)*AC39+VLOOKUP(Y40,'Fertilizer Products & Pricing'!$A$42:$O$55,5,FALSE)*AC40+VLOOKUP(Y41,'Fertilizer Products & Pricing'!$A$42:$O$55,5,FALSE)*AC41 -> 0 | AH33: =VLOOKUP(Y30,'Fertilizer Products & Pricing'!$A$4:$O$38,7,FALSE)*AC30+VLOOKUP(Y31,'Fertilizer Products & Pricing'!$A$4:$O$38,7,FALSE)*AC31+VLOOKUP(Y32,'Fertilizer Products & Pricing'!$A$4:$O$38,7,FALSE)*AC32+VLOOKUP(Y33,'Fertilizer Products & Pricing'!$A$4:$O$38,7,FALSE)*AC33+VLOOKUP(Y34,'Fertilizer Products & Pricing'!$A$4:$O$38,7,FALSE)*AC34+VLOOKUP(Y35,'Fertilizer Products & Pricing'!$A$4:$O$38,7,FALSE)*AC35+VLOOKUP(Y38,'Fertilizer Products & Pricing'!$A$42:$O$55,7,FALSE)*AC38+VLOOKUP(Y39,'Fertilizer Products & Pricing'!$A$42:$O$55,7,FALSE)*AC39+VLOOKUP(Y40,'Fertilizer Products & Pricing'!$A$42:$O$55,7,FALSE)*AC40+VLOOKUP(Y41,'Fertilizer Products & Pricing'!$A$42:$O$55,7,FALSE)*AC41 -> 0 | AI33: =VLOOKUP(Y30,'Fertilizer Products & Pricing'!$A$4:$O$38,6,FALSE)*AC30+VLOOKUP(Y31,'Fertilizer Products & Pricing'!$A$4:$O$38,6,FALSE)*AC31+VLOOKUP(Y32,'Fertilizer Products & Pricing'!$A$4:$O$38,6,FALSE)*AC32+VLOOKUP(Y33,'Fertilizer Products & Pricing'!$A$4:$O$38,6,FALSE)*AC33+VLOOKUP(Y34,'Fertilizer Products & Pricing'!$A$4:$O$38,6,FALSE)*AC34+VLOOKUP(Y35,'Fertilizer Products & Pricing'!$A$4:$O$38,6,FALSE)*AC35+VLOOKUP(Y38,'Fertilizer Products & Pricing'!$A$42:$O$55,6,FALSE)*AC38+VLOOKUP(Y39,'Fertilizer Products & Pricing'!$A$42:$O$55,6,FALSE)*AC39+VLOOKUP(Y40,'Fertilizer Products & Pricing'!$A$42:$O$55,6,FALSE)*AC40+VLOOKUP(Y41,'Fertilizer Products & Pricing'!$A$42:$O$55,6,FALSE)*AC41 -> 0
A34: None | B34: None | C34: =VLOOKUP(A34,'Fertilizer Products & Pricing'!$A$4:$O$38,15,FALSE) -> 0 | D34: 1 | E34: 0 | F34: 0 | G34: 0 | M34: None | N34: None | O34: =VLOOKUP(M34,'Fertilizer Products & Pricing'!$A$4:$O$38,15,FALSE) -> 0 | P34: 1 | Q34: 0 | R34: 0 | S34: 0 | Y34: None | Z34: None | AA34: =VLOOKUP(Y34,'Fertilizer Products & Pricing'!$A$4:$O$38,15,FALSE) -> 0 | AB34: 1 | AC34: 0 | AD34: 0 | AE34: 0
A35: None | B35: None | C35: =VLOOKUP(A35,'Fertilizer Products & Pricing'!$A$4:$O$38,15,FALSE) -> 0 | D35: 1 | E35: 0 | F35: 0 | G35: 0 | I35: Zn | J35: B | K35: Mn | M35: None | N35: None | O35: =VLOOKUP(M35,'Fertilizer Products & Pricing'!$A$4:$O$38,15,FALSE) -> 0 | P35: 1 | Q35: 0 | R35: 0 | S35: 0 | U35: Zn | V35: B | W35: Mn | Y35: None | Z35: None | AA35: =VLOOKUP(Y35,'Fertilizer Products & Pricing'!$A$4:$O$38,15,FALSE) -> 0 | AB35: 1 | AC35: 0 | AD35: 0 | AE35: 0 | AG35: Zn | AH35: B | AI35: Mn
I36: =VLOOKUP($A$39,'Fertilizer Products & Pricing'!$A$42:$O$55,8,FALSE)*$E$39+VLOOKUP($A$40,'Fertilizer Products & Pricing'!$A$42:$O$55,8,FALSE)*$E$40+VLOOKUP($A$41,'Fertilizer Products & Pricing'!$A$42:$O$55,8,FALSE)*$E$41+VLOOKUP($A$38,'Fertilizer Products & Pricing'!$A$42:$O$55,8,FALSE)*$E$38 -> 0 | J36: =VLOOKUP($A$39,'Fertilizer Products & Pricing'!$A$42:$O$55,9,FALSE)*$E$39+VLOOKUP($A$40,'Fertilizer Products & Pricing'!$A$42:$O$55,9,FALSE)*$E$40+VLOOKUP($A$41,'Fertilizer Products & Pricing'!$A$42:$O$55,9,FALSE)*$E$41+VLOOKUP($A$38,'Fertilizer Products & Pricing'!$A$42:$O$55,9,FALSE)*$E$38 -> 0 | K36: =VLOOKUP($A$39,'Fertilizer Products & Pricing'!$A$42:$O$55,10,FALSE)*$E$39+VLOOKUP($A$40,'Fertilizer Products & Pricing'!$A$42:$O$55,10,FALSE)*$E$40+VLOOKUP($A$41,'Fertilizer Products & Pricing'!$A$42:$O$55,10,FALSE)*$E$41+VLOOKUP($A$38,'Fertilizer Products & Pricing'!$A$42:$O$55,10,FALSE)*$E$38 -> 0 | U36: =VLOOKUP($M39,'Fertilizer Products & Pricing'!$A$42:$O$55,8,FALSE)*$Q39+VLOOKUP($M40,'Fertilizer Products & Pricing'!$A$42:$O$55,8,FALSE)*$Q40+VLOOKUP($M41,'Fertilizer Products & Pricing'!$A$42:$O$55,8,FALSE)*$Q41+VLOOKUP($M38,'Fertilizer Products & Pricing'!$A$42:$O$55,8,FALSE)*$Q38 -> 0 | V36: =VLOOKUP($M39,'Fertilizer Products & Pricing'!$A$42:$O$55,9,FALSE)*$Q39+VLOOKUP($M40,'Fertilizer Products & Pricing'!$A$42:$O$55,9,FALSE)*$Q40+VLOOKUP($M41,'Fertilizer Products & Pricing'!$A$42:$O$55,9,FALSE)*$Q41+VLOOKUP($M38,'Fertilizer Products & Pricing'!$A$42:$O$55,9,FALSE)*$Q38 -> 0 | W36: =VLOOKUP($M$39,'Fertilizer Products & Pricing'!$A$42:$O$55,10,FALSE)*$Q$39+VLOOKUP($M$40,'Fertilizer Products & Pricing'!$A$42:$O$55,10,FALSE)*$Q$40+VLOOKUP($M$41,'Fertilizer Products & Pricing'!$A$42:$O$55,10,FALSE)*$Q$41+VLOOKUP($M$38,'Fertilizer Products & Pricing'!$A$42:$O$55,10,FALSE)*$Q$38 -> 0 | AG36: =VLOOKUP($Y39,'Fertilizer Products & Pricing'!$A$42:$O$55,8,FALSE)*$AC39+VLOOKUP($Y40,'Fertilizer Products & Pricing'!$A$42:$O$55,8,FALSE)*$AC40+VLOOKUP($Y41,'Fertilizer Products & Pricing'!$A$42:$O$55,8,FALSE)*$AC41+VLOOKUP($Y38,'Fertilizer Products & Pricing'!$A$42:$O$55,8,FALSE)*$AC38 -> 0 | AH36: =VLOOKUP($Y39,'Fertilizer Products & Pricing'!$A$42:$O$55,9,FALSE)*$AC39+VLOOKUP($Y40,'Fertilizer Products & Pricing'!$A$42:$O$55,9,FALSE)*$AC40+VLOOKUP($Y41,'Fertilizer Products & Pricing'!$A$42:$O$55,9,FALSE)*$AC41+VLOOKUP($Y38,'Fertilizer Products & Pricing'!$A$42:$O$55,9,FALSE)*$AC38 -> 0 | AI36: =VLOOKUP($Y39,'Fertilizer Products & Pricing'!$A$42:$O$55,10,FALSE)*$AC39+VLOOKUP($Y40,'Fertilizer Products & Pricing'!$A$42:$O$55,10,FALSE)*$AC40+VLOOKUP($Y41,'Fertilizer Products & Pricing'!$A$42:$O$55,10,FALSE)*$AC41+VLOOKUP($Y38,'Fertilizer Products & Pricing'!$A$42:$O$55,10,FALSE)*$AC38 -> 0
A37: Micronutrients (drop down menu) | M37: Micronutrients (drop down menu) | Y37: Micronutrients (drop down menu)
A38: None | B38: =VLOOKUP($A38,Micronutrients,14,FALSE) -> None | C38: =VLOOKUP($A38,Micronutrients,15,FALSE) -> 0 | D38: =VLOOKUP($A38,Micronutrients,13,FALSE) -> 1 | E38: 0 | F38: =VLOOKUP($A38,Micronutrients,12,FALSE) -> 0 | G38: =(E38*VLOOKUP(A38,Micronutrients,11,FALSE)/D38)*C38 -> 0 | M38: None | N38: =VLOOKUP($M38,Micronutrients,14,FALSE) -> None | O38: =VLOOKUP($M38,Micronutrients,15,FALSE) -> 0 | P38: =VLOOKUP($M38,Micronutrients,13,FALSE) -> 1 | Q38: 0 | R38: =VLOOKUP($M38,Micronutrients,12,FALSE) -> 0 | S38: =(Q38*VLOOKUP(M38,Micronutrients,11,FALSE)/P38)*O38 -> 0 | Y38: None | Z38: =VLOOKUP(Y38,Micronutrients,14,FALSE) -> None | AA38: =VLOOKUP(Y38,Micronutrients,15,FALSE) -> 0 | AB38: =VLOOKUP(Y38,Micronutrients,13,FALSE) -> 1 | AC38: 0 | AD38: =VLOOKUP(Y38,Micronutrients,12,FALSE) -> 0 | AE38: =(AC38*VLOOKUP(Y38,Micronutrients,11,FALSE)/AB38)*AA38 -> 0
A39: None | B39: =VLOOKUP($A39,Micronutrients,14,FALSE) -> None | C39: =VLOOKUP($A39,Micronutrients,15,FALSE) -> 0 | D39: =VLOOKUP($A39,Micronutrients,13,FALSE) -> 1 | E39: 0 | F39: =VLOOKUP($A39,Micronutrients,12,FALSE) -> 0 | G39: =(E39*VLOOKUP(A39,Micronutrients,11,FALSE)/D39)*C39 -> 0 | M39: None | N39: =VLOOKUP($M39,Micronutrients,14,FALSE) -> None | O39: =VLOOKUP($M39,Micronutrients,15,FALSE) -> 0 | P39: =VLOOKUP($M39,Micronutrients,13,FALSE) -> 1 | Q39: 0 | R39: =VLOOKUP($M39,Micronutrients,12,FALSE) -> 0 | S39: =(Q39*VLOOKUP(M39,Micronutrients,11,FALSE)/P39)*O39 -> 0 | Y39: None | Z39: =VLOOKUP(Y39,Micronutrients,14,FALSE) -> None | AA39: =VLOOKUP(Y39,Micronutrients,15,FALSE) -> 0 | AB39: =VLOOKUP(Y39,Micronutrients,13,FALSE) -> 1 | AC39: 0 | AD39: =VLOOKUP(Y39,Micronutrients,12,FALSE) -> 0 | AE39: =(AC39*VLOOKUP(Y39,Micronutrients,11,FALSE)/AB39)*AA39 -> 0
A40: None | B40: =VLOOKUP($A40,Micronutrients,14,FALSE) -> None | C40: =VLOOKUP($A40,Micronutrients,15,FALSE) -> 0 | D40: =VLOOKUP($A40,Micronutrients,13,FALSE) -> 1 | E40: 0 | F40: =VLOOKUP($A40,Micronutrients,12,FALSE) -> 0 | G40: =(E40*VLOOKUP(A40,Micronutrients,11,FALSE)/D40)*C40 -> 0 | M40: None | N40: =VLOOKUP($M40,Micronutrients,14,FALSE) -> None | O40: =VLOOKUP($M40,Micronutrients,15,FALSE) -> 0 | P40: =VLOOKUP($M40,Micronutrients,13,FALSE) -> 1 | Q40: 0 | R40: =VLOOKUP($M40,Micronutrients,12,FALSE) -> 0 | S40: =(Q40*VLOOKUP(M40,Micronutrients,11,FALSE)/P40)*O40 -> 0 | Y40: None | Z40: =VLOOKUP(Y40,Micronutrients,14,FALSE) -> None | AA40: =VLOOKUP(Y40,Micronutrients,15,FALSE) -> 0 | AB40: =VLOOKUP(Y40,Micronutrients,13,FALSE) -> 1 | AC40: 0 | AD40: =VLOOKUP(Y40,Micronutrients,12,FALSE) -> 0 | AE40: =(AC40*VLOOKUP(Y40,Micronutrients,11,FALSE)/AB40)*AA40 -> 0
A41: None | B41: =VLOOKUP($A41,Micronutrients,14,FALSE) -> None | C41: =VLOOKUP($A41,Micronutrients,15,FALSE) -> 0 | D41: =VLOOKUP($A41,Micronutrients,13,FALSE) -> 1 | E41: 0 | F41: =VLOOKUP($A41,Micronutrients,12,FALSE) -> 0 | G41: =(E41*VLOOKUP(A41,Micronutrients,11,FALSE)/D41)*C41 -> 0 | M41: None | N41: =VLOOKUP($M41,Micronutrients,14,FALSE) -> None | O41: =VLOOKUP($M41,Micronutrients,15,FALSE) -> 0 | P41: =VLOOKUP($M41,Micronutrients,13,FALSE) -> 1 | Q41: 0 | R41: =VLOOKUP($M41,Micronutrients,12,FALSE) -> 0 | S41: =(Q41*VLOOKUP(M41,Micronutrients,11,FALSE)/P41)*O41 -> 0 | Y41: None | Z41: =VLOOKUP(Y41,Micronutrients,14,FALSE) -> None | AA41: =VLOOKUP(Y41,Micronutrients,15,FALSE) -> 0 | AB41: =VLOOKUP(Y41,Micronutrients,13,FALSE) -> 1 | AC41: 0 | AD41: =VLOOKUP(Y41,Micronutrients,12,FALSE) -> 0 | AE41: =(AC41*VLOOKUP(Y41,Micronutrients,11,FALSE)/AB41)*AA41 -> 0
A43: Nitrogen Stabilizers (drop down menu) | M43: Nitrogen Stabilizers (drop down menu) | Y43: Nitrogen Stabilizers (drop down menu)
A44: None | B44: =VLOOKUP(A44,NitrogenStabilizers,14,FALSE) -> None | C44: =VLOOKUP(A44,NitrogenStabilizers,15,FALSE) -> 0 | D44: =VLOOKUP(A44,NitrogenStabilizers,13,FALSE) -> 1 | E44: 0 | F44: =VLOOKUP(A44,NitrogenStabilizers,12,FALSE) -> 0 | G44: =(E44*VLOOKUP(A44,NitrogenStabilizers,11,FALSE)/D44)*C44 -> 0 | M44: None | N44: =VLOOKUP(M44,NitrogenStabilizers,14,FALSE) -> None | O44: =VLOOKUP(M44,NitrogenStabilizers,15,FALSE) -> 0 | P44: =VLOOKUP(M44,NitrogenStabilizers,13,FALSE) -> 1 | Q44: 0 | R44: =VLOOKUP(M44,NitrogenStabilizers,12,FALSE) -> 0 | S44: =(Q44*VLOOKUP(M44,NitrogenStabilizers,11,FALSE)/P44)*O44 -> 0 | Y44: None | Z44: =VLOOKUP(Y44,NitrogenStabilizers,14,FALSE) -> None | AA44: =VLOOKUP(Y44,NitrogenStabilizers,15,FALSE) -> 0 | AB44: =VLOOKUP(Y44,NitrogenStabilizers,13,FALSE) -> 1 | AC44: 0 | AD44: =VLOOKUP(Y44,NitrogenStabilizers,12,FALSE) -> 0 | AE44: =(AC44*VLOOKUP(Y44,NitrogenStabilizers,11,FALSE)/AB44)*AA44 -> 0
A45: None | B45: =VLOOKUP(A45,NitrogenStabilizers,14,FALSE) -> None | C45: =VLOOKUP(A45,NitrogenStabilizers,15,FALSE) -> 0 | D45: =VLOOKUP(A45,NitrogenStabilizers,13,FALSE) -> 1 | E45: 0 | F45: =VLOOKUP(A45,NitrogenStabilizers,12,FALSE) -> 0 | G45: =(E45*VLOOKUP(A45,NitrogenStabilizers,11,FALSE)/D45)*C45 -> 0 | K45: More | M45: None | N45: =VLOOKUP(M45,NitrogenStabilizers,14,FALSE) -> None | O45: =VLOOKUP(M45,NitrogenStabilizers,15,FALSE) -> 0 | P45: =VLOOKUP(M45,NitrogenStabilizers,13,FALSE) -> 1 | Q45: 0 | R45: =VLOOKUP(M45,NitrogenStabilizers,12,FALSE) -> 0 | S45: =(Q45*VLOOKUP(M45,NitrogenStabilizers,11,FALSE)/P45)*O45 -> 0 | W45: More | Y45: None | Z45: =VLOOKUP(Y45,NitrogenStabilizers,14,FALSE) -> None | AA45: =VLOOKUP(Y45,NitrogenStabilizers,15,FALSE) -> 0 | AB45: =VLOOKUP(Y45,NitrogenStabilizers,13,FALSE) -> 1 | AC45: 0 | AD45: =VLOOKUP(Y45,NitrogenStabilizers,12,FALSE) -> 0 | AE45: =(AC45*VLOOKUP(Y45,NitrogenStabilizers,11,FALSE)/AB45)*AA45 -> 0 | AI45: More
A46: 2nd Application Fertilizer Cost/Acre | G46: =SUM(G30:G45) -> 47.8625 | K46: Below | M46: 2nd Application Fertilizer Cost/Acre | S46: =SUM(S30:S45) -> 0 | W46: Below | Y46: 2nd Application Fertilizer Cost/Acre | AE46: =SUM(AE30:AE45) -> 0 | AI46: Below
K47: ¯ | W47: ¯ | AI47: ¯
A48: 3rd Application (i.e., Side-Dress or Broadcast) | M48: 3rd Application (i.e., Side-Dress or Broadcast) | Y48: 3rd Application (i.e., Side-Dress or Broadcast)
A49: Fertilizer Source | B49: Purchase Units | C49: Package Price (Gals, Lbs, etc.) | D49: Units/Pkg | E49: Rate/Acre | F49: Units | G49: Cost | M49: Fertilizer Source | N49: Purchase Units | O49: Package Price (Gals, Lbs, etc.) | P49: Units/Pkg | Q49: Rate/Acre | R49: Units | S49: Cost | Y49: Fertilizer Source | Z49: Purchase Units | AA49: Package Price (Gals, Lbs, etc.) | AB49: Units/Pkg | AC49: Rate/Acre | AD49: Units | AE49: Cost
A50: Macronutrients (drop down menu) | E50: (Enter Below) | I50: N | J50: P | K50: K | M50: Macronutrients (drop down menu) | Q50: (Enter Below) | U50: N | V50: P | W50: K | Y50: Macronutrients (drop down menu) | AC50: (Enter Below) | AG50: N | AH50: P | AI50: K
A51: None | B51: =VLOOKUP(A51,Macronutrients,14,FALSE) -> None | C51: =VLOOKUP(A51,'Fertilizer Products & Pricing'!$A$4:$O$38,15,FALSE) -> 0 | D51: =VLOOKUP($A51,Macronutrients,13,FALSE) -> 1 | E51: 0 | F51: =VLOOKUP($A51,Macronutrients,12,FALSE) -> 0 | G51: =(E51*VLOOKUP(A51,Macronutrients,11,FALSE)/D51)*C51 -> 0 | I51: =VLOOKUP(A51,'Fertilizer Products & Pricing'!$A$4:$O$38,2,FALSE)*E51+VLOOKUP(A52,'Fertilizer Products & Pricing'!$A$4:$O$38,2,FALSE)*E52+VLOOKUP(A53,'Fertilizer Products & Pricing'!$A$4:$O$38,2,FALSE)*E53+VLOOKUP(A54,'Fertilizer Products & Pricing'!$A$4:$O$38,2,FALSE)*E54+VLOOKUP(A55,'Fertilizer Products & Pricing'!$A$4:$O$38,2,FALSE)*E55+VLOOKUP(A56,'Fertilizer Products & Pricing'!$A$4:$O$38,2,FALSE)*E56+VLOOKUP(A59,'Fertilizer Products & Pricing'!$A$42:$O$55,2,FALSE)*E59+VLOOKUP(A60,'Fertilizer Products & Pricing'!$A$42:$O$55,2,FALSE)*E60+VLOOKUP(A61,'Fertilizer Products & Pricing'!$A$42:$O$55,2,FALSE)*E61+VLOOKUP(A62,'Fertilizer Products & Pricing'!$A$42:$O$55,2,FALSE)*E62 -> 0 | J51: =VLOOKUP(A51,'Fertilizer Products & Pricing'!$A$4:$O$38,3,FALSE)*E51+VLOOKUP(A52,'Fertilizer Products & Pricing'!$A$4:$O$38,3,FALSE)*E52+VLOOKUP(A53,'Fertilizer Products & Pricing'!$A$4:$O$38,3,FALSE)*E53+VLOOKUP(A54,'Fertilizer Products & Pricing'!$A$4:$O$38,3,FALSE)*E54+VLOOKUP(A55,'Fertilizer Products & Pricing'!$A$4:$O$38,3,FALSE)*E55+VLOOKUP(A56,'Fertilizer Products & Pricing'!$A$4:$O$38,3,FALSE)*E56+VLOOKUP(A59,'Fertilizer Products & Pricing'!$A$42:$O$55,3,FALSE)*E59+VLOOKUP(A60,'Fertilizer Products & Pricing'!$A$42:$O$55,3,FALSE)*E60+VLOOKUP(A61,'Fertilizer Products & Pricing'!$A$42:$O$55,3,FALSE)*E61+VLOOKUP(A62,'Fertilizer Products & Pricing'!$A$42:$O$55,3,FALSE)*E62 -> 0 | K51: =VLOOKUP(A51,'Fertilizer Products & Pricing'!$A$4:$O$38,4,FALSE)*E51+VLOOKUP(A52,'Fertilizer Products & Pricing'!$A$4:$O$38,4,FALSE)*E52+VLOOKUP(A53,'Fertilizer Products & Pricing'!$A$4:$O$38,4,FALSE)*E53+VLOOKUP(A54,'Fertilizer Products & Pricing'!$A$4:$O$38,4,FALSE)*E54+VLOOKUP(A55,'Fertilizer Products & Pricing'!$A$4:$O$38,4,FALSE)*E55+VLOOKUP(A56,'Fertilizer Products & Pricing'!$A$4:$O$38,4,FALSE)*E56+VLOOKUP(A59,'Fertilizer Products & Pricing'!$A$42:$O$55,4,FALSE)*E59+VLOOKUP(A60,'Fertilizer Products & Pricing'!$A$42:$O$55,4,FALSE)*E60+VLOOKUP(A61,'Fertilizer Products & Pricing'!$A$42:$O$55,4,FALSE)*E61+VLOOKUP(A62,'Fertilizer Products & Pricing'!$A$42:$O$55,4,FALSE)*E62 -> 0 | M51: None | N51: =VLOOKUP(M51,Macronutrients,14,FALSE) -> None | O51: =VLOOKUP(M51,'Fertilizer Products & Pricing'!$A$4:$O$38,15,FALSE) -> 0 | P51: =VLOOKUP($M51,Macronutrients,13,FALSE) -> 1 | Q51: 0 | R51: =VLOOKUP($M51,Macronutrients,12,FALSE) -> 0 | S51: =(Q51*VLOOKUP(M51,Macronutrients,11,FALSE)/P51)*O51 -> 0 | U51: =VLOOKUP(M51,'Fertilizer Products & Pricing'!$A$4:$O$38,2,FALSE)*Q51+VLOOKUP(M52,'Fertilizer Products & Pricing'!$A$4:$O$38,2,FALSE)*Q52+VLOOKUP(M53,'Fertilizer Products & Pricing'!$A$4:$O$38,2,FALSE)*Q53+VLOOKUP(M54,'Fertilizer Products & Pricing'!$A$4:$O$38,2,FALSE)*Q54+VLOOKUP(M55,'Fertilizer Products & Pricing'!$A$4:$O$38,2,FALSE)*Q55+VLOOKUP(M56,'Fertilizer Products & Pricing'!$A$4:$O$38,2,FALSE)*Q56+VLOOKUP(M59,'Fertilizer Products & Pricing'!$A$42:$O$55,2,FALSE)*Q59+VLOOKUP(M60,'Fertilizer Products & Pricing'!$A$42:$O$55,2,FALSE)*Q60+VLOOKUP(M61,'Fertilizer Products & Pricing'!$A$42:$O$55,2,FALSE)*Q61+VLOOKUP(M62,'Fertilizer Products & Pricing'!$A$42:$O$55,2,FALSE)*Q62 -> 0 | V51: =VLOOKUP(M51,'Fertilizer Products & Pricing'!$A$4:$O$38,3,FALSE)*Q51+VLOOKUP(M52,'Fertilizer Products & Pricing'!$A$4:$O$38,3,FALSE)*Q52+VLOOKUP(M53,'Fertilizer Products & Pricing'!$A$4:$O$38,3,FALSE)*Q53+VLOOKUP(M54,'Fertilizer Products & Pricing'!$A$4:$O$38,3,FALSE)*Q54+VLOOKUP(M55,'Fertilizer Products & Pricing'!$A$4:$O$38,3,FALSE)*Q55+VLOOKUP(M56,'Fertilizer Products & Pricing'!$A$4:$O$38,3,FALSE)*Q56+VLOOKUP(M59,'Fertilizer Products & Pricing'!$A$42:$O$55,3,FALSE)*Q59+VLOOKUP(M60,'Fertilizer Products & Pricing'!$A$42:$O$55,3,FALSE)*Q60+VLOOKUP(M61,'Fertilizer Products & Pricing'!$A$42:$O$55,3,FALSE)*Q61+VLOOKUP(M62,'Fertilizer Products & Pricing'!$A$42:$O$55,3,FALSE)*Q62 -> 0 | W51: =VLOOKUP(M51,'Fertilizer Products & Pricing'!$A$4:$O$38,4,FALSE)*Q51+VLOOKUP(M52,'Fertilizer Products & Pricing'!$A$4:$O$38,4,FALSE)*Q52+VLOOKUP(M53,'Fertilizer Products & Pricing'!$A$4:$O$38,4,FALSE)*Q53+VLOOKUP(M54,'Fertilizer Products & Pricing'!$A$4:$O$38,4,FALSE)*Q54+VLOOKUP(M55,'Fertilizer Products & Pricing'!$A$4:$O$38,4,FALSE)*Q55+VLOOKUP(M56,'Fertilizer Products & Pricing'!$A$4:$O$38,4,FALSE)*Q56+VLOOKUP(M59,'Fertilizer Products & Pricing'!$A$42:$O$55,4,FALSE)*Q59+VLOOKUP(M60,'Fertilizer Products & Pricing'!$A$42:$O$55,4,FALSE)*Q60+VLOOKUP(M61,'Fertilizer Products & Pricing'!$A$42:$O$55,4,FALSE)*Q61+VLOOKUP(M62,'Fertilizer Products & Pricing'!$A$42:$O$55,4,FALSE)*Q62 -> 0 | Y51: None | Z51: =VLOOKUP(Y51,Macronutrients,14,FALSE) -> None | AA51: =VLOOKUP(Y51,'Fertilizer Products & Pricing'!$A$4:$O$38,15,FALSE) -> 0 | AB51: =VLOOKUP($Y51,Macronutrients,13,FALSE) -> 1 | AC51: 0 | AD51: =VLOOKUP($Y51,Macronutrients,12,FALSE) -> 0 | AE51: =(AC51*VLOOKUP(Y51,Macronutrients,11,FALSE)/AB51)*AA51 -> 0 | AG51: =VLOOKUP(Y51,'Fertilizer Products & Pricing'!$A$4:$O$38,2,FALSE)*AC51+VLOOKUP(Y52,'Fertilizer Products & Pricing'!$A$4:$O$38,2,FALSE)*AC52+VLOOKUP(Y53,'Fertilizer Products & Pricing'!$A$4:$O$38,2,FALSE)*AC53+VLOOKUP(Y54,'Fertilizer Products & Pricing'!$A$4:$O$38,2,FALSE)*AC54+VLOOKUP(Y55,'Fertilizer Products & Pricing'!$A$4:$O$38,2,FALSE)*AC55+VLOOKUP(Y56,'Fertilizer Products & Pricing'!$A$4:$O$38,2,FALSE)*AC56+VLOOKUP(Y59,'Fertilizer Products & Pricing'!$A$42:$O$55,2,FALSE)*AC59+VLOOKUP(Y60,'Fertilizer Products & Pricing'!$A$42:$O$55,2,FALSE)*AC60+VLOOKUP(Y61,'Fertilizer Products & Pricing'!$A$42:$O$55,2,FALSE)*AC61+VLOOKUP(Y62,'Fertilizer Products & Pricing'!$A$42:$O$55,2,FALSE)*AC62 -> 0 | AH51: =VLOOKUP(Y51,'Fertilizer Products & Pricing'!$A$4:$O$38,3,FALSE)*AC51+VLOOKUP(Y52,'Fertilizer Products & Pricing'!$A$4:$O$38,3,FALSE)*AC52+VLOOKUP(Y53,'Fertilizer Products & Pricing'!$A$4:$O$38,3,FALSE)*AC53+VLOOKUP(Y54,'Fertilizer Products & Pricing'!$A$4:$O$38,3,FALSE)*AC54+VLOOKUP(Y55,'Fertilizer Products & Pricing'!$A$4:$O$38,3,FALSE)*AC55+VLOOKUP(Y56,'Fertilizer Products & Pricing'!$A$4:$O$38,3,FALSE)*AC56+VLOOKUP(Y59,'Fertilizer Products & Pricing'!$A$42:$O$55,3,FALSE)*AC59+VLOOKUP(Y60,'Fertilizer Products & Pricing'!$A$42:$O$55,3,FALSE)*AC60+VLOOKUP(Y61,'Fertilizer Products & Pricing'!$A$42:$O$55,3,FALSE)*AC61+VLOOKUP(Y62,'Fertilizer Products & Pricing'!$A$42:$O$55,3,FALSE)*AC62 -> 0 | AI51: =VLOOKUP(Y51,'Fertilizer Products & Pricing'!$A$4:$O$38,4,FALSE)*AC51+VLOOKUP(Y52,'Fertilizer Products & Pricing'!$A$4:$O$38,4,FALSE)*AC52+VLOOKUP(Y53,'Fertilizer Products & Pricing'!$A$4:$O$38,4,FALSE)*AC53+VLOOKUP(Y54,'Fertilizer Products & Pricing'!$A$4:$O$38,4,FALSE)*AC54+VLOOKUP(Y55,'Fertilizer Products & Pricing'!$A$4:$O$38,4,FALSE)*AC55+VLOOKUP(Y56,'Fertilizer Products & Pricing'!$A$4:$O$38,4,FALSE)*AC56+VLOOKUP(Y59,'Fertilizer Products & Pricing'!$A$42:$O$55,4,FALSE)*AC59+VLOOKUP(Y60,'Fertilizer Products & Pricing'!$A$42:$O$55,4,FALSE)*AC60+VLOOKUP(Y61,'Fertilizer Products & Pricing'!$A$42:$O$55,4,FALSE)*AC61+VLOOKUP(Y62,'Fertilizer Products & Pricing'!$A$42:$O$55,4,FALSE)*AC62 -> 0
A52: None | B52: None | C52: =VLOOKUP(A52,'Fertilizer Products & Pricing'!$A$4:$O$38,15,FALSE) -> 0 | D52: 1 | E52: 0 | F52: 0 | G52: 0 | M52: None | N52: None | O52: =VLOOKUP(M52,'Fertilizer Products & Pricing'!$A$4:$O$38,15,FALSE) -> 0 | P52: 1 | Q52: 0 | R52: 0 | S52: 0 | Y52: None | Z52: =VLOOKUP(Y52,Macronutrients,14,FALSE) -> None | AA52: =VLOOKUP(Y52,'Fertilizer Products & Pricing'!$A$4:$O$38,15,FALSE) -> 0 | AB52: 1 | AC52: 0 | AD52: 0 | AE52: =(AC52*VLOOKUP(Y52,Macronutrients,11,FALSE)/AB52)*AA52 -> 0
A53: None | B53: None | C53: =VLOOKUP(A53,'Fertilizer Products & Pricing'!$A$4:$O$38,15,FALSE) -> 0 | D53: 1 | E53: 0 | F53: 0 | G53: 0 | I53: S | J53: Ca | K53: Mg | M53: None | N53: None | O53: =VLOOKUP(M53,'Fertilizer Products & Pricing'!$A$4:$O$38,15,FALSE) -> 0 | P53: 1 | Q53: 0 | R53: 0 | S53: 0 | U53: S | V53: Ca | W53: Mg | Y53: None | Z53: None | AA53: =VLOOKUP(Y53,'Fertilizer Products & Pricing'!$A$4:$O$38,15,FALSE) -> 0 | AB53: 1 | AC53: 0 | AD53: 0 | AE53: 0 | AG53: S | AH53: Ca | AI53: Mg
A54: None | B54: None | C54: =VLOOKUP(A54,'Fertilizer Products & Pricing'!$A$4:$O$38,15,FALSE) -> 0 | D54: 1 | E54: 0 | F54: 0 | G54: 0 | I54: =VLOOKUP(A51,'Fertilizer Products & Pricing'!$A$4:$O$38,5,FALSE)*E51+VLOOKUP(A52,'Fertilizer Products & Pricing'!$A$4:$O$38,5,FALSE)*E52+VLOOKUP(A53,'Fertilizer Products & Pricing'!$A$4:$O$38,5,FALSE)*E53+VLOOKUP(A54,'Fertilizer Products & Pricing'!$A$4:$O$38,5,FALSE)*E54+VLOOKUP(A55,'Fertilizer Products & Pricing'!$A$4:$O$38,5,FALSE)*E55+VLOOKUP(A56,'Fertilizer Products & Pricing'!$A$4:$O$38,5,FALSE)*E56+VLOOKUP(A59,'Fertilizer Products & Pricing'!$A$42:$O$55,5,FALSE)*E59+VLOOKUP(A60,'Fertilizer Products & Pricing'!$A$42:$O$55,5,FALSE)*E60+VLOOKUP(A61,'Fertilizer Products & Pricing'!$A$42:$O$55,5,FALSE)*E61+VLOOKUP(A62,'Fertilizer Products & Pricing'!$A$42:$O$55,5,FALSE)*E62 -> 0 | J54: =VLOOKUP(A51,'Fertilizer Products & Pricing'!$A$4:$O$38,7,FALSE)*E51+VLOOKUP(A52,'Fertilizer Products & Pricing'!$A$4:$O$38,7,FALSE)*E52+VLOOKUP(A53,'Fertilizer Products & Pricing'!$A$4:$O$38,7,FALSE)*E53+VLOOKUP(A54,'Fertilizer Products & Pricing'!$A$4:$O$38,7,FALSE)*E54+VLOOKUP(A55,'Fertilizer Products & Pricing'!$A$4:$O$38,7,FALSE)*E55+VLOOKUP(A56,'Fertilizer Products & Pricing'!$A$4:$O$38,7,FALSE)*E56+VLOOKUP(A59,'Fertilizer Products & Pricing'!$A$42:$O$55,7,FALSE)*E59+VLOOKUP(A60,'Fertilizer Products & Pricing'!$A$42:$O$55,7,FALSE)*E60+VLOOKUP(A61,'Fertilizer Products & Pricing'!$A$42:$O$55,7,FALSE)*E61+VLOOKUP(A62,'Fertilizer Products & Pricing'!$A$42:$O$55,7,FALSE)*E62 -> 0 | K54: =VLOOKUP(A51,'Fertilizer Products & Pricing'!$A$4:$O$38,6,FALSE)*E51+VLOOKUP(A52,'Fertilizer Products & Pricing'!$A$4:$O$38,6,FALSE)*E52+VLOOKUP(A53,'Fertilizer Products & Pricing'!$A$4:$O$38,6,FALSE)*E53+VLOOKUP(A54,'Fertilizer Products & Pricing'!$A$4:$O$38,6,FALSE)*E54+VLOOKUP(A55,'Fertilizer Products & Pricing'!$A$4:$O$38,6,FALSE)*E55+VLOOKUP(A56,'Fertilizer Products & Pricing'!$A$4:$O$38,6,FALSE)*E56+VLOOKUP(A59,'Fertilizer Products & Pricing'!$A$42:$O$55,6,FALSE)*E59+VLOOKUP(A60,'Fertilizer Products & Pricing'!$A$42:$O$55,6,FALSE)*E60+VLOOKUP(A61,'Fertilizer Products & Pricing'!$A$42:$O$55,6,FALSE)*E61+VLOOKUP(A62,'Fertilizer Products & Pricing'!$A$42:$O$55,6,FALSE)*E62 -> 0 | M54: None | N54: None | O54: =VLOOKUP(M54,'Fertilizer Products & Pricing'!$A$4:$O$38,15,FALSE) -> 0 | P54: 1 | Q54: 0 | R54: 0 | S54: 0 | U54: =VLOOKUP(M51,'Fertilizer Products & Pricing'!$A$4:$O$38,5,FALSE)*Q51+VLOOKUP(M52,'Fertilizer Products & Pricing'!$A$4:$O$38,5,FALSE)*Q52+VLOOKUP(M53,'Fertilizer Products & Pricing'!$A$4:$O$38,5,FALSE)*Q53+VLOOKUP(M54,'Fertilizer Products & Pricing'!$A$4:$O$38,5,FALSE)*Q54+VLOOKUP(M55,'Fertilizer Products & Pricing'!$A$4:$O$38,5,FALSE)*Q55+VLOOKUP(M56,'Fertilizer Products & Pricing'!$A$4:$O$38,5,FALSE)*Q56+VLOOKUP(M59,'Fertilizer Products & Pricing'!$A$42:$O$55,5,FALSE)*Q59+VLOOKUP(M60,'Fertilizer Products & Pricing'!$A$42:$O$55,5,FALSE)*Q60+VLOOKUP(M61,'Fertilizer Products & Pricing'!$A$42:$O$55,5,FALSE)*Q61+VLOOKUP(M62,'Fertilizer Products & Pricing'!$A$42:$O$55,5,FALSE)*Q62 -> 0 | V54: =VLOOKUP(M51,'Fertilizer Products & Pricing'!$A$4:$O$38,7,FALSE)*Q51+VLOOKUP(M52,'Fertilizer Products & Pricing'!$A$4:$O$38,7,FALSE)*Q52+VLOOKUP(M53,'Fertilizer Products & Pricing'!$A$4:$O$38,7,FALSE)*Q53+VLOOKUP(M54,'Fertilizer Products & Pricing'!$A$4:$O$38,7,FALSE)*Q54+VLOOKUP(M55,'Fertilizer Products & Pricing'!$A$4:$O$38,7,FALSE)*Q55+VLOOKUP(M56,'Fertilizer Products & Pricing'!$A$4:$O$38,7,FALSE)*Q56+VLOOKUP(M59,'Fertilizer Products & Pricing'!$A$42:$O$55,7,FALSE)*Q59+VLOOKUP(M60,'Fertilizer Products & Pricing'!$A$42:$O$55,7,FALSE)*Q60+VLOOKUP(M61,'Fertilizer Products & Pricing'!$A$42:$O$55,7,FALSE)*Q61+VLOOKUP(M62,'Fertilizer Products & Pricing'!$A$42:$O$55,7,FALSE)*Q62 -> 0 | W54: =VLOOKUP(M51,'Fertilizer Products & Pricing'!$A$4:$O$38,6,FALSE)*Q51+VLOOKUP(M52,'Fertilizer Products & Pricing'!$A$4:$O$38,6,FALSE)*Q52+VLOOKUP(M53,'Fertilizer Products & Pricing'!$A$4:$O$38,6,FALSE)*Q53+VLOOKUP(M54,'Fertilizer Products & Pricing'!$A$4:$O$38,6,FALSE)*Q54+VLOOKUP(M55,'Fertilizer Products & Pricing'!$A$4:$O$38,6,FALSE)*Q55+VLOOKUP(M56,'Fertilizer Products & Pricing'!$A$4:$O$38,6,FALSE)*Q56+VLOOKUP(M59,'Fertilizer Products & Pricing'!$A$42:$O$55,6,FALSE)*Q59+VLOOKUP(M60,'Fertilizer Products & Pricing'!$A$42:$O$55,6,FALSE)*Q60+VLOOKUP(M61,'Fertilizer Products & Pricing'!$A$42:$O$55,6,FALSE)*Q61+VLOOKUP(M62,'Fertilizer Products & Pricing'!$A$42:$O$55,6,FALSE)*Q62 -> 0 | Y54: None | Z54: None | AA54: =VLOOKUP(Y54,'Fertilizer Products & Pricing'!$A$4:$O$38,15,FALSE) -> 0 | AB54: 1 | AC54: 0 | AD54: 0 | AE54: 0 | AG54: =VLOOKUP(Y51,'Fertilizer Products & Pricing'!$A$4:$O$38,5,FALSE)*AC51+VLOOKUP(Y52,'Fertilizer Products & Pricing'!$A$4:$O$38,5,FALSE)*AC52+VLOOKUP(Y53,'Fertilizer Products & Pricing'!$A$4:$O$38,5,FALSE)*AC53+VLOOKUP(Y54,'Fertilizer Products & Pricing'!$A$4:$O$38,5,FALSE)*AC54+VLOOKUP(Y55,'Fertilizer Products & Pricing'!$A$4:$O$38,5,FALSE)*AC55+VLOOKUP(Y56,'Fertilizer Products & Pricing'!$A$4:$O$38,5,FALSE)*AC56+VLOOKUP(Y59,'Fertilizer Products & Pricing'!$A$42:$O$55,5,FALSE)*AC59+VLOOKUP(Y60,'Fertilizer Products & Pricing'!$A$42:$O$55,5,FALSE)*AC60+VLOOKUP(Y61,'Fertilizer Products & Pricing'!$A$42:$O$55,5,FALSE)*AC61+VLOOKUP(Y62,'Fertilizer Products & Pricing'!$A$42:$O$55,5,FALSE)*AC62 -> 0 | AH54: =VLOOKUP(Y51,'Fertilizer Products & Pricing'!$A$4:$O$38,7,FALSE)*AC51+VLOOKUP(Y52,'Fertilizer Products & Pricing'!$A$4:$O$38,7,FALSE)*AC52+VLOOKUP(Y53,'Fertilizer Products & Pricing'!$A$4:$O$38,7,FALSE)*AC53+VLOOKUP(Y54,'Fertilizer Products & Pricing'!$A$4:$O$38,7,FALSE)*AC54+VLOOKUP(Y55,'Fertilizer Products & Pricing'!$A$4:$O$38,7,FALSE)*AC55+VLOOKUP(Y56,'Fertilizer Products & Pricing'!$A$4:$O$38,7,FALSE)*AC56+VLOOKUP(Y59,'Fertilizer Products & Pricing'!$A$42:$O$55,7,FALSE)*AC59+VLOOKUP(Y60,'Fertilizer Products & Pricing'!$A$42:$O$55,7,FALSE)*AC60+VLOOKUP(Y61,'Fertilizer Products & Pricing'!$A$42:$O$55,7,FALSE)*AC61+VLOOKUP(Y62,'Fertilizer Products & Pricing'!$A$42:$O$55,7,FALSE)*AC62 -> 0 | AI54: =VLOOKUP(Y51,'Fertilizer Products & Pricing'!$A$4:$O$38,6,FALSE)*AC51+VLOOKUP(Y52,'Fertilizer Products & Pricing'!$A$4:$O$38,6,FALSE)*AC52+VLOOKUP(Y53,'Fertilizer Products & Pricing'!$A$4:$O$38,6,FALSE)*AC53+VLOOKUP(Y54,'Fertilizer Products & Pricing'!$A$4:$O$38,6,FALSE)*AC54+VLOOKUP(Y55,'Fertilizer Products & Pricing'!$A$4:$O$38,6,FALSE)*AC55+VLOOKUP(Y56,'Fertilizer Products & Pricing'!$A$4:$O$38,6,FALSE)*AC56+VLOOKUP(Y59,'Fertilizer Products & Pricing'!$A$42:$O$55,6,FALSE)*AC59+VLOOKUP(Y60,'Fertilizer Products & Pricing'!$A$42:$O$55,6,FALSE)*AC60+VLOOKUP(Y61,'Fertilizer Products & Pricing'!$A$42:$O$55,6,FALSE)*AC61+VLOOKUP(Y62,'Fertilizer Products & Pricing'!$A$42:$O$55,6,FALSE)*AC62 -> 0
A55: None | B55: None | C55: =VLOOKUP(A55,'Fertilizer Products & Pricing'!$A$4:$O$38,15,FALSE) -> 0 | D55: 1 | E55: 0 | F55: 0 | G55: 0 | M55: None | N55: None | O55: =VLOOKUP(M55,'Fertilizer Products & Pricing'!$A$4:$O$38,15,FALSE) -> 0 | P55: 1 | Q55: 0 | R55: 0 | S55: 0 | Y55: None | Z55: None | AA55: =VLOOKUP(Y55,'Fertilizer Products & Pricing'!$A$4:$O$38,15,FALSE) -> 0 | AB55: 1 | AC55: 0 | AD55: 0 | AE55: 0
A56: None | B56: None | C56: =VLOOKUP(A56,'Fertilizer Products & Pricing'!$A$4:$O$38,15,FALSE) -> 0 | D56: 1 | E56: 0 | F56: 0 | G56: 0 | I56: Zn | J56: B | K56: Mn | M56: None | N56: None | O56: =VLOOKUP(M56,'Fertilizer Products & Pricing'!$A$4:$O$38,15,FALSE) -> 0 | P56: 1 | Q56: 0 | R56: 0 | S56: 0 | U56: Zn | V56: B | W56: Mn | Y56: None | Z56: None | AA56: =VLOOKUP(Y56,'Fertilizer Products & Pricing'!$A$4:$O$38,15,FALSE) -> 0 | AB56: 1 | AC56: 0 | AD56: 0 | AE56: 0 | AG56: Zn | AH56: B | AI56: Mn
I57: =VLOOKUP($A$60,'Fertilizer Products & Pricing'!$A$42:$O$55,8,FALSE)*$E$60+VLOOKUP($A$61,'Fertilizer Products & Pricing'!$A$42:$O$55,8,FALSE)*$E$61+VLOOKUP($A$62,'Fertilizer Products & Pricing'!$A$42:$O$55,8,FALSE)*$E$62+VLOOKUP($A$59,'Fertilizer Products & Pricing'!$A$42:$O$55,8,FALSE)*$E$59 -> 0 | J57: =VLOOKUP($A$60,'Fertilizer Products & Pricing'!$A$42:$O$55,9,FALSE)*$E$60+VLOOKUP($A$61,'Fertilizer Products & Pricing'!$A$42:$O$55,9,FALSE)*$E$61+VLOOKUP($A$62,'Fertilizer Products & Pricing'!$A$42:$O$55,9,FALSE)*$E$62+VLOOKUP($A$59,'Fertilizer Products & Pricing'!$A$42:$O$55,9,FALSE)*$E$59 -> 0 | K57: =VLOOKUP($A$60,'Fertilizer Products & Pricing'!$A$42:$O$55,10,FALSE)*$E$60+VLOOKUP($A$61,'Fertilizer Products & Pricing'!$A$42:$O$55,10,FALSE)*$E$61+VLOOKUP($A$62,'Fertilizer Products & Pricing'!$A$42:$O$55,10,FALSE)*$E$62+VLOOKUP($A$59,'Fertilizer Products & Pricing'!$A$42:$O$55,10,FALSE)*$E$59 -> 0 | U57: =VLOOKUP($M60,'Fertilizer Products & Pricing'!$A$42:$O$55,8,FALSE)*$Q60+VLOOKUP($M61,'Fertilizer Products & Pricing'!$A$42:$O$55,8,FALSE)*$Q61+VLOOKUP($M62,'Fertilizer Products & Pricing'!$A$42:$O$55,8,FALSE)*$Q62+VLOOKUP($M59,'Fertilizer Products & Pricing'!$A$42:$O$55,8,FALSE)*$Q59 -> 0 | V57: =VLOOKUP($M60,'Fertilizer Products & Pricing'!$A$42:$O$55,9,FALSE)*$Q60+VLOOKUP($M61,'Fertilizer Products & Pricing'!$A$42:$O$55,9,FALSE)*$Q61+VLOOKUP($M62,'Fertilizer Products & Pricing'!$A$42:$O$55,9,FALSE)*$Q62+VLOOKUP($M59,'Fertilizer Products & Pricing'!$A$42:$O$55,9,FALSE)*$Q59 -> 0 | W57: =VLOOKUP($M60,'Fertilizer Products & Pricing'!$A$42:$O$55,10,FALSE)*$Q60+VLOOKUP($M61,'Fertilizer Products & Pricing'!$A$42:$O$55,10,FALSE)*$Q61+VLOOKUP($M62,'Fertilizer Products & Pricing'!$A$42:$O$55,10,FALSE)*$Q62+VLOOKUP($M59,'Fertilizer Products & Pricing'!$A$42:$O$55,10,FALSE)*$Q59 -> 0 | AG57: =VLOOKUP($Y60,'Fertilizer Products & Pricing'!$A$42:$O$55,8,FALSE)*$AC60+VLOOKUP($Y61,'Fertilizer Products & Pricing'!$A$42:$O$55,8,FALSE)*$AC61+VLOOKUP($Y62,'Fertilizer Products & Pricing'!$A$42:$O$55,8,FALSE)*$AC62+VLOOKUP($Y59,'Fertilizer Products & Pricing'!$A$42:$O$55,8,FALSE)*$AC59 -> 0 | AH57: =VLOOKUP($Y60,'Fertilizer Products & Pricing'!$A$42:$O$55,9,FALSE)*$AC60+VLOOKUP($Y61,'Fertilizer Products & Pricing'!$A$42:$O$55,9,FALSE)*$AC61+VLOOKUP($Y62,'Fertilizer Products & Pricing'!$A$42:$O$55,9,FALSE)*$AC62+VLOOKUP($Y59,'Fertilizer Products & Pricing'!$A$42:$O$55,9,FALSE)*$AC59 -> 0 | AI57: =VLOOKUP($Y60,'Fertilizer Products & Pricing'!$A$42:$O$55,10,FALSE)*$AC60+VLOOKUP($Y61,'Fertilizer Products & Pricing'!$A$42:$O$55,10,FALSE)*$AC61+VLOOKUP($Y62,'Fertilizer Products & Pricing'!$A$42:$O$55,10,FALSE)*$AC62+VLOOKUP($Y59,'Fertilizer Products & Pricing'!$A$42:$O$55,10,FALSE)*$AC59 -> 0
A58: Micronutrients (drop down menu) | M58: Micronutrients (drop down menu) | Y58: Micronutrients (drop down menu)
A59: None | B59: =VLOOKUP($A59,Micronutrients,14,FALSE) -> None | C59: =VLOOKUP($A59,Micronutrients,15,FALSE) -> 0 | D59: =VLOOKUP($A59,Micronutrients,13,FALSE) -> 1 | E59: 0 | F59: =VLOOKUP($A59,Micronutrients,12,FALSE) -> 0 | G59: =(E59*VLOOKUP(A59,Micronutrients,11,FALSE)/D59)*C59 -> 0 | M59: None | N59: =VLOOKUP($M59,Micronutrients,14,FALSE) -> None | O59: =VLOOKUP($M59,Micronutrients,15,FALSE) -> 0 | P59: =VLOOKUP($M59,Micronutrients,13,FALSE) -> 1 | Q59: 0 | R59: =VLOOKUP($M59,Micronutrients,12,FALSE) -> 0 | S59: =(Q59*VLOOKUP(M59,Micronutrients,11,FALSE)/P59)*O59 -> 0 | Y59: None | Z59: =VLOOKUP(Y59,Micronutrients,14,FALSE) -> None | AA59: =VLOOKUP(Y59,Micronutrients,15,FALSE) -> 0 | AB59: =VLOOKUP(Y59,Micronutrients,13,FALSE) -> 1 | AC59: 0 | AD59: =VLOOKUP(Y59,Micronutrients,12,FALSE) -> 0 | AE59: =(AC59*VLOOKUP(Y59,Micronutrients,11,FALSE)/AB59)*AA59 -> 0
A60: None | B60: =VLOOKUP($A60,Micronutrients,14,FALSE) -> None | C60: =VLOOKUP($A60,Micronutrients,15,FALSE) -> 0 | D60: =VLOOKUP($A60,Micronutrients,13,FALSE) -> 1 | E60: 0 | F60: =VLOOKUP($A60,Micronutrients,12,FALSE) -> 0 | G60: =(E60*VLOOKUP(A60,Micronutrients,11,FALSE)/D60)*C60 -> 0 | M60: None | N60: =VLOOKUP($M60,Micronutrients,14,FALSE) -> None | O60: =VLOOKUP($M60,Micronutrients,15,FALSE) -> 0 | P60: =VLOOKUP($M60,Micronutrients,13,FALSE) -> 1 | Q60: 0 | R60: =VLOOKUP($M60,Micronutrients,12,FALSE) -> 0 | S60: =(Q60*VLOOKUP(M60,Micronutrients,11,FALSE)/P60)*O60 -> 0 | Y60: None | Z60: =VLOOKUP(Y60,Micronutrients,14,FALSE) -> None | AA60: =VLOOKUP(Y60,Micronutrients,15,FALSE) -> 0 | AB60: =VLOOKUP(Y60,Micronutrients,13,FALSE) -> 1 | AC60: 0 | AD60: =VLOOKUP(Y60,Micronutrients,12,FALSE) -> 0 | AE60: =(AC60*VLOOKUP(Y60,Micronutrients,11,FALSE)/AB60)*AA60 -> 0
A61: None | B61: =VLOOKUP($A61,Micronutrients,14,FALSE) -> None | C61: =VLOOKUP($A61,Micronutrients,15,FALSE) -> 0 | D61: =VLOOKUP($A61,Micronutrients,13,FALSE) -> 1 | E61: 0 | F61: =VLOOKUP($A61,Micronutrients,12,FALSE) -> 0 | G61: =(E61*VLOOKUP(A61,Micronutrients,11,FALSE)/D61)*C61 -> 0 | M61: None | N61: =VLOOKUP($M61,Micronutrients,14,FALSE) -> None | O61: =VLOOKUP($M61,Micronutrients,15,FALSE) -> 0 | P61: =VLOOKUP($M61,Micronutrients,13,FALSE) -> 1 | Q61: 0 | R61: =VLOOKUP($M61,Micronutrients,12,FALSE) -> 0 | S61: =(Q61*VLOOKUP(M61,Micronutrients,11,FALSE)/P61)*O61 -> 0 | Y61: None | Z61: =VLOOKUP(Y61,Micronutrients,14,FALSE) -> None | AA61: =VLOOKUP(Y61,Micronutrients,15,FALSE) -> 0 | AB61: =VLOOKUP(Y61,Micronutrients,13,FALSE) -> 1 | AC61: 0 | AD61: =VLOOKUP(Y61,Micronutrients,12,FALSE) -> 0 | AE61: =(AC61*VLOOKUP(Y61,Micronutrients,11,FALSE)/AB61)*AA61 -> 0
A62: None | B62: =VLOOKUP($A62,Micronutrients,14,FALSE) -> None | C62: =VLOOKUP($A62,Micronutrients,15,FALSE) -> 0 | D62: =VLOOKUP($A62,Micronutrients,13,FALSE) -> 1 | E62: 0 | F62: =VLOOKUP($A62,Micronutrients,12,FALSE) -> 0 | G62: =(E62*VLOOKUP(A62,Micronutrients,11,FALSE)/D62)*C62 -> 0 | M62: None | N62: =VLOOKUP($M62,Micronutrients,14,FALSE) -> None | O62: =VLOOKUP($M62,Micronutrients,15,FALSE) -> 0 | P62: =VLOOKUP($M62,Micronutrients,13,FALSE) -> 1 | Q62: 0 | R62: =VLOOKUP($M62,Micronutrients,12,FALSE) -> 0 | S62: =(Q62*VLOOKUP(M62,Micronutrients,11,FALSE)/P62)*O62 -> 0 | Y62: None | Z62: =VLOOKUP(Y62,Micronutrients,14,FALSE) -> None | AA62: =VLOOKUP(Y62,Micronutrients,15,FALSE) -> 0 | AB62: =VLOOKUP(Y62,Micronutrients,13,FALSE) -> 1 | AC62: 0 | AD62: =VLOOKUP(Y62,Micronutrients,12,FALSE) -> 0 | AE62: =(AC62*VLOOKUP(Y62,Micronutrients,11,FALSE)/AB62)*AA62 -> 0
A64: Nitrogen Stabilizers (drop down menu) | M64: Nitrogen Stabilizers (drop down menu) | Y64: Nitrogen Stabilizers (drop down menu)
A65: None | B65: =VLOOKUP(A65,NitrogenStabilizers,14,FALSE) -> None | C65: =VLOOKUP(A65,NitrogenStabilizers,15,FALSE) -> 0 | D65: =VLOOKUP(A65,NitrogenStabilizers,13,FALSE) -> 1 | E65: 0 | F65: =VLOOKUP(A65,NitrogenStabilizers,12,FALSE) -> 0 | G65: =(E65*VLOOKUP(A65,NitrogenStabilizers,11,FALSE)/D65)*C65 -> 0 | M65: None | N65: =VLOOKUP(M65,NitrogenStabilizers,14,FALSE) -> None | O65: =VLOOKUP(M65,NitrogenStabilizers,15,FALSE) -> 0 | P65: =VLOOKUP(M65,NitrogenStabilizers,13,FALSE) -> 1 | Q65: 0 | R65: =VLOOKUP(M65,NitrogenStabilizers,12,FALSE) -> 0 | S65: =(Q65*VLOOKUP(M65,NitrogenStabilizers,11,FALSE)/P65)*O65 -> 0 | Y65: None | Z65: =VLOOKUP(Y65,NitrogenStabilizers,14,FALSE) -> None | AA65: =VLOOKUP(Y65,NitrogenStabilizers,15,FALSE) -> 0 | AB65: =VLOOKUP(Y65,NitrogenStabilizers,13,FALSE) -> 1 | AC65: 0 | AD65: =VLOOKUP(Y65,NitrogenStabilizers,12,FALSE) -> 0 | AE65: =(AC65*VLOOKUP(Y65,NitrogenStabilizers,11,FALSE)/AB65)*AA65 -> 0
A66: None | B66: =VLOOKUP(A66,NitrogenStabilizers,14,FALSE) -> None | C66: =VLOOKUP(A66,NitrogenStabilizers,15,FALSE) -> 0 | D66: =VLOOKUP(A66,NitrogenStabilizers,13,FALSE) -> 1 | E66: 0 | F66: =VLOOKUP(A66,NitrogenStabilizers,12,FALSE) -> 0 | G66: =(E66*VLOOKUP(A66,NitrogenStabilizers,11,FALSE)/D66)*C66 -> 0 | M66: None | N66: =VLOOKUP(M66,NitrogenStabilizers,14,FALSE) -> None | O66: =VLOOKUP(M66,NitrogenStabilizers,15,FALSE) -> 0 | P66: =VLOOKUP(M66,NitrogenStabilizers,13,FALSE) -> 1 | Q66: 0 | R66: =VLOOKUP(M66,NitrogenStabilizers,12,FALSE) -> 0 | S66: =(Q66*VLOOKUP(M66,NitrogenStabilizers,11,FALSE)/P66)*O66 -> 0 | Y66: None | Z66: =VLOOKUP(Y66,NitrogenStabilizers,14,FALSE) -> None | AA66: =VLOOKUP(Y66,NitrogenStabilizers,15,FALSE) -> 0 | AB66: =VLOOKUP(Y66,NitrogenStabilizers,13,FALSE) -> 1 | AC66: 0 | AD66: =VLOOKUP(Y66,NitrogenStabilizers,12,FALSE) -> 0 | AE66: =(AC66*VLOOKUP(Y66,NitrogenStabilizers,11,FALSE)/AB66)*AA66 -> 0
A67: 3rd Application Fertilizer Cost/Acre | G67: =SUM(G51:G66) -> 0 | M67: 3rd Application Fertilizer Cost/Acre | S67: =SUM(S51:S66) -> 0 | Y67: 3rd Application Fertilizer Cost/Acre | AE67: =SUM(AE51:AE66) -> 0
A69: Total Fertilizer Cost/Acre | G69: =G67+G46+G25 -> 86.4125 | M69: Total Fertilizer Cost/Acre | S69: =S67+S46+S25 -> 0 | Y69: Total Fertilizer Cost/Acre | AE69: =AE67+AE46+AE25 -> 0
E71: Total Nutrient Needs | Q71: Total Nutrient Needs | AC71: Total Nutrient Needs
E72: Based on: | F72: Nutrient Removal | I72: Total Fertilizer Program | Q72: Based on: | R72: Soil Test Based Recs | U72: Total Fertilizer Program | AC72: Based on: | AD72: Soil Test Based Recs | AG72: Total Fertilizer Program
A73: Farm Name | E73: N | F73: P | G73: K | I73: N | J73: P | K73: K | M73: =A73 -> Farm Name | Q73: N | R73: P | S73: K | U73: N | V73: P | W73: K | Y73: =A73 -> Farm Name | AC73: N | AD73: P | AE73: K | AG73: N | AH73: P | AI73: K
A74: Farm Tract | E74: ='Nutrient Management'!J65 -> 70 | F74: ='Nutrient Management'!K65 -> 31 | G74: ='Nutrient Management'!L65 -> 12 | I74: =I51+I30+I6 -> 69.15 | J74: =J51+J30+J6 -> 34.5 | K74: =K51+K30+K6 -> 15 | M74: =A74 -> Farm Tract | Q74: ='Nutrient Management'!J55 -> 70 | R74: ='Nutrient Management'!K55 -> 33 | S74: ='Nutrient Management'!L55 -> 15 | U74: =U51+U30+U6 -> 0 | V74: =V51+V30+V6 -> 0 | W74: =W51+W30+W6 -> 0 | Y74: =A74 -> Farm Tract | AC74: ='Nutrient Management'!J55 -> 70 | AD74: ='Nutrient Management'!K55 -> 33 | AE74: ='Nutrient Management'!L55 -> 15 | AG74: =AG51+AG30+AG6 -> 0 | AH74: =AH51+AH30+AH6 -> 0 | AI74: =AI51+AI30+AI6 -> 0
A75: Farm Number | E75: S | F75: Ca | G75: Mg | I75: S | J75: Ca | K75: Mg | M75: Farm Number | Q75: S | R75: Ca | S75: Mg | U75: S | V75: Ca | W75: Mg | Y75: Farm Number | AC75: S | AD75: Ca | AE75: Mg | AG75: S | AH75: Ca | AI75: Mg
E76: ='Nutrient Management'!J68 -> 7 | F76: ='Nutrient Management'!K58 -> 0 | G76: ='Nutrient Management'!L58 -> 0 | I76: =I54+I33+I9 -> 8.4 | J76: =J54+J33+J9 -> 0 | K76: =K54+K33+K9 -> 0 | Q76: ='Nutrient Management'!J58 -> 8 | R76: =F76 -> 0 | S76: =G76 -> 0 | U76: =U54+U33+U9 -> 0 | V76: =V54+V33+V9 -> 0 | W76: =W54+W33+W9 -> 0 | AC76: ='Nutrient Management'!J58 -> 8 | AD76: =F76 -> 0 | AE76: =G76 -> 0 | AG76: =AG54+AG33+AG9 -> 0 | AH76: =AH54+AH33+AH9 -> 0 | AI76: =AI54+AI33+AI9 -> 0
E77: Zn | F77: B | G77: Mn | I77: Zn | J77: B | K77: Mn | Q77: Zn | R77: B | S77: Mn | U77: Zn | V77: B | W77: Mn | AC77: Zn | AD77: B | AE77: Mn | AG77: Zn | AH77: B | AI77: Mn
E78: 0 | F78: 0 | G78: 0 | I78: =I57+I36+I12 -> 0 | J78: =J57+J36+J12 -> 0 | K78: =K57+K36+K12 -> 0 | Q78: =E78 -> 0 | R78: =F78 -> 0 | S78: =G78 -> 0 | U78: =U57+U36+U12 -> 0 | V78: =V57+V36+V12 -> 0 | W78: =W57+W36+W12 -> 0 | AC78: =E78 -> 0 | AD78: =F78 -> 0 | AE78: =G78 -> 0 | AG78: =AG57+AG36+AG12 -> 0 | AH78: =AH57+AH36+AH12 -> 0 | AI78: =AI57+AI36+AI12 -> 0
E79: * from Nutrient Management tab | Q79: * from Nutrient Management tab | AC79: * from Nutrient Management tab

Sheet Simple Fertilizer Calculator
B2: Fertilizer Calculator
C3: Source | D3: Price/ton | E3: Price/lb | F3: Amount | G3: Cost/Acre
C4: (Enter Below) | D4: (Enter Below) | F4: (Enter Below)
B5: Nitrogen | C5: 0.46 | D5: 365 | E5: =D5/H5 -> 0.3967391304 | F5: 86 | G5: =F5*E5 -> 34.11956522 | H5: =2000*C5 -> 920
B6: Nitrogen from Phosphate | C6: 0.18 | D6: 144 | E6: =D6/J20 -> 0.4 | F6: 40 | G6: =F6*E6 -> 16 | H6: =2000*C10 -> 920
B7: Nitrogen from Sulfur | C7: 0.21 | D7: 168 | E7: =D7/J35 -> 0.4 | F7: 40 | G7: =F7*E7 -> 16
G8: =SUM(G5:G7) -> 66.11956522
C9: (Enter Below) | D9: (Enter Below) | F9: (Enter Below)
B10: Phosphorus | C10: 0.46 | D10: 361 | E10: =D10/H6 -> 0.3923913043 | F10: 60 | G10: =F10*E10 -> 23.54347826 | H10: =2000*C6 -> 360
B11: Potassium | C11: 0.6 | D11: 355 | E11: =D11/H11 -> 0.2958333333 | F11: 75 | G11: =F11*E11 -> 22.1875 | H11: =2000*C11 -> 1200
B12: Sulfur | C12: 0.24 | D12: 157 | E12: =D12/H12 -> 0.3270833333 | F12: 60 | G12: =F12*E12 -> 19.625 | H12: =2000*C12 -> 480
G13: =SUM(G10:G12) -> 65.35597826
F14: Total Fertilizer | G14: =G8+G13 -> 131.4755435
B15: Source Code:
B16: Nitrogen | C16: 28-0-0 | D16: type in | E16: 0.28
B17: Phosphorus | C17: 18-46-0 | D17: type in | E17: 0.46
B18: Potassium | C18: 0-0-60 | D18: type in | E18: 0.6
I20: lbs/ton | J20: =2000*(C24/100) -> 360 | K20: =2000*(D24/100) -> 920
B21: Extract Nitrogen Cost from Phosphate Fertilizers | I21: %/ton | J21: =J20/(J20+K20) -> 0.28125 | K21: =K20/(J20+K20) -> 0.71875
C22: N | D22: P | E22: Price
C23: (Enter Below) | D23: (Enter Below) | E23: (Enter Below)
C24: 18 | D24: 46 | E24: 505
B25: Price/lb | C25: 0.4 | D25: =D26/K20 -> 0.3923913043
B26: Price/ton | C26: =J20*C25 -> 144 | D26: =E24-C26 -> 361 | E26: =SUM(C26:D26) -> 505
B28: *Enter a price/lb of nitrogen to calculate the phosphate fertilizer price. The price as calculated above can be used if a price is not already known.
B31: *If nitrogen from Phosphate fertilizer will not be utilized by the crop, simply enter "0" in Amount and adjust the price of the phosphate fertilizer to the total cost/ton of the blend.
I35: lbs/ton | J35: =2000*(C39/100) -> 420 | K35: =2000*(D39/100) -> 480
B36: Extract Nitrogen Cost from Sulfur Fertilizers | I36: %/ton | J36: =J35/(J35+K35) -> 0.4666666667 | K36: =K35/(J35+K35) -> 0.5333333333
C37: N | D37: S | E37: Price
C38: (Enter Below) | D38: (Enter Below) | E38: (Enter Below)
C39: 21 | D39: 24 | E39: 325
B40: Price/lb | C40: 0.4 | D40: =D41/K35 -> 0.3270833333
B41: Price/ton | C41: =J35*C40 -> 168 | D41: =E39-C41 -> 157 | E41: =SUM(C41:D41) -> 325
B43: *Enter a price/lb of nitrogen to calculate the sulfur fertilizer price. The price as calculated above can be used if a price is not already known.
B46: *If nitrogen from sulfur fertilizer will not be utilized by the crop, simply enter "0" in Amount and adjust the price of the sulfur fertilizer to the total cost/ton of the blend.

Sheet Tri-State Recommendations (hidden)
B1: Tri-State Fertilizer Recommendations
B3: Corn | F3: Soybeans | J3: Wheat
A5: Yield Goal: | B5: ='Nutrient Management'!C6 -> 200 | F5: ='Nutrient Management'!G6 -> 45 | J5: ='Nutrient Management'!K6 -> 100
A7: Soil Test Level: | B7: Input amount of nutrients currently present in field (based on soil test results)
B8: (Enter Below) | C8: (Enter Below) | D8: (Enter Below) | F8: (Enter Below) | G8: (Enter Below) | H8: (Enter Below) | J8: (Enter Below) | K8: (Enter Below) | L8: (Enter Below)
B9: N | C9: P | D9: K | F9: N | G9: P | H9: K | J9: N | K9: P | L9: K
B10: 0 | C10: 0 | D10: 0 | F10: 0 | G10: 0 | H10: 0 | J10: 0 | K10: 0 | L10: 0
B11: S | C11: Ca | D11: Mag | F11: S | G11: Ca | H11: Mag | J11: S | K11: Ca | L11: Mag
B12: 0 | C12: 0 | D12: 0 | F12: 0 | G12: 0 | H12: 0 | J12: 0 | K12: 0 | L12: 0
B13: 0 | C13: 0 | D13: 0 | F13: 0 | G13: 0 | H13: 0 | J13: 0 | K13: 0 | L13: 0
B14: 0 | C14: 0 | D14: 0 | F14: 0 | G14: 0 | H14: 0 | J14: 0 | K14: 0 | L14: 0
C15: (Enter Below) | G15: (Enter Below) | K15: (Enter Below)
